Workbook

Sheet Read First
P8: Quick Link
P9: The ESD model, user's manual, and
P10: link to import results from the SAM model
P11: are accessible here.

Sheet SAM Inputs
A1: PV DC nameplate (kW) | B1: 605.834
A2: DC-AC ratio | B2: 1.21167
A3: PV annual DC degradation rate | B3: 0.5
A4: Battery AC power (kW) | B4: 519.615
A5: Battery minimum state of charge | B5: 0.15
A6: Battery maximum state of charge | B6: 0.95
A7: Battery AC energy capacity (kWh) | B7: 1995.32
A8: Battery round trip efficiency (%) | B8: 87.0104
A9: Battery can charge from grid | B9: 1
A10: Battery can charge from system | B10: 1
A11: Electricity load (kW) | B11: Electricity to battery from grid (kW) | C11: Electricity to battery from system (kW) | D11: Electricity to load from battery (kW) | E11: Electricity to load from system (kW) | F11: Battery state of charge (%)
A12: 8778 | B12: 546.308 | C12: 0 | D12: 0 | E12: 0 | F12: 74
A13: 8191 | B13: 516.255 | C13: 0 | D13: 0 | E13: 0 | F13: 95
A14: 7704 | B14: 0 | C14: 0 | D14: 0 | E14: 0 | F14: 95
A15: 7362 | B15: 0 | C15: 0 | D15: 0 | E15: 0 | F15: 95
A16: 7154 | B16: 0 | C16: 0 | D16: 0 | E16: 0 | F16: 95
A17: 7200 | B17: 0 | C17: 0 | D17: 0 | E17: 0 | F17: 95
A18: 7543 | B18: 0 | C18: 0 | D18: 0 | E18: 0 | F18: 95
A19: 7565 | B19: 0 | C19: 0 | D19: 0 | E19: 0 | F19: 95
A20: 8207 | B20: 0 | C20: 0 | D20: 0 | E20: 119.409 | F20: 95
A21: 9013 | B21: 0 | C21: 0 | D21: 0 | E21: 38.8035 | F21: 95
A22: 9888 | B22: 0 | C22: 0 | D22: 0 | E22: 121.145 | F22: 95
A23: 10472 | B23: 0 | C23: 0 | D23: 0 | E23: 97.3044 | F23: 95
A24: 11136 | B24: 0 | C24: 0 | D24: 0 | E24: 135.216 | F24: 95
A25: 10958 | B25: 0 | C25: 0 | D25: 0 | E25: 116.972 | F25: 95
A26: 10465 | B26: 0 | C26: 0 | D26: 0 | E26: 46.4418 | F26: 95
A27: 10491 | B27: 0 | C27: 0 | D27: 0 | E27: 25.6651 | F27: 95
A28: 10582 | B28: 0 | C28: 0 | D28: 0 | E28: 2.72901 | F28: 95
A29: 11813 | B29: 0 | C29: 0 | D29: 0 | E29: 0 | F29: 95
A30: 12522 | B30: 0 | C30: 0 | D30: 539.684 | E30: 0 | F30: 68.9583
A31: 12241 | B31: 0 | C31: 0 | D31: 258.938 | E31: 0 | F31: 56.187
A32: 11593 | B32: 389.062 | C32: 0 | D32: 0 | E32: 0 | F32: 73.3096
A33: 10899 | B33: 533.23 | C33: 0 | D33: 0 | E33: 0 | F33: 95
A34: 9989 | B34: 0 | C34: 0 | D34: 0 | E34: 0 | F34: 95
A35: 8894 | B35: 0 | C35: 0 | D35: 0 | E35: 0 | F35: 95
A36: 7964 | B36: 0 | C36: 0 | D36: 0 | E36: 0 | F36: 95
A37: 7614 | B37: 0 | C37: 0 | D37: 0 | E37: 0 | F37: 95
A38: 7342 | B38: 0 | C38: 0 | D38: 0 | E38: 0 | F38: 95
A39: 7417 | B39: 0 | C39: 0 | D39: 0 | E39: 0 | F39: 95
A40: 7831 | B40: 0 | C40: 0 | D40: 0 | E40: 0 | F40: 95
A41: 8823 | B41: 0 | C41: 0 | D41: 0 | E41: 0 | F41: 95
A42: 10092 | B42: 0 | C42: 0 | D42: 0 | E42: 0 | F42: 95
A43: 10621 | B43: 0 | C43: 0 | D43: 0 | E43: 0.762005 | F43: 95
A44: 10905 | B44: 0 | C44: 0 | D44: 0 | E44: 52.6385 | F44: 95
A45: 11282 | B45: 0 | C45: 0 | D45: 0 | E45: 59.8812 | F45: 95
A46: 11405 | B46: 0 | C46: 0 | D46: 0 | E46: 219.93 | F46: 95
A47: 11091 | B47: 0 | C47: 0 | D47: 0 | E47: 166.66 | F47: 95
A48: 11090 | B48: 0 | C48: 0 | D48: 0 | E48: 149.044 | F48: 95
A49: 10831 | B49: 0 | C49: 0 | D49: 0 | E49: 133.12 | F49: 95
A50: 10821 | B50: 0 | C50: 0 | D50: 0 | E50: 95.2574 | F50: 95
A51: 10728 | B51: 0 | C51: 0 | D51: 0 | E51: 37.0074 | F51: 95
A52: 11362 | B52: 0 | C52: 0 | D52: 0 | E52: 11.476 | F52: 95
A53: 13196 | B53: 0 | C53: 0 | D53: 0 | E53: 0 | F53: 95
A54: 14009 | B54: 0 | C54: 0 | D54: 525.687 | E54: 0 | F54: 69.673
A55: 13767 | B55: 0 | C55: 0 | D55: 283.687 | E55: 0 | F55: 55.6709
A56: 13278 | B56: 205.313 | C56: 0 | D56: 0 | E56: 0 | F56: 64.8725
A57: 12500 | B57: 573.619 | C57: 0 | D57: 0 | E57: 0 | F57: 88.8725
A58: 11375 | B58: 150.616 | C58: 0 | D58: 0 | E58: 0 | F58: 95
A59: 10387 | B59: 0 | C59: 0 | D59: 0 | E59: 0 | F59: 95
A60: 9461 | B60: 0 | C60: 0 | D60: 0 | E60: 0 | F60: 95
A61: 8974 | B61: 0 | C61: 0 | D61: 0 | E61: 0 | F61: 95
A62: 8722 | B62: 0 | C62: 0 | D62: 0 | E62: 0 | F62: 95
A63: 8687 | B63: 0 | C63: 0 | D63: 0 | E63: 0 | F63: 95
A64: 9056 | B64: 0 | C64: 0 | D64: 0 | E64: 0 | F64: 95
A65: 9982 | B65: 0 | C65: 0 | D65: 0 | E65: 0 | F65: 95
A66: 11016 | B66: 0 | C66: 0 | D66: 0 | E66: 0 | F66: 95
A67: 11191 | B67: 0 | C67: 0 | D67: 0 | E67: 0.0839506 | F67: 95
A68: 11143 | B68: 0 | C68: 0 | D68: 0 | E68: 7.56882 | F68: 95
A69: 11480 | B69: 0 | C69: 0 | D69: 0 | E69: 17.9995 | F69: 95
A70: 11443 | B70: 0 | C70: 0 | D70: 0 | E70: 19.4326 | F70: 95
A71: 11518 | B71: 0 | C71: 0 | D71: 0 | E71: 60.5763 | F71: 95
A72: 11602 | B72: 0 | C72: 0 | D72: 0 | E72: 29.2216 | F72: 95
A73: 11538 | B73: 0 | C73: 0 | D73: 0 | E73: 24.5842 | F73: 95
A74: 11220 | B74: 0 | C74: 0 | D74: 0 | E74: 17.7912 | F74: 95
A75: 11262 | B75: 0 | C75: 0 | D75: 0 | E75: 17.5863 | F75: 95
A76: 11664 | B76: 0 | C76: 0 | D76: 0 | E76: 7.04801 | F76: 95
A77: 13219 | B77: 0 | C77: 0 | D77: 0 | E77: 0 | F77: 95
A78: 13854 | B78: 0 | C78: 0 | D78: 370.687 | E78: 0 | F78: 77.4874
A79: 13666 | B79: 0 | C79: 0 | D79: 182.687 | E79: 0 | F79: 68.6682
A80: 13307 | B80: 176.313 | C80: 0 | D80: 0 | E80: 0 | F80: 76.367
A81: 12536 | B81: 458.055 | C81: 0 | D81: 0 | E81: 0 | F81: 95
A82: 11547 | B82: 0 | C82: 0 | D82: 0 | E82: 0 | F82: 95
A83: 10394 | B83: 0 | C83: 0 | D83: 0 | E83: 0 | F83: 95
A84: 9432 | B84: 0 | C84: 0 | D84: 0 | E84: 0 | F84: 95
A85: 9130 | B85: 0 | C85: 0 | D85: 0 | E85: 0 | F85: 95
A86: 8868 | B86: 0 | C86: 0 | D86: 0 | E86: 0 | F86: 95
A87: 8784 | B87: 0 | C87: 0 | D87: 0 | E87: 0 | F87: 95
A88: 9040 | B88: 0 | C88: 0 | D88: 0 | E88: 0 | F88: 95
A89: 9996 | B89: 0 | C89: 0 | D89: 0 | E89: 0 | F89: 95
A90: 11178 | B90: 0 | C90: 0 | D90: 0 | E90: 0 | F90: 95
A91: 11496 | B91: 0 | C91: 0 | D91: 0 | E91: 0 | F91: 95
A92: 11602 | B92: 0 | C92: 0 | D92: 0 | E92: 1.43988 | F92: 95
A93: 11868 | B93: 0 | C93: 0 | D93: 0 | E93: 5.72782 | F93: 95
A94: 12198 | B94: 0 | C94: 0 | D94: 0 | E94: 17.0956 | F94: 95
A95: 12347 | B95: 0 | C95: 0 | D95: 0 | E95: 22.4263 | F95: 95
A96: 12406 | B96: 0 | C96: 0 | D96: 0 | E96: 31.4367 | F96: 95
A97: 12260 | B97: 0 | C97: 0 | D97: 0 | E97: 20.6205 | F97: 95
A98: 12127 | B98: 0 | C98: 0 | D98: 0 | E98: 13.7864 | F98: 95
A99: 12315 | B99: 0 | C99: 0 | D99: 0 | E99: 3.43695 | F99: 95
A100: 12733 | B100: 0 | C100: 0 | D100: 0 | E100: 1.55505 | F100: 95
A101: 13977 | B101: 0 | C101: 0 | D101: 233.239 | E101: 0 | F101: 84.2159
A102: 14142 | B102: 0 | C102: 0 | D102: 398.239 | E102: 0 | F102: 64.843
A103: 13799 | B103: 0 | C103: 0 | D103: 55.2393 | E103: 0 | F103: 62.1435
A104: 12914 | B104: 567.427 | C104: 0 | D104: 0 | E104: 0 | F104: 86.1435
A105: 12076 | B105: 217.701 | C105: 0 | D105: 0 | E105: 0 | F105: 95
A106: 11029 | B106: 0 | C106: 0 | D106: 0 | E106: 0 | F106: 95
A107: 9885 | B107: 0 | C107: 0 | D107: 0 | E107: 0 | F107: 95
A108: 9072 | B108: 0 | C108: 0 | D108: 0 | E108: 0 | F108: 95
A109: 8635 | B109: 0 | C109: 0 | D109: 0 | E109: 0 | F109: 95
A110: 8431 | B110: 0 | C110: 0 | D110: 0 | E110: 0 | F110: 95
A111: 8398 | B111: 0 | C111: 0 | D111: 0 | E111: 0 | F111: 95
A112: 8836 | B112: 0 | C112: 0 | D112: 0 | E112: 0 | F112: 95
A113: 9461 | B113: 0 | C113: 0 | D113: 0 | E113: 0 | F113: 95
A114: 10296 | B114: 0 | C114: 0 | D114: 0 | E114: 0 | F114: 95
A115: 10967 | B115: 0 | C115: 0 | D115: 0 | E115: 2.67275 | F115: 95
A116: 11777 | B116: 0 | C116: 0 | D116: 0 | E116: 84.3305 | F116: 95
A117: 12065 | B117: 0 | C117: 0 | D117: 0 | E117: 333.406 | F117: 95
A118: 12234 | B118: 0 | C118: 0 | D118: 0 | E118: 322.505 | F118: 95
A119: 12202 | B119: 0 | C119: 0 | D119: 0 | E119: 112.047 | F119: 95
A120: 11907 | B120: 0 | C120: 0 | D120: 0 | E120: 292.398 | F120: 95
A121: 11243 | B121: 0 | C121: 0 | D121: 0 | E121: 311.217 | F121: 95
A122: 10783 | B122: 0 | C122: 0 | D122: 0 | E122: 340.231 | F122: 95
A123: 10602 | B123: 0 | C123: 0 | D123: 0 | E123: 343.563 | F123: 95
A124: 10709 | B124: 0 | C124: 0 | D124: 0 | E124: 162.896 | F124: 95
A125: 12114 | B125: 0 | C125: 0 | D125: 0 | E125: 0 | F125: 95
A126: 13187 | B126: 0 | C126: 0 | D126: 0 | E126: 0 | F126: 95
A127: 13158 | B127: 0 | C127: 0 | D127: 0 | E127: 0 | F127: 95
A128: 12652 | B128: 0 | C128: 0 | D128: 0 | E128: 0 | F128: 95
A129: 12373 | B129: 0 | C129: 0 | D129: 0 | E129: 0 | F129: 95
A130: 11923 | B130: 0 | C130: 0 | D130: 0 | E130: 0 | F130: 95
A131: 11343 | B131: 0 | C131: 0 | D131: 0 | E131: 0 | F131: 95
A132: 10880 | B132: 0 | C132: 0 | D132: 0 | E132: 0 | F132: 95
A133: 10650 | B133: 0 | C133: 0 | D133: 0 | E133: 0 | F133: 95
A134: 10578 | B134: 0 | C134: 0 | D134: 0 | E134: 0 | F134: 95
A135: 10760 | B135: 0 | C135: 0 | D135: 0 | E135: 0 | F135: 95
A136: 11223 | B136: 0 | C136: 0 | D136: 0 | E136: 0 | F136: 95
A137: 11667 | B137: 0 | C137: 0 | D137: 0 | E137: 0 | F137: 95
A138: 12309 | B138: 0 | C138: 0 | D138: 0 | E138: 0 | F138: 95
A139: 12847 | B139: 0 | C139: 0 | D139: 0 | E139: 1.89136 | F139: 95
A140: 13249 | B140: 0 | C140: 0 | D140: 0 | E140: 290.083 | F140: 95
A141: 12818 | B141: 0 | C141: 0 | D141: 0 | E141: 351.252 | F141: 95
A142: 12108 | B142: 0 | C142: 0 | D142: 0 | E142: 330.332 | F142: 95
A143: 11353 | B143: 0 | C143: 0 | D143: 0 | E143: 196.939 | F143: 95
A144: 11130 | B144: 0 | C144: 0 | D144: 0 | E144: 178.365 | F144: 95
A145: 10663 | B145: 0 | C145: 0 | D145: 0 | E145: 303.631 | F145: 95
A146: 10498 | B146: 0 | C146: 0 | D146: 0 | E146: 321.57 | F146: 95
A147: 10352 | B147: 0 | C147: 0 | D147: 0 | E147: 337.849 | F147: 95
A148: 10711 | B148: 0 | C148: 0 | D148: 0 | E148: 166.192 | F148: 95
A149: 12261 | B149: 0 | C149: 0 | D149: 0 | E149: 0 | F149: 95
A150: 13475 | B150: 0 | C150: 0 | D150: 0 | E150: 0 | F150: 95
A151: 13511 | B151: 0 | C151: 0 | D151: 0 | E151: 0 | F151: 95
A152: 13300 | B152: 0 | C152: 0 | D152: 0 | E152: 0 | F152: 95
A153: 12876 | B153: 0 | C153: 0 | D153: 0 | E153: 0 | F153: 95
A154: 12062 | B154: 0 | C154: 0 | D154: 0 | E154: 0 | F154: 95
A155: 11058 | B155: 0 | C155: 0 | D155: 0 | E155: 0 | F155: 95
A156: 10556 | B156: 0 | C156: 0 | D156: 0 | E156: 0 | F156: 95
A157: 10215 | B157: 0 | C157: 0 | D157: 0 | E157: 0 | F157: 95
A158: 10122 | B158: 0 | C158: 0 | D158: 0 | E158: 0 | F158: 95
A159: 10394 | B159: 0 | C159: 0 | D159: 0 | E159: 0 | F159: 95
A160: 10903 | B160: 0 | C160: 0 | D160: 0 | E160: 0 | F160: 95
A161: 12416 | B161: 0 | C161: 0 | D161: 0 | E161: 0 | F161: 95
A162: 14431 | B162: 0 | C162: 0 | D162: 0 | E162: 0 | F162: 95
A163: 14311 | B163: 0 | C163: 0 | D163: 0 | E163: 0.479146 | F163: 95
A164: 13935 | B164: 0 | C164: 0 | D164: 0 | E164: 35.5273 | F164: 95
A165: 13644 | B165: 0 | C165: 0 | D165: 0 | E165: 102.388 | F165: 95
A166: 13508 | B166: 0 | C166: 0 | D166: 0 | E166: 67.0485 | F166: 95
A167: 13028 | B167: 0 | C167: 0 | D167: 0 | E167: 106.783 | F167: 95
A168: 12370 | B168: 0 | C168: 0 | D168: 0 | E168: 167.592 | F168: 95
A169: 11767 | B169: 0 | C169: 0 | D169: 0 | E169: 235.792 | F169: 95
A170: 11078 | B170: 0 | C170: 0 | D170: 0 | E170: 317.621 | F170: 95
A171: 11016 | B171: 0 | C171: 0 | D171: 0 | E171: 195.901 | F171: 95
A172: 11722 | B172: 0 | C172: 0 | D172: 0 | E172: 71.9045 | F172: 95
A173: 13738 | B173: 0 | C173: 0 | D173: 0 | E173: 0 | F173: 95
A174: 14920 | B174: 0 | C174: 0 | D174: 131.677 | E174: 0 | F174: 89.0241
A175: 15199 | B175: 0 | C175: 0 | D175: 410.677 | E175: 0 | F175: 69.2198
A176: 14768 | B176: 20.3231 | C176: 0 | D176: 0 | E176: 0 | F176: 70.1211
A177: 13721 | B177: 587.434 | C177: 0 | D177: 0 | E177: 0 | F177: 94.1211
A178: 12270 | B178: 21.6029 | C178: 0 | D178: 0 | E178: 0 | F178: 95
A179: 11091 | B179: 0 | C179: 0 | D179: 0 | E179: 0 | F179: 95
A180: 10423 | B180: 0 | C180: 0 | D180: 0 | E180: 0 | F180: 95
A181: 10128 | B181: 0 | C181: 0 | D181: 0 | E181: 0 | F181: 95
A182: 9957 | B182: 0 | C182: 0 | D182: 0 | E182: 0 | F182: 95
A183: 9996 | B183: 0 | C183: 0 | D183: 0 | E183: 0 | F183: 95
A184: 10297 | B184: 0 | C184: 0 | D184: 0 | E184: 0 | F184: 95
A185: 11797 | B185: 0 | C185: 0 | D185: 0 | E185: 0 | F185: 95
A186: 13605 | B186: 0 | C186: 0 | D186: 0 | E186: 0 | F186: 95
A187: 13199 | B187: 0 | C187: 0 | D187: 0 | E187: 2.56608 | F187: 95
A188: 12727 | B188: 0 | C188: 0 | D188: 0 | E188: 259.608 | F188: 95
A189: 12435 | B189: 0 | C189: 0 | D189: 0 | E189: 89.7316 | F189: 95
A190: 11648 | B190: 0 | C190: 0 | D190: 0 | E190: 322.093 | F190: 95
A191: 10705 | B191: 0 | C191: 0 | D191: 0 | E191: 297.888 | F191: 95
A192: 10404 | B192: 0 | C192: 0 | D192: 0 | E192: 287.491 | F192: 95
A193: 10025 | B193: 0 | C193: 0 | D193: 0 | E193: 302.219 | F193: 95
A194: 9720 | B194: 0 | C194: 0 | D194: 0 | E194: 316.078 | F194: 95
A195: 9723 | B195: 0 | C195: 0 | D195: 0 | E195: 317.306 | F195: 95
A196: 10200 | B196: 0 | C196: 0 | D196: 0 | E196: 152.488 | F196: 95
A197: 11729 | B197: 0 | C197: 0 | D197: 0 | E197: 0 | F197: 95
A198: 12873 | B198: 0 | C198: 0 | D198: 0 | E198: 0 | F198: 95
A199: 12769 | B199: 0 | C199: 0 | D199: 0 | E199: 0 | F199: 95
A200: 12423 | B200: 0 | C200: 0 | D200: 0 | E200: 0 | F200: 95
... 8571 more rows

Sheet General Inputs
B2: VALUE STACK SCENARIO
B4: Select Value Stack | C4: 9 | D4: =HYPERLINK("#"&ADDRESS(ROW(),COLUMN()-1),CHAR(128)) -> Ä | E4: Value Stream | F4: Qty Achieved | H4: Utility benefits and costs | I4: -
E5: Coinc. Pk Demand Reduction | F5: =CP_demandreduction+CP_PVReduction -> 8,155 | G5: kWh/yr | H5: ROI | I5: =C69 -> 100%
B6: Battery operation | E6: Local Demand Reduction | F6: =LocalDemandReduction -> 0 | G6: kW/yr | H6: NPV | I6: =C70 -> $1,880,251
B7: Charging Decision | C7: =IF(AND('SAM Inputs'!B9=0,'SAM Inputs'!B10=1),"Solar",IF(AND('SAM Inputs'!B9=1,'SAM Inputs'!B10=1),"Solar & Grid","Error")) -> Solar & Grid | E7: Energy Arbitrage | F7: =EnergyArbitrage_kWh -> 0 | G7: kWh/yr | H7: B/C | I7: =C71 -> 2.00
E8: Ancilary Services | F8: =Anc_Svc_hrs -> 0 | G8: hrs | H8: =CP_demandreduction -> 5611.842
H9: =CP_PVReduction -> 2543.30094
B10: Value Stack Priority | C10: 1 | D10: 2 | E10: 3 | F10: 4 | G10: 5 | H10: 6 | I10: 7 | J10: 8 | K10: 9
B11: 1st | C11: Local Demand | D11: Local Demand | E11: Local Demand | F11: Local Demand | G11: CP Demand | H11: CP Demand | I11: CP Demand | J11: CP Demand | K11: CP Demand
B12: 2nd | C12: Energy Arbitrage | D12: Ancillary Services | E12: CP Demand | F12: CP Demand | G12: Local Demand | H12: Local Demand | I12: Energy Arbitrage | J12: Ancillary Services | K12: NA
B13: 3rd | C13: Ancillary Services | D13: Energy Arbitrage | E13: Energy Arbitrage | F13: Ancillary Services | G13: Energy Arbitrage | H13: Ancillary Services | I13: Ancillary Services | J13: Energy Arbitrage | K13: NA
B15: GENERAL INPUTS
B16: Description
B18: Yellow Boxes: Inputs that must match SAM | E18: Green Boxes: User Inputs | H18: Red Boxes: Calculated
B20: PV system | E20: Load Profile Year | F20: 2019 | H20: Energy Arbitrage TOU | I20: =_xlfn.IFS($C$4=4,"No",$C$4=6,"No",$C$4=9,"No",TRUE,"Yes") -> No
B21: PV Size (DC) | C21: ='SAM Inputs'!B1 -> 606 | D21: kW DC | H21: TOU on-peak definition | I21: Late afternoon peak (all year) | J21: =HYPERLINK("#"&ADDRESS(ROW(),COLUMN()-1),CHAR(128)) -> Ä
B22: DC/AC Ratio | C22: ='SAM Inputs'!B2 -> 1.2 | E22: Wholesale Energy/Demand Costs | H22: TOU Day Selection | I22: Weekdays | J22: =HYPERLINK("#"&ADDRESS(ROW(),COLUMN()-1),CHAR(128)) -> Ä
B23: PV degradation rate | C23: ='SAM Inputs'!B3/100 -> 0.5% | D23: /yr | E23: Wholesale energy cost 1 | F23: 0.026 | G23: $/kWh
B24: PV first year energy | C24: =SUM('Time Series Data'!U7:'Time Series Data'!U8766) -> 1,059,585 | D24: kWh | E24: Wholesale energy cost 2 (Off Pk) | F24: 0.026 | G24: $/kWh | H24: General Financial parameters | I24: -
B25: Total AC Capacity (Battery + PV) | C25: =PV_nameplate/C22 -> 500 | D25: kW AC | E25: Electricity cost escalation rate | F25: 2.0% | G25: /yr | H25: Inflation rate | I25: 2.5% | J25: /yr
E26: Utility local demand charge | F26: 0.00 | G26: $/kW | H26: Utility's nominal discount rate | I26: 5.0% | J26: /yr
B27: Battery system | C27: Yes | D27: =HYPERLINK("#"&ADDRESS(ROW(),COLUMN()-1),CHAR(128)) -> Ä | E27: Utility demand escalation rate | F27: 1.0% | G27: /yr | H27: Utility's nominal cost of capital | I27: 6.0% | J27: /yr
B28: Battery power (AC) | C28: ='SAM Inputs'!B4 -> 520 | D28: kW AC | E28: Utility coincident peak charge | F28: 21.84 | G28: $/kW | H28: REC price | I28: 0.002 | J28: $/kWh
B29: Min State of Charge | C29: ='SAM Inputs'!B5 -> 0.15
B30: Max State of Charge | C30: ='SAM Inputs'!B6 -> 0.95 | E30: Frequency regulation | F30: =_xlfn.IFS($C$4=3,"No",$C$4=5,"No",$C$4=9,"No",TRUE,"Yes") -> No | H30: ADDITIONAL VALUE STREAMS
B31: Battery capacity (AC) | C31: ='SAM Inputs'!B7 -> 1,995 | D31: kWh AC | E31: Capacity Payment | F31: 0 | G31: $/kW-hr | H31: Infrastructure Deferral | I31: No | J31: =HYPERLINK("#"&ADDRESS(ROW(),COLUMN()-1),CHAR(128)) -> Ä
B32: Round Trip Efficiency | C32: =IF(BatteryPower>0,'SAM Inputs'!B8/100," ") -> 0.87 | E32: Nominal Price Decline | F32: 5% | G32: % per yr | H32: Est. Capital Cost (today) | I32: $1,000,000
B33: Effective Battery capacity (AC) | C33: =(C30-C29)*C31 -> 1,596 | D33: kWh AC | E33: Hours per day Available | F33: 24 | G33: Hrs | H33: Years Deferred | I33: 5 | J33: yrs
E34: Operation Day Selection | F34: Weekends | G34: =HYPERLINK("#"&ADDRESS(ROW(),COLUMN()-1),CHAR(128)) -> Ä | H34: NPV of Deferral | I34: =Calculations!AI33 -> 0
B35: Battery Degradation and Lifetime
B36: Calendar degradation rate | C36: 1.0% | D36: % / yr | E36: Coincident Peak Inputs | F36: =_xlfn.IFS($C$4=1,"No",$C$4=2,"No",TRUE, "Yes") -> Yes | H36: Microgrid system | I36: No | J36: =HYPERLINK("#"&ADDRESS(ROW(),COLUMN()-1),CHAR(128)) -> Ä
B37: End of Life (% of initial cap) | C37: 80% | E37: Date of Peak | F37: Hr of Peak | H37: Controller Unit Cost | I37: $300,000 | J37: $/MW
B38: Turnovers to reach 90% of capacity | C38: 1,300 | E38: 2019-01-22 | F38: 08:00:00 | G38: =HYPERLINK("#"&ADDRESS(ROW(),COLUMN()-1),CHAR(128)) -> Ä | H38: Total capital cost | I38: =I37*BatteryPower/1000 -> $155,885
B39: Cycle degradation rate | C39: =IF(BatteryPower>0, 0.1/C38*C41,0) -> 0.5% | D39: % / yr | E39: 2019-02-01 | F39: 08:00:00 | G39: =HYPERLINK("#"&ADDRESS(ROW(),COLUMN()-1),CHAR(128)) -> Ä
B40: Battery Throughput Per Year | C40: =IF(BatteryPower>0,IF(value_stack=9,Battery_Throughput_kWh*Ave_num_dispatches,Battery_Throughput_kWh)," ") -> 132,088 | D40: kWh/yr | E40: 2019-03-07 | F40: 07:00:00 | G40: Ä | H40: Resiliency Capability | I40: =IF(MicrogridFlag="Yes","Yes","No") -> No
B41: Battery Turnovers per Year | C41: =IF(BatteryPower>0,C40/C31," ") -> 66 | D41: /yr | E41: 2019-04-03 | F41: 08:00:00 | G41: Ä | H41: Outage duration | I41: 6 | J41: hrs
B42: Battery Bank Lifetime | C42: =IF(BatteryPower>0,(1-BatteryEOL)/(CycleDegradationRate+CalendarDegradationRate)," ") -> 13.3 | D42: years | E42: 2019-05-29 | F42: 17:00:00 | G42: Ä | H42: Peak Lost Load | I42: 1500 | J42: kW
E43: 2019-06-24 | F43: 18:00:00 | G43: Ä | H43: Ave Lost Load | I43: 750 | J43: kW
B44: Dispatch Accuracy for Value Stack 9 | E44: 2019-07-17 | F44: 16:00:00 | G44: Ä | H44: Total kWh of Outage | I44: =I43*I41 -> 4500 | J44: kWh
B45: Ave # of dispatches to hit CP | C45: 6 | E45: 2019-08-13 | F45: 16:00:00 | G45: Ä | H45: % of Pk Lost Load Battery Can Meet | I45: =IF(MicrogridFlag="yes",BatteryPower/I42,"Need Microgrid") -> Need Microgrid
B46: % of Optimal CP Reduction Met | C46: 0.9 | E46: 2019-09-12 | F46: 17:00:00 | G46: Ä | H46: % of Outage Battery Can Meet | I46: =IF(MicrogridFlag="yes",Effective_Battery_Capacity/I44,"Need Microgrid") -> Need Microgrid
E47: 2019-10-03 | F47: 16:00:00 | G47: Ä
E48: 2019-11-14 | F48: 07:00:00 | G48: Ä
E49: 2019-12-20 | F49: 08:00:00 | G49: =HYPERLINK("#"&ADDRESS(ROW(),COLUMN()-1),CHAR(128)) -> Ä
E51: PV and STORAGE Payment Choices
B52: System Payment Option | C52: Purchase
B54: Energy System Contract Prices | C54: =IF($C$52 ="PPA/ESA","Yes","No") -> No | E54: Purchase | F54: =IF(C52="Purchase","Yes","No") -> Yes
B55: PV PPA price | C55: 0.060 | D55: $/kWh | E55: Tax-Exempt Utility | F55: No
B56: Battery ESA price | C56: 0.040 | D56: $/kWh | E56: Investment Tax Credit (ITC) | F56: 30%
B57: Contract price escalator | C57: 0 | D57: /yr | E57: Utility Tax Rate | F57: 35.0%
B58: PPA + ESA Price | C58: =PPACostPerKWh+IF(EEBatteryFlag="Yes",1,0)*BatteryESACostPerKWh -> 0.100 | D58: $/kWh | E58: Loan time | F58: 5 | G58: yrs
E59: PV System Unit Cost | F59: 1.70 | G59: $/W DC
E60: Battery Energy Unit Cost | F60: $550 | G60: $/kWh AC
E61: PV Capital Cost | F61: =PV_nameplate*PV_Unit_Cost*1000 -> $1,029,918
E62: Battery Capital Cost | F62: =Battery_Unit_Cost*C31 -> $1,097,426
E63: Total System Capital Cost | F63: =SUM(F61:F62) -> $2,127,344
B66: RESULTS
B68: Utility benefits and costs | C68: -
B69: ROI | C69: =(C72+C73)/(-C73) -> 100%
B70: NPV | C70: =$C$73+$C$72 -> $1,880,251
B71: B/C | C71: =$C$72/-$C$73 -> 2.00
B72: Benefits | C72: =SUMIF(Calculations!$AB$33:$AM$33, ">0") -> $3,765,664
B73: Costs | C73: =SUMIF(Calculations!$Z$33:$AM$33,"<0") -> -$1,885,413
B99: GAP ANALYSIS TOOLS
C107: Select Below | D107: Viewing Only - Don't Change
B108: Gap Analysis Input Variable | C108: Battery Unit Cost ($/kWh) | D108: =_xlfn.SWITCH(Gap_Input, "Battery ESA Price", BatteryESACostPerKWh,"PV PPA Price", PPACostPerKWh, "PV Unit Cost ($/W)", PV_Unit_Cost, "Battery Unit Cost ($/kWh)", Battery_Unit_Cost,"Wholesale energy cost 1",WholesaleEnergyCost_1,"Wholesale energy cost 2 (Off Pk)",WholesaleEnergyCost_2,"Utility local demand charge",UtilityDemandCost,"Utility coincident peak charge",EEUtilityConcidentPeakCost,"Freq Reg Capacity Payment",Anc_Svc_Price,"Infrastructure Years Deferred",EEYrsDeferred,"Infrastructure Capital Cost",InfCapCost) -> $550.000
B109: Gap Analysis Target Metric | C109: ROI | D109: =_xlfn.SWITCH(Gap_Target,"ROI",ProjectROI,"NPV",ProjectNPV) -> 1.00
B112: Click Here to go to: SENSITIVITY ANALYSIS

Sheet Sensitivity
S3: Options
G4: =VLOOKUP(T5,A23:B36,2,FALSE) -> Utility coincident peak charge ($/kW)
F5: =T7 -> ROI | G5: 13.1 | H5: 15.3 | I5: 17.5 | J5: 19.7 | K5: 21.8 | L5: 24.0 | M5: 26.2 | N5: 28.4 | O5: 30.6 | S5: Independent Variable #1 | T5: Utility coincident peak charge | U5: =HYPERLINK("#"&ADDRESS(ROW(),COLUMN()-1),CHAR(128)) -> Ä
E6: =VLOOKUP(T6,A23:B36,2,FALSE) -> PV System Unit Cost ($/W) | F6: 1.092 | S6: Independent Variable #2 | T6: PV System Unit Cost | U6: =HYPERLINK("#"&ADDRESS(ROW(),COLUMN()-1),CHAR(128)) -> Ä
F7: 1.274 | S7: Metric | T7: ROI | U7: =HYPERLINK("#"&ADDRESS(ROW(),COLUMN()-1),CHAR(128)) -> Ä
F8: 1.456
F9: 1.638
F10: 1.820 | T10: Step Change
F11: 2.002 | S11: =T5 -> Utility coincident peak charge | T11: 10%
F12: 2.184 | S12: =T6 -> PV System Unit Cost | T12: 10%
F13: 2.366
F14: 2.548 | S14: Number of Steps | T14: 9 | U14: =HYPERLINK("#"&ADDRESS(ROW(),COLUMN()-1),CHAR(128)) -> Ä
A23: Battery Energy Unit Cost | B23: Battery Energy Unit Cost ($/kWh)
A24: PV System Unit Cost | B24: PV System Unit Cost ($/W)
A25: Battery ESA Price | B25: Battery ESA Price ($/kWh)
A26: PV PPA Price | B26: PV PPA Price ($/kWh)
A27: Wholesale energy cost 1 | B27: Wholesale energy cost 1 ($/kWh)
A28: Wholesale energy cost 2 (Off Pk) | B28: Wholesale energy cost 2 (Off Pk) ($/kWh)
A29: Utility local demand charge | B29: Utility local demand charge ($/kW)
A30: Utility coincident peak charge | B30: Utility coincident peak charge ($/kW)
A31: Ancillary Services Price = "Capacity payment" | B31: Capacity payment ($/kW-hr)
A32: Infrastructure Years Deferred | B32: Infrastructure Years Deferred (years)
A33: Infrastructure Capital Cost | B33: Infrastructure Capital Cost ($)
A34: Inflation Rate | B34: Inflation Rate (%)
A35: REC Price | B35: REC Price ($/kWh)
A36: Nominal Price decline | B36: Nominal Price decline (%/yr)

Sheet Value Stacking Basis
B2: Charging Scenario (solar =1, solar+grid = 2) | C2: Scenario Reference | D2: Local Demand Reduction (kW) | E2: Battery Coincident Pk Demand Reduction (kW) | F2: Energy Arbitrage moved (kWh) | G2: Ancillary services provided (kW-h) | H2: Ancillary services provided (hrs) | J2: Battery Throughput (kWh) | O2: Solar Energy to Grid | P2: Solar Energy to grid On Peak (NO EA) | Q2: Solar Energy to Grid Off Peak (NO EA) | R2: Solar Energy Moved for EA
B3: =VLOOKUP('General Inputs'!$C$7,Values!$K$13:$L$14,2) -> 2 | C3: ='General Inputs'!$C$4 -> 9 | D3: =IF($B$3=1,VLOOKUP($C$3,$B$10:$F$18,2),VLOOKUP($C$3,$H$10:$L$18,2)) -> 0 | E3: =IF($B$3=1,VLOOKUP($C$3,$B$10:$F$18,3),VLOOKUP($C$3,$H$10:$L$18,3))*IF(value_stack=9,Percent_batt_cap_reduction,1) -> 5,612 | F3: =IF($B$3=1,VLOOKUP($C$3,$B$10:$F$18,4),VLOOKUP($C$3,$H$10:$L$18,4)) -> 0 | G3: =IF($B$3=1,VLOOKUP($C$3,$B$10:$F$18,5),VLOOKUP($C$3,$H$10:$L$18,5)) -> 0 | H3: =IF($B$3=1,VLOOKUP($C$3,$B$10:$F$18,5),VLOOKUP($C$3,$H$10:$L$18,5))/BatteryPower -> 0 | J3: =SUM(D4:G4) -> 22,015 | O3: =IF($B$3=1,VLOOKUP($C$3,$O$10:$V$18,8),VLOOKUP($C$3,$O$23:$V$31,8)) -> 1,059,585 | P3: =IF($B$3=1,VLOOKUP($C$3,$O$10:$V$18,6),VLOOKUP($C$3,$O$23:$V$31,6)) -> 1,059,585 | Q3: =IF($B$3=1,VLOOKUP($C$3,$O$10:$V$18,7),VLOOKUP($C$3,$O$23:$V$31,7)) -> 0 | R3: =IF($B$3=1,VLOOKUP($C$3,$O$10:$V$18,5),VLOOKUP($C$3,$O$23:$V$31,5)) -> 0 | T3: Total kWh
B4: Energy throughput (kWh) | D4: =IF($B$3=1,VLOOKUP($C$3,$B$23:$F$31,2),VLOOKUP($C$3,$H$23:$L$31,2)) -> 0 | E4: =IF($B$3=1,VLOOKUP($C$3,$B$23:$F$31,3),VLOOKUP($C$3,$H$23:$L$31,3)) -> 22,015 | F4: =IF($B$3=1,VLOOKUP($C$3,$B$23:$F$31,4),VLOOKUP($C$3,$H$23:$L$31,4)) -> 0 | G4: =IF($B$3=1,VLOOKUP($C$3,$B$23:$F$31,5),VLOOKUP($C$3,$H$23:$L$31,5)) -> 0 | T4: =PVFirstYearEnergy -> 1,059,584.94
B7: Solar Only | H7: Solar & Grid
B8: Annually | C8: Local Demand Reduction | D8: Coincident Pk Demand Reduction | E8: Energy Arbitrage moved | F8: Ancillary services provided | H8: Annually | I8: Local Demand Reduction | J8: Coincident Pk Demand Reduction | K8: Energy Arbitrage moved | L8: Ancillary services provided | O8: Solar Only | P8: on peak (no TOU) | Q8: off peak | R8: On peak (moved from Off) | S8: On - from Off | T8: Totals | W8: Non EA
B9: Scenario | C9: kW | D9: kW | E9: kWh | F9: kW-h | H9: Scenario | I9: kW | J9: kW | K9: kWh | L9: kW-h | O9: Scenario | P9: Local | Q9: Local | R9: CP | S9: EA | T9: ON | U9: OFF | V9: Grid | W9: ON Peak
B10: 1 | C10: =SUM($I$38:$I$49)-SUM($J$38:$J$49) -> 4,884 | D10: 0 | E10: =SUM('Time Series Data'!CN7:CN372) -> 232,596 | F10: =SUM('Time Series Data'!CO7:CO372)*BatteryPower -> 935,307 | H10: 1 | I10: =SUM($I$38:$I$49)-SUM($J$38:$J$49) -> 4,884 | J10: 0 | K10: =SUM('Time Series Data'!EH7:EH372) -> 324,040 | L10: =SUM('Time Series Data'!EI7:EI372)*BatteryPower -> 1,097,427 | O10: 1 | P10: =SUM('Time Series Data'!AX7:AX372) -> 238,021.90 | Q10: =(SUM('Time Series Data'!O7:O8790)+SUM('Time Series Data'!N7:N8790))-P10 -> 840,530.43 | R10: 0.00 | S10: =E10 -> 232,595.69 | T10: =S10+P10 -> 470,617.59 | U10: =Q10-E23 -> 573,211.02 | V10: =T10+U10 -> 1,043,828.61 | W10: =P10 -> 238,021.90
B11: 2 | C11: =SUM($I$38:$I$49)-SUM($J$38:$J$49) -> 4,884 | D11: 0 | E11: =SUM('Time Series Data'!CU7:CU372) -> 232,596 | F11: =SUM('Time Series Data'!CQ7:CQ372)*BatteryPower -> 935,307 | H11: 2 | I11: =SUM($I$38:$I$49)-SUM($J$38:$J$49) -> 4,884 | J11: 0 | K11: =SUM('Time Series Data'!EN7:EN372) -> 324,040 | L11: =SUM('Time Series Data'!EK7:EK372)*BatteryPower -> 1,097,427 | O11: 2 | P11: =P10 -> 238,021.90 | Q11: =Q10 -> 840,530.43 | R11: 0.00 | S11: 232,595.69 | T11: =S11+P11 -> 470,617.59 | U11: =Q11-E24 -> 573,211.02 | V11: 1,043,828.61 | W11: =P11 -> 238,021.90
B12: 3 | C12: =SUM($I$38:$I$49)-SUM($J$38:$J$49) -> 4,884 | D12: =SUM('Time Series Data'!CW7:CW372) -> 991 | E12: =SUM('Time Series Data'!DA7:DA372) -> 230,999 | F12: 0 | H12: 3 | I12: =SUM($I$38:$I$49)-SUM($J$38:$J$49) -> 4,884 | J12: =SUM('Time Series Data'!EP7:EP372) -> 1,511 | K12: =SUM('Time Series Data'!ES7:ES372) -> 320,847 | L12: 0 | O12: 3 | P12: =P10 -> 238,021.90 | Q12: =Q10 -> 840,530.43 | R12: =SUMIF('Time Series Data'!CB7:CB372,">0",'Time Series Data'!AY7:AY372) -> 1,596.26 | S12: 230,999.43 | T12: =S12+P12+R12*Rndtrp_eff-((D25-R12)-(D25-R12)*Rndtrp_eff) -> 470,410.24 | U12: =Q12-E25-R12 -> 573,449.33 | V12: 1,043,859.57 | W12: =T12-S12 -> 239,410.81
B13: 4 | C13: =SUM($I$38:$I$49)-SUM($J$38:$J$49) -> 4,884 | D13: =SUM('Time Series Data'!DC7:DC372) -> 991 | E13: 0 | F13: =SUM('Time Series Data'!DD7:DD372)*BatteryPower -> 935,307 | H13: 4 | I13: =SUM($I$38:$I$49)-SUM($J$38:$J$49) -> 4,884 | J13: =SUM('Time Series Data'!EU7:EU372) -> 1,511 | K13: 0 | L13: =SUM('Time Series Data'!EV7:EV372)*BatteryPower -> 1,097,427 | O13: 4 | P13: =(SUM('Time Series Data'!O7:O8790)+SUM('Time Series Data'!N7:N8790)) -> 1,078,552.34 | Q13: 0.00 | R13: =D26*Rndtrp_eff -> 1,388.91 | S13: 0.00 | T13: =P13-(D26-R13) -> 1,078,344.99 | U13: 0.00 | V13: 1,078,344.99 | W13: =T13 -> 1,078,344.99
B14: 5 | C14: =SUM($I$55:$I$66)-SUM($J$55:$J$66) -> 4,144 | D14: =SUM('Time Series Data'!$DF$7:$DF$372) -> 6,235 | E14: =SUM('Time Series Data'!DK7:DK372) -> 226,588 | F14: 0 | H14: 5 | I14: =SUM($I$72:$I$83)-SUM($J$72:$J$83) -> 4,661 | J14: =SUM('Time Series Data'!EX7:EX372) -> 6,235 | K14: =SUM('Time Series Data'!FB7:FB372) -> 320,847 | L14: 0 | O14: 5 | P14: =SUM('Time Series Data'!AZ7:AZ372) -> 226,082.26 | Q14: =(SUM('Time Series Data'!AE7:AE8790)+SUM('Time Series Data'!AB7:AB8790))-P14 -> 804,863.83 | R14: See left - CP & Local | S14: 226,587.78 | T14: =S14+P14 -> 452,670.05 | U14: =Q14-E27 -> 544,449.23 | V14: 997,119.28 | W14: =P14 -> 226,082.26
B15: 6 | C15: =SUM($I$55:$I$66)-SUM($J$55:$J$66) -> 4,144 | D15: =SUM('Time Series Data'!DM7:DM372) -> 6,235 | E15: 0 | F15: =SUM('Time Series Data'!DP7:DP372)*BatteryPower -> 935,307 | H15: 6 | I15: =SUM($I$72:$I$83)-SUM($J$72:$J$83) -> 4,661 | J15: =SUM('Time Series Data'!FD7:FD372) -> 6,235 | K15: 0 | L15: =SUM('Time Series Data'!FF7:FF372)*BatteryPower -> 1,109,898 | O15: 6 | P15: =P14+Q14 -> 1,030,946.09 | Q15: 0.00 | R15: See left - CP & Local | S15: 0.00 | T15: =S15+P15 -> 1,030,946.09 | U15: 0.00 | V15: 1,030,946.09 | W15: =P15 -> 1,030,946.09
B16: 7 | C16: 0 | D16: =SUM('Time Series Data'!DR7:DR372) -> 6,235 | E16: =SUM('Time Series Data'!DU7:DU372) -> 326,713 | F16: =SUM('Time Series Data'!DV7:DV372)*BatteryPower -> 1,309,430 | H16: 7 | I16: 0 | J16: =SUM('Time Series Data'!FH7:FH372) -> 6,235 | K16: =SUM('Time Series Data'!FK7:FK372) -> 397,468 | L16: =SUM('Time Series Data'!FL7:FL372)*BatteryPower -> 1,309,430 | O16: 7 | P16: 0.00 | Q16: 0.00 | R16: =SUM('Time Series Data'!BB7:BB372) -> 7,274.61 | S16: 326,713.22 | T16: =SUM('Time Series Data'!BA7:BA372)+S16+R16 -> 567,610.93 | U16: =SUM('Time Series Data'!$AR$7:$AR$372)-SUM('Time Series Data'!$BA$7:$BA$372)-E29-R16/Rndtrp_eff-((SUM('Time Series Data'!$X$7:$X$8790)-R16)/Rndtrp_eff-(SUM('Time Series Data'!$X$7:$X$8790)-R16)) -> 440,407.07 | V16: 1,008,018.00 | W16: =SUM('Time Series Data'!BA7:BA372)+R16 -> 240,897.71
B17: 8 | C17: 0 | D17: =SUM('Time Series Data'!DX7:DX372) -> 6,235 | E17: =SUM('Time Series Data'!EB7:EB372) -> 326,713 | F17: =SUM('Time Series Data'!DY7:DY372)*BatteryPower -> 1,309,430 | H17: 8 | I17: 0 | J17: =SUM('Time Series Data'!FN7:FN372) -> 6,235 | K17: =SUM('Time Series Data'!FR7:FR372) -> 397,468 | L17: =SUM('Time Series Data'!FO7:FO372)*BatteryPower -> 1,309,430 | O17: 8 | P17: 0.00 | Q17: 0.00 | R17: =R16 -> 7,274.61 | S17: 326,713.22 | T17: =SUM('Time Series Data'!BA7:BA372)+S17+R17 -> 567,610.93 | U17: =SUM('Time Series Data'!$AR$7:$AR$372)-SUM('Time Series Data'!$BA$7:$BA$372)-E30-R17/Rndtrp_eff-((SUM('Time Series Data'!$X$7:$X$8790)-R17)/Rndtrp_eff-(SUM('Time Series Data'!$X$7:$X$8790)-R17)) -> 440,407.07 | V17: 1,008,018.00 | W17: =SUM('Time Series Data'!BA7:BA372)+R17 -> 240,897.71
B18: 9 | C18: 0 | D18: =SUM('Time Series Data'!FT7:FT372) -> 6,235 | E18: 0 | F18: 0 | H18: 9 | I18: 0 | J18: =SUM('Time Series Data'!FT7:FT372) -> 6,235 | K18: 0 | L18: 0 | O18: 9 | R18: =SUM('Time Series Data'!X7:X8766) -> 18,706.14 | S18: 0.00 | T18: =T31-((R18/Rndtrp_eff)-R18) -> 1,056,792.33 | U18: 0.00 | V18: 1,056,792.33
B20: Solar Only | H20: Solar & Grid
B21: Annually | C21: Local Demand Reduction | D21: Coincident Pk Demand Reduction | E21: Energy Arbitrage moved | F21: Ancillary services provided | H21: Annually | I21: Local Demand Reduction | J21: Coincident Pk Demand Reduction | K21: Energy Arbitrage moved | L21: Ancillary services provided | O21: Solar & Grid | P21: on peak (no TOU) | Q21: off peak | R21: On peak (moved from Off) | S21: On - from Off | T21: Totals | W21: Non EA
B22: Scenario | C22: kWh | D22: kWh | E22: kWh | F22: kWh | H22: Scenario | I22: kWh | J22: kWh | K22: kWh | L22: kWh | O22: Scenario | P22: Local | Q22: Local | R22: CP | S22: EA | T22: ON | U22: OFF | V22: Grid | W22: ON Peak
B23: 1 | C23: =SUM('Time Series Data'!T7:T8766) -> 32,586 | D23: 0 | E23: =E10/Rndtrp_eff -> 267,319 | F23: =F10/BatteryPower*Effective_Battery_Capacity*Freq_Reg_EnergyUse -> 574,652 | H23: 1 | I23: =SUM('Time Series Data'!T7:T8766) -> 32,586 | J23: 0 | K23: =K10/Rndtrp_eff -> 372,415 | L23: =L10/BatteryPower*Effective_Battery_Capacity*Freq_Reg_EnergyUse -> 674,259 | O23: 1 | P23: =SUM('Time Series Data'!BD7:BD372) -> 233,827.41 | Q23: =(SUM('Time Series Data'!O7:O8790)+SUM('Time Series Data'!N7:N8790)*Batt_PV_Perc)-P23 -> 824,422.42 | R23: 0.00 | S23: =IF(WholesaleEnergyCost_2>PPACostPerKWh,(SUM('Time Series Data'!$BE$7:$BE$372)/K23)*K23,0) -> 0.00 | T23: =P23+S23*Rndtrp_eff -> 233,827.41 | U23: =Q23-S23 -> 824,422.42 | V23: =T23+U23 -> 1,058,249.83
B24: 2 | C24: =SUM('Time Series Data'!T7:T8766) -> 32,586 | D24: 0 | E24: =E11/Rndtrp_eff -> 267,319 | F24: =F11/BatteryPower*Effective_Battery_Capacity*Freq_Reg_EnergyUse -> 574,652 | H24: 2 | I24: =SUM('Time Series Data'!T7:T8766) -> 32,586 | J24: 0 | K24: =K11/Rndtrp_eff -> 372,415 | L24: =L11/BatteryPower*Effective_Battery_Capacity*Freq_Reg_EnergyUse -> 674,259 | O24: 2 | P24: =P23 -> 233,827.41 | Q24: =Q23 -> 824,422.42 | R24: 0.00 | S24: =IF(WholesaleEnergyCost_2>PPACostPerKWh,(SUMIF('Time Series Data'!$EK$7:$EK$372,"<>"&Anc_Svc_DailyHrs,'Time Series Data'!$BE$7:$BE$372)/K24)*K24,0) -> 0.00 | T24: =P24+S24*Rndtrp_eff -> 233,827.41 | U24: =Q24-S24 -> 824,422.42 | V24: =T24+U24 -> 1,058,249.83
B25: 3 | C25: =SUM('Time Series Data'!T7:T8766) -> 32,586 | D25: =SUMIF('Time Series Data'!CB7:CB372,">0",'Time Series Data'!AU7:AU372) -> 1,596 | E25: =E12/Rndtrp_eff -> 265,485 | F25: 0 | H25: 3 | I25: =SUM('Time Series Data'!T7:T8766) -> 32,586 | J25: =SUMIF('Time Series Data'!BV7:BV372,1,'Time Series Data'!CC7:CC372)*Effective_Battery_Capacity/Rndtrp_eff -> 3,669 | K25: =K12/Rndtrp_eff -> 368,746 | L25: 0 | O25: 3 | P25: =P23 -> 233,827.41 | Q25: =Q23 -> 824,422.42 | R25: =IF(WholesaleEnergyCost_2>PPACostPerKWh,SUM('Time Series Data'!$BF$7:$BF$372),0)+IF(WholesaleEnergyCost_1>PPACostPerKWh,SUM('Time Series Data'!$BG$7:$BG$372),0) -> 0.00 | S25: =IF(WholesaleEnergyCost_2>PPACostPerKWh,(SUMIF('Time Series Data'!$DA$7:$DA$372,">0",'Time Series Data'!$BE$7:$BE$372)/K25)*K25,0) -> 0.00 | T25: =P25+(S25+R25)*Rndtrp_eff -> 233,827.41 | U25: =Q25-S25-R25 -> 824,422.42 | V25: =T25+U25 -> 1,058,249.83
B26: 4 | C26: =SUM('Time Series Data'!T7:T8766) -> 32,586 | D26: =SUMIF('Time Series Data'!CB7:CB372,">0",'Time Series Data'!AU7:AU372) -> 1,596 | E26: 0 | F26: =F13/BatteryPower*Effective_Battery_Capacity*Freq_Reg_EnergyUse -> 574,652 | H26: 4 | I26: =SUM('Time Series Data'!T7:T8766) -> 32,586 | J26: =SUMIF('Time Series Data'!BV7:BV372,1,'Time Series Data'!CC7:CC372)*Effective_Battery_Capacity/Rndtrp_eff -> 3,669 | K26: 0 | L26: =L13/BatteryPower*Effective_Battery_Capacity*Freq_Reg_EnergyUse -> 674,259 | O26: 4 | P26: =(SUM('Time Series Data'!O7:O8790)+SUM('Time Series Data'!N7:N8790)*Batt_PV_Perc) -> 1,058,249.83 | Q26: 0.00 | R26: =IF(WholesaleEnergyCost_2>PPACostPerKWh,(SUMIFS('Time Series Data'!$BH$7:$BH$372,'Time Series Data'!BV7:BV372,1,'Time Series Data'!CC7:CC372,1)/J26)*J26,0) -> 0.00 | S26: 0.00 | T26: =P26-(R26-(R26*Rndtrp_eff)) -> 1,058,249.83 | U26: 0.00 | V26: 1,058,249.83
B27: 5 | C27: =SUM('Time Series Data'!AW7:AW372)/Rndtrp_eff -> 27,429 | D27: =COUNTIF('Time Series Data'!$DF$7:$DF$372,">0")*Effective_Battery_Capacity/Rndtrp_eff -> 22,015 | E27: =E14/Rndtrp_eff -> 260,415 | F27: 0 | H27: 5 | I27: =SUM('Time Series Data'!AV7:AV372)/Rndtrp_eff -> 27,654 | J27: =COUNTIF('Time Series Data'!EX7:EX372,">0")*Effective_Battery_Capacity/Rndtrp_eff -> 22,015 | K27: =K14/Rndtrp_eff -> 368,746 | L27: 0 | O27: 5 | P27: =SUMIF('Time Series Data'!I7:I8790,0,'Time Series Data'!Y7:Y8790)*Batt_PV_Perc -> 1,920.09 | Q27: =SUMIF('Time Series Data'!I7:I8790,1,'Time Series Data'!Y7:Y8790)*Batt_PV_Perc -> 4,357.21 | R27: =(SUMIF('Time Series Data'!I7:I8790,0,'Time Series Data'!X7:X8790))/SUM('Time Series Data'!X7:X8790)*J27*Rndtrp_eff*((SUM('Time Series Data'!BP7:BP372)/J27)+IF(WholesaleEnergyCost_1>PPACostPerKWh,(SUM('Time Series Data'!BQ7:BQ372)/J27),0)) -> 0.00 | S27: =SUM('Time Series Data'!BL7:BL372) -> 0.00 | T27: =S27*Rndtrp_eff+R27+P27+SUM('Time Series Data'!BN7:BN372) -> 319,261.99 | U27: =SUM('Time Series Data'!BM7:BM372)+Q27 -> 740,126.78 | V27: 1,059,388.77
B28: 6 | C28: =SUM('Time Series Data'!AW7:AW372)/Rndtrp_eff -> 27,429 | D28: =COUNTIF('Time Series Data'!$DM$7:$DM$372,">0")*Effective_Battery_Capacity/Rndtrp_eff -> 22,015 | E28: 0 | F28: =F15/BatteryPower*Effective_Battery_Capacity*Freq_Reg_EnergyUse -> 574,652 | H28: 6 | I28: =SUM('Time Series Data'!AV7:AV372)/Rndtrp_eff -> 27,654 | J28: =COUNTIF('Time Series Data'!FD7:FD372,">0")*Effective_Battery_Capacity/Rndtrp_eff -> 22,015 | K28: 0 | L28: =L15/BatteryPower*Effective_Battery_Capacity*Freq_Reg_EnergyUse -> 681,921 | O28: 6 | P28: =Batt_PV_Perc*SUM('Time Series Data'!Y7:Y8766) -> 6,277.30 | Q28: 0.00 | R28: =SUM('Time Series Data'!BP7:BP372)+SUM('Time Series Data'!BQ7:BQ372) -> 0.00 | S28: 0.00 | T28: =SUM('Time Series Data'!AG7:AG8790)-(R28-R28*Rndtrp_eff)+P28 -> 1,059,388.77 | U28: 0.00 | V28: 1,059,388.77
B29: 7 | C29: 0 | D29: =COUNTIF('Time Series Data'!$DR$7:$DR$372,">0")*Effective_Battery_Capacity/Rndtrp_eff -> 22,015 | E29: =E16/Rndtrp_eff -> 375,488 | F29: =F16/BatteryPower*Effective_Battery_Capacity*Freq_Reg_EnergyUse -> 804,513 | H29: 7 | I29: 0 | J29: =COUNTIF('Time Series Data'!FH7:FH372,">0")*Effective_Battery_Capacity/Rndtrp_eff -> 22,015 | K29: =K16/Rndtrp_eff -> 456,805 | L29: =L16/BatteryPower*Effective_Battery_Capacity*Freq_Reg_EnergyUse -> 804,513 | O29: 7 | P29: 0.00 | Q29: 0.00 | R29: =R27 -> 0.00 | S29: =IF(WholesaleEnergyCost_2>PPACostPerKWh,SUMIF('Time Series Data'!$FK$7:$FK$372,">0",'Time Series Data'!$BS$7:$BS$372),0) -> 0.00 | T29: =SUMIF('Time Series Data'!I7:I8790,0,'Time Series Data'!U7:U8790)+(R29+S29)*Rndtrp_eff -> 318,702.26 | U29: =SUMIF('Time Series Data'!I7:I8790,1,'Time Series Data'!U7:U8790)-(R29+S29) -> 740,882.68 | V29: 1,059,584.94
B30: 8 | C30: 0 | D30: =COUNTIF('Time Series Data'!$DX$7:$DX$372,">0")*Effective_Battery_Capacity/Rndtrp_eff -> 22,015 | E30: =E17/Rndtrp_eff -> 375,488 | F30: =F17/BatteryPower*Effective_Battery_Capacity*Freq_Reg_EnergyUse -> 804,513 | H30: 8 | I30: 0 | J30: =COUNTIF('Time Series Data'!FN7:FN372,">0")*Effective_Battery_Capacity/Rndtrp_eff -> 22,015 | K30: =K17/Rndtrp_eff -> 456,805 | L30: =L17/BatteryPower*Effective_Battery_Capacity*Freq_Reg_EnergyUse -> 804,513 | O30: 8 | P30: 0.00 | Q30: 0.00 | R30: =R29 -> 0.00 | S30: =S29 -> 0.00 | T30: =T29 -> 318,702.26 | U30: =U29 -> 740,882.68 | V30: 1,059,584.94
B31: 9 | C31: 0 | D31: =COUNTIF('Time Series Data'!$FT$7:$FT$372,">0")*Effective_Battery_Capacity/Rndtrp_eff -> 22,015 | E31: 0 | F31: 0 | H31: 9 | I31: 0 | J31: =COUNTIF('Time Series Data'!$FT$7:$FT$372,">0")*Effective_Battery_Capacity/Rndtrp_eff -> 22,015 | K31: 0 | L31: 0 | O31: 9 | R31: 0.00 | S31: 0.00 | T31: =SUM('Time Series Data'!U7:U8790) -> 1,059,584.94 | U31: 0.00 | V31: 1,059,584.94
O33: Assumption - AS does not shoft energy interhourly, also all energy from this is assumed to be grid based, even when system is charged by solar only since it is not known when the AS will operate
H34: All
H35: Scenarios 1-4
C36: Energy Arbitrage | E36: Ancillary Services | H36: Local Calculations
B37: Month | C37: Month | D37: Selection | E37: Month | F37: Selection | H37: Month | I37: Peak Demand (kW) | J37: New Peak (kW) | K37: date old peak | L37: date new peak | M37: Solar at CP (kW) | O37: CP Solar Reduction (kW)
B38: 1 | C38: January | D38: =VLOOKUP('General Inputs'!I22,Values!$K$4:$L$10,2,FALSE) -> 3 | E38: January | F38: =VLOOKUP('General Inputs'!F34,Values!$N$4:$O$12,2,FALSE) -> 2 | H38: 1 | I38: =_xlfn.MAXIFS('Time Series Data'!$K$7:$K$8766,'Time Series Data'!$E$7:$E$8766,H38) -> 25006 | J38: =_xlfn.MAXIFS('Time Series Data'!$V$7:$V$8766,'Time Series Data'!$E$7:$E$8766,H38) -> 24466 | K38: =INDEX('Time Series Data'!$C$7:$C$8766,MATCH(1,('Time Series Data'!$E$7:$E$8766=H38)*('Time Series Data'!$K$7:$K$8766=I38),0),1) -> 2019-01-22 | L38: =INDEX('Time Series Data'!$C$7:$C$8766,MATCH(1,('Time Series Data'!$E$7:$E$8766=H38)*('Time Series Data'!$V$7:$V$8766=J38),0),1) -> 2019-01-22 | M38: =INDEX('Time Series Data'!$O$7:$O$8766,MATCH(1,('Time Series Data'!$E$7:$E$8766=H38)*('Time Series Data'!$F$7:$F$8766=DAY('General Inputs'!E38))*('Time Series Data'!$G$7:$G$8766=HOUR('General Inputs'!F38)),0),1) -> 307 | O38: =IF(AND($B$3=1,$C$3>=3),SUM(M38:M49),SUM(M55:M66)) -> 2543.30
B39: 2 | C39: February | D39: =D38 -> 3 | E39: February | F39: =F38 -> 2 | H39: 2 | I39: =_xlfn.MAXIFS('Time Series Data'!$K$7:$K$8766,'Time Series Data'!$E$7:$E$8766,H39) -> 21278 | J39: =_xlfn.MAXIFS('Time Series Data'!$V$7:$V$8766,'Time Series Data'!$E$7:$E$8766,H39) -> 20738 | K39: =INDEX('Time Series Data'!$C$7:$C$8766,MATCH(1,('Time Series Data'!$E$7:$E$8766=H39)*('Time Series Data'!$K$7:$K$8766=I39),0),1) -> 2019-02-01 | L39: =INDEX('Time Series Data'!$C$7:$C$8766,MATCH(1,('Time Series Data'!$E$7:$E$8766=H39)*('Time Series Data'!$V$7:$V$8766=J39),0),1) -> 2019-02-01 | M39: =INDEX('Time Series Data'!$O$7:$O$8766,MATCH(1,('Time Series Data'!$E$7:$E$8766=H39)*('Time Series Data'!$F$7:$F$8766=DAY('General Inputs'!E39))*('Time Series Data'!$G$7:$G$8766=HOUR('General Inputs'!F39)),0),1) -> 0
B40: 3 | C40: March | D40: =D39 -> 3 | E40: March | F40: =F39 -> 2 | H40: 3 | I40: =_xlfn.MAXIFS('Time Series Data'!$K$7:$K$8766,'Time Series Data'!$E$7:$E$8766,H40) -> 20552 | J40: =_xlfn.MAXIFS('Time Series Data'!$V$7:$V$8766,'Time Series Data'!$E$7:$E$8766,H40) -> 20013 | K40: =INDEX('Time Series Data'!$C$7:$C$8766,MATCH(1,('Time Series Data'!$E$7:$E$8766=H40)*('Time Series Data'!$K$7:$K$8766=I40),0),1) -> 2019-03-07 | L40: =INDEX('Time Series Data'!$C$7:$C$8766,MATCH(1,('Time Series Data'!$E$7:$E$8766=H40)*('Time Series Data'!$V$7:$V$8766=J40),0),1) -> 2019-03-07 | M40: =INDEX('Time Series Data'!$O$7:$O$8766,MATCH(1,('Time Series Data'!$E$7:$E$8766=H40)*('Time Series Data'!$F$7:$F$8766=DAY('General Inputs'!E40))*('Time Series Data'!$G$7:$G$8766=HOUR('General Inputs'!F40)),0),1) -> 0
B41: 4 | C41: April | D41: 3 | E41: April | F41: 2 | H41: 4 | I41: =_xlfn.MAXIFS('Time Series Data'!$K$7:$K$8766,'Time Series Data'!$E$7:$E$8766,H41) -> 19367 | J41: =_xlfn.MAXIFS('Time Series Data'!$V$7:$V$8766,'Time Series Data'!$E$7:$E$8766,H41) -> 18791 | K41: =INDEX('Time Series Data'!$C$7:$C$8766,MATCH(1,('Time Series Data'!$E$7:$E$8766=H41)*('Time Series Data'!$K$7:$K$8766=I41),0),1) -> 2019-04-30 | L41: =INDEX('Time Series Data'!$C$7:$C$8766,MATCH(1,('Time Series Data'!$E$7:$E$8766=H41)*('Time Series Data'!$V$7:$V$8766=J41),0),1) -> 2019-04-30 | M41: =INDEX('Time Series Data'!$O$7:$O$8766,MATCH(1,('Time Series Data'!$E$7:$E$8766=H41)*('Time Series Data'!$F$7:$F$8766=DAY('General Inputs'!E41))*('Time Series Data'!$G$7:$G$8766=HOUR('General Inputs'!F41)),0),1) -> 108
B42: 5 | C42: May | D42: 3 | E42: May | F42: 2 | H42: 5 | I42: =_xlfn.MAXIFS('Time Series Data'!$K$7:$K$8766,'Time Series Data'!$E$7:$E$8766,H42) -> 27118 | J42: =_xlfn.MAXIFS('Time Series Data'!$V$7:$V$8766,'Time Series Data'!$E$7:$E$8766,H42) -> 26870 | K42: =INDEX('Time Series Data'!$C$7:$C$8766,MATCH(1,('Time Series Data'!$E$7:$E$8766=H42)*('Time Series Data'!$K$7:$K$8766=I42),0),1) -> 2019-05-28 | L42: =INDEX('Time Series Data'!$C$7:$C$8766,MATCH(1,('Time Series Data'!$E$7:$E$8766=H42)*('Time Series Data'!$V$7:$V$8766=J42),0),1) -> 2019-05-28 | M42: =INDEX('Time Series Data'!$O$7:$O$8766,MATCH(1,('Time Series Data'!$E$7:$E$8766=H42)*('Time Series Data'!$F$7:$F$8766=DAY('General Inputs'!E42))*('Time Series Data'!$G$7:$G$8766=HOUR('General Inputs'!F42)),0),1) -> 299
B43: 6 | C43: June | D43: 3 | E43: June | F43: 2 | H43: 6 | I43: =_xlfn.MAXIFS('Time Series Data'!$K$7:$K$8766,'Time Series Data'!$E$7:$E$8766,H43) -> 26590 | J43: =_xlfn.MAXIFS('Time Series Data'!$V$7:$V$8766,'Time Series Data'!$E$7:$E$8766,H43) -> 26285 | K43: =INDEX('Time Series Data'!$C$7:$C$8766,MATCH(1,('Time Series Data'!$E$7:$E$8766=H43)*('Time Series Data'!$K$7:$K$8766=I43),0),1) -> 2019-06-29 | L43: =INDEX('Time Series Data'!$C$7:$C$8766,MATCH(1,('Time Series Data'!$E$7:$E$8766=H43)*('Time Series Data'!$V$7:$V$8766=J43),0),1) -> 2019-06-29 | M43: =INDEX('Time Series Data'!$O$7:$O$8766,MATCH(1,('Time Series Data'!$E$7:$E$8766=H43)*('Time Series Data'!$F$7:$F$8766=DAY('General Inputs'!E43))*('Time Series Data'!$G$7:$G$8766=HOUR('General Inputs'!F43)),0),1) -> 6
B44: 7 | C44: July | D44: 3 | E44: July | F44: 2 | H44: 7 | I44: =_xlfn.MAXIFS('Time Series Data'!$K$7:$K$8766,'Time Series Data'!$E$7:$E$8766,H44) -> 28719 | J44: =_xlfn.MAXIFS('Time Series Data'!$V$7:$V$8766,'Time Series Data'!$E$7:$E$8766,H44) -> 28270 | K44: =INDEX('Time Series Data'!$C$7:$C$8766,MATCH(1,('Time Series Data'!$E$7:$E$8766=H44)*('Time Series Data'!$K$7:$K$8766=I44),0),1) -> 2019-07-21 | L44: =INDEX('Time Series Data'!$C$7:$C$8766,MATCH(1,('Time Series Data'!$E$7:$E$8766=H44)*('Time Series Data'!$V$7:$V$8766=J44),0),1) -> 2019-07-21 | M44: =INDEX('Time Series Data'!$O$7:$O$8766,MATCH(1,('Time Series Data'!$E$7:$E$8766=H44)*('Time Series Data'!$F$7:$F$8766=DAY('General Inputs'!E44))*('Time Series Data'!$G$7:$G$8766=HOUR('General Inputs'!F44)),0),1) -> 57
B45: 8 | C45: August | D45: 3 | E45: August | F45: 2 | H45: 8 | I45: =_xlfn.MAXIFS('Time Series Data'!$K$7:$K$8766,'Time Series Data'!$E$7:$E$8766,H45) -> 27200 | J45: =_xlfn.MAXIFS('Time Series Data'!$V$7:$V$8766,'Time Series Data'!$E$7:$E$8766,H45) -> 26988 | K45: =INDEX('Time Series Data'!$C$7:$C$8766,MATCH(1,('Time Series Data'!$E$7:$E$8766=H45)*('Time Series Data'!$K$7:$K$8766=I45),0),1) -> 2019-08-13 | L45: =INDEX('Time Series Data'!$C$7:$C$8766,MATCH(1,('Time Series Data'!$E$7:$E$8766=H45)*('Time Series Data'!$V$7:$V$8766=J45),0),1) -> 2019-08-13 | M45: =INDEX('Time Series Data'!$O$7:$O$8766,MATCH(1,('Time Series Data'!$E$7:$E$8766=H45)*('Time Series Data'!$F$7:$F$8766=DAY('General Inputs'!E45))*('Time Series Data'!$G$7:$G$8766=HOUR('General Inputs'!F45)),0),1) -> 7
B46: 9 | C46: September | D46: 3 | E46: September | F46: 2 | H46: 9 | I46: =_xlfn.MAXIFS('Time Series Data'!$K$7:$K$8766,'Time Series Data'!$E$7:$E$8766,H46) -> 26420 | J46: =_xlfn.MAXIFS('Time Series Data'!$V$7:$V$8766,'Time Series Data'!$E$7:$E$8766,H46) -> 26189 | K46: =INDEX('Time Series Data'!$C$7:$C$8766,MATCH(1,('Time Series Data'!$E$7:$E$8766=H46)*('Time Series Data'!$K$7:$K$8766=I46),0),1) -> 2019-09-29 | L46: =INDEX('Time Series Data'!$C$7:$C$8766,MATCH(1,('Time Series Data'!$E$7:$E$8766=H46)*('Time Series Data'!$V$7:$V$8766=J46),0),1) -> 2019-09-29 | M46: =INDEX('Time Series Data'!$O$7:$O$8766,MATCH(1,('Time Series Data'!$E$7:$E$8766=H46)*('Time Series Data'!$F$7:$F$8766=DAY('General Inputs'!E46))*('Time Series Data'!$G$7:$G$8766=HOUR('General Inputs'!F46)),0),1) -> 159
B47: 10 | C47: October | D47: 3 | E47: October | F47: 2 | H47: 10 | I47: =_xlfn.MAXIFS('Time Series Data'!$K$7:$K$8766,'Time Series Data'!$E$7:$E$8766,H47) -> 26002 | J47: =_xlfn.MAXIFS('Time Series Data'!$V$7:$V$8766,'Time Series Data'!$E$7:$E$8766,H47) -> 25877 | K47: =INDEX('Time Series Data'!$C$7:$C$8766,MATCH(1,('Time Series Data'!$E$7:$E$8766=H47)*('Time Series Data'!$K$7:$K$8766=I47),0),1) -> 2019-10-03 | L47: =INDEX('Time Series Data'!$C$7:$C$8766,MATCH(1,('Time Series Data'!$E$7:$E$8766=H47)*('Time Series Data'!$V$7:$V$8766=J47),0),1) -> 2019-10-03 | M47: =INDEX('Time Series Data'!$O$7:$O$8766,MATCH(1,('Time Series Data'!$E$7:$E$8766=H47)*('Time Series Data'!$F$7:$F$8766=DAY('General Inputs'!E47))*('Time Series Data'!$G$7:$G$8766=HOUR('General Inputs'!F47)),0),1) -> 260
B48: 11 | C48: November | D48: 3 | E48: November | F48: 2 | H48: 11 | I48: =_xlfn.MAXIFS('Time Series Data'!$K$7:$K$8766,'Time Series Data'!$E$7:$E$8766,H48) -> 21300 | J48: =_xlfn.MAXIFS('Time Series Data'!$V$7:$V$8766,'Time Series Data'!$E$7:$E$8766,H48) -> 20760 | K48: =INDEX('Time Series Data'!$C$7:$C$8766,MATCH(1,('Time Series Data'!$E$7:$E$8766=H48)*('Time Series Data'!$K$7:$K$8766=I48),0),1) -> 2019-11-14 | L48: =INDEX('Time Series Data'!$C$7:$C$8766,MATCH(1,('Time Series Data'!$E$7:$E$8766=H48)*('Time Series Data'!$V$7:$V$8766=J48),0),1) -> 2019-11-14 | M48: =INDEX('Time Series Data'!$O$7:$O$8766,MATCH(1,('Time Series Data'!$E$7:$E$8766=H48)*('Time Series Data'!$F$7:$F$8766=DAY('General Inputs'!E48))*('Time Series Data'!$G$7:$G$8766=HOUR('General Inputs'!F48)),0),1) -> 0
B49: 12 | C49: December | D49: 3 | E49: December | F49: 2 | H49: 12 | I49: =_xlfn.MAXIFS('Time Series Data'!$K$7:$K$8766,'Time Series Data'!$E$7:$E$8766,H49) -> 21546 | J49: =_xlfn.MAXIFS('Time Series Data'!$V$7:$V$8766,'Time Series Data'!$E$7:$E$8766,H49) -> 20967 | K49: =INDEX('Time Series Data'!$C$7:$C$8766,MATCH(1,('Time Series Data'!$E$7:$E$8766=H49)*('Time Series Data'!$K$7:$K$8766=I49),0),1) -> 2019-12-20 | L49: =INDEX('Time Series Data'!$C$7:$C$8766,MATCH(1,('Time Series Data'!$E$7:$E$8766=H49)*('Time Series Data'!$V$7:$V$8766=J49),0),1) -> 2019-12-20 | M49: =INDEX('Time Series Data'!$O$7:$O$8766,MATCH(1,('Time Series Data'!$E$7:$E$8766=H49)*('Time Series Data'!$F$7:$F$8766=DAY('General Inputs'!E49))*('Time Series Data'!$G$7:$G$8766=HOUR('General Inputs'!F49)),0),1) -> 314
H51: Solar Only
H52: Scenarios 5-8
H53: Local Calculations
H54: Month | I54: Peak Demand (kW) | J54: New Peak (kW) | K54: date old peak | L54: date new peak | M54: Solar at CP (kW)
H55: 1 | I55: =_xlfn.MAXIFS('Time Series Data'!$K$7:$K$8766,'Time Series Data'!$E$7:$E$8766,H55) -> 25006 | J55: =_xlfn.MAXIFS('Time Series Data'!$AF$7:$AF$8766,'Time Series Data'!$E$7:$E$8766,H55) -> 25006 | K55: =INDEX('Time Series Data'!$C$7:$C$8766,MATCH(1,('Time Series Data'!$E$7:$E$8766=H55)*('Time Series Data'!$K$7:$K$8766=I55),0),1) -> 2019-01-22 | L55: =INDEX('Time Series Data'!$C$7:$C$8766,MATCH(1,('Time Series Data'!$E$7:$E$8766=H55)*('Time Series Data'!$AF$7:$AF$8766=J55),0),1) -> 2019-01-22 | M55: =INDEX('Time Series Data'!$U$7:$U$8766,MATCH(1,('Time Series Data'!$E$7:$E$8766=H38)*('Time Series Data'!$F$7:$F$8766=DAY('General Inputs'!E38))*('Time Series Data'!$G$7:$G$8766=HOUR('General Inputs'!F38)),0),1) -> 357
H56: 2 | I56: =_xlfn.MAXIFS('Time Series Data'!$K$7:$K$8766,'Time Series Data'!$E$7:$E$8766,H56) -> 21278 | J56: =_xlfn.MAXIFS('Time Series Data'!$AF$7:$AF$8766,'Time Series Data'!$E$7:$E$8766,H56) -> 21278 | K56: =INDEX('Time Series Data'!$C$7:$C$8766,MATCH(1,('Time Series Data'!$E$7:$E$8766=H56)*('Time Series Data'!$K$7:$K$8766=I56),0),1) -> 2019-02-01 | L56: =INDEX('Time Series Data'!$C$7:$C$8766,MATCH(1,('Time Series Data'!$E$7:$E$8766=H56)*('Time Series Data'!$AF$7:$AF$8766=J56),0),1) -> 2019-02-01 | M56: =INDEX('Time Series Data'!$U$7:$U$8766,MATCH(1,('Time Series Data'!$E$7:$E$8766=H39)*('Time Series Data'!$F$7:$F$8766=DAY('General Inputs'!E39))*('Time Series Data'!$G$7:$G$8766=HOUR('General Inputs'!F39)),0),1) -> 172
H57: 3 | I57: =_xlfn.MAXIFS('Time Series Data'!$K$7:$K$8766,'Time Series Data'!$E$7:$E$8766,H57) -> 20552 | J57: =_xlfn.MAXIFS('Time Series Data'!$AF$7:$AF$8766,'Time Series Data'!$E$7:$E$8766,H57) -> 20032 | K57: =INDEX('Time Series Data'!$C$7:$C$8766,MATCH(1,('Time Series Data'!$E$7:$E$8766=H57)*('Time Series Data'!$K$7:$K$8766=I57),0),1) -> 2019-03-07 | L57: =INDEX('Time Series Data'!$C$7:$C$8766,MATCH(1,('Time Series Data'!$E$7:$E$8766=H57)*('Time Series Data'!$AF$7:$AF$8766=J57),0),1) -> 2019-03-07 | M57: =INDEX('Time Series Data'!$U$7:$U$8766,MATCH(1,('Time Series Data'!$E$7:$E$8766=H40)*('Time Series Data'!$F$7:$F$8766=DAY('General Inputs'!E40))*('Time Series Data'!$G$7:$G$8766=HOUR('General Inputs'!F40)),0),1) -> 238
H58: 4 | I58: =_xlfn.MAXIFS('Time Series Data'!$K$7:$K$8766,'Time Series Data'!$E$7:$E$8766,H58) -> 19367 | J58: =_xlfn.MAXIFS('Time Series Data'!$AF$7:$AF$8766,'Time Series Data'!$E$7:$E$8766,H58) -> 18791 | K58: =INDEX('Time Series Data'!$C$7:$C$8766,MATCH(1,('Time Series Data'!$E$7:$E$8766=H58)*('Time Series Data'!$K$7:$K$8766=I58),0),1) -> 2019-04-30 | L58: =INDEX('Time Series Data'!$C$7:$C$8766,MATCH(1,('Time Series Data'!$E$7:$E$8766=H58)*('Time Series Data'!$AF$7:$AF$8766=J58),0),1) -> 2019-04-30 | M58: =INDEX('Time Series Data'!$U$7:$U$8766,MATCH(1,('Time Series Data'!$E$7:$E$8766=H41)*('Time Series Data'!$F$7:$F$8766=DAY('General Inputs'!E41))*('Time Series Data'!$G$7:$G$8766=HOUR('General Inputs'!F41)),0),1) -> 480
H59: 5 | I59: =_xlfn.MAXIFS('Time Series Data'!$K$7:$K$8766,'Time Series Data'!$E$7:$E$8766,H59) -> 27118 | J59: =_xlfn.MAXIFS('Time Series Data'!$AF$7:$AF$8766,'Time Series Data'!$E$7:$E$8766,H59) -> 27067 | K59: =INDEX('Time Series Data'!$C$7:$C$8766,MATCH(1,('Time Series Data'!$E$7:$E$8766=H59)*('Time Series Data'!$K$7:$K$8766=I59),0),1) -> 2019-05-28 | L59: =INDEX('Time Series Data'!$C$7:$C$8766,MATCH(1,('Time Series Data'!$E$7:$E$8766=H59)*('Time Series Data'!$AF$7:$AF$8766=J59),0),1) -> 2019-05-30 | M59: =INDEX('Time Series Data'!$U$7:$U$8766,MATCH(1,('Time Series Data'!$E$7:$E$8766=H42)*('Time Series Data'!$F$7:$F$8766=DAY('General Inputs'!E42))*('Time Series Data'!$G$7:$G$8766=HOUR('General Inputs'!F42)),0),1) -> 299
H60: 6 | I60: =_xlfn.MAXIFS('Time Series Data'!$K$7:$K$8766,'Time Series Data'!$E$7:$E$8766,H60) -> 26590 | J60: =_xlfn.MAXIFS('Time Series Data'!$AF$7:$AF$8766,'Time Series Data'!$E$7:$E$8766,H60) -> 26285 | K60: =INDEX('Time Series Data'!$C$7:$C$8766,MATCH(1,('Time Series Data'!$E$7:$E$8766=H60)*('Time Series Data'!$K$7:$K$8766=I60),0),1) -> 2019-06-29 | L60: =INDEX('Time Series Data'!$C$7:$C$8766,MATCH(1,('Time Series Data'!$E$7:$E$8766=H60)*('Time Series Data'!$AF$7:$AF$8766=J60),0),1) -> 2019-06-29 | M60: =INDEX('Time Series Data'!$U$7:$U$8766,MATCH(1,('Time Series Data'!$E$7:$E$8766=H43)*('Time Series Data'!$F$7:$F$8766=DAY('General Inputs'!E43))*('Time Series Data'!$G$7:$G$8766=HOUR('General Inputs'!F43)),0),1) -> 180
H61: 7 | I61: =_xlfn.MAXIFS('Time Series Data'!$K$7:$K$8766,'Time Series Data'!$E$7:$E$8766,H61) -> 28719 | J61: =_xlfn.MAXIFS('Time Series Data'!$AF$7:$AF$8766,'Time Series Data'!$E$7:$E$8766,H61) -> 28270 | K61: =INDEX('Time Series Data'!$C$7:$C$8766,MATCH(1,('Time Series Data'!$E$7:$E$8766=H61)*('Time Series Data'!$K$7:$K$8766=I61),0),1) -> 2019-07-21 | L61: =INDEX('Time Series Data'!$C$7:$C$8766,MATCH(1,('Time Series Data'!$E$7:$E$8766=H61)*('Time Series Data'!$AF$7:$AF$8766=J61),0),1) -> 2019-07-21 | M61: =INDEX('Time Series Data'!$U$7:$U$8766,MATCH(1,('Time Series Data'!$E$7:$E$8766=H44)*('Time Series Data'!$F$7:$F$8766=DAY('General Inputs'!E44))*('Time Series Data'!$G$7:$G$8766=HOUR('General Inputs'!F44)),0),1) -> 57
H62: 8 | I62: =_xlfn.MAXIFS('Time Series Data'!$K$7:$K$8766,'Time Series Data'!$E$7:$E$8766,H62) -> 27200 | J62: =_xlfn.MAXIFS('Time Series Data'!$AF$7:$AF$8766,'Time Series Data'!$E$7:$E$8766,H62) -> 26747 | K62: =INDEX('Time Series Data'!$C$7:$C$8766,MATCH(1,('Time Series Data'!$E$7:$E$8766=H62)*('Time Series Data'!$K$7:$K$8766=I62),0),1) -> 2019-08-13 | L62: =INDEX('Time Series Data'!$C$7:$C$8766,MATCH(1,('Time Series Data'!$E$7:$E$8766=H62)*('Time Series Data'!$AF$7:$AF$8766=J62),0),1) -> 2019-08-22 | M62: =INDEX('Time Series Data'!$U$7:$U$8766,MATCH(1,('Time Series Data'!$E$7:$E$8766=H45)*('Time Series Data'!$F$7:$F$8766=DAY('General Inputs'!E45))*('Time Series Data'!$G$7:$G$8766=HOUR('General Inputs'!F45)),0),1) -> 7
H63: 9 | I63: =_xlfn.MAXIFS('Time Series Data'!$K$7:$K$8766,'Time Series Data'!$E$7:$E$8766,H63) -> 26420 | J63: =_xlfn.MAXIFS('Time Series Data'!$AF$7:$AF$8766,'Time Series Data'!$E$7:$E$8766,H63) -> 26189 | K63: =INDEX('Time Series Data'!$C$7:$C$8766,MATCH(1,('Time Series Data'!$E$7:$E$8766=H63)*('Time Series Data'!$K$7:$K$8766=I63),0),1) -> 2019-09-29 | L63: =INDEX('Time Series Data'!$C$7:$C$8766,MATCH(1,('Time Series Data'!$E$7:$E$8766=H63)*('Time Series Data'!$AF$7:$AF$8766=J63),0),1) -> 2019-09-29 | M63: =INDEX('Time Series Data'!$U$7:$U$8766,MATCH(1,('Time Series Data'!$E$7:$E$8766=H46)*('Time Series Data'!$F$7:$F$8766=DAY('General Inputs'!E46))*('Time Series Data'!$G$7:$G$8766=HOUR('General Inputs'!F46)),0),1) -> 159
H64: 10 | I64: =_xlfn.MAXIFS('Time Series Data'!$K$7:$K$8766,'Time Series Data'!$E$7:$E$8766,H64) -> 26002 | J64: =_xlfn.MAXIFS('Time Series Data'!$AF$7:$AF$8766,'Time Series Data'!$E$7:$E$8766,H64) -> 25482 | K64: =INDEX('Time Series Data'!$C$7:$C$8766,MATCH(1,('Time Series Data'!$E$7:$E$8766=H64)*('Time Series Data'!$K$7:$K$8766=I64),0),1) -> 2019-10-03 | L64: =INDEX('Time Series Data'!$C$7:$C$8766,MATCH(1,('Time Series Data'!$E$7:$E$8766=H64)*('Time Series Data'!$AF$7:$AF$8766=J64),0),1) -> 2019-10-03 | M64: =INDEX('Time Series Data'!$U$7:$U$8766,MATCH(1,('Time Series Data'!$E$7:$E$8766=H47)*('Time Series Data'!$F$7:$F$8766=DAY('General Inputs'!E47))*('Time Series Data'!$G$7:$G$8766=HOUR('General Inputs'!F47)),0),1) -> 260
H65: 11 | I65: =_xlfn.MAXIFS('Time Series Data'!$K$7:$K$8766,'Time Series Data'!$E$7:$E$8766,H65) -> 21300 | J65: =_xlfn.MAXIFS('Time Series Data'!$AF$7:$AF$8766,'Time Series Data'!$E$7:$E$8766,H65) -> 20780 | K65: =INDEX('Time Series Data'!$C$7:$C$8766,MATCH(1,('Time Series Data'!$E$7:$E$8766=H65)*('Time Series Data'!$K$7:$K$8766=I65),0),1) -> 2019-11-14 | L65: =INDEX('Time Series Data'!$C$7:$C$8766,MATCH(1,('Time Series Data'!$E$7:$E$8766=H65)*('Time Series Data'!$AF$7:$AF$8766=J65),0),1) -> 2019-11-14 | M65: =INDEX('Time Series Data'!$U$7:$U$8766,MATCH(1,('Time Series Data'!$E$7:$E$8766=H48)*('Time Series Data'!$F$7:$F$8766=DAY('General Inputs'!E48))*('Time Series Data'!$G$7:$G$8766=HOUR('General Inputs'!F48)),0),1) -> 20
H66: 12 | I66: =_xlfn.MAXIFS('Time Series Data'!$K$7:$K$8766,'Time Series Data'!$E$7:$E$8766,H66) -> 21546 | J66: =_xlfn.MAXIFS('Time Series Data'!$AF$7:$AF$8766,'Time Series Data'!$E$7:$E$8766,H66) -> 21026 | K66: =INDEX('Time Series Data'!$C$7:$C$8766,MATCH(1,('Time Series Data'!$E$7:$E$8766=H66)*('Time Series Data'!$K$7:$K$8766=I66),0),1) -> 2019-12-20 | L66: =INDEX('Time Series Data'!$C$7:$C$8766,MATCH(1,('Time Series Data'!$E$7:$E$8766=H66)*('Time Series Data'!$AF$7:$AF$8766=J66),0),1) -> 2019-12-20 | M66: =INDEX('Time Series Data'!$U$7:$U$8766,MATCH(1,('Time Series Data'!$E$7:$E$8766=H49)*('Time Series Data'!$F$7:$F$8766=DAY('General Inputs'!E49))*('Time Series Data'!$G$7:$G$8766=HOUR('General Inputs'!F49)),0),1) -> 314
H68: Solar + Grid
H69: Scenarios 5-8
H70: Local Calculations
H71: Month | I71: Peak Demand (kW) | J71: New Peak (kW) | K71: date old peak | L71: date new peak | M71: Solar at CP (kW)
H72: 1 | I72: =_xlfn.MAXIFS('Time Series Data'!$K$7:$K$8766,'Time Series Data'!$E$7:$E$8766,H72) -> 25006 | J72: =_xlfn.MAXIFS('Time Series Data'!$AH$7:$AH$8766,'Time Series Data'!$E$7:$E$8766,H72) -> 25006 | K72: =INDEX('Time Series Data'!$C$7:$C$8766,MATCH(1,('Time Series Data'!$E$7:$E$8766=H72)*('Time Series Data'!$K$7:$K$8766=I72),0),1) -> 2019-01-22 | L72: =INDEX('Time Series Data'!$C$7:$C$8766,MATCH(1,('Time Series Data'!$E$7:$E$8766=H72)*('Time Series Data'!$AH$7:$AH$8766=J72),0),1) -> 2019-01-22 | M72: =M55 -> 357
H73: 2 | I73: =_xlfn.MAXIFS('Time Series Data'!$K$7:$K$8766,'Time Series Data'!$E$7:$E$8766,H73) -> 21278 | J73: =_xlfn.MAXIFS('Time Series Data'!$AH$7:$AH$8766,'Time Series Data'!$E$7:$E$8766,H73) -> 21278 | K73: =INDEX('Time Series Data'!$C$7:$C$8766,MATCH(1,('Time Series Data'!$E$7:$E$8766=H73)*('Time Series Data'!$K$7:$K$8766=I73),0),1) -> 2019-02-01 | L73: =INDEX('Time Series Data'!$C$7:$C$8766,MATCH(1,('Time Series Data'!$E$7:$E$8766=H73)*('Time Series Data'!$AH$7:$AH$8766=J73),0),1) -> 2019-02-01 | M73: =M56 -> 172
H74: 3 | I74: =_xlfn.MAXIFS('Time Series Data'!$K$7:$K$8766,'Time Series Data'!$E$7:$E$8766,H74) -> 20552 | J74: =_xlfn.MAXIFS('Time Series Data'!$AH$7:$AH$8766,'Time Series Data'!$E$7:$E$8766,H74) -> 20032 | K74: =INDEX('Time Series Data'!$C$7:$C$8766,MATCH(1,('Time Series Data'!$E$7:$E$8766=H74)*('Time Series Data'!$K$7:$K$8766=I74),0),1) -> 2019-03-07 | L74: =INDEX('Time Series Data'!$C$7:$C$8766,MATCH(1,('Time Series Data'!$E$7:$E$8766=H74)*('Time Series Data'!$AH$7:$AH$8766=J74),0),1) -> 2019-03-07 | M74: 238
H75: 4 | I75: =_xlfn.MAXIFS('Time Series Data'!$K$7:$K$8766,'Time Series Data'!$E$7:$E$8766,H75) -> 19367 | J75: =_xlfn.MAXIFS('Time Series Data'!$AH$7:$AH$8766,'Time Series Data'!$E$7:$E$8766,H75) -> 18791 | K75: =INDEX('Time Series Data'!$C$7:$C$8766,MATCH(1,('Time Series Data'!$E$7:$E$8766=H75)*('Time Series Data'!$K$7:$K$8766=I75),0),1) -> 2019-04-30 | L75: =INDEX('Time Series Data'!$C$7:$C$8766,MATCH(1,('Time Series Data'!$E$7:$E$8766=H75)*('Time Series Data'!$AH$7:$AH$8766=J75),0),1) -> 2019-04-30 | M75: 480
H76: 5 | I76: =_xlfn.MAXIFS('Time Series Data'!$K$7:$K$8766,'Time Series Data'!$E$7:$E$8766,H76) -> 27118 | J76: =_xlfn.MAXIFS('Time Series Data'!$AH$7:$AH$8766,'Time Series Data'!$E$7:$E$8766,H76) -> 26870 | K76: =INDEX('Time Series Data'!$C$7:$C$8766,MATCH(1,('Time Series Data'!$E$7:$E$8766=H76)*('Time Series Data'!$K$7:$K$8766=I76),0),1) -> 2019-05-28 | L76: =INDEX('Time Series Data'!$C$7:$C$8766,MATCH(1,('Time Series Data'!$E$7:$E$8766=H76)*('Time Series Data'!$AH$7:$AH$8766=J76),0),1) -> 2019-05-28 | M76: 299
H77: 6 | I77: =_xlfn.MAXIFS('Time Series Data'!$K$7:$K$8766,'Time Series Data'!$E$7:$E$8766,H77) -> 26590 | J77: =_xlfn.MAXIFS('Time Series Data'!$AH$7:$AH$8766,'Time Series Data'!$E$7:$E$8766,H77) -> 26285 | K77: =INDEX('Time Series Data'!$C$7:$C$8766,MATCH(1,('Time Series Data'!$E$7:$E$8766=H77)*('Time Series Data'!$K$7:$K$8766=I77),0),1) -> 2019-06-29 | L77: =INDEX('Time Series Data'!$C$7:$C$8766,MATCH(1,('Time Series Data'!$E$7:$E$8766=H77)*('Time Series Data'!$AH$7:$AH$8766=J77),0),1) -> 2019-06-29 | M77: 180
H78: 7 | I78: =_xlfn.MAXIFS('Time Series Data'!$K$7:$K$8766,'Time Series Data'!$E$7:$E$8766,H78) -> 28719 | J78: =_xlfn.MAXIFS('Time Series Data'!$AH$7:$AH$8766,'Time Series Data'!$E$7:$E$8766,H78) -> 28270 | K78: =INDEX('Time Series Data'!$C$7:$C$8766,MATCH(1,('Time Series Data'!$E$7:$E$8766=H78)*('Time Series Data'!$K$7:$K$8766=I78),0),1) -> 2019-07-21 | L78: =INDEX('Time Series Data'!$C$7:$C$8766,MATCH(1,('Time Series Data'!$E$7:$E$8766=H78)*('Time Series Data'!$AH$7:$AH$8766=J78),0),1) -> 2019-07-21 | M78: 57
H79: 8 | I79: =_xlfn.MAXIFS('Time Series Data'!$K$7:$K$8766,'Time Series Data'!$E$7:$E$8766,H79) -> 27200 | J79: =_xlfn.MAXIFS('Time Series Data'!$AH$7:$AH$8766,'Time Series Data'!$E$7:$E$8766,H79) -> 26747 | K79: =INDEX('Time Series Data'!$C$7:$C$8766,MATCH(1,('Time Series Data'!$E$7:$E$8766=H79)*('Time Series Data'!$K$7:$K$8766=I79),0),1) -> 2019-08-13 | L79: =INDEX('Time Series Data'!$C$7:$C$8766,MATCH(1,('Time Series Data'!$E$7:$E$8766=H79)*('Time Series Data'!$AH$7:$AH$8766=J79),0),1) -> 2019-08-22 | M79: 7
H80: 9 | I80: =_xlfn.MAXIFS('Time Series Data'!$K$7:$K$8766,'Time Series Data'!$E$7:$E$8766,H80) -> 26420 | J80: =_xlfn.MAXIFS('Time Series Data'!$AH$7:$AH$8766,'Time Series Data'!$E$7:$E$8766,H80) -> 26189 | K80: =INDEX('Time Series Data'!$C$7:$C$8766,MATCH(1,('Time Series Data'!$E$7:$E$8766=H80)*('Time Series Data'!$K$7:$K$8766=I80),0),1) -> 2019-09-29 | L80: =INDEX('Time Series Data'!$C$7:$C$8766,MATCH(1,('Time Series Data'!$E$7:$E$8766=H80)*('Time Series Data'!$AH$7:$AH$8766=J80),0),1) -> 2019-09-29 | M80: 159
H81: 10 | I81: =_xlfn.MAXIFS('Time Series Data'!$K$7:$K$8766,'Time Series Data'!$E$7:$E$8766,H81) -> 26002 | J81: =_xlfn.MAXIFS('Time Series Data'!$AH$7:$AH$8766,'Time Series Data'!$E$7:$E$8766,H81) -> 25363 | K81: =INDEX('Time Series Data'!$C$7:$C$8766,MATCH(1,('Time Series Data'!$E$7:$E$8766=H81)*('Time Series Data'!$K$7:$K$8766=I81),0),1) -> 2019-10-03 | L81: =INDEX('Time Series Data'!$C$7:$C$8766,MATCH(1,('Time Series Data'!$E$7:$E$8766=H81)*('Time Series Data'!$AH$7:$AH$8766=J81),0),1) -> 2019-10-03 | M81: 260
H82: 11 | I82: =_xlfn.MAXIFS('Time Series Data'!$K$7:$K$8766,'Time Series Data'!$E$7:$E$8766,H82) -> 21300 | J82: =_xlfn.MAXIFS('Time Series Data'!$AH$7:$AH$8766,'Time Series Data'!$E$7:$E$8766,H82) -> 20780 | K82: =INDEX('Time Series Data'!$C$7:$C$8766,MATCH(1,('Time Series Data'!$E$7:$E$8766=H82)*('Time Series Data'!$K$7:$K$8766=I82),0),1) -> 2019-11-14 | L82: =INDEX('Time Series Data'!$C$7:$C$8766,MATCH(1,('Time Series Data'!$E$7:$E$8766=H82)*('Time Series Data'!$AH$7:$AH$8766=J82),0),1) -> 2019-11-14 | M82: 20
H83: 12 | I83: =_xlfn.MAXIFS('Time Series Data'!$K$7:$K$8766,'Time Series Data'!$E$7:$E$8766,H83) -> 21546 | J83: =_xlfn.MAXIFS('Time Series Data'!$AH$7:$AH$8766,'Time Series Data'!$E$7:$E$8766,H83) -> 20826 | K83: =INDEX('Time Series Data'!$C$7:$C$8766,MATCH(1,('Time Series Data'!$E$7:$E$8766=H83)*('Time Series Data'!$K$7:$K$8766=I83),0),1) -> 2019-12-20 | L83: =INDEX('Time Series Data'!$C$7:$C$8766,MATCH(1,('Time Series Data'!$E$7:$E$8766=H83)*('Time Series Data'!$AH$7:$AH$8766=J83),0),1) -> 2019-12-20 | M83: 314

Sheet Calculations
D1: =IF(EEBatteryFlag="yes",1,0) -> 1 | T1: =IF(PPA_ESA_flag="Yes",1,0) -> 0 | Z1: =IF(Purchase_flag="Yes",1,0) -> 1 | AA1: =IF(Purchase_flag="Yes",1,0)*D1 -> 1 | AC1: =IF(AND(Purchase_flag="yes",Tax_Exempt="no"),1,0) -> 1 | AD1: =IF(AND(Purchase_flag="yes",Tax_Exempt="no"),1,0)*D1 -> 1 | AF1: =IF(OR(value_stack=7,value_stack=8),0,1) -> 1 | AG1: =IF(OR(value_stack=1,value_stack=2),0,1) -> 1 | AI1: =IF(InfrastructureFlag="yes",1,0) -> 0 | AK1: =IF(Arbitrage_Flag="yes",1,0) -> 0 | AL1: =IF(Anc_Svc_Flag="yes",1,0) -> 0 | AM1: =IF(MicrogridFlag="Yes",1,0) -> 0
H2: Electricity benefits | R2: Electricity costs | AB2: Utility's cashflows
A3: Year | C3: Year | D3: Battery | E3: Battery Bank Life | F3: Battery Inverter Life | G3: Cumulative Battery Capacity loss (%) | H3: PV generation (kWh) | I3: Utility avoided On-Peak wholesale energy due to PV (kWh) | J3: Utility avoided Off-Peak wholesale energy due to PV (kWh) | K3: Total avoided Energy | L3: Utility avoided local demand peak (kW) | M3: Utility avoided coincident peak due to PV (kW) | N3: Utility avoided coincident peak due to battery (kW) | O3: Energy Arbitrage (kWh) | P3: Ancillary Services (kW-h) | R3: Utility wholesale energy cost 1 ($/kWh) | S3: Utility wholesale energy cost 2 ($/kWh) | T3: Utility energy cost for PPA /ESA ($/kWh) | U3: Utility demand cost [nominal] ($/kW) | V3: Utility coincident peak cost ($/kW) | W3: Value of Ancillary Services ($/kW-h) | Z3: PV System Capital Cost | AA3: Battery System Capital Cost | AB3: PPA energy cost | AC3: MACRS Depreciation for PV | AD3: MACRS Depreciation for Battery | AE3: Avoided wholesale energy costs (PV) | AF3: Avoided local demand cost (PV/Batt) | AG3: Avoided coincident peak cost (PV) | AH3: Avoided coincident peak cost (Batt) | AI3: Infrastructure Deferral Value | AJ3: Value of RECs (PV) | AK3: Revenue from Energy Arbitrage (Batt) | AL3: Revenue from Ancillary Services (Batt) | AM3: Microgrid Capital Costs | AN3: Utility's cashflow | AO3: Utility's cummulative cashflow
A4: 0 | C4: =Load_Profile_Year -> 2019 | AI4: =(InfCapCost-InfCapCost*((1+EEInflationRate)/(1+NominalCostOfCapital))^EEYrsDeferred)*AI1 -> $0 | AM4: =-Microgrid_Cap_Cost*AM$1 -> $0 | AN4: =SUM(Z4:AM4) -> $0 | AO4: =AN4 -> $0
A5: 1 | C5: =C4+1 -> 2020 | D5: =D$1 -> 1 | E5: 1 | F5: 1 | G5: =(CalendarDegradationRate+CycleDegradationRate)*(E5) -> 1.51% | H5: =PVFirstYearEnergy*(1-PV_DegradationRate)^(EEYear-1) -> 1,059,585 | I5: ='Value Stacking Basis'!$P$3*(1-PV_DegradationRate)^(EEYear-1) -> 1,059,585 | J5: ='Value Stacking Basis'!$Q$3*(1-PV_DegradationRate)^(EEYear-1) -> 0 | K5: =SUM(I5:J5) -> 1,059,585 | L5: =LocalDemandReduction*(1-G5)*EEBattery -> 0 | M5: =SUM(CP_PVReduction)*(1-PV_DegradationRate)^(EEYear-1) -> 2,543 | N5: =CP_demandreduction*(1-G5)*EEBattery -> 5,527 | O5: =EnergyArbitrage_kWh*(1-G5)*EEBattery -> 0 | P5: =Anc_svc_provided___kW_h -> 0 | R5: =WholesaleEnergyCost_1*(1+EEElectricityEscalationRate)^(EEYear-1) -> $0.026 | S5: =WholesaleEnergyCost_2*(1+EEElectricityEscalationRate)^(EEYear-1) -> $0.026 | T5: =EnergyContractPrice*(1+ContractEscalator)^(EEYear-1)*$T$1 -> 0 | U5: =EEUtilityDemandCost*(1+DemandEscalationRt)^(EEYear-1) -> $0.00 | V5: =EEUtilityConcidentPeakCost*(1+DemandEscalationRt)^(EEYear-1) -> $21.84 | W5: =Anc_Svc_Price*EXP(-AncSvcDeclineRt*A5) -> 0 | Z5: =IF($A5<=Loan_Yrs,PMT(NominalCostOfCapital/12,12*Loan_Yrs,PV_Capital_Cost*(1-ITC)*12),0)*Z$1 -> ($167,254) | AA5: =IF($E5<=Loan_Yrs,PMT(NominalCostOfCapital/12,12*Loan_Yrs,(Battery_Cap_Cost)*(1-ITC)*12),0)*AA$1 -> ($178,217) | AB5: =-T5*H5 -> $0 | AC5: =PV_Capital_Cost*(1-ITC/2)*Tax_Rt*IF(A5<=6,_xlfn.SWITCH(A5,1,0.2,2,0.32,3,0.192,4,0.1152,5,0.1152,6,0.0576),0)*AC$1 -> $61,280 | AD5: =IF(Charge_Decision="solar",Battery_Cap_Cost*(1-ITC/2)*Tax_Rt*IF(E5<=6,_xlfn.SWITCH(E5,1,0.2,2,0.32,3,0.192,4,0.1152,5,0.1152,6,0.0576),0),Battery_Cap_Cost*Tax_Rt*IF(E5<=8,_xlfn.SWITCH(E5,1,0.1449,2,0.2449,3,0.1749,4,0.1249,5,0.0893,6,0.0892,7,0.0893,8,0.0446),0))*AD$1 -> $55,656 | AE5: =I5*R5+J5*S5-AK5 -> $27,104 | AF5: =U5*L5*$AF$1 -> $0 | AG5: =V5*M5*$AG$1 -> $55,546 | AH5: =V5*N5 -> $120,713 | AI5: $0 | AJ5: =EERECPrice*K5 -> $2,119 | AK5: =(R5-S5)*O5 -> $0 | AL5: =P5*W5*$AL$1 -> $0 | AM5: $0 | AN5: -$23,053 | AO5: =AN5+AO4 -> -$23,053
A6: =A5+1 -> 2 | C6: =C5+1 -> 2021 | D6: =D$1 -> 1 | E6: =IF(E5<Battery_Lifetime,E5+1,1) -> 2 | F6: =IF(F5<Inverter_lifetime,F5+1,1) ->  | G6: =(CalendarDegradationRate+CycleDegradationRate)*(E6) -> 3.02% | H6: 1,054,287 | I6: ='Value Stacking Basis'!$P$3*(1-PV_DegradationRate)^(EEYear-1) -> 1,054,287 | J6: ='Value Stacking Basis'!$Q$3*(1-PV_DegradationRate)^(EEYear-1) -> 0 | K6: =SUM(I6:J6) -> 1,054,287 | L6: 0 | M6: 2,531 | N6: 5,442 | O6: 0 | P6: 0 | R6: $0.026 | S6: $0.026 | T6: 0 | U6: $0.00 | V6: $22.06 | W6: 0 | Z6: ($167,254) | AA6: ($178,217) | AB6: $0 | AC6: $98,048 | AD6: $94,066 | AE6: $27,508 | AF6: $0 | AG6: $55,821 | AH6: $120,052 | AI6: $0 | AJ6: $2,109 | AK6: $0 | AL6: $0 | AM6: $0 | AN6: $52,132 | AO6: =AN6+AO5 -> $29,079
A7: 3 | C7: 2022 | D7: 1 | E7: 3 | G7: 4.53% | H7: 1,049,016 | I7: ='Value Stacking Basis'!$P$3*(1-PV_DegradationRate)^(EEYear-1) -> 1,049,016 | J7: ='Value Stacking Basis'!$Q$3*(1-PV_DegradationRate)^(EEYear-1) -> 0 | K7: 1,049,016 | L7: 0 | M7: 2,518 | N7: 5,358 | O7: 0 | P7: 0 | R7: $0.027 | S7: $0.027 | T7: 0 | U7: $0.00 | V7: $22.28 | W7: 0 | Z7: ($167,254) | AA7: ($178,217) | AB7: $0 | AC7: $58,829 | AD7: $67,179 | AE7: $27,918 | AF7: $0 | AG7: $56,097 | AH7: $119,365 | AI7: $0 | AJ7: $2,098 | AK7: $0 | AL7: $0 | AM7: $0 | AN7: -$13,985 | AO7: $15,094
A8: 4 | C8: 2023 | D8: 1 | E8: 4 | G8: 6.04% | H8: 1,043,770 | I8: ='Value Stacking Basis'!$P$3*(1-PV_DegradationRate)^(EEYear-1) -> 1,043,770 | J8: ='Value Stacking Basis'!$Q$3*(1-PV_DegradationRate)^(EEYear-1) -> 0 | K8: 1,043,770 | L8: 0 | M8: 2,505 | N8: 5,273 | O8: 0 | P8: 0 | R8: $0.027 | S8: $0.027 | T8: 0 | U8: $0.00 | V8: $22.50 | W8: 0 | Z8: ($167,254) | AA8: ($178,217) | AB8: $0 | AC8: $35,297 | AD8: $47,974 | AE8: $28,334 | AF8: $0 | AG8: $56,375 | AH8: $118,653 | AI8: $0 | AJ8: $2,088 | AK8: $0 | AL8: $0 | AM8: $0 | AN8: -$56,751 | AO8: -$41,657
A9: 5 | C9: 2024 | D9: 1 | E9: 5 | G9: 7.55% | H9: 1,038,552 | I9: ='Value Stacking Basis'!$P$3*(1-PV_DegradationRate)^(EEYear-1) -> 1,038,552 | J9: ='Value Stacking Basis'!$Q$3*(1-PV_DegradationRate)^(EEYear-1) -> 0 | K9: 1,038,552 | L9: 0 | M9: 2,493 | N9: 5,188 | O9: 0 | P9: 0 | R9: $0.028 | S9: $0.028 | T9: 0 | U9: $0.00 | V9: $22.73 | W9: 0 | Z9: ($167,254) | AA9: ($178,217) | AB9: $0 | AC9: $35,297 | AD9: $34,300 | AE9: $28,756 | AF9: $0 | AG9: $56,654 | AH9: $117,915 | AI9: $0 | AJ9: $2,077 | AK9: $0 | AL9: $0 | AM9: $0 | AN9: -$70,472 | AO9: -$112,129
A10: 6 | C10: 2025 | D10: 1 | E10: 6 | G10: 9.06% | H10: 1,033,359 | I10: ='Value Stacking Basis'!$P$3*(1-PV_DegradationRate)^(EEYear-1) -> 1,033,359 | J10: ='Value Stacking Basis'!$Q$3*(1-PV_DegradationRate)^(EEYear-1) -> 0 | K10: 1,033,359 | L10: 0 | M10: 2,480 | N10: 5,104 | O10: 0 | P10: 0 | R10: $0.028 | S10: $0.028 | T10: 0 | U10: $0.00 | V10: $22.95 | W10: 0 | Z10: $0 | AA10: $0 | AB10: $0 | AC10: $17,649 | AD10: $34,262 | AE10: $29,185 | AF10: $0 | AG10: $56,934 | AH10: $117,150 | AI10: $0 | AJ10: $2,067 | AK10: $0 | AL10: $0 | AM10: $0 | AN10: $257,246 | AO10: $145,117
A11: 7 | C11: 2026 | D11: 1 | E11: 7 | G11: 10.56% | H11: 1,028,192 | I11: ='Value Stacking Basis'!$P$3*(1-PV_DegradationRate)^(EEYear-1) -> 1,028,192 | J11: ='Value Stacking Basis'!$Q$3*(1-PV_DegradationRate)^(EEYear-1) -> 0 | K11: 1,028,192 | L11: 0 | M11: 2,468 | N11: 5,019 | O11: 0 | P11: 0 | R11: $0.029 | S11: $0.029 | T11: 0 | U11: $0.00 | V11: $23.18 | W11: 0 | Z11: $0 | AA11: $0 | AB11: $0 | AC11: $0 | AD11: $34,300 | AE11: $29,619 | AF11: $0 | AG11: $57,216 | AH11: $116,358 | AI11: $0 | AJ11: $2,056 | AK11: $0 | AL11: $0 | AM11: $0 | AN11: $239,550 | AO11: $384,667
A12: 8 | C12: 2027 | D12: 1 | E12: 8 | G12: 12.07% | H12: 1,023,051 | I12: ='Value Stacking Basis'!$P$3*(1-PV_DegradationRate)^(EEYear-1) -> 1,023,051 | J12: ='Value Stacking Basis'!$Q$3*(1-PV_DegradationRate)^(EEYear-1) -> 0 | K12: 1,023,051 | L12: 0 | M12: 2,456 | N12: 4,934 | O12: 0 | P12: 0 | R12: $0.029 | S12: $0.029 | T12: 0 | U12: $0.00 | V12: $23.42 | W12: 0 | Z12: $0 | AA12: $0 | AB12: $0 | AC12: $0 | AD12: $17,131 | AE12: $30,061 | AF12: $0 | AG12: $57,499 | AH12: $115,538 | AI12: $0 | AJ12: $2,046 | AK12: $0 | AL12: $0 | AM12: $0 | AN12: $222,275 | AO12: $606,942
A13: 9 | C13: 2028 | D13: 1 | E13: 9 | G13: 13.58% | H13: 1,017,936 | I13: ='Value Stacking Basis'!$P$3*(1-PV_DegradationRate)^(EEYear-1) -> 1,017,936 | J13: ='Value Stacking Basis'!$Q$3*(1-PV_DegradationRate)^(EEYear-1) -> 0 | K13: 1,017,936 | L13: 0 | M13: 2,443 | N13: 4,850 | O13: 0 | P13: 0 | R13: $0.030 | S13: $0.030 | T13: 0 | U13: $0.00 | V13: $23.65 | W13: 0 | Z13: $0 | AA13: $0 | AB13: $0 | AC13: $0 | AD13: $0 | AE13: $30,509 | AF13: $0 | AG13: $57,784 | AH13: $114,691 | AI13: $0 | AJ13: $2,036 | AK13: $0 | AL13: $0 | AM13: $0 | AN13: $205,019 | AO13: $811,961
A14: 10 | C14: 2029 | D14: 1 | E14: 10 | G14: 15.09% | H14: 1,012,846 | I14: ='Value Stacking Basis'!$P$3*(1-PV_DegradationRate)^(EEYear-1) -> 1,012,846 | J14: ='Value Stacking Basis'!$Q$3*(1-PV_DegradationRate)^(EEYear-1) -> 0 | K14: 1,012,846 | L14: 0 | M14: 2,431 | N14: 4,765 | O14: 0 | P14: 0 | R14: $0.031 | S14: $0.031 | T14: 0 | U14: $0.00 | V14: $23.89 | W14: 0 | Z14: $0 | AA14: $0 | AB14: $0 | AC14: $0 | AD14: $0 | AE14: $30,963 | AF14: $0 | AG14: $58,070 | AH14: $113,815 | AI14: $0 | AJ14: $2,026 | AK14: $0 | AL14: $0 | AM14: $0 | AN14: $204,873 | AO14: $1,016,834
A15: 11 | C15: 2030 | D15: 1 | E15: 11 | G15: 16.60% | H15: 1,007,782 | I15: ='Value Stacking Basis'!$P$3*(1-PV_DegradationRate)^(EEYear-1) -> 1,007,782 | J15: ='Value Stacking Basis'!$Q$3*(1-PV_DegradationRate)^(EEYear-1) -> 0 | K15: 1,007,782 | L15: 0 | M15: 2,419 | N15: 4,680 | O15: 0 | P15: 0 | R15: $0.031 | S15: $0.031 | T15: 0 | U15: $0.00 | V15: $24.12 | W15: 0 | Z15: $0 | AA15: $0 | AB15: $0 | AC15: $0 | AD15: $0 | AE15: $31,425 | AF15: $0 | AG15: $58,357 | AH15: $112,909 | AI15: $0 | AJ15: $2,016 | AK15: $0 | AL15: $0 | AM15: $0 | AN15: $204,707 | AO15: $1,221,541
A16: 12 | C16: 2031 | D16: 1 | E16: 12 | G16: 18.11% | H16: 1,002,743 | I16: ='Value Stacking Basis'!$P$3*(1-PV_DegradationRate)^(EEYear-1) -> 1,002,743 | J16: ='Value Stacking Basis'!$Q$3*(1-PV_DegradationRate)^(EEYear-1) -> 0 | K16: 1,002,743 | L16: 0 | M16: 2,407 | N16: 4,595 | O16: 0 | P16: 0 | R16: $0.032 | S16: $0.032 | T16: 0 | U16: $0.00 | V16: $24.37 | W16: 0 | Z16: $0 | AA16: $0 | AB16: $0 | AC16: $0 | AD16: $0 | AE16: $31,893 | AF16: $0 | AG16: $58,646 | AH16: $111,975 | AI16: $0 | AJ16: $2,005 | AK16: $0 | AL16: $0 | AM16: $0 | AN16: $204,519 | AO16: $1,426,060
A17: 13 | C17: 2032 | D17: 1 | E17: 13 | G17: 19.62% | H17: 997,729 | I17: ='Value Stacking Basis'!$P$3*(1-PV_DegradationRate)^(EEYear-1) -> 997,729 | J17: ='Value Stacking Basis'!$Q$3*(1-PV_DegradationRate)^(EEYear-1) -> 0 | K17: 997,729 | L17: 0 | M17: 2,395 | N17: 4,511 | O17: 0 | P17: 0 | R17: $0.032 | S17: $0.032 | T17: 0 | U17: $0.00 | V17: $24.61 | W17: 0 | Z17: $0 | AA17: $0 | AB17: $0 | AC17: $0 | AD17: $0 | AE17: $32,368 | AF17: $0 | AG17: $58,936 | AH17: $111,010 | AI17: $0 | AJ17: $1,995 | AK17: $0 | AL17: $0 | AM17: $0 | AN17: $204,310 | AO17: $1,630,370
A18: 14 | C18: 2033 | D18: 1 | E18: 14 | G18: 21.13% | H18: 992,741 | I18: ='Value Stacking Basis'!$P$3*(1-PV_DegradationRate)^(EEYear-1) -> 992,741 | J18: ='Value Stacking Basis'!$Q$3*(1-PV_DegradationRate)^(EEYear-1) -> 0 | K18: 992,741 | L18: 0 | M18: 2,383 | N18: 4,426 | O18: 0 | P18: 0 | R18: $0.033 | S18: $0.033 | T18: 0 | U18: $0.00 | V18: $24.86 | W18: 0 | Z18: $0 | AA18: $0 | AB18: $0 | AC18: $0 | AD18: $0 | AE18: $32,850 | AF18: $0 | AG18: $59,228 | AH18: $110,015 | AI18: $0 | AJ18: $1,985 | AK18: $0 | AL18: $0 | AM18: $0 | AN18: $204,079 | AO18: $1,834,449
A19: 15 | C19: 2034 | D19: 1 | E19: 1 | G19: 1.51% | H19: 987,777 | I19: ='Value Stacking Basis'!$P$3*(1-PV_DegradationRate)^(EEYear-1) -> 987,777 | J19: ='Value Stacking Basis'!$Q$3*(1-PV_DegradationRate)^(EEYear-1) -> 0 | K19: 987,777 | L19: 0 | M19: 2,371 | N19: 5,527 | O19: 0 | P19: 0 | R19: $0.034 | S19: $0.034 | T19: 0 | U19: $0.00 | V19: $25.10 | W19: 0 | Z19: $0 | AA19: ($178,217) | AB19: $0 | AC19: $0 | AD19: $55,656 | AE19: $33,340 | AF19: $0 | AG19: $59,521 | AH19: $138,756 | AI19: $0 | AJ19: $1,976 | AK19: $0 | AL19: $0 | AM19: $0 | AN19: $111,032 | AO19: $1,945,481
A20: 16 | C20: 2035 | D20: 1 | E20: 2 | G20: 3.02% | H20: 982,838 | I20: ='Value Stacking Basis'!$P$3*(1-PV_DegradationRate)^(EEYear-1) -> 982,838 | J20: ='Value Stacking Basis'!$Q$3*(1-PV_DegradationRate)^(EEYear-1) -> 0 | K20: 982,838 | L20: 0 | M20: 2,359 | N20: 5,442 | O20: 0 | P20: 0 | R20: $0.034 | S20: $0.034 | T20: 0 | U20: $0.00 | V20: $25.36 | W20: 0 | Z20: $0 | AA20: ($178,217) | AB20: $0 | AC20: $0 | AD20: $94,066 | AE20: $33,836 | AF20: $0 | AG20: $59,816 | AH20: $137,996 | AI20: $0 | AJ20: $1,966 | AK20: $0 | AL20: $0 | AM20: $0 | AN20: $149,463 | AO20: $2,094,944
A21: 17 | C21: 2036 | D21: 1 | E21: 3 | G21: 4.53% | H21: 977,924 | I21: ='Value Stacking Basis'!$P$3*(1-PV_DegradationRate)^(EEYear-1) -> 977,924 | J21: ='Value Stacking Basis'!$Q$3*(1-PV_DegradationRate)^(EEYear-1) -> 0 | K21: 977,924 | L21: 0 | M21: 2,347 | N21: 5,358 | O21: 0 | P21: 0 | R21: $0.035 | S21: $0.035 | T21: 0 | U21: $0.00 | V21: $25.61 | W21: 0 | Z21: $0 | AA21: ($178,217) | AB21: $0 | AC21: $0 | AD21: $67,179 | AE21: $34,341 | AF21: $0 | AG21: $60,112 | AH21: $137,207 | AI21: $0 | AJ21: $1,956 | AK21: $0 | AL21: $0 | AM21: $0 | AN21: $122,578 | AO21: $2,217,522
A22: 18 | C22: 2037 | D22: 1 | E22: 4 | G22: 6.04% | H22: 973,034 | I22: ='Value Stacking Basis'!$P$3*(1-PV_DegradationRate)^(EEYear-1) -> 973,034 | J22: ='Value Stacking Basis'!$Q$3*(1-PV_DegradationRate)^(EEYear-1) -> 0 | K22: 973,034 | L22: 0 | M22: 2,336 | N22: 5,273 | O22: 0 | P22: 0 | R22: $0.036 | S22: $0.036 | T22: 0 | U22: $0.00 | V22: $25.87 | W22: 0 | Z22: $0 | AA22: ($178,217) | AB22: $0 | AC22: $0 | AD22: $47,974 | AE22: $34,852 | AF22: $0 | AG22: $60,410 | AH22: $136,389 | AI22: $0 | AJ22: $1,946 | AK22: $0 | AL22: $0 | AM22: $0 | AN22: $103,354 | AO22: $2,320,876
A23: 19 | C23: 2038 | D23: 1 | E23: 5 | G23: 7.55% | H23: 968,169 | I23: ='Value Stacking Basis'!$P$3*(1-PV_DegradationRate)^(EEYear-1) -> 968,169 | J23: ='Value Stacking Basis'!$Q$3*(1-PV_DegradationRate)^(EEYear-1) -> 0 | K23: 968,169 | L23: 0 | M23: 2,324 | N23: 5,188 | O23: 0 | P23: 0 | R23: $0.037 | S23: $0.037 | T23: 0 | U23: $0.00 | V23: $26.12 | W23: 0 | Z23: $0 | AA23: ($178,217) | AB23: $0 | AC23: $0 | AD23: $34,300 | AE23: $35,372 | AF23: $0 | AG23: $60,709 | AH23: $135,540 | AI23: $0 | AJ23: $1,936 | AK23: $0 | AL23: $0 | AM23: $0 | AN23: $89,640 | AO23: $2,410,516
A24: 20 | C24: 2039 | D24: 1 | E24: 6 | G24: 9.06% | H24: 963,328 | I24: ='Value Stacking Basis'!$P$3*(1-PV_DegradationRate)^(EEYear-1) -> 963,328 | J24: ='Value Stacking Basis'!$Q$3*(1-PV_DegradationRate)^(EEYear-1) -> 0 | K24: 963,328 | L24: 0 | M24: 2,312 | N24: 5,104 | O24: 0 | P24: 0 | R24: $0.037 | S24: $0.037 | T24: 0 | U24: $0.00 | V24: $26.39 | W24: 0 | Z24: $0 | AA24: $0 | AB24: $0 | AC24: $0 | AD24: $34,262 | AE24: $35,899 | AF24: $0 | AG24: $61,009 | AH24: $134,661 | AI24: $0 | AJ24: $1,927 | AK24: $0 | AL24: $0 | AM24: $0 | AN24: $267,757 | AO24: $2,678,273
A25: 21 | C25: 2040 | D25: 1 | E25: 7 | G25: 10.56% | H25: 958,512 | I25: ='Value Stacking Basis'!$P$3*(1-PV_DegradationRate)^(EEYear-1) -> 958,512 | J25: ='Value Stacking Basis'!$Q$3*(1-PV_DegradationRate)^(EEYear-1) -> 0 | K25: 958,512 | L25: 0 | M25: 2,301 | N25: 5,019 | O25: 0 | P25: 0 | R25: $0.038 | S25: $0.038 | T25: 0 | U25: $0.00 | V25: $26.65 | W25: 0 | Z25: $0 | AA25: $0 | AB25: $0 | AC25: $0 | AD25: $34,300 | AE25: $36,434 | AF25: $0 | AG25: $61,311 | AH25: $133,750 | AI25: $0 | AJ25: $1,917 | AK25: $0 | AL25: $0 | AM25: $0 | AN25: $267,712 | AO25: $2,945,985
A26: 22 | C26: 2041 | D26: 1 | E26: 8 | G26: 12.07% | H26: 953,719 | I26: ='Value Stacking Basis'!$P$3*(1-PV_DegradationRate)^(EEYear-1) -> 953,719 | J26: ='Value Stacking Basis'!$Q$3*(1-PV_DegradationRate)^(EEYear-1) -> 0 | K26: 953,719 | L26: 0 | M26: 2,289 | N26: 4,934 | O26: 0 | P26: 0 | R26: $0.039 | S26: $0.039 | T26: 0 | U26: $0.00 | V26: $26.92 | W26: 0 | Z26: $0 | AA26: $0 | AB26: $0 | AC26: $0 | AD26: $17,131 | AE26: $36,976 | AF26: $0 | AG26: $61,615 | AH26: $132,808 | AI26: $0 | AJ26: $1,907 | AK26: $0 | AL26: $0 | AM26: $0 | AN26: $250,438 | AO26: $3,196,422
A27: 23 | C27: 2042 | D27: 1 | E27: 9 | G27: 13.58% | H27: 948,950 | I27: ='Value Stacking Basis'!$P$3*(1-PV_DegradationRate)^(EEYear-1) -> 948,950 | J27: ='Value Stacking Basis'!$Q$3*(1-PV_DegradationRate)^(EEYear-1) -> 0 | K27: 948,950 | L27: 0 | M27: 2,278 | N27: 4,850 | O27: 0 | P27: 0 | R27: $0.040 | S27: $0.040 | T27: 0 | U27: $0.00 | V27: $27.18 | W27: 0 | Z27: $0 | AA27: $0 | AB27: $0 | AC27: $0 | AD27: $0 | AE27: $37,527 | AF27: $0 | AG27: $61,920 | AH27: $131,834 | AI27: $0 | AJ27: $1,898 | AK27: $0 | AL27: $0 | AM27: $0 | AN27: $233,179 | AO27: $3,429,601
A28: 24 | C28: 2043 | D28: 1 | E28: 10 | G28: 15.09% | H28: 944,206 | I28: ='Value Stacking Basis'!$P$3*(1-PV_DegradationRate)^(EEYear-1) -> 944,206 | J28: ='Value Stacking Basis'!$Q$3*(1-PV_DegradationRate)^(EEYear-1) -> 0 | K28: 944,206 | L28: 0 | M28: 2,266 | N28: 4,765 | O28: 0 | P28: 0 | R28: $0.040 | S28: $0.040 | T28: 0 | U28: $0.00 | V28: $27.46 | W28: 0 | Z28: $0 | AA28: $0 | AB28: $0 | AC28: $0 | AD28: $0 | AE28: $38,087 | AF28: $0 | AG28: $62,226 | AH28: $130,827 | AI28: $0 | AJ28: $1,888 | AK28: $0 | AL28: $0 | AM28: $0 | AN28: $233,028 | AO28: $3,662,629
A29: 25 | C29: 2044 | D29: 1 | E29: 11 | G29: 16.60% | H29: 939,485 | I29: ='Value Stacking Basis'!$P$3*(1-PV_DegradationRate)^(EEYear-1) -> 939,485 | J29: ='Value Stacking Basis'!$Q$3*(1-PV_DegradationRate)^(EEYear-1) -> 0 | K29: 939,485 | L29: 0 | M29: 2,255 | N29: 4,680 | O29: 0 | P29: 0 | R29: $0.041 | S29: $0.041 | T29: 0 | U29: $0.00 | V29: $27.73 | W29: 0 | Z29: $0 | AA29: $0 | AB29: $0 | AC29: $0 | AD29: $0 | AE29: $38,654 | AF29: $0 | AG29: $62,534 | AH29: $129,787 | AI29: $0 | AJ29: $1,879 | AK29: $0 | AL29: $0 | AM29: $0 | AN29: $232,854 | AO29: $3,895,483
W33: NPV Calculation | Z33: =Z4+NPV(UtilityDiscountRt,Z5:Z29) -> -$724,123 | AA33: =AA4+NPV(UtilityDiscountRt,AA5:AA29) -> -$1,161,290 | AB33: =AB4+NPV(UtilityDiscountRt,AB5:AB29) -> $0 | AC33: =AC4+NPV(UtilityDiscountRt,AC5:AC29) -> $267,979 | AD33: =AD4+NPV(UtilityDiscountRt,AD5:AD29) -> $488,002 | AE33: $442,150 | AF33: $0 | AG33: $821,038 | AH33: $1,718,003 | AI33: =AI4+NPV(UtilityDiscountRt,AI5:AI29) -> $0 | AJ33: $28,492 | AK33: $0 | AL33: $0 | AM33: $0 | AN33: $1,880,251

Sheet Time Series Data
CK1: Solar Only | EF1: Solar & Grid | FT1: Solar OR Grid
O2: Sum | CL2: General Demand | CR2: General Demand | CX2: General Demand | DD2: General Demand | DG2: CP Demand | DN2: CP Demand | DS2: CP Demand | DY2: CP Demand | EG2: General Demand | EL2: General Demand | EQ2: General Demand | EV2: General Demand | EY2: CP Demand | FE2: CP Demand | FI2: CP Demand | FO2: CP Demand | FU2: CP Demand Only
O3: =SUM(O7:O8790) -> 1,051,084 | CG3: Esssential Days | CK3: Scenario 1 | CL3: Energy Arbitrage | CQ3: Scenario 2 | CR3: Ancillary Services | CW3: Scenario 3 | CX3: CP Demand | DC3: Scenario 4 | DD3: CP Demand | DF3: Scenario 5 | DG3: General Demand | DM3: Scenario 6 | DN3: General Demand | DR3: Scenario 7 | DS3: Energy Arbitrage | DX3: Scenario 8 | DY3: Ancillary Services | EF3: Scenario 1 | EG3: Energy Arbitrage | EK3: Scenario 2 | EL3: Ancillary Services | EP3: Scenario 3 | EQ3: CP Demand | EU3: Scenario 4 | EV3: CP Demand | EX3: Scenario 5 | EY3: General Demand | FD3: Scenario 6 | FE3: General Demand | FH3: Scenario 7 | FI3: Energy Arbitrage | FN3: Scenario 8 | FO3: Ancillary Services | FT3: Scenario 9
D4: SAM Data | J4: SAM Data | V4: Scenarios 1-4 | Y4: Scenarios 5-8 | AT4: Scenario 3&4 | AV4: Scen 5&6 | AX4: Scen 1-4 | AY4: Scen 3-4 | AZ4: Scen 5-6 | BA4: Scen 7-8 | BD4: Scen 1-4 | BI4: Scen 5 | BN4: Scen 5 | BS4: Scen 7&8 | CB4: Scen 3&4 | CC4: Scen 3&4 | CG4: =365-SUM(CG7:CG371) -> 13 | CL4: Ancillary Services | CR4: Energy Arbitrage | CX4: Energy Arbitrage | DD4: Ancillary Services | DG4: Energy Arbitrage | DN4: Ancillary Services | DS4: Ancillary Services | DY4: Energy Arbitrage | EG4: Ancillary Services | EL4: Energy Arbitrage | EQ4: Energy Arbitrage | EV4: Ancillary Services | EY4: Energy Arbitrage | FE4: Ancillary Services | FI4: Ancillary Services | FO4: Energy Arbitrage
E5: Fixed Values | H5: Calculated | T5: Calculated | X5: Both | AA5: Solar Only | AG5: Solar + Grid | AT5: solar only | AV5: Solar + Grid | AW5: Solar Only | BD5: Solar + Grid | BN5: Solar + Grid
B6: Date & Time | C6: Date | D6: Utility Load Profile | E6: Month | F6: Day | G6: Hour | H6: Weekday value | I6: Energy Arbitrage | K6: Load from SAM (should match utility load) | L6: Battery Charging From Grid (kW) | M6: Battery Charging From Solar (kW) | N6: Battery Discharging to Load (kW) | O6: Solar Contribution to Load (kW) | P6: Battery State of Charge (%) | T6: Total Battery Charging (kW) | U6: Total Solar Generation (kW) | V6: New Net Load (kW) | W6: Solar generation essential to peak reduction | X6: CP Battery operation only for CP onlyScen 7-8 | Y6: CP - Local Demand Batt. Op. - Baseline | Z6: CP Batt. Op. Day of (all charging) | AA6: CP Batt. Op. w/ Day Before Reductions | AB6: CP Batt. Op. w/ Day Before & After Reductions | AC6: CP - Solar Generation to Load Baseline (kW) | AD6: CP - Solar Generation to Load w/ Day before reduction (kW) | AE6: CP - Solar Generation to Load w/ Day before & after reduction (kW) | AF6: CP New Load | AG6: CP - Solar Generation to Load (kW) | AH6: CP New Load | AL6: Offset | AM6: Date | AN6: Weekday Dummy | AO6: Battery Energy Charging from Solar | AP6: Battery Energy Charged from Grid | AQ6: Battery Energy Discharged | AR6: All Solar Geneation | AS6: Total Solar Generation EA (kWh) | AT6: Solar Energy Available before CP dispatch (CP 2nd) | AU6: Energy moved by battery for CP (kWh) | AV6: CP Battery Energy Discharged For General Demand (kWh) | AW6: CP Battery Energy Discharged for General Demand (kWh) | AX6: SAM - On peak Energy to grid | AY6: Off peak Energy moved for CP - 2nd | AZ6: SAM&CP - On peak Energy to grid | BA6: All solar generation on peak | BB6: CP on peak discharge | BD6: SAM - On peak Energy to grid | BE6: Off Peak Kwh For EA moving | BF6: Off peak Energy moved for CP - 2nd | BG6: On peak Energy moved for CP - 2nd | BH6: Potential Solar peak Energy moved for CP - 2nd | BI6: Off Peak local (after CP) battery charging energy | BJ6: On Peak local (after CP) battery charging energy | BK6: EA potential Off Peak solar energy charging battery | BN6: On peak remaining Solar to grid | BO6: All solar before CP (scenario 6) | BP6: All off peak solar before CP (scenario 7&8) | BQ6: All on peak solar before CP | BR6: All Local (after CP) battery charging energy | BS6: All non CP off peak Energy for EA | BV6: CP Peak | BW6: Solar Charging Battery Dummy | BX6: Grid Charging Battery Dummy | BY6: Charging Dummy | BZ6: Discharging Dummy | CA6: charge/discharge Dummy | CB6: Non Demand Battery Available (Solar Only) | CC6: Non Demand Battery Available (Solar + Grid) | CD6: Non CP Demand Battery Available | CE6: Energy Arbitrage Selection Dummy | CF6: Ancillary Services Selection Dummy | CG6: Solar Generation Essential to Local Demand Reduction | CK6: Remaining Solar Energy (Arbitrage) | CL6: All Days Energy Arbitrage Energy | CM6: Weekday only Energy Arbitrage | CN6: Energy Arbitrage Used | CO6: Hours Remaining for Ancillary services (kW-h) | CQ6: Ancillary Services (Based on input) | CR6: Remaining Solar Energy | CS6: All Days Energy Arbitrage Energy | CT6: Weekday only Energy Arbitrage | CU6: Energy Arbitrage Used | CW6: CP Battery output | CX6: Remaining Solar Energy | CY6: All Days Energy Arbitrage Energy | CZ6: Weekday only Energy Arbitrage | DA6: Energy Arbitrage Used | DC6: CP Battery output | DD6: Ancillary Services (Based on input) | DF6: CP Battery Use (Demand Reduction -kW) | DG6: Non CP Battery Use (Energy - kWh) | DH6: Remaining Solar Energy for EA | DI6: All Days Energy Arbitrage Energy | DJ6: Weekday only Energy Arbitrage | DK6: Energy Arbitrage Used | DM6: CP Battery Use (Demand Reduction -kW) | DN6: Non CP Battery Use (Energy - kWh) | DO6: Remaining Solar Energy for AS | DP6: Hours Remaining for Ancillary services (kW-h) | DR6: CP Battery Use (Demand Reduction -kW) | DS6: All Days Energy Arbitrage Energy | DT6: Weekday only Energy Arbitrage | DU6: Energy Arbitrage Used | DV6: Hours Remaining for Ancillary services (kW-h) | DX6: CP Battery Use (Demand Reduction -kW) | DY6: Hours Remaining for Ancillary services (kW-h) | DZ6: All Days Energy Arbitrage Energy | EA6: Weekday only Energy Arbitrage | EB6: Energy Arbitrage Used | EF6: All Days Energy Arbitrage Energy | EG6: Weekday only Energy Arbitrage | EH6: Energy Arbitrage Used | EI6: Hours Remaining for Ancillary services (kW-h) | EK6: Ancillary Services (Based on input) | EL6: All Days Energy Arbitrage Energy | EM6: Weekday only Energy Arbitrage | EN6: Energy Arbitrage Used | EP6: CP Battery output | EQ6: All Days Energy Arbitrage Energy | ER6: Weekday only Energy Arbitrage | ES6: Energy Arbitrage Used | EU6: CP Battery output | EV6: Ancillary Services (Based on input) | EX6: CP Battery Use | EY6: Non CP Battery Use | EZ6: All Days Energy Arbitrage Energy | FA6: Weekday only Energy Arbitrage | FB6: Energy Arbitrage Used | FD6: CP Battery Use | FE6: Non CP Battery Use | FF6: Hours Remaining for Ancillary services (kW-h) | FH6: CP Demand | FI6: All Days Energy Arbitrage Energy | FJ6: Weekday only Energy Arbitrage | FK6: Energy Arbitrage Used | FL6: Hours Remaining for Ancillary services (kW-h) | FN6: CP Demand | FO6: Hours Remaining for Ancillary services (kW-h) | FP6: All Days Energy Arbitrage Energy | FQ6: Weekday only Energy Arbitrage | FR6: Energy Arbitrage Used | FT6: CP Demand
B7: =DATE(Load_Profile_Year,E7,F7)+TIME(G7,0,0) -> 2019-01-01 | C7: =DATE(Load_Profile_Year,MONTH(B7),DAY(B7)) -> 2019-01-01 | D7: =K7 -> 8,778 | E7: 1 | F7: 1 | G7: 0 | H7: =WEEKDAY(C7,2) -> 2 | I7: =INDEX(Values!$V$6:$AG$29,'Time Series Data'!G7+1,'Time Series Data'!E7) -> 1 | J7: 0.5 | K7: ='SAM Inputs'!A12:F8771 -> 8778 | L7: 546.308 | M7: 0 | N7: 0 | O7: 0 | P7: 74 | T7: =L7+M7 -> 546.31 | U7: =O7+M7 -> 0.00 | V7: =D7-N7-O7 -> 8,778 | W7: =IF(V7+O7>VLOOKUP(E7,'Coincident Peak'!$C$22:$I$33,7),0,1) -> 1 | X7: =IF((AND(E7=MONTH(VLOOKUP('Time Series Data'!E7,'Coincident Peak'!$C$5:$D$16,2)),F7=DAY(VLOOKUP('Time Series Data'!E7,'Coincident Peak'!$C$5:$D$16,2)),IF(AND(G7<=HOUR(VLOOKUP('Time Series Data'!E7,'Coincident Peak'!$C$5:$E$16,3))+Values!$E$5,G7>=HOUR(VLOOKUP('Time Series Data'!E7,'Coincident Peak'!$C$5:$E$16,3))-Values!$E$5),"TRUE","FALSE"))),BatteryPower,0) -> 0.00 | Y7: =IF((AND(E7=MONTH(VLOOKUP('Time Series Data'!E7,'Coincident Peak'!$C$5:$D$16,2)),F7=DAY(VLOOKUP('Time Series Data'!E7,'Coincident Peak'!$C$5:$D$16,2)))),0,N7) -> 0.00 | Z7: =IF((AND(E7=MONTH(VLOOKUP('Time Series Data'!E7,'Coincident Peak'!$C$5:$D$16,2)),F7=DAY(VLOOKUP('Time Series Data'!E7,'Coincident Peak'!$C$5:$D$16,2)),IF(AND(G7<=HOUR(VLOOKUP('Time Series Data'!E7,'Coincident Peak'!$C$5:$E$16,3))+Values!$E$5,G7>=HOUR(VLOOKUP('Time Series Data'!E7,'Coincident Peak'!$C$5:$E$16,3))-Values!$E$5),"TRUE","FALSE"))),BatteryPower,Y7) -> 0.00 | AA7: =IF((AND(E7=MONTH(VLOOKUP('Time Series Data'!E7,'Coincident Peak'!$C$5:$D$16,2)),F7=DAY(VLOOKUP('Time Series Data'!E7,'Coincident Peak'!$C$5:$D$16,2))-1)),VLOOKUP(E7,'Coincident Peak'!$C$5:$N$16,11)*Z7,Z7) -> 0.00 | AB7: =IF((AND(E7=MONTH(VLOOKUP('Time Series Data'!E7,'Coincident Peak'!$C$5:$D$16,2)),F7=DAY(VLOOKUP('Time Series Data'!E7,'Coincident Peak'!$C$5:$D$16,2))+1)),VLOOKUP(E7,'Coincident Peak'!$C$5:$N$16,12)*AA7,AA7) -> 0.00 | AC7: =IF((AND(E7=MONTH(VLOOKUP('Time Series Data'!E7,'Coincident Peak'!$C$5:$D$16,2)),F7=DAY(VLOOKUP('Time Series Data'!E7,'Coincident Peak'!$C$5:$D$16,2)))),0,O7) -> 0.00 | AD7: =IF((AND(E7=MONTH(VLOOKUP('Time Series Data'!E7,'Coincident Peak'!$C$5:$D$16,2)),F7=DAY(VLOOKUP('Time Series Data'!E7,'Coincident Peak'!$C$5:$D$16,2))-1)),VLOOKUP(E7,'Coincident Peak'!$C$5:$N$16,11)*AC7,AC7) -> 0.00 | AE7: =IF((AND(E7=MONTH(VLOOKUP('Time Series Data'!E7,'Coincident Peak'!$C$5:$D$16,2)),F7=DAY(VLOOKUP('Time Series Data'!E7,'Coincident Peak'!$C$5:$D$16,2))+1)),VLOOKUP(E7,'Coincident Peak'!$C$5:$N$16,12)*AD7,AD7) -> 0.00 | AF7: =K7-AB7-AE7 -> 8,778 | AG7: =IF((AND(E7=MONTH(VLOOKUP('Time Series Data'!E7,'Coincident Peak'!$C$5:$D$16,2)),F7=DAY(VLOOKUP('Time Series Data'!E7,'Coincident Peak'!$C$5:$D$16,2)))),U7,O7) -> 0.00 | AH7: =K7-Z7-AG7 -> 8,778 | AL7: 0 | AM7: =OFFSET($C$7,24*AL7,0) -> 2019-01-01 | AN7: =IF(WEEKDAY(AM7,2)<6,1,0) -> 1 | AO7: =SUMIFS($M$7:$M$8790,$F$7:$F$8790,DAY(AM7),$E$7:$E$8790,MONTH(AM7)) -> 0 | AP7: =SUMIFS($L$7:$L$8790,$F$7:$F$8790,DAY(AM7),$E$7:$E$8790,MONTH(AM7)) -> 1,984.86 | AQ7: =SUMIFS($N$7:$N$8790,$F$7:$F$8790,DAY(AM7),$E$7:$E$8790,MONTH(AM7)) -> 798.62 | AR7: =SUMIFS($U$7:$U$8790,$F$7:$F$8790,DAY(AM7),$E$7:$E$8790,MONTH(AM7)) -> 703.69 | AS7: =SUMIFS($U$7:$U$8790,$F$7:$F$8790,DAY(AM7),$E$7:$E$8790,MONTH(AM7),$I$7:$I$8790,1)*Rndtrp_eff -> 547.16 | AT7: =IF(ISNA(MATCH(AM7,'Coincident Peak'!$D$5:$D$16,0))=TRUE,0,SUMIFS($O$7:$O$8790,$F$7:$F$8790,DAY(AM7),$E$7:$E$8790,MONTH(AM7),$G$7:$G$8790,"<"&HOUR(VLOOKUP(AM7,'Coincident Peak'!$D$5:$E$16,2))-Values!$E$5)) -> 0 | AU7: =IF(AT7*Rndtrp_eff>Effective_Battery_Capacity,Effective_Battery_Capacity,AT7) -> 0 | AV7: =SUMIFS($Z$7:$Z$8790,$F$7:$F$8790,DAY(AM7),$E$7:$E$8790,MONTH(AM7))*(1-BV7) -> 799 | AW7: =SUMIFS($AB$7:$AB$8790,$F$7:$F$8790,DAY(AM7),$E$7:$E$8790,MONTH(AM7))*(1-BV7) -> 799 | AX7: =IF($CE7=1,SUMIFS($N$7:$N$8790,$F$7:$F$8790,DAY(AM7),$E$7:$E$8790,MONTH(AM7)),IF($CE7=2,SUMIFS($N$7:$N$8790,$F$7:$F$8790,DAY(AM7),$E$7:$E$8790,MONTH(AM7),$I$7:$I$8790,0),AN7*SUMIFS($N$7:$N$8790,$F$7:$F$8790,DAY(AM7),$E$7:$E$8790,MONTH(AM7),$I$7:$I$8790,0)))+IF($CE7=1,SUMIFS($O$7:$O$8790,$F$7:$F$8790,DAY(AM7),$E$7:$E$8790,MONTH(AM7)),IF($CE7=2,SUMIFS($O$7:$O$8790,$F$7:$F$8790,DAY(AM7),$E$7:$E$8790,MONTH(AM7),$I$7:$I$8790,0),AN7*SUMIFS($O$7:$O$8790,$F$7:$F$8790,DAY(AM7),$E$7:$E$8790,MONTH(AM7),$I$7:$I$8790,0))) -> 75 | AY7: =IF(ISNA(MATCH(AM7,'Coincident Peak'!$D$5:$D$16,0))=TRUE,0,SUMIFS($O$7:$O$8790,$F$7:$F$8790,DAY(AM7),$E$7:$E$8790,MONTH(AM7),$G$7:$G$8790,"<"&HOUR(VLOOKUP(AM7,'Coincident Peak'!$D$5:$E$16,2))-Values!$E$5,$I$7:$I$8790,1)) -> 0 | AZ7: =IF($CE7=1,SUMIFS($AB$7:$AB$8790,$F$7:$F$8790,DAY(AM7),$E$7:$E$8790,MONTH(AM7)),IF($CE7=2,SUMIFS($AB$7:$AB$8790,$F$7:$F$8790,DAY(AM7),$E$7:$E$8790,MONTH(AM7),$I$7:$I$8790,0),AN7*SUMIFS($AB$7:$AB$8790,$F$7:$F$8790,DAY(AM7),$E$7:$E$8790,MONTH(AM7),$I$7:$I$8790,0)))+IF($CE7=1,SUMIFS($AE$7:$AE$8790,$F$7:$F$8790,DAY(AM7),$E$7:$E$8790,MONTH(AM7)),IF($CE7=2,SUMIFS($AE$7:$AE$8790,$F$7:$F$8790,DAY(AM7),$E$7:$E$8790,MONTH(AM7),$I$7:$I$8790,0),AN7*SUMIFS($AE$7:$AE$8790,$F$7:$F$8790,DAY(AM7),$E$7:$E$8790,MONTH(AM7),$I$7:$I$8790,0))) -> 75 | BA7: =IF($CE7=1,SUMIFS($U$7:$U$8790,$F$7:$F$8790,DAY(AM7),$E$7:$E$8790,MONTH(AM7)),IF($CE7=2,SUMIFS($U$7:$U$8790,$F$7:$F$8790,DAY(AM7),$E$7:$E$8790,MONTH(AM7),$I$7:$I$8790,0),AN7*SUMIFS($U$7:$U$8790,$F$7:$F$8790,DAY(AM7),$E$7:$E$8790,MONTH(AM7),$I$7:$I$8790,0))) -> 75 | BB7: =IF($CE7=1,SUMIFS($X$7:$X$8790,$F$7:$F$8790,DAY(AM7),$E$7:$E$8790,MONTH(AM7)),IF($CE7=2,SUMIFS($X$7:$X$8790,$F$7:$F$8790,DAY(AM7),$E$7:$E$8790,MONTH(AM7),$I$7:$I$8790,0),AN7*SUMIFS($X$7:$X$8790,$F$7:$F$8790,DAY(AM7),$E$7:$E$8790,MONTH(AM7),$I$7:$I$8790,0))) -> 0 | BD7: =(IF($CE7=1,SUMIFS($N$7:$N$8790,$F$7:$F$8790,DAY(AM7),$E$7:$E$8790,MONTH(AM7)),IF($CE7=2,SUMIFS($N$7:$N$8790,$F$7:$F$8790,DAY(AM7),$E$7:$E$8790,MONTH(AM7),$I$7:$I$8790,0),AN7*SUMIFS($N$7:$N$8790,$F$7:$F$8790,DAY(AM7),$E$7:$E$8790,MONTH(AM7),$I$7:$I$8790,0))))*Batt_PV_Perc+IF($CE7=1,SUMIFS($O$7:$O$8790,$F$7:$F$8790,DAY(AM7),$E$7:$E$8790,MONTH(AM7)),IF($CE7=2,SUMIFS($O$7:$O$8790,$F$7:$F$8790,DAY(AM7),$E$7:$E$8790,MONTH(AM7),$I$7:$I$8790,0),AN7*SUMIFS($O$7:$O$8790,$F$7:$F$8790,DAY(AM7),$E$7:$E$8790,MONTH(AM7),$I$7:$I$8790,0))) -> 75 | BE7: =IF((IF($CE7=1,SUMIFS($O$7:$O$8790,$F$7:$F$8790,DAY(AM7),$E$7:$E$8790,MONTH(AM7)),IF($CE7=2,SUMIFS($O$7:$O$8790,$F$7:$F$8790,DAY(AM7),$E$7:$E$8790,MONTH(AM7),$I$7:$I$8790,1),AN7*SUMIFS($O$7:$O$8790,$F$7:$F$8790,DAY(AM7),$E$7:$E$8790,MONTH(AM7),$I$7:$I$8790,1))))>(Effective_Battery_Capacity/Rndtrp_eff),(Effective_Battery_Capacity/Rndtrp_eff),IF($CE7=1,SUMIFS($O$7:$O$8790,$F$7:$F$8790,DAY(AM7),$E$7:$E$8790,MONTH(AM7)),IF($CE7=2,SUMIFS($O$7:$O$8790,$F$7:$F$8790,DAY(AM7),$E$7:$E$8790,MONTH(AM7),$I$7:$I$8790,1),AN7*SUMIFS($O$7:$O$8790,$F$7:$F$8790,DAY(AM7),$E$7:$E$8790,MONTH(AM7),$I$7:$I$8790,1)))) -> 629 | BF7: =IF(AY7>(Effective_Battery_Capacity/Rndtrp_eff),(Effective_Battery_Capacity/Rndtrp_eff),AY7) -> 0 | BG7: =IF(IF(ISNA(MATCH(AM7,'Coincident Peak'!$D$5:$D$16,0))=TRUE,0,SUMIFS($O$7:$O$8790,$F$7:$F$8790,DAY(AM7),$E$7:$E$8790,MONTH(AM7),$G$7:$G$8790,"<"&HOUR(VLOOKUP(AM7,'Coincident Peak'!$D$5:$E$16,2))-Values!$E$5,$I$7:$I$8790,0))>(Effective_Battery_Capacity/Rndtrp_eff),(Effective_Battery_Capacity/Rndtrp_eff),IF(ISNA(MATCH(AM7,'Coincident Peak'!$D$5:$D$16,0))=TRUE,0,SUMIFS($O$7:$O$8790,$F$7:$F$8790,DAY(AM7),$E$7:$E$8790,MONTH(AM7),$G$7:$G$8790,"<"&HOUR(VLOOKUP(AM7,'Coincident Peak'!$D$5:$E$16,2))-Values!$E$5,$I$7:$I$8790,0))) -> 0 | BH7: =IF((IF(ISNA(MATCH(AM7,'Coincident Peak'!$D$5:$D$16,0))=TRUE,0,SUMIFS($O$7:$O$8790,$F$7:$F$8790,DAY(AM7),$E$7:$E$8790,MONTH(AM7),$G$7:$G$8790,"<"&HOUR(VLOOKUP(AM7,'Coincident Peak'!$D$5:$E$16,2))-Values!$E$5)))>(Effective_Battery_Capacity/Rndtrp_eff),(Effective_Battery_Capacity/Rndtrp_eff),(IF(ISNA(MATCH(AM7,'Coincident Peak'!$D$5:$D$16,0))=TRUE,0,SUMIFS($O$7:$O$8790,$F$7:$F$8790,DAY(AM7),$E$7:$E$8790,MONTH(AM7),$G$7:$G$8790,"<"&HOUR(VLOOKUP(AM7,'Coincident Peak'!$D$5:$E$16,2))-Values!$E$5)))) -> 0 | BI7: =SUMIFS($M$7:$M$8790,$F$7:$F$8790,DAY(AM7),$E$7:$E$8790,MONTH(AM7),$I$7:$I$8790,1)*CD7 -> 0 | BJ7: =SUMIFS($M$7:$M$8790,$F$7:$F$8790,DAY(AM7),$E$7:$E$8790,MONTH(AM7),$I$7:$I$8790,0)*CD7 -> 0 | BK7: =IF(WholesaleEnergyCost_2>PPACostPerKWh,(IF((SUMIFS('Time Series Data'!$AG$7:$AG$8790,'Time Series Data'!$I$7:$I$8790,1,$F$7:$F$8790,DAY(AM7),$E$7:$E$8790,MONTH(AM7))-BP7)>(Effective_Battery_Capacity/Rndtrp_eff),(Effective_Battery_Capacity/Rndtrp_eff),(SUMIFS('Time Series Data'!$AG$7:$AG$8790,'Time Series Data'!$I$7:$I$8790,1,$F$7:$F$8790,DAY(AM7),$E$7:$E$8790,MONTH(AM7))))-BP7),0) -> 0 | BL7: =IF(FB7>0,BK7,0) -> 0 | BM7: =SUMIFS('Time Series Data'!$AG$7:$AG$8790,$F$7:$F$8790,DAY(AM7),$E$7:$E$8790,MONTH(AM7),'Time Series Data'!$I$7:$I$8790,1)-BL7-BP7 -> 629 | BN7: =SUMIFS('Time Series Data'!$AG$7:$AG$8790,'Time Series Data'!$I$7:$I$8790,0,$F$7:$F$8790,DAY(AM7),$E$7:$E$8790,MONTH(AM7))-BQ7 -> 75 | BO7: =IF((IF(ISNA(MATCH(AM7,'Coincident Peak'!$D$5:$D$16,0))=TRUE,0,SUMIFS($U$7:$U$8790,$F$7:$F$8790,DAY(AM7),$E$7:$E$8790,MONTH(AM7),$G$7:$G$8790,"<"&HOUR(VLOOKUP(AM7,'Coincident Peak'!$D$5:$E$16,2))-Values!$E$5)))>(Effective_Battery_Capacity/Rndtrp_eff),(Effective_Battery_Capacity/Rndtrp_eff),(IF(ISNA(MATCH(AM7,'Coincident Peak'!$D$5:$D$16,0))=TRUE,0,SUMIFS($U$7:$U$8790,$F$7:$F$8790,DAY(AM7),$E$7:$E$8790,MONTH(AM7),$G$7:$G$8790,"<"&HOUR(VLOOKUP(AM7,'Coincident Peak'!$D$5:$E$16,2))-Values!$E$5)))) -> 0 | BP7: =IF(WholesaleEnergyCost_2>PPACostPerKWh,(IF((IF(ISNA(MATCH(AM7,'Coincident Peak'!$D$5:$D$16,0))=TRUE,0,SUMIFS($U$7:$U$8790,$F$7:$F$8790,DAY(AM7),$E$7:$E$8790,MONTH(AM7),$G$7:$G$8790,"<"&HOUR(VLOOKUP(AM7,'Coincident Peak'!$D$5:$E$16,2))-Values!$E$5,$I$7:$I$8790,1)))>(Effective_Battery_Capacity/Rndtrp_eff),(Effective_Battery_Capacity/Rndtrp_eff),(IF(ISNA(MATCH(AM7,'Coincident Peak'!$D$5:$D$16,0))=TRUE,0,SUMIFS($U$7:$U$8790,$F$7:$F$8790,DAY(AM7),$E$7:$E$8790,MONTH(AM7),$G$7:$G$8790,"<"&HOUR(VLOOKUP(AM7,'Coincident Peak'!$D$5:$E$16,2))-Values!$E$5,$I$7:$I$8790,1))))),0) -> 0 | BQ7: =IF(WholesaleEnergyCost_1>PPACostPerKWh,(IF((IF(ISNA(MATCH(AM7,'Coincident Peak'!$D$5:$D$16,0))=TRUE,0,SUMIFS($U$7:$U$8790,$F$7:$F$8790,DAY(AM7),$E$7:$E$8790,MONTH(AM7),$G$7:$G$8790,"<"&HOUR(VLOOKUP(AM7,'Coincident Peak'!$D$5:$E$16,2))-Values!$E$5,$I$7:$I$8790,0)))>(Effective_Battery_Capacity/Rndtrp_eff),(Effective_Battery_Capacity/Rndtrp_eff),(IF(ISNA(MATCH(AM7,'Coincident Peak'!$D$5:$D$16,0))=TRUE,0,SUMIFS($U$7:$U$8790,$F$7:$F$8790,DAY(AM7),$E$7:$E$8790,MONTH(AM7),$G$7:$G$8790,"<"&HOUR(VLOOKUP(AM7,'Coincident Peak'!$D$5:$E$16,2))-Values!$E$5,$I$7:$I$8790,0))))),0) -> 0 | BR7: =SUMIFS($M$7:$M$8790,$F$7:$F$8790,DAY(AM7),$E$7:$E$8790,MONTH(AM7))*CD7 -> 0 | BS7: =IF((SUMIFS($U$7:$U$8790,$F$7:$F$8790,DAY(AM7),$E$7:$E$8790,MONTH(AM7),$I$7:$I$8790,1)*CD7)>(Effective_Battery_Capacity/Rndtrp_eff),(Effective_Battery_Capacity/Rndtrp_eff),(SUMIFS($U$7:$U$8790,$F$7:$F$8790,DAY(AM7),$E$7:$E$8790,MONTH(AM7),$I$7:$I$8790,1)*CD7)) -> 629 | BT7: =SUMIFS($Y$7:$Y$8790,$F$7:$F$8790,DAY(AM7),$E$7:$E$8790,MONTH(AM7)) -> 799 | BV7: =IF(ISNA(MATCH(AM7,'Coincident Peak'!$D$5:$D$16,0))=TRUE,0,1) -> 0 | BW7: =COUNTIF(AO7,">0") -> 0 | BX7: =COUNTIF(AP7,">0") -> 1 | BY7: =SUM(BW7:BX7) -> 1 | BZ7: =COUNTIF(AQ7,">0") -> 1 | CA7: =IF(AO7+AQ7>1,1,0) -> 1 | CB7: =IF(OR(BZ7 =1,BZ8=1),0,1) -> 0 | CC7: =IF(BZ7=1,0,1) -> 0 | CD7: =IF(ISNA(MATCH(AM7,'Coincident Peak'!$D$5:$D$16,0))=TRUE,1,0) -> 1 | CE7: =VLOOKUP(MONTH($AM7),'Value Stacking Basis'!$B$38:$D$49,3) -> 3 | CF7: =VLOOKUP(MONTH($AM7),'Value Stacking Basis'!$B$38:$F$49,5) -> 2 | CG7: =IF(SUMIFS($W$7:$W$8766,$F$7:$F$8766,DAY(AM7),$E$7:$E$8766,MONTH(AM7))<24,0,1) -> 1 | CK7: =$CB7*$CG7*SUMIFS($O:$O,$F:$F,DAY($AM7),$E:$E,MONTH($AM7),$I:$I,1)*Rndtrp_eff -> 0 | CL7: =IF(CK7>Effective_Battery_Capacity,Effective_Battery_Capacity,CK7) -> 0 | CM7: =IF(CK7>Effective_Battery_Capacity,Effective_Battery_Capacity,CK7)*$AN7 -> 0 | CN7: =IF($CE7=1,0,IF($CE7=2,CL7,CM7)) -> 0 | CO7: =IF(CN7>0,0,IF($CF7=1,0,IF($CF7=2,Anc_Svc_DailyHrs*(1-$AN7),IF($CF7=3,Anc_Svc_DailyHrs*$AN7,0))))*$CB7 -> 0 | CQ7: =IF($CF7=1,0,IF($CF7=2,Anc_Svc_DailyHrs*(1-$AN7),IF($CF7=3,Anc_Svc_DailyHrs*$AN7,0)))*$CB7 -> 0 | CR7: =IF($CQ7=0,1,0)*$CB7*$CG7*SUMIFS($O:$O,$F:$F,DAY($AM7),$E:$E,MONTH($AM7),$I:$I,1)*Rndtrp_eff -> 0 | CS7: =IF(CR7>Effective_Battery_Capacity,Effective_Battery_Capacity,CR7) -> 0 | CT7: =IF(CR7>Effective_Battery_Capacity,Effective_Battery_Capacity,CR7)*$AN7 -> 0 | CU7: =IF($CE7=1,0,IF($CE7=2,CS7,CT7)) -> 0 | CW7: =IF($BV7=0,0,IF($CB7=0,INDEX('Time Series Data'!N$7:N$8790,MATCH(1,(MONTH($AM7)='Time Series Data'!$E$7:$E$8790)*(DAY($AM7)='Time Series Data'!$F$7:$F$8790)*(HOUR(VLOOKUP('Time Series Data'!$AM7,'Coincident Peak'!$D$5:$I$16,2))='Time Series Data'!$G$7:$G$8790),0)),IF(($AT7*Rndtrp_eff)>Effective_Battery_Capacity,BatteryPower,(($AT7*Rndtrp_eff)/Effective_Battery_Capacity)*BatteryPower))) -> 0 | CX7: =$CD7*$CB7*$CG7*SUMIFS($O:$O,$F:$F,DAY($AM7),$E:$E,MONTH($AM7),$I:$I,1)*Rndtrp_eff -> 0 | CY7: =IF(CX7>Effective_Battery_Capacity,Effective_Battery_Capacity,CX7) -> 0 | CZ7: =IF(CX7>=Effective_Battery_Capacity,Effective_Battery_Capacity,CX7)*$AN7 -> 0 | DA7: =IF($CE7=1,0,IF($CE7=2,CY7,CZ7)) -> 0 | DC7: =IF($BV7=0,0,IF($CB7=0,INDEX('Time Series Data'!N$7:N$8790,MATCH(1,(MONTH($AM7)='Time Series Data'!$E$7:$E$8790)*(DAY($AM7)='Time Series Data'!$F$7:$F$8790)*(HOUR(VLOOKUP('Time Series Data'!$AM7,'Coincident Peak'!$D$5:$I$16,2))='Time Series Data'!$G$7:$G$8790),0)),IF(($AT7*Rndtrp_eff)>Effective_Battery_Capacity,BatteryPower,(($AT7*Rndtrp_eff)/Effective_Battery_Capacity)*BatteryPower))) -> 0 | DD7: =IF(DC7>0,0,IF($CF7=1,0,IF($CF7=2,Anc_Svc_DailyHrs*(1-$AN7),IF($CF7=3,Anc_Svc_DailyHrs*$AN7,0))))*$CB7 -> 0 | DF7: =BatteryPower*$BV7 -> 0 | DG7: =$AW7 -> 799 | DH7: =$CB7*$CD7*SUMIFS($AE:$AE,$F:$F,DAY($AM7),$E:$E,MONTH($AM7),$I:$I,1)*Rndtrp_eff -> 0 | DI7: =IF(DH7>Effective_Battery_Capacity,Effective_Battery_Capacity,DH7) -> 0 | DJ7: =IF(DH7>Effective_Battery_Capacity,Effective_Battery_Capacity,DH7)*$AN7 -> 0 | DK7: =IF($CE7=1,0,IF($CE7=2,DI7,DJ7)) -> 0 | DM7: =BatteryPower*$BV7 -> 0 | DN7: =$AW7 -> 799 | DO7: =$CB7*$CD7*SUMIFS($AE:$AE,$F:$F,DAY($AM7),$E:$E,MONTH($AM7),$I:$I,1)*Rndtrp_eff -> 0 | DP7: =IF((DO7)=0,0,IF($CF7=1,0,IF($CF7=2,Anc_Svc_DailyHrs*(1-$AN7),IF($CF7=3,Anc_Svc_DailyHrs*$AN7,0)))) -> 0 | DR7: =BatteryPower*$BV7 -> 0 | DS7: =IF($AS7>Effective_Battery_Capacity,Effective_Battery_Capacity,$AS7)*$CD7 -> 547.16 | DT7: =IF($AS7>Effective_Battery_Capacity,Effective_Battery_Capacity,$AS7)*$CD7*$AN7 -> 547.16 | DU7: =IF($CE7=1,0,IF($CE7=2,DS7,DT7)) -> 547.16 | DV7: =IF(DU7>0,0,IF($CF7=1,0,IF($CF7=2,Anc_Svc_DailyHrs*(1-$AN7),IF($CF7=3,Anc_Svc_DailyHrs*$AN7,0))))*$CD7 -> 0 | DX7: =BatteryPower*$BV7 -> 0 | DY7: =IF($CF7=1,0,IF($CF7=2,Anc_Svc_DailyHrs*(1-$AN7),IF($CF7=3,Anc_Svc_DailyHrs*$AN7,0)))*$CD7 -> 0 | DZ7: =IF(DY7>0,0,IF($AS7>Effective_Battery_Capacity,Effective_Battery_Capacity,$AS7))*$CD7 -> 547.16 | EA7: =IF(DY7>0,0,IF($AS7>Effective_Battery_Capacity,Effective_Battery_Capacity,$AS7))*$CD7*$AN7 -> 547.16 | EB7: =IF($CE7=1,0,IF($CE7=2,DZ7,EA7)) -> 547.16 | EF7: =$CC7*Effective_Battery_Capacity -> 0 | EG7: =$CC7*Effective_Battery_Capacity*$AN7 -> 0 | EH7: =IF($CE7=1,0,IF($CE7=2,EF7,EG7)) -> 0 | EI7: =IF(EH7>0,0,IF($CF7=1,0,IF($CF7=2,Anc_Svc_DailyHrs*(1-$AN7),IF($CF7=3,Anc_Svc_DailyHrs*$AN7,0))))*$CC7 -> 0 | EK7: =IF($CF7=1,0,IF($CF7=2,Anc_Svc_DailyHrs*(1-$AN7),IF($CF7=3,Anc_Svc_DailyHrs*$AN7,0)))*$CC7 -> 0 | EL7: =IF(EK7=0,$CC7*Effective_Battery_Capacity,0) -> 0 | EM7: =IF(EK7=0,$CC7*Effective_Battery_Capacity,0)*$AN7 -> 0 | EN7: =IF($CE7=1,0,IF($CE7=2,EL7,EM7)) -> 0 | EP7: =IF($BV7=0,0,IF($CC7=0,VLOOKUP('Time Series Data'!$AM7,'Coincident Peak'!$D$5:$I$16,3),BatteryPower)) -> 0 | EQ7: =$CD7*$CC7*Effective_Battery_Capacity -> 0 | ER7: =$CD7*$CC7*Effective_Battery_Capacity*$AN7 -> 0 | ES7: =IF($CE7=1,0,IF($CE7=2,EQ7,ER7)) -> 0 | EU7: =IF($BV7=0,0,IF($CC7=0,VLOOKUP('Time Series Data'!$AM7,'Coincident Peak'!$D$5:$I$16,3),BatteryPower)) -> 0 | EV7: =IF(EU7>0,0,IF($CF7=1,0,IF($CF7=2,Anc_Svc_DailyHrs*(1-$AN7),IF($CF7=3,Anc_Svc_DailyHrs*$AN7,0))))*$CC7 -> 0 | EX7: =BatteryPower*$BV7 -> 0 | EY7: =IF(EX7=0,$AV7,0) -> 798.62 | EZ7: =$CD7*$CC7*Effective_Battery_Capacity -> 0 | FA7: =$CD7*$CC7*$AN7*Effective_Battery_Capacity -> 0 | FB7: =IF($CE7=1,0,IF($CE7=2,EZ7,FA7)) -> 0 | FD7: =BatteryPower*$BV7 -> 0 | FE7: =EY7 -> 798.62 | FF7: =IF((FE7)>0,0,IF($CF7=1,0,IF($CF7=2,Anc_Svc_DailyHrs*(1-$AN7),IF($CF7=3,Anc_Svc_DailyHrs*$AN7,0))))*$CD7 -> 0 | FH7: =BatteryPower*$BV7 -> 0 | FI7: =$CD7*Effective_Battery_Capacity -> 1,596.26 | FJ7: =$CD7*Effective_Battery_Capacity*$AN7 -> 1,596.26 | FK7: =IF($CE7=1,0,IF($CE7=2,FI7,FJ7)) -> 1,596.26 | FL7: =IF(FK7>0,0,IF($CF7=1,0,IF($CF7=2,Anc_Svc_DailyHrs*(1-$AN7),IF($CF7=3,Anc_Svc_DailyHrs*$AN7,0))))*$CD7 -> 0 | FN7: =BatteryPower*$BV7 -> 0 | FO7: =IF($CF7=1,0,IF($CF7=2,Anc_Svc_DailyHrs*(1-$AN7),IF($CF7=3,Anc_Svc_DailyHrs*$AN7,0)))*$CD7 -> 0 | FP7: =IF(FO7>0,0,$CD7*Effective_Battery_Capacity)*$CD7 -> 1,596.26 | FQ7: =IF(FO7>0,0,$CD7*Effective_Battery_Capacity)*$CD7*$AN7 -> 1,596.26 | FR7: =IF($CE7=1,0,IF($CE7=2,FP7,FQ7)) -> 1,596.26 | FT7: =BatteryPower*$BV7 -> 0
B8: 2019-01-01T01:00:00 | C8: 2019-01-01 | D8: =K8 -> 8,191 | E8: 1 | F8: 1 | G8: 1 | H8: 2 | I8: =INDEX(Values!$V$6:$AG$29,'Time Series Data'!G8+1,'Time Series Data'!E8) -> 1 | J8: 1.5 | K8: 8191 | L8: 516.255 | M8: 0 | N8: 0 | O8: 0 | P8: 95 | T8: 516.26 | U8: =O8+M8 -> 0.00 | V8: 8,191 | W8: =IF(V8+O8>VLOOKUP(E8,'Coincident Peak'!$C$22:$I$33,7),0,1) -> 1 | X8: =IF((AND(E8=MONTH(VLOOKUP('Time Series Data'!E8,'Coincident Peak'!$C$5:$D$16,2)),F8=DAY(VLOOKUP('Time Series Data'!E8,'Coincident Peak'!$C$5:$D$16,2)),IF(AND(G8<=HOUR(VLOOKUP('Time Series Data'!E8,'Coincident Peak'!$C$5:$E$16,3))+Values!$E$5,G8>=HOUR(VLOOKUP('Time Series Data'!E8,'Coincident Peak'!$C$5:$E$16,3))-Values!$E$5),"TRUE","FALSE"))),BatteryPower,0) -> 0.00 | Y8: =IF((AND(E8=MONTH(VLOOKUP('Time Series Data'!E8,'Coincident Peak'!$C$5:$D$16,2)),F8=DAY(VLOOKUP('Time Series Data'!E8,'Coincident Peak'!$C$5:$D$16,2)))),0,N8) -> 0.00 | Z8: =IF((AND(E8=MONTH(VLOOKUP('Time Series Data'!E8,'Coincident Peak'!$C$5:$D$16,2)),F8=DAY(VLOOKUP('Time Series Data'!E8,'Coincident Peak'!$C$5:$D$16,2)),IF(AND(G8<=HOUR(VLOOKUP('Time Series Data'!E8,'Coincident Peak'!$C$5:$E$16,3))+Values!$E$5,G8>=HOUR(VLOOKUP('Time Series Data'!E8,'Coincident Peak'!$C$5:$E$16,3))-Values!$E$5),"TRUE","FALSE"))),BatteryPower,Y8) -> 0.00 | AA8: =IF((AND(E8=MONTH(VLOOKUP('Time Series Data'!E8,'Coincident Peak'!$C$5:$D$16,2)),F8=DAY(VLOOKUP('Time Series Data'!E8,'Coincident Peak'!$C$5:$D$16,2))-1)),VLOOKUP(E8,'Coincident Peak'!$C$5:$N$16,11)*Z8,Z8) -> 0.00 | AB8: =IF((AND(E8=MONTH(VLOOKUP('Time Series Data'!E8,'Coincident Peak'!$C$5:$D$16,2)),F8=DAY(VLOOKUP('Time Series Data'!E8,'Coincident Peak'!$C$5:$D$16,2))+1)),VLOOKUP(E8,'Coincident Peak'!$C$5:$N$16,12)*AA8,AA8) -> 0.00 | AC8: =IF((AND(E8=MONTH(VLOOKUP('Time Series Data'!E8,'Coincident Peak'!$C$5:$D$16,2)),F8=DAY(VLOOKUP('Time Series Data'!E8,'Coincident Peak'!$C$5:$D$16,2)))),0,O8) -> 0.00 | AD8: =IF((AND(E8=MONTH(VLOOKUP('Time Series Data'!E8,'Coincident Peak'!$C$5:$D$16,2)),F8=DAY(VLOOKUP('Time Series Data'!E8,'Coincident Peak'!$C$5:$D$16,2))-1)),VLOOKUP(E8,'Coincident Peak'!$C$5:$N$16,11)*AC8,AC8) -> 0.00 | AE8: =IF((AND(E8=MONTH(VLOOKUP('Time Series Data'!E8,'Coincident Peak'!$C$5:$D$16,2)),F8=DAY(VLOOKUP('Time Series Data'!E8,'Coincident Peak'!$C$5:$D$16,2))+1)),VLOOKUP(E8,'Coincident Peak'!$C$5:$N$16,12)*AD8,AD8) -> 0.00 | AF8: 8,191 | AG8: =IF((AND(E8=MONTH(VLOOKUP('Time Series Data'!E8,'Coincident Peak'!$C$5:$D$16,2)),F8=DAY(VLOOKUP('Time Series Data'!E8,'Coincident Peak'!$C$5:$D$16,2)))),U8,O8) -> 0.00 | AH8: =K8-Z8-AG8 -> 8,191 | AL8: 1 | AM8: 2019-01-02 | AN8: 1 | AO8: 0 | AP8: 929.55 | AQ8: 809.37 | AR8: 925.78 | AS8: 680.45 | AT8: =IF(ISNA(MATCH(AM8,'Coincident Peak'!$D$5:$D$16,0))=TRUE,0,SUMIFS($O$7:$O$8790,$F$7:$F$8790,DAY(AM8),$E$7:$E$8790,MONTH(AM8),$G$7:$G$8790,"<"&HOUR(VLOOKUP(AM8,'Coincident Peak'!$D$5:$E$16,2))-Values!$E$5)) -> 0 | AU8: 0 | AV8: 809 | AW8: 809 | AX8: 144 | AY8: =IF(ISNA(MATCH(AM8,'Coincident Peak'!$D$5:$D$16,0))=TRUE,0,SUMIFS($O$7:$O$8790,$F$7:$F$8790,DAY(AM8),$E$7:$E$8790,MONTH(AM8),$G$7:$G$8790,"<"&HOUR(VLOOKUP(AM8,'Coincident Peak'!$D$5:$E$16,2))-Values!$E$5,$I$7:$I$8790,1)) -> 0 | AZ8: 144 | BA8: 144 | BB8: 0 | BD8: 144 | BE8: 782 | BF8: 0 | BG8: =IF(IF(ISNA(MATCH(AM8,'Coincident Peak'!$D$5:$D$16,0))=TRUE,0,SUMIFS($O$7:$O$8790,$F$7:$F$8790,DAY(AM8),$E$7:$E$8790,MONTH(AM8),$G$7:$G$8790,"<"&HOUR(VLOOKUP(AM8,'Coincident Peak'!$D$5:$E$16,2))-Values!$E$5,$I$7:$I$8790,0))>(Effective_Battery_Capacity/Rndtrp_eff),(Effective_Battery_Capacity/Rndtrp_eff),IF(ISNA(MATCH(AM8,'Coincident Peak'!$D$5:$D$16,0))=TRUE,0,SUMIFS($O$7:$O$8790,$F$7:$F$8790,DAY(AM8),$E$7:$E$8790,MONTH(AM8),$G$7:$G$8790,"<"&HOUR(VLOOKUP(AM8,'Coincident Peak'!$D$5:$E$16,2))-Values!$E$5,$I$7:$I$8790,0))) -> 0 | BH8: =IF((IF(ISNA(MATCH(AM8,'Coincident Peak'!$D$5:$D$16,0))=TRUE,0,SUMIFS($O$7:$O$8790,$F$7:$F$8790,DAY(AM8),$E$7:$E$8790,MONTH(AM8),$G$7:$G$8790,"<"&HOUR(VLOOKUP(AM8,'Coincident Peak'!$D$5:$E$16,2))-Values!$E$5)))>(Effective_Battery_Capacity/Rndtrp_eff),(Effective_Battery_Capacity/Rndtrp_eff),(IF(ISNA(MATCH(AM8,'Coincident Peak'!$D$5:$D$16,0))=TRUE,0,SUMIFS($O$7:$O$8790,$F$7:$F$8790,DAY(AM8),$E$7:$E$8790,MONTH(AM8),$G$7:$G$8790,"<"&HOUR(VLOOKUP(AM8,'Coincident Peak'!$D$5:$E$16,2))-Values!$E$5)))) -> 0 | BI8: 0 | BJ8: 0 | BK8: =IF(WholesaleEnergyCost_2>PPACostPerKWh,(IF((SUMIFS('Time Series Data'!$AG$7:$AG$8790,'Time Series Data'!$I$7:$I$8790,1,$F$7:$F$8790,DAY(AM8),$E$7:$E$8790,MONTH(AM8))-BP8)>(Effective_Battery_Capacity/Rndtrp_eff),(Effective_Battery_Capacity/Rndtrp_eff),(SUMIFS('Time Series Data'!$AG$7:$AG$8790,'Time Series Data'!$I$7:$I$8790,1,$F$7:$F$8790,DAY(AM8),$E$7:$E$8790,MONTH(AM8))))-BP8),0) -> 0 | BL8: 0 | BM8: =SUMIFS('Time Series Data'!$AG$7:$AG$8790,$F$7:$F$8790,DAY(AM8),$E$7:$E$8790,MONTH(AM8),'Time Series Data'!$I$7:$I$8790,1)-BL8-BP8 -> 782 | BN8: =SUMIFS('Time Series Data'!$AG$7:$AG$8790,'Time Series Data'!$I$7:$I$8790,0,$F$7:$F$8790,DAY(AM8),$E$7:$E$8790,MONTH(AM8))-BQ8 -> 144 | BO8: =IF((IF(ISNA(MATCH(AM8,'Coincident Peak'!$D$5:$D$16,0))=TRUE,0,SUMIFS($U$7:$U$8790,$F$7:$F$8790,DAY(AM8),$E$7:$E$8790,MONTH(AM8),$G$7:$G$8790,"<"&HOUR(VLOOKUP(AM8,'Coincident Peak'!$D$5:$E$16,2))-Values!$E$5)))>(Effective_Battery_Capacity/Rndtrp_eff),(Effective_Battery_Capacity/Rndtrp_eff),(IF(ISNA(MATCH(AM8,'Coincident Peak'!$D$5:$D$16,0))=TRUE,0,SUMIFS($U$7:$U$8790,$F$7:$F$8790,DAY(AM8),$E$7:$E$8790,MONTH(AM8),$G$7:$G$8790,"<"&HOUR(VLOOKUP(AM8,'Coincident Peak'!$D$5:$E$16,2))-Values!$E$5)))) -> 0 | BP8: =IF(WholesaleEnergyCost_2>PPACostPerKWh,(IF((IF(ISNA(MATCH(AM8,'Coincident Peak'!$D$5:$D$16,0))=TRUE,0,SUMIFS($U$7:$U$8790,$F$7:$F$8790,DAY(AM8),$E$7:$E$8790,MONTH(AM8),$G$7:$G$8790,"<"&HOUR(VLOOKUP(AM8,'Coincident Peak'!$D$5:$E$16,2))-Values!$E$5,$I$7:$I$8790,1)))>(Effective_Battery_Capacity/Rndtrp_eff),(Effective_Battery_Capacity/Rndtrp_eff),(IF(ISNA(MATCH(AM8,'Coincident Peak'!$D$5:$D$16,0))=TRUE,0,SUMIFS($U$7:$U$8790,$F$7:$F$8790,DAY(AM8),$E$7:$E$8790,MONTH(AM8),$G$7:$G$8790,"<"&HOUR(VLOOKUP(AM8,'Coincident Peak'!$D$5:$E$16,2))-Values!$E$5,$I$7:$I$8790,1))))),0) -> 0 | BQ8: =IF(WholesaleEnergyCost_1>PPACostPerKWh,(IF((IF(ISNA(MATCH(AM8,'Coincident Peak'!$D$5:$D$16,0))=TRUE,0,SUMIFS($U$7:$U$8790,$F$7:$F$8790,DAY(AM8),$E$7:$E$8790,MONTH(AM8),$G$7:$G$8790,"<"&HOUR(VLOOKUP(AM8,'Coincident Peak'!$D$5:$E$16,2))-Values!$E$5,$I$7:$I$8790,0)))>(Effective_Battery_Capacity/Rndtrp_eff),(Effective_Battery_Capacity/Rndtrp_eff),(IF(ISNA(MATCH(AM8,'Coincident Peak'!$D$5:$D$16,0))=TRUE,0,SUMIFS($U$7:$U$8790,$F$7:$F$8790,DAY(AM8),$E$7:$E$8790,MONTH(AM8),$G$7:$G$8790,"<"&HOUR(VLOOKUP(AM8,'Coincident Peak'!$D$5:$E$16,2))-Values!$E$5,$I$7:$I$8790,0))))),0) -> 0 | BR8: 0 | BS8: 782 | BT8: 809 | BV8: =IF(ISNA(MATCH(AM8,'Coincident Peak'!$D$5:$D$16,0))=TRUE,0,1) -> 0 | BW8: 0 | BX8: 1 | BY8: 1 | BZ8: 1 | CA8: 1 | CB8: 0 | CC8: =IF(BZ8=1,0,1) -> 0 | CD8: =IF(ISNA(MATCH(AM8,'Coincident Peak'!$D$5:$D$16,0))=TRUE,1,0) -> 1 | CE8: =VLOOKUP(MONTH($AM8),'Value Stacking Basis'!$B$38:$D$49,3) -> 3 | CF8: =VLOOKUP(MONTH($AM8),'Value Stacking Basis'!$B$38:$F$49,5) -> 2 | CG8: 1 | CK8: 0 | CL8: 0 | CM8: 0 | CN8: 0 | CO8: 0 | CQ8: 0 | CR8: 0 | CS8: 0 | CT8: 0 | CU8: 0 | CW8: =IF($BV8=0,0,IF($CB8=0,INDEX('Time Series Data'!N$7:N$8790,MATCH(1,(MONTH($AM8)='Time Series Data'!$E$7:$E$8790)*(DAY($AM8)='Time Series Data'!$F$7:$F$8790)*(HOUR(VLOOKUP('Time Series Data'!$AM8,'Coincident Peak'!$D$5:$I$16,2))='Time Series Data'!$G$7:$G$8790),0)),IF(($AT8*Rndtrp_eff)>Effective_Battery_Capacity,BatteryPower,(($AT8*Rndtrp_eff)/Effective_Battery_Capacity)*BatteryPower))) -> 0 | CX8: 0 | CY8: 0 | CZ8: 0 | DA8: 0 | DC8: =IF($BV8=0,0,IF($CB8=0,INDEX('Time Series Data'!N$7:N$8790,MATCH(1,(MONTH($AM8)='Time Series Data'!$E$7:$E$8790)*(DAY($AM8)='Time Series Data'!$F$7:$F$8790)*(HOUR(VLOOKUP('Time Series Data'!$AM8,'Coincident Peak'!$D$5:$I$16,2))='Time Series Data'!$G$7:$G$8790),0)),IF(($AT8*Rndtrp_eff)>Effective_Battery_Capacity,BatteryPower,(($AT8*Rndtrp_eff)/Effective_Battery_Capacity)*BatteryPower))) -> 0 | DD8: 0 | DF8: 0 | DG8: =$AW8 -> 809 | DH8: 0 | DI8: =IF(DH8>Effective_Battery_Capacity,Effective_Battery_Capacity,DH8) -> 0 | DJ8: 0 | DK8: 0 | DM8: 0 | DN8: =$AW8 -> 809 | DO8: 0 | DP8: 0 | DR8: 0 | DS8: 680.45 | DT8: 680.45 | DU8: =IF($CE8=1,0,IF($CE8=2,DS8,DT8)) -> 680.45 | DV8: 0 | DX8: 0 | DY8: 0 | DZ8: 680.45 | EA8: 680.45 | EB8: =IF($CE8=1,0,IF($CE8=2,DZ8,EA8)) -> 680.45 | EF8: 0 | EG8: 0 | EH8: 0 | EI8: 0 | EK8: 0 | EL8: 0 | EM8: 0 | EN8: 0 | EP8: =IF($BV8=0,0,IF($CC8=0,VLOOKUP('Time Series Data'!$AM8,'Coincident Peak'!$D$5:$I$16,3),BatteryPower)) -> 0 | EQ8: 0 | ER8: 0 | ES8: 0 | EU8: =IF($BV8=0,0,IF($CC8=0,VLOOKUP('Time Series Data'!$AM8,'Coincident Peak'!$D$5:$I$16,3),BatteryPower)) -> 0 | EV8: 0 | EX8: 0 | EY8: =IF(EX8=0,$AV8,0) -> 809.37 | EZ8: 0 | FA8: 0 | FB8: =IF($CE8=1,0,IF($CE8=2,EZ8,FA8)) -> 0 | FD8: 0 | FE8: =EY8 -> 809.37 | FF8: 0 | FH8: 0 | FI8: 1,596.26 | FJ8: 1,596.26 | FK8: =IF($CE8=1,0,IF($CE8=2,FI8,FJ8)) -> 1,596.26 | FL8: 0 | FN8: 0 | FO8: 0 | FP8: 1,596.26 | FQ8: 1,596.26 | FR8: =IF($CE8=1,0,IF($CE8=2,FP8,FQ8)) -> 1,596.26 | FT8: 0
B9: 2019-01-01T02:00:00 | C9: 2019-01-01 | D9: 7,704 | E9: 1 | F9: 1 | G9: 2 | H9: 2 | I9: =INDEX(Values!$V$6:$AG$29,'Time Series Data'!G9+1,'Time Series Data'!E9) -> 1 | J9: 2.5 | K9: 7704 | L9: 0 | M9: 0 | N9: 0 | O9: 0 | P9: 95 | T9: 0.00 | U9: 0.00 | V9: 7,704 | W9: =IF(V9+O9>VLOOKUP(E9,'Coincident Peak'!$C$22:$I$33,7),0,1) -> 1 | X9: =IF((AND(E9=MONTH(VLOOKUP('Time Series Data'!E9,'Coincident Peak'!$C$5:$D$16,2)),F9=DAY(VLOOKUP('Time Series Data'!E9,'Coincident Peak'!$C$5:$D$16,2)),IF(AND(G9<=HOUR(VLOOKUP('Time Series Data'!E9,'Coincident Peak'!$C$5:$E$16,3))+Values!$E$5,G9>=HOUR(VLOOKUP('Time Series Data'!E9,'Coincident Peak'!$C$5:$E$16,3))-Values!$E$5),"TRUE","FALSE"))),BatteryPower,0) -> 0.00 | Y9: =IF((AND(E9=MONTH(VLOOKUP('Time Series Data'!E9,'Coincident Peak'!$C$5:$D$16,2)),F9=DAY(VLOOKUP('Time Series Data'!E9,'Coincident Peak'!$C$5:$D$16,2)))),0,N9) -> 0.00 | Z9: =IF((AND(E9=MONTH(VLOOKUP('Time Series Data'!E9,'Coincident Peak'!$C$5:$D$16,2)),F9=DAY(VLOOKUP('Time Series Data'!E9,'Coincident Peak'!$C$5:$D$16,2)),IF(AND(G9<=HOUR(VLOOKUP('Time Series Data'!E9,'Coincident Peak'!$C$5:$E$16,3))+Values!$E$5,G9>=HOUR(VLOOKUP('Time Series Data'!E9,'Coincident Peak'!$C$5:$E$16,3))-Values!$E$5),"TRUE","FALSE"))),BatteryPower,Y9) -> 0.00 | AA9: =IF((AND(E9=MONTH(VLOOKUP('Time Series Data'!E9,'Coincident Peak'!$C$5:$D$16,2)),F9=DAY(VLOOKUP('Time Series Data'!E9,'Coincident Peak'!$C$5:$D$16,2))-1)),VLOOKUP(E9,'Coincident Peak'!$C$5:$N$16,11)*Z9,Z9) -> 0.00 | AB9: =IF((AND(E9=MONTH(VLOOKUP('Time Series Data'!E9,'Coincident Peak'!$C$5:$D$16,2)),F9=DAY(VLOOKUP('Time Series Data'!E9,'Coincident Peak'!$C$5:$D$16,2))+1)),VLOOKUP(E9,'Coincident Peak'!$C$5:$N$16,12)*AA9,AA9) -> 0.00 | AC9: =IF((AND(E9=MONTH(VLOOKUP('Time Series Data'!E9,'Coincident Peak'!$C$5:$D$16,2)),F9=DAY(VLOOKUP('Time Series Data'!E9,'Coincident Peak'!$C$5:$D$16,2)))),0,O9) -> 0.00 | AD9: =IF((AND(E9=MONTH(VLOOKUP('Time Series Data'!E9,'Coincident Peak'!$C$5:$D$16,2)),F9=DAY(VLOOKUP('Time Series Data'!E9,'Coincident Peak'!$C$5:$D$16,2))-1)),VLOOKUP(E9,'Coincident Peak'!$C$5:$N$16,11)*AC9,AC9) -> 0.00 | AE9: =IF((AND(E9=MONTH(VLOOKUP('Time Series Data'!E9,'Coincident Peak'!$C$5:$D$16,2)),F9=DAY(VLOOKUP('Time Series Data'!E9,'Coincident Peak'!$C$5:$D$16,2))+1)),VLOOKUP(E9,'Coincident Peak'!$C$5:$N$16,12)*AD9,AD9) -> 0.00 | AF9: 7,704 | AG9: =IF((AND(E9=MONTH(VLOOKUP('Time Series Data'!E9,'Coincident Peak'!$C$5:$D$16,2)),F9=DAY(VLOOKUP('Time Series Data'!E9,'Coincident Peak'!$C$5:$D$16,2)))),U9,O9) -> 0.00 | AH9: 7,704 | AL9: 2 | AM9: 2019-01-03 | AN9: 1 | AO9: 0 | AP9: 634.37 | AQ9: 553.37 | AR9: 201.89 | AS9: 138.75 | AT9: =IF(ISNA(MATCH(AM9,'Coincident Peak'!$D$5:$D$16,0))=TRUE,0,SUMIFS($O$7:$O$8790,$F$7:$F$8790,DAY(AM9),$E$7:$E$8790,MONTH(AM9),$G$7:$G$8790,"<"&HOUR(VLOOKUP(AM9,'Coincident Peak'!$D$5:$E$16,2))-Values!$E$5)) -> 0 | AU9: 0 | AV9: 553 | AW9: 553 | AX9: 42 | AY9: =IF(ISNA(MATCH(AM9,'Coincident Peak'!$D$5:$D$16,0))=TRUE,0,SUMIFS($O$7:$O$8790,$F$7:$F$8790,DAY(AM9),$E$7:$E$8790,MONTH(AM9),$G$7:$G$8790,"<"&HOUR(VLOOKUP(AM9,'Coincident Peak'!$D$5:$E$16,2))-Values!$E$5,$I$7:$I$8790,1)) -> 0 | AZ9: 42 | BA9: 42 | BB9: 0 | BD9: 42 | BE9: 159 | BF9: 0 | BG9: =IF(IF(ISNA(MATCH(AM9,'Coincident Peak'!$D$5:$D$16,0))=TRUE,0,SUMIFS($O$7:$O$8790,$F$7:$F$8790,DAY(AM9),$E$7:$E$8790,MONTH(AM9),$G$7:$G$8790,"<"&HOUR(VLOOKUP(AM9,'Coincident Peak'!$D$5:$E$16,2))-Values!$E$5,$I$7:$I$8790,0))>(Effective_Battery_Capacity/Rndtrp_eff),(Effective_Battery_Capacity/Rndtrp_eff),IF(ISNA(MATCH(AM9,'Coincident Peak'!$D$5:$D$16,0))=TRUE,0,SUMIFS($O$7:$O$8790,$F$7:$F$8790,DAY(AM9),$E$7:$E$8790,MONTH(AM9),$G$7:$G$8790,"<"&HOUR(VLOOKUP(AM9,'Coincident Peak'!$D$5:$E$16,2))-Values!$E$5,$I$7:$I$8790,0))) -> 0 | BH9: =IF((IF(ISNA(MATCH(AM9,'Coincident Peak'!$D$5:$D$16,0))=TRUE,0,SUMIFS($O$7:$O$8790,$F$7:$F$8790,DAY(AM9),$E$7:$E$8790,MONTH(AM9),$G$7:$G$8790,"<"&HOUR(VLOOKUP(AM9,'Coincident Peak'!$D$5:$E$16,2))-Values!$E$5)))>(Effective_Battery_Capacity/Rndtrp_eff),(Effective_Battery_Capacity/Rndtrp_eff),(IF(ISNA(MATCH(AM9,'Coincident Peak'!$D$5:$D$16,0))=TRUE,0,SUMIFS($O$7:$O$8790,$F$7:$F$8790,DAY(AM9),$E$7:$E$8790,MONTH(AM9),$G$7:$G$8790,"<"&HOUR(VLOOKUP(AM9,'Coincident Peak'!$D$5:$E$16,2))-Values!$E$5)))) -> 0 | BI9: 0 | BJ9: 0 | BK9: =IF(WholesaleEnergyCost_2>PPACostPerKWh,(IF((SUMIFS('Time Series Data'!$AG$7:$AG$8790,'Time Series Data'!$I$7:$I$8790,1,$F$7:$F$8790,DAY(AM9),$E$7:$E$8790,MONTH(AM9))-BP9)>(Effective_Battery_Capacity/Rndtrp_eff),(Effective_Battery_Capacity/Rndtrp_eff),(SUMIFS('Time Series Data'!$AG$7:$AG$8790,'Time Series Data'!$I$7:$I$8790,1,$F$7:$F$8790,DAY(AM9),$E$7:$E$8790,MONTH(AM9))))-BP9),0) -> 0 | BL9: 0 | BM9: =SUMIFS('Time Series Data'!$AG$7:$AG$8790,$F$7:$F$8790,DAY(AM9),$E$7:$E$8790,MONTH(AM9),'Time Series Data'!$I$7:$I$8790,1)-BL9-BP9 -> 159 | BN9: =SUMIFS('Time Series Data'!$AG$7:$AG$8790,'Time Series Data'!$I$7:$I$8790,0,$F$7:$F$8790,DAY(AM9),$E$7:$E$8790,MONTH(AM9))-BQ9 -> 42 | BO9: =IF((IF(ISNA(MATCH(AM9,'Coincident Peak'!$D$5:$D$16,0))=TRUE,0,SUMIFS($U$7:$U$8790,$F$7:$F$8790,DAY(AM9),$E$7:$E$8790,MONTH(AM9),$G$7:$G$8790,"<"&HOUR(VLOOKUP(AM9,'Coincident Peak'!$D$5:$E$16,2))-Values!$E$5)))>(Effective_Battery_Capacity/Rndtrp_eff),(Effective_Battery_Capacity/Rndtrp_eff),(IF(ISNA(MATCH(AM9,'Coincident Peak'!$D$5:$D$16,0))=TRUE,0,SUMIFS($U$7:$U$8790,$F$7:$F$8790,DAY(AM9),$E$7:$E$8790,MONTH(AM9),$G$7:$G$8790,"<"&HOUR(VLOOKUP(AM9,'Coincident Peak'!$D$5:$E$16,2))-Values!$E$5)))) -> 0 | BP9: =IF(WholesaleEnergyCost_2>PPACostPerKWh,(IF((IF(ISNA(MATCH(AM9,'Coincident Peak'!$D$5:$D$16,0))=TRUE,0,SUMIFS($U$7:$U$8790,$F$7:$F$8790,DAY(AM9),$E$7:$E$8790,MONTH(AM9),$G$7:$G$8790,"<"&HOUR(VLOOKUP(AM9,'Coincident Peak'!$D$5:$E$16,2))-Values!$E$5,$I$7:$I$8790,1)))>(Effective_Battery_Capacity/Rndtrp_eff),(Effective_Battery_Capacity/Rndtrp_eff),(IF(ISNA(MATCH(AM9,'Coincident Peak'!$D$5:$D$16,0))=TRUE,0,SUMIFS($U$7:$U$8790,$F$7:$F$8790,DAY(AM9),$E$7:$E$8790,MONTH(AM9),$G$7:$G$8790,"<"&HOUR(VLOOKUP(AM9,'Coincident Peak'!$D$5:$E$16,2))-Values!$E$5,$I$7:$I$8790,1))))),0) -> 0 | BQ9: =IF(WholesaleEnergyCost_1>PPACostPerKWh,(IF((IF(ISNA(MATCH(AM9,'Coincident Peak'!$D$5:$D$16,0))=TRUE,0,SUMIFS($U$7:$U$8790,$F$7:$F$8790,DAY(AM9),$E$7:$E$8790,MONTH(AM9),$G$7:$G$8790,"<"&HOUR(VLOOKUP(AM9,'Coincident Peak'!$D$5:$E$16,2))-Values!$E$5,$I$7:$I$8790,0)))>(Effective_Battery_Capacity/Rndtrp_eff),(Effective_Battery_Capacity/Rndtrp_eff),(IF(ISNA(MATCH(AM9,'Coincident Peak'!$D$5:$D$16,0))=TRUE,0,SUMIFS($U$7:$U$8790,$F$7:$F$8790,DAY(AM9),$E$7:$E$8790,MONTH(AM9),$G$7:$G$8790,"<"&HOUR(VLOOKUP(AM9,'Coincident Peak'!$D$5:$E$16,2))-Values!$E$5,$I$7:$I$8790,0))))),0) -> 0 | BR9: 0 | BS9: 159 | BT9: 553 | BV9: =IF(ISNA(MATCH(AM9,'Coincident Peak'!$D$5:$D$16,0))=TRUE,0,1) -> 0 | BW9: 0 | BX9: 1 | BY9: 1 | BZ9: 1 | CA9: 1 | CB9: 0 | CC9: 0 | CD9: =IF(ISNA(MATCH(AM9,'Coincident Peak'!$D$5:$D$16,0))=TRUE,1,0) -> 1 | CE9: =VLOOKUP(MONTH($AM9),'Value Stacking Basis'!$B$38:$D$49,3) -> 3 | CF9: =VLOOKUP(MONTH($AM9),'Value Stacking Basis'!$B$38:$F$49,5) -> 2 | CG9: 1 | CK9: 0 | CL9: 0 | CM9: 0 | CN9: 0 | CO9: 0 | CQ9: 0 | CR9: 0 | CS9: 0 | CT9: 0 | CU9: 0 | CW9: =IF($BV9=0,0,IF($CB9=0,INDEX('Time Series Data'!N$7:N$8790,MATCH(1,(MONTH($AM9)='Time Series Data'!$E$7:$E$8790)*(DAY($AM9)='Time Series Data'!$F$7:$F$8790)*(HOUR(VLOOKUP('Time Series Data'!$AM9,'Coincident Peak'!$D$5:$I$16,2))='Time Series Data'!$G$7:$G$8790),0)),IF(($AT9*Rndtrp_eff)>Effective_Battery_Capacity,BatteryPower,(($AT9*Rndtrp_eff)/Effective_Battery_Capacity)*BatteryPower))) -> 0 | CX9: 0 | CY9: 0 | CZ9: 0 | DA9: 0 | DC9: =IF($BV9=0,0,IF($CB9=0,INDEX('Time Series Data'!N$7:N$8790,MATCH(1,(MONTH($AM9)='Time Series Data'!$E$7:$E$8790)*(DAY($AM9)='Time Series Data'!$F$7:$F$8790)*(HOUR(VLOOKUP('Time Series Data'!$AM9,'Coincident Peak'!$D$5:$I$16,2))='Time Series Data'!$G$7:$G$8790),0)),IF(($AT9*Rndtrp_eff)>Effective_Battery_Capacity,BatteryPower,(($AT9*Rndtrp_eff)/Effective_Battery_Capacity)*BatteryPower))) -> 0 | DD9: 0 | DF9: 0 | DG9: 553 | DH9: 0 | DI9: 0 | DJ9: 0 | DK9: 0 | DM9: 0 | DN9: 553 | DO9: 0 | DP9: 0 | DR9: 0 | DS9: 138.75 | DT9: 138.75 | DU9: 138.75 | DV9: 0 | DX9: 0 | DY9: 0 | DZ9: 138.75 | EA9: 138.75 | EB9: 138.75 | EF9: 0 | EG9: 0 | EH9: 0 | EI9: 0 | EK9: 0 | EL9: 0 | EM9: 0 | EN9: 0 | EP9: =IF($BV9=0,0,IF($CC9=0,VLOOKUP('Time Series Data'!$AM9,'Coincident Peak'!$D$5:$I$16,3),BatteryPower)) -> 0 | EQ9: 0 | ER9: 0 | ES9: 0 | EU9: =IF($BV9=0,0,IF($CC9=0,VLOOKUP('Time Series Data'!$AM9,'Coincident Peak'!$D$5:$I$16,3),BatteryPower)) -> 0 | EV9: 0 | EX9: 0 | EY9: 553.37 | EZ9: 0 | FA9: 0 | FB9: 0 | FD9: 0 | FE9: 553.37 | FF9: 0 | FH9: 0 | FI9: 1,596.26 | FJ9: 1,596.26 | FK9: 1,596.26 | FL9: 0 | FN9: 0 | FO9: 0 | FP9: 1,596.26 | FQ9: 1,596.26 | FR9: 1,596.26 | FT9: 0
B10: 2019-01-01T03:00:00 | C10: 2019-01-01 | D10: 7,362 | E10: 1 | F10: 1 | G10: 3 | H10: 2 | I10: =INDEX(Values!$V$6:$AG$29,'Time Series Data'!G10+1,'Time Series Data'!E10) -> 1 | J10: 3.5 | K10: 7362 | L10: 0 | M10: 0 | N10: 0 | O10: 0 | P10: 95 | T10: 0.00 | U10: 0.00 | V10: 7,362 | W10: =IF(V10+O10>VLOOKUP(E10,'Coincident Peak'!$C$22:$I$33,7),0,1) -> 1 | X10: =IF((AND(E10=MONTH(VLOOKUP('Time Series Data'!E10,'Coincident Peak'!$C$5:$D$16,2)),F10=DAY(VLOOKUP('Time Series Data'!E10,'Coincident Peak'!$C$5:$D$16,2)),IF(AND(G10<=HOUR(VLOOKUP('Time Series Data'!E10,'Coincident Peak'!$C$5:$E$16,3))+Values!$E$5,G10>=HOUR(VLOOKUP('Time Series Data'!E10,'Coincident Peak'!$C$5:$E$16,3))-Values!$E$5),"TRUE","FALSE"))),BatteryPower,0) -> 0.00 | Y10: =IF((AND(E10=MONTH(VLOOKUP('Time Series Data'!E10,'Coincident Peak'!$C$5:$D$16,2)),F10=DAY(VLOOKUP('Time Series Data'!E10,'Coincident Peak'!$C$5:$D$16,2)))),0,N10) -> 0.00 | Z10: =IF((AND(E10=MONTH(VLOOKUP('Time Series Data'!E10,'Coincident Peak'!$C$5:$D$16,2)),F10=DAY(VLOOKUP('Time Series Data'!E10,'Coincident Peak'!$C$5:$D$16,2)),IF(AND(G10<=HOUR(VLOOKUP('Time Series Data'!E10,'Coincident Peak'!$C$5:$E$16,3))+Values!$E$5,G10>=HOUR(VLOOKUP('Time Series Data'!E10,'Coincident Peak'!$C$5:$E$16,3))-Values!$E$5),"TRUE","FALSE"))),BatteryPower,Y10) -> 0.00 | AA10: =IF((AND(E10=MONTH(VLOOKUP('Time Series Data'!E10,'Coincident Peak'!$C$5:$D$16,2)),F10=DAY(VLOOKUP('Time Series Data'!E10,'Coincident Peak'!$C$5:$D$16,2))-1)),VLOOKUP(E10,'Coincident Peak'!$C$5:$N$16,11)*Z10,Z10) -> 0.00 | AB10: =IF((AND(E10=MONTH(VLOOKUP('Time Series Data'!E10,'Coincident Peak'!$C$5:$D$16,2)),F10=DAY(VLOOKUP('Time Series Data'!E10,'Coincident Peak'!$C$5:$D$16,2))+1)),VLOOKUP(E10,'Coincident Peak'!$C$5:$N$16,12)*AA10,AA10) -> 0.00 | AC10: =IF((AND(E10=MONTH(VLOOKUP('Time Series Data'!E10,'Coincident Peak'!$C$5:$D$16,2)),F10=DAY(VLOOKUP('Time Series Data'!E10,'Coincident Peak'!$C$5:$D$16,2)))),0,O10) -> 0.00 | AD10: =IF((AND(E10=MONTH(VLOOKUP('Time Series Data'!E10,'Coincident Peak'!$C$5:$D$16,2)),F10=DAY(VLOOKUP('Time Series Data'!E10,'Coincident Peak'!$C$5:$D$16,2))-1)),VLOOKUP(E10,'Coincident Peak'!$C$5:$N$16,11)*AC10,AC10) -> 0.00 | AE10: =IF((AND(E10=MONTH(VLOOKUP('Time Series Data'!E10,'Coincident Peak'!$C$5:$D$16,2)),F10=DAY(VLOOKUP('Time Series Data'!E10,'Coincident Peak'!$C$5:$D$16,2))+1)),VLOOKUP(E10,'Coincident Peak'!$C$5:$N$16,12)*AD10,AD10) -> 0.00 | AF10: 7,362 | AG10: =IF((AND(E10=MONTH(VLOOKUP('Time Series Data'!E10,'Coincident Peak'!$C$5:$D$16,2)),F10=DAY(VLOOKUP('Time Series Data'!E10,'Coincident Peak'!$C$5:$D$16,2)))),U10,O10) -> 0.00 | AH10: 7,362 | AL10: 3 | AM10: 2019-01-04 | AN10: 1 | AO10: 0 | AP10: 785.13 | AQ10: 686.72 | AR10: 117.53 | AS10: 85.92 | AT10: =IF(ISNA(MATCH(AM10,'Coincident Peak'!$D$5:$D$16,0))=TRUE,0,SUMIFS($O$7:$O$8790,$F$7:$F$8790,DAY(AM10),$E$7:$E$8790,MONTH(AM10),$G$7:$G$8790,"<"&HOUR(VLOOKUP(AM10,'Coincident Peak'!$D$5:$E$16,2))-Values!$E$5)) -> 0 | AU10: 0 | AV10: 687 | AW10: 687 | AX10: 252 | AY10: =IF(ISNA(MATCH(AM10,'Coincident Peak'!$D$5:$D$16,0))=TRUE,0,SUMIFS($O$7:$O$8790,$F$7:$F$8790,DAY(AM10),$E$7:$E$8790,MONTH(AM10),$G$7:$G$8790,"<"&HOUR(VLOOKUP(AM10,'Coincident Peak'!$D$5:$E$16,2))-Values!$E$5,$I$7:$I$8790,1)) -> 0 | AZ10: 252 | BA10: 19 | BB10: 0 | BD10: 80 | BE10: 99 | BF10: 0 | BG10: =IF(IF(ISNA(MATCH(AM10,'Coincident Peak'!$D$5:$D$16,0))=TRUE,0,SUMIFS($O$7:$O$8790,$F$7:$F$8790,DAY(AM10),$E$7:$E$8790,MONTH(AM10),$G$7:$G$8790,"<"&HOUR(VLOOKUP(AM10,'Coincident Peak'!$D$5:$E$16,2))-Values!$E$5,$I$7:$I$8790,0))>(Effective_Battery_Capacity/Rndtrp_eff),(Effective_Battery_Capacity/Rndtrp_eff),IF(ISNA(MATCH(AM10,'Coincident Peak'!$D$5:$D$16,0))=TRUE,0,SUMIFS($O$7:$O$8790,$F$7:$F$8790,DAY(AM10),$E$7:$E$8790,MONTH(AM10),$G$7:$G$8790,"<"&HOUR(VLOOKUP(AM10,'Coincident Peak'!$D$5:$E$16,2))-Values!$E$5,$I$7:$I$8790,0))) -> 0 | BH10: =IF((IF(ISNA(MATCH(AM10,'Coincident Peak'!$D$5:$D$16,0))=TRUE,0,SUMIFS($O$7:$O$8790,$F$7:$F$8790,DAY(AM10),$E$7:$E$8790,MONTH(AM10),$G$7:$G$8790,"<"&HOUR(VLOOKUP(AM10,'Coincident Peak'!$D$5:$E$16,2))-Values!$E$5)))>(Effective_Battery_Capacity/Rndtrp_eff),(Effective_Battery_Capacity/Rndtrp_eff),(IF(ISNA(MATCH(AM10,'Coincident Peak'!$D$5:$D$16,0))=TRUE,0,SUMIFS($O$7:$O$8790,$F$7:$F$8790,DAY(AM10),$E$7:$E$8790,MONTH(AM10),$G$7:$G$8790,"<"&HOUR(VLOOKUP(AM10,'Coincident Peak'!$D$5:$E$16,2))-Values!$E$5)))) -> 0 | BI10: 0 | BJ10: 0 | BK10: =IF(WholesaleEnergyCost_2>PPACostPerKWh,(IF((SUMIFS('Time Series Data'!$AG$7:$AG$8790,'Time Series Data'!$I$7:$I$8790,1,$F$7:$F$8790,DAY(AM10),$E$7:$E$8790,MONTH(AM10))-BP10)>(Effective_Battery_Capacity/Rndtrp_eff),(Effective_Battery_Capacity/Rndtrp_eff),(SUMIFS('Time Series Data'!$AG$7:$AG$8790,'Time Series Data'!$I$7:$I$8790,1,$F$7:$F$8790,DAY(AM10),$E$7:$E$8790,MONTH(AM10))))-BP10),0) -> 0 | BL10: 0 | BM10: =SUMIFS('Time Series Data'!$AG$7:$AG$8790,$F$7:$F$8790,DAY(AM10),$E$7:$E$8790,MONTH(AM10),'Time Series Data'!$I$7:$I$8790,1)-BL10-BP10 -> 99 | BN10: =SUMIFS('Time Series Data'!$AG$7:$AG$8790,'Time Series Data'!$I$7:$I$8790,0,$F$7:$F$8790,DAY(AM10),$E$7:$E$8790,MONTH(AM10))-BQ10 -> 19 | BO10: =IF((IF(ISNA(MATCH(AM10,'Coincident Peak'!$D$5:$D$16,0))=TRUE,0,SUMIFS($U$7:$U$8790,$F$7:$F$8790,DAY(AM10),$E$7:$E$8790,MONTH(AM10),$G$7:$G$8790,"<"&HOUR(VLOOKUP(AM10,'Coincident Peak'!$D$5:$E$16,2))-Values!$E$5)))>(Effective_Battery_Capacity/Rndtrp_eff),(Effective_Battery_Capacity/Rndtrp_eff),(IF(ISNA(MATCH(AM10,'Coincident Peak'!$D$5:$D$16,0))=TRUE,0,SUMIFS($U$7:$U$8790,$F$7:$F$8790,DAY(AM10),$E$7:$E$8790,MONTH(AM10),$G$7:$G$8790,"<"&HOUR(VLOOKUP(AM10,'Coincident Peak'!$D$5:$E$16,2))-Values!$E$5)))) -> 0 | BP10: =IF(WholesaleEnergyCost_2>PPACostPerKWh,(IF((IF(ISNA(MATCH(AM10,'Coincident Peak'!$D$5:$D$16,0))=TRUE,0,SUMIFS($U$7:$U$8790,$F$7:$F$8790,DAY(AM10),$E$7:$E$8790,MONTH(AM10),$G$7:$G$8790,"<"&HOUR(VLOOKUP(AM10,'Coincident Peak'!$D$5:$E$16,2))-Values!$E$5,$I$7:$I$8790,1)))>(Effective_Battery_Capacity/Rndtrp_eff),(Effective_Battery_Capacity/Rndtrp_eff),(IF(ISNA(MATCH(AM10,'Coincident Peak'!$D$5:$D$16,0))=TRUE,0,SUMIFS($U$7:$U$8790,$F$7:$F$8790,DAY(AM10),$E$7:$E$8790,MONTH(AM10),$G$7:$G$8790,"<"&HOUR(VLOOKUP(AM10,'Coincident Peak'!$D$5:$E$16,2))-Values!$E$5,$I$7:$I$8790,1))))),0) -> 0 | BQ10: =IF(WholesaleEnergyCost_1>PPACostPerKWh,(IF((IF(ISNA(MATCH(AM10,'Coincident Peak'!$D$5:$D$16,0))=TRUE,0,SUMIFS($U$7:$U$8790,$F$7:$F$8790,DAY(AM10),$E$7:$E$8790,MONTH(AM10),$G$7:$G$8790,"<"&HOUR(VLOOKUP(AM10,'Coincident Peak'!$D$5:$E$16,2))-Values!$E$5,$I$7:$I$8790,0)))>(Effective_Battery_Capacity/Rndtrp_eff),(Effective_Battery_Capacity/Rndtrp_eff),(IF(ISNA(MATCH(AM10,'Coincident Peak'!$D$5:$D$16,0))=TRUE,0,SUMIFS($U$7:$U$8790,$F$7:$F$8790,DAY(AM10),$E$7:$E$8790,MONTH(AM10),$G$7:$G$8790,"<"&HOUR(VLOOKUP(AM10,'Coincident Peak'!$D$5:$E$16,2))-Values!$E$5,$I$7:$I$8790,0))))),0) -> 0 | BR10: 0 | BS10: 99 | BT10: 687 | BV10: =IF(ISNA(MATCH(AM10,'Coincident Peak'!$D$5:$D$16,0))=TRUE,0,1) -> 0 | BW10: 0 | BX10: 1 | BY10: 1 | BZ10: 1 | CA10: 1 | CB10: 0 | CC10: 0 | CD10: =IF(ISNA(MATCH(AM10,'Coincident Peak'!$D$5:$D$16,0))=TRUE,1,0) -> 1 | CE10: =VLOOKUP(MONTH($AM10),'Value Stacking Basis'!$B$38:$D$49,3) -> 3 | CF10: =VLOOKUP(MONTH($AM10),'Value Stacking Basis'!$B$38:$F$49,5) -> 2 | CG10: 1 | CK10: 0 | CL10: 0 | CM10: 0 | CN10: 0 | CO10: 0 | CQ10: 0 | CR10: 0 | CS10: 0 | CT10: 0 | CU10: 0 | CW10: =IF($BV10=0,0,IF($CB10=0,INDEX('Time Series Data'!N$7:N$8790,MATCH(1,(MONTH($AM10)='Time Series Data'!$E$7:$E$8790)*(DAY($AM10)='Time Series Data'!$F$7:$F$8790)*(HOUR(VLOOKUP('Time Series Data'!$AM10,'Coincident Peak'!$D$5:$I$16,2))='Time Series Data'!$G$7:$G$8790),0)),IF(($AT10*Rndtrp_eff)>Effective_Battery_Capacity,BatteryPower,(($AT10*Rndtrp_eff)/Effective_Battery_Capacity)*BatteryPower))) -> 0 | CX10: 0 | CY10: 0 | CZ10: 0 | DA10: 0 | DC10: =IF($BV10=0,0,IF($CB10=0,INDEX('Time Series Data'!N$7:N$8790,MATCH(1,(MONTH($AM10)='Time Series Data'!$E$7:$E$8790)*(DAY($AM10)='Time Series Data'!$F$7:$F$8790)*(HOUR(VLOOKUP('Time Series Data'!$AM10,'Coincident Peak'!$D$5:$I$16,2))='Time Series Data'!$G$7:$G$8790),0)),IF(($AT10*Rndtrp_eff)>Effective_Battery_Capacity,BatteryPower,(($AT10*Rndtrp_eff)/Effective_Battery_Capacity)*BatteryPower))) -> 0 | DD10: 0 | DF10: 0 | DG10: 687 | DH10: 0 | DI10: 0 | DJ10: 0 | DK10: 0 | DM10: 0 | DN10: 687 | DO10: 0 | DP10: 0 | DR10: 0 | DS10: 85.92 | DT10: 85.92 | DU10: 85.92 | DV10: 0 | DX10: 0 | DY10: 0 | DZ10: 85.92 | EA10: 85.92 | EB10: 85.92 | EF10: 0 | EG10: 0 | EH10: 0 | EI10: 0 | EK10: 0 | EL10: 0 | EM10: 0 | EN10: 0 | EP10: =IF($BV10=0,0,IF($CC10=0,VLOOKUP('Time Series Data'!$AM10,'Coincident Peak'!$D$5:$I$16,3),BatteryPower)) -> 0 | EQ10: 0 | ER10: 0 | ES10: 0 | EU10: =IF($BV10=0,0,IF($CC10=0,VLOOKUP('Time Series Data'!$AM10,'Coincident Peak'!$D$5:$I$16,3),BatteryPower)) -> 0 | EV10: 0 | EX10: 0 | EY10: 686.72 | EZ10: 0 | FA10: 0 | FB10: 0 | FD10: 0 | FE10: 686.72 | FF10: 0 | FH10: 0 | FI10: 1,596.26 | FJ10: 1,596.26 | FK10: 1,596.26 | FL10: 0 | FN10: 0 | FO10: 0 | FP10: 1,596.26 | FQ10: 1,596.26 | FR10: 1,596.26 | FT10: 0
B11: 2019-01-01T04:00:00 | C11: 2019-01-01 | D11: 7,154 | E11: 1 | F11: 1 | G11: 4 | H11: 2 | I11: =INDEX(Values!$V$6:$AG$29,'Time Series Data'!G11+1,'Time Series Data'!E11) -> 1 | J11: 4.5 | K11: 7154 | L11: 0 | M11: 0 | N11: 0 | O11: 0 | P11: 95 | T11: 0.00 | U11: 0.00 | V11: 7,154 | W11: =IF(V11+O11>VLOOKUP(E11,'Coincident Peak'!$C$22:$I$33,7),0,1) -> 1 | X11: =IF((AND(E11=MONTH(VLOOKUP('Time Series Data'!E11,'Coincident Peak'!$C$5:$D$16,2)),F11=DAY(VLOOKUP('Time Series Data'!E11,'Coincident Peak'!$C$5:$D$16,2)),IF(AND(G11<=HOUR(VLOOKUP('Time Series Data'!E11,'Coincident Peak'!$C$5:$E$16,3))+Values!$E$5,G11>=HOUR(VLOOKUP('Time Series Data'!E11,'Coincident Peak'!$C$5:$E$16,3))-Values!$E$5),"TRUE","FALSE"))),BatteryPower,0) -> 0.00 | Y11: =IF((AND(E11=MONTH(VLOOKUP('Time Series Data'!E11,'Coincident Peak'!$C$5:$D$16,2)),F11=DAY(VLOOKUP('Time Series Data'!E11,'Coincident Peak'!$C$5:$D$16,2)))),0,N11) -> 0.00 | Z11: =IF((AND(E11=MONTH(VLOOKUP('Time Series Data'!E11,'Coincident Peak'!$C$5:$D$16,2)),F11=DAY(VLOOKUP('Time Series Data'!E11,'Coincident Peak'!$C$5:$D$16,2)),IF(AND(G11<=HOUR(VLOOKUP('Time Series Data'!E11,'Coincident Peak'!$C$5:$E$16,3))+Values!$E$5,G11>=HOUR(VLOOKUP('Time Series Data'!E11,'Coincident Peak'!$C$5:$E$16,3))-Values!$E$5),"TRUE","FALSE"))),BatteryPower,Y11) -> 0.00 | AA11: =IF((AND(E11=MONTH(VLOOKUP('Time Series Data'!E11,'Coincident Peak'!$C$5:$D$16,2)),F11=DAY(VLOOKUP('Time Series Data'!E11,'Coincident Peak'!$C$5:$D$16,2))-1)),VLOOKUP(E11,'Coincident Peak'!$C$5:$N$16,11)*Z11,Z11) -> 0.00 | AB11: =IF((AND(E11=MONTH(VLOOKUP('Time Series Data'!E11,'Coincident Peak'!$C$5:$D$16,2)),F11=DAY(VLOOKUP('Time Series Data'!E11,'Coincident Peak'!$C$5:$D$16,2))+1)),VLOOKUP(E11,'Coincident Peak'!$C$5:$N$16,12)*AA11,AA11) -> 0.00 | AC11: =IF((AND(E11=MONTH(VLOOKUP('Time Series Data'!E11,'Coincident Peak'!$C$5:$D$16,2)),F11=DAY(VLOOKUP('Time Series Data'!E11,'Coincident Peak'!$C$5:$D$16,2)))),0,O11) -> 0.00 | AD11: =IF((AND(E11=MONTH(VLOOKUP('Time Series Data'!E11,'Coincident Peak'!$C$5:$D$16,2)),F11=DAY(VLOOKUP('Time Series Data'!E11,'Coincident Peak'!$C$5:$D$16,2))-1)),VLOOKUP(E11,'Coincident Peak'!$C$5:$N$16,11)*AC11,AC11) -> 0.00 | AE11: =IF((AND(E11=MONTH(VLOOKUP('Time Series Data'!E11,'Coincident Peak'!$C$5:$D$16,2)),F11=DAY(VLOOKUP('Time Series Data'!E11,'Coincident Peak'!$C$5:$D$16,2))+1)),VLOOKUP(E11,'Coincident Peak'!$C$5:$N$16,12)*AD11,AD11) -> 0.00 | AF11: 7,154 | AG11: =IF((AND(E11=MONTH(VLOOKUP('Time Series Data'!E11,'Coincident Peak'!$C$5:$D$16,2)),F11=DAY(VLOOKUP('Time Series Data'!E11,'Coincident Peak'!$C$5:$D$16,2)))),U11,O11) -> 0.00 | AH11: 7,154 | AL11: 4 | AM11: 2019-01-05 | AN11: 0 | AO11: 0 | AP11: 0 | AQ11: 0 | AR11: 2,305.27 | AS11: 1,269.11 | AT11: =IF(ISNA(MATCH(AM11,'Coincident Peak'!$D$5:$D$16,0))=TRUE,0,SUMIFS($O$7:$O$8790,$F$7:$F$8790,DAY(AM11),$E$7:$E$8790,MONTH(AM11),$G$7:$G$8790,"<"&HOUR(VLOOKUP(AM11,'Coincident Peak'!$D$5:$E$16,2))-Values!$E$5)) -> 0 | AU11: 0 | AV11: 0 | AW11: 0 | AX11: 0 | AY11: =IF(ISNA(MATCH(AM11,'Coincident Peak'!$D$5:$D$16,0))=TRUE,0,SUMIFS($O$7:$O$8790,$F$7:$F$8790,DAY(AM11),$E$7:$E$8790,MONTH(AM11),$G$7:$G$8790,"<"&HOUR(VLOOKUP(AM11,'Coincident Peak'!$D$5:$E$16,2))-Values!$E$5,$I$7:$I$8790,1)) -> 0 | AZ11: 0 | BA11: 0 | BB11: 0 | BD11: 0 | BE11: 0 | BF11: 0 | BG11: =IF(IF(ISNA(MATCH(AM11,'Coincident Peak'!$D$5:$D$16,0))=TRUE,0,SUMIFS($O$7:$O$8790,$F$7:$F$8790,DAY(AM11),$E$7:$E$8790,MONTH(AM11),$G$7:$G$8790,"<"&HOUR(VLOOKUP(AM11,'Coincident Peak'!$D$5:$E$16,2))-Values!$E$5,$I$7:$I$8790,0))>(Effective_Battery_Capacity/Rndtrp_eff),(Effective_Battery_Capacity/Rndtrp_eff),IF(ISNA(MATCH(AM11,'Coincident Peak'!$D$5:$D$16,0))=TRUE,0,SUMIFS($O$7:$O$8790,$F$7:$F$8790,DAY(AM11),$E$7:$E$8790,MONTH(AM11),$G$7:$G$8790,"<"&HOUR(VLOOKUP(AM11,'Coincident Peak'!$D$5:$E$16,2))-Values!$E$5,$I$7:$I$8790,0))) -> 0 | BH11: =IF((IF(ISNA(MATCH(AM11,'Coincident Peak'!$D$5:$D$16,0))=TRUE,0,SUMIFS($O$7:$O$8790,$F$7:$F$8790,DAY(AM11),$E$7:$E$8790,MONTH(AM11),$G$7:$G$8790,"<"&HOUR(VLOOKUP(AM11,'Coincident Peak'!$D$5:$E$16,2))-Values!$E$5)))>(Effective_Battery_Capacity/Rndtrp_eff),(Effective_Battery_Capacity/Rndtrp_eff),(IF(ISNA(MATCH(AM11,'Coincident Peak'!$D$5:$D$16,0))=TRUE,0,SUMIFS($O$7:$O$8790,$F$7:$F$8790,DAY(AM11),$E$7:$E$8790,MONTH(AM11),$G$7:$G$8790,"<"&HOUR(VLOOKUP(AM11,'Coincident Peak'!$D$5:$E$16,2))-Values!$E$5)))) -> 0 | BI11: 0 | BJ11: 0 | BK11: =IF(WholesaleEnergyCost_2>PPACostPerKWh,(IF((SUMIFS('Time Series Data'!$AG$7:$AG$8790,'Time Series Data'!$I$7:$I$8790,1,$F$7:$F$8790,DAY(AM11),$E$7:$E$8790,MONTH(AM11))-BP11)>(Effective_Battery_Capacity/Rndtrp_eff),(Effective_Battery_Capacity/Rndtrp_eff),(SUMIFS('Time Series Data'!$AG$7:$AG$8790,'Time Series Data'!$I$7:$I$8790,1,$F$7:$F$8790,DAY(AM11),$E$7:$E$8790,MONTH(AM11))))-BP11),0) -> 0 | BL11: 0 | BM11: =SUMIFS('Time Series Data'!$AG$7:$AG$8790,$F$7:$F$8790,DAY(AM11),$E$7:$E$8790,MONTH(AM11),'Time Series Data'!$I$7:$I$8790,1)-BL11-BP11 -> 1,459 | BN11: =SUMIFS('Time Series Data'!$AG$7:$AG$8790,'Time Series Data'!$I$7:$I$8790,0,$F$7:$F$8790,DAY(AM11),$E$7:$E$8790,MONTH(AM11))-BQ11 -> 847 | BO11: =IF((IF(ISNA(MATCH(AM11,'Coincident Peak'!$D$5:$D$16,0))=TRUE,0,SUMIFS($U$7:$U$8790,$F$7:$F$8790,DAY(AM11),$E$7:$E$8790,MONTH(AM11),$G$7:$G$8790,"<"&HOUR(VLOOKUP(AM11,'Coincident Peak'!$D$5:$E$16,2))-Values!$E$5)))>(Effective_Battery_Capacity/Rndtrp_eff),(Effective_Battery_Capacity/Rndtrp_eff),(IF(ISNA(MATCH(AM11,'Coincident Peak'!$D$5:$D$16,0))=TRUE,0,SUMIFS($U$7:$U$8790,$F$7:$F$8790,DAY(AM11),$E$7:$E$8790,MONTH(AM11),$G$7:$G$8790,"<"&HOUR(VLOOKUP(AM11,'Coincident Peak'!$D$5:$E$16,2))-Values!$E$5)))) -> 0 | BP11: =IF(WholesaleEnergyCost_2>PPACostPerKWh,(IF((IF(ISNA(MATCH(AM11,'Coincident Peak'!$D$5:$D$16,0))=TRUE,0,SUMIFS($U$7:$U$8790,$F$7:$F$8790,DAY(AM11),$E$7:$E$8790,MONTH(AM11),$G$7:$G$8790,"<"&HOUR(VLOOKUP(AM11,'Coincident Peak'!$D$5:$E$16,2))-Values!$E$5,$I$7:$I$8790,1)))>(Effective_Battery_Capacity/Rndtrp_eff),(Effective_Battery_Capacity/Rndtrp_eff),(IF(ISNA(MATCH(AM11,'Coincident Peak'!$D$5:$D$16,0))=TRUE,0,SUMIFS($U$7:$U$8790,$F$7:$F$8790,DAY(AM11),$E$7:$E$8790,MONTH(AM11),$G$7:$G$8790,"<"&HOUR(VLOOKUP(AM11,'Coincident Peak'!$D$5:$E$16,2))-Values!$E$5,$I$7:$I$8790,1))))),0) -> 0 | BQ11: =IF(WholesaleEnergyCost_1>PPACostPerKWh,(IF((IF(ISNA(MATCH(AM11,'Coincident Peak'!$D$5:$D$16,0))=TRUE,0,SUMIFS($U$7:$U$8790,$F$7:$F$8790,DAY(AM11),$E$7:$E$8790,MONTH(AM11),$G$7:$G$8790,"<"&HOUR(VLOOKUP(AM11,'Coincident Peak'!$D$5:$E$16,2))-Values!$E$5,$I$7:$I$8790,0)))>(Effective_Battery_Capacity/Rndtrp_eff),(Effective_Battery_Capacity/Rndtrp_eff),(IF(ISNA(MATCH(AM11,'Coincident Peak'!$D$5:$D$16,0))=TRUE,0,SUMIFS($U$7:$U$8790,$F$7:$F$8790,DAY(AM11),$E$7:$E$8790,MONTH(AM11),$G$7:$G$8790,"<"&HOUR(VLOOKUP(AM11,'Coincident Peak'!$D$5:$E$16,2))-Values!$E$5,$I$7:$I$8790,0))))),0) -> 0 | BR11: 0 | BS11: 1,459 | BT11: 0 | BV11: =IF(ISNA(MATCH(AM11,'Coincident Peak'!$D$5:$D$16,0))=TRUE,0,1) -> 0 | BW11: 0 | BX11: 0 | BY11: 0 | BZ11: 0 | CA11: 0 | CB11: 1 | CC11: 1 | CD11: =IF(ISNA(MATCH(AM11,'Coincident Peak'!$D$5:$D$16,0))=TRUE,1,0) -> 1 | CE11: =VLOOKUP(MONTH($AM11),'Value Stacking Basis'!$B$38:$D$49,3) -> 3 | CF11: =VLOOKUP(MONTH($AM11),'Value Stacking Basis'!$B$38:$F$49,5) -> 2 | CG11: 1 | CK11: 1,269.11 | CL11: 1,269.11 | CM11: 0 | CN11: 0 | CO11: 24.00 | CQ11: 24.00 | CR11: 0 | CS11: 0 | CT11: 0 | CU11: 0 | CW11: =IF($BV11=0,0,IF($CB11=0,INDEX('Time Series Data'!N$7:N$8790,MATCH(1,(MONTH($AM11)='Time Series Data'!$E$7:$E$8790)*(DAY($AM11)='Time Series Data'!$F$7:$F$8790)*(HOUR(VLOOKUP('Time Series Data'!$AM11,'Coincident Peak'!$D$5:$I$16,2))='Time Series Data'!$G$7:$G$8790),0)),IF(($AT11*Rndtrp_eff)>Effective_Battery_Capacity,BatteryPower,(($AT11*Rndtrp_eff)/Effective_Battery_Capacity)*BatteryPower))) -> 0 | CX11: 1,269.11 | CY11: 1,269.11 | CZ11: 0 | DA11: 0 | DC11: =IF($BV11=0,0,IF($CB11=0,INDEX('Time Series Data'!N$7:N$8790,MATCH(1,(MONTH($AM11)='Time Series Data'!$E$7:$E$8790)*(DAY($AM11)='Time Series Data'!$F$7:$F$8790)*(HOUR(VLOOKUP('Time Series Data'!$AM11,'Coincident Peak'!$D$5:$I$16,2))='Time Series Data'!$G$7:$G$8790),0)),IF(($AT11*Rndtrp_eff)>Effective_Battery_Capacity,BatteryPower,(($AT11*Rndtrp_eff)/Effective_Battery_Capacity)*BatteryPower))) -> 0 | DD11: 24.00 | DF11: 0 | DG11: 0 | DH11: 1,269 | DI11: 1,269.11 | DJ11: 0 | DK11: 0 | DM11: 0 | DN11: 0 | DO11: 1,269 | DP11: 24 | DR11: 0 | DS11: 1,269.11 | DT11: 0 | DU11: 0 | DV11: 24.00 | DX11: 0 | DY11: 24.00 | DZ11: 0 | EA11: 0 | EB11: 0 | EF11: 1,596.26 | EG11: 0 | EH11: 0 | EI11: 24.00 | EK11: 24.00 | EL11: 0 | EM11: 0 | EN11: 0 | EP11: =IF($BV11=0,0,IF($CC11=0,VLOOKUP('Time Series Data'!$AM11,'Coincident Peak'!$D$5:$I$16,3),BatteryPower)) -> 0 | EQ11: 1,596.26 | ER11: 0 | ES11: 0 | EU11: =IF($BV11=0,0,IF($CC11=0,VLOOKUP('Time Series Data'!$AM11,'Coincident Peak'!$D$5:$I$16,3),BatteryPower)) -> 0 | EV11: 24.00 | EX11: 0 | EY11: 0 | EZ11: 1,596.26 | FA11: 0 | FB11: 0 | FD11: 0 | FE11: 0 | FF11: 24 | FH11: 0 | FI11: 1,596.26 | FJ11: 0 | FK11: 0 | FL11: 24.00 | FN11: 0 | FO11: 24.00 | FP11: 0 | FQ11: 0 | FR11: 0 | FT11: 0
B12: 2019-01-01T05:00:00 | C12: 2019-01-01 | D12: 7,200 | E12: 1 | F12: 1 | G12: 5 | H12: 2 | I12: =INDEX(Values!$V$6:$AG$29,'Time Series Data'!G12+1,'Time Series Data'!E12) -> 1 | J12: 5.5 | K12: 7200 | L12: 0 | M12: 0 | N12: 0 | O12: 0 | P12: 95 | T12: 0.00 | U12: 0.00 | V12: 7,200 | W12: =IF(V12+O12>VLOOKUP(E12,'Coincident Peak'!$C$22:$I$33,7),0,1) -> 1 | X12: =IF((AND(E12=MONTH(VLOOKUP('Time Series Data'!E12,'Coincident Peak'!$C$5:$D$16,2)),F12=DAY(VLOOKUP('Time Series Data'!E12,'Coincident Peak'!$C$5:$D$16,2)),IF(AND(G12<=HOUR(VLOOKUP('Time Series Data'!E12,'Coincident Peak'!$C$5:$E$16,3))+Values!$E$5,G12>=HOUR(VLOOKUP('Time Series Data'!E12,'Coincident Peak'!$C$5:$E$16,3))-Values!$E$5),"TRUE","FALSE"))),BatteryPower,0) -> 0.00 | Y12: =IF((AND(E12=MONTH(VLOOKUP('Time Series Data'!E12,'Coincident Peak'!$C$5:$D$16,2)),F12=DAY(VLOOKUP('Time Series Data'!E12,'Coincident Peak'!$C$5:$D$16,2)))),0,N12) -> 0.00 | Z12: =IF((AND(E12=MONTH(VLOOKUP('Time Series Data'!E12,'Coincident Peak'!$C$5:$D$16,2)),F12=DAY(VLOOKUP('Time Series Data'!E12,'Coincident Peak'!$C$5:$D$16,2)),IF(AND(G12<=HOUR(VLOOKUP('Time Series Data'!E12,'Coincident Peak'!$C$5:$E$16,3))+Values!$E$5,G12>=HOUR(VLOOKUP('Time Series Data'!E12,'Coincident Peak'!$C$5:$E$16,3))-Values!$E$5),"TRUE","FALSE"))),BatteryPower,Y12) -> 0.00 | AA12: =IF((AND(E12=MONTH(VLOOKUP('Time Series Data'!E12,'Coincident Peak'!$C$5:$D$16,2)),F12=DAY(VLOOKUP('Time Series Data'!E12,'Coincident Peak'!$C$5:$D$16,2))-1)),VLOOKUP(E12,'Coincident Peak'!$C$5:$N$16,11)*Z12,Z12) -> 0.00 | AB12: =IF((AND(E12=MONTH(VLOOKUP('Time Series Data'!E12,'Coincident Peak'!$C$5:$D$16,2)),F12=DAY(VLOOKUP('Time Series Data'!E12,'Coincident Peak'!$C$5:$D$16,2))+1)),VLOOKUP(E12,'Coincident Peak'!$C$5:$N$16,12)*AA12,AA12) -> 0.00 | AC12: =IF((AND(E12=MONTH(VLOOKUP('Time Series Data'!E12,'Coincident Peak'!$C$5:$D$16,2)),F12=DAY(VLOOKUP('Time Series Data'!E12,'Coincident Peak'!$C$5:$D$16,2)))),0,O12) -> 0.00 | AD12: =IF((AND(E12=MONTH(VLOOKUP('Time Series Data'!E12,'Coincident Peak'!$C$5:$D$16,2)),F12=DAY(VLOOKUP('Time Series Data'!E12,'Coincident Peak'!$C$5:$D$16,2))-1)),VLOOKUP(E12,'Coincident Peak'!$C$5:$N$16,11)*AC12,AC12) -> 0.00 | AE12: =IF((AND(E12=MONTH(VLOOKUP('Time Series Data'!E12,'Coincident Peak'!$C$5:$D$16,2)),F12=DAY(VLOOKUP('Time Series Data'!E12,'Coincident Peak'!$C$5:$D$16,2))+1)),VLOOKUP(E12,'Coincident Peak'!$C$5:$N$16,12)*AD12,AD12) -> 0.00 | AF12: 7,200 | AG12: =IF((AND(E12=MONTH(VLOOKUP('Time Series Data'!E12,'Coincident Peak'!$C$5:$D$16,2)),F12=DAY(VLOOKUP('Time Series Data'!E12,'Coincident Peak'!$C$5:$D$16,2)))),U12,O12) -> 0.00 | AH12: 7,200 | AL12: 5 | AM12: 2019-01-06 | AN12: 0 | AO12: 0 | AP12: 0 | AQ12: 0 | AR12: 2,478.10 | AS12: 1,437.84 | AT12: =IF(ISNA(MATCH(AM12,'Coincident Peak'!$D$5:$D$16,0))=TRUE,0,SUMIFS($O$7:$O$8790,$F$7:$F$8790,DAY(AM12),$E$7:$E$8790,MONTH(AM12),$G$7:$G$8790,"<"&HOUR(VLOOKUP(AM12,'Coincident Peak'!$D$5:$E$16,2))-Values!$E$5)) -> 0 | AU12: 0 | AV12: 0 | AW12: 0 | AX12: 0 | AY12: =IF(ISNA(MATCH(AM12,'Coincident Peak'!$D$5:$D$16,0))=TRUE,0,SUMIFS($O$7:$O$8790,$F$7:$F$8790,DAY(AM12),$E$7:$E$8790,MONTH(AM12),$G$7:$G$8790,"<"&HOUR(VLOOKUP(AM12,'Coincident Peak'!$D$5:$E$16,2))-Values!$E$5,$I$7:$I$8790,1)) -> 0 | AZ12: 0 | BA12: 0 | BB12: 0 | BD12: 0 | BE12: 0 | BF12: 0 | BG12: =IF(IF(ISNA(MATCH(AM12,'Coincident Peak'!$D$5:$D$16,0))=TRUE,0,SUMIFS($O$7:$O$8790,$F$7:$F$8790,DAY(AM12),$E$7:$E$8790,MONTH(AM12),$G$7:$G$8790,"<"&HOUR(VLOOKUP(AM12,'Coincident Peak'!$D$5:$E$16,2))-Values!$E$5,$I$7:$I$8790,0))>(Effective_Battery_Capacity/Rndtrp_eff),(Effective_Battery_Capacity/Rndtrp_eff),IF(ISNA(MATCH(AM12,'Coincident Peak'!$D$5:$D$16,0))=TRUE,0,SUMIFS($O$7:$O$8790,$F$7:$F$8790,DAY(AM12),$E$7:$E$8790,MONTH(AM12),$G$7:$G$8790,"<"&HOUR(VLOOKUP(AM12,'Coincident Peak'!$D$5:$E$16,2))-Values!$E$5,$I$7:$I$8790,0))) -> 0 | BH12: =IF((IF(ISNA(MATCH(AM12,'Coincident Peak'!$D$5:$D$16,0))=TRUE,0,SUMIFS($O$7:$O$8790,$F$7:$F$8790,DAY(AM12),$E$7:$E$8790,MONTH(AM12),$G$7:$G$8790,"<"&HOUR(VLOOKUP(AM12,'Coincident Peak'!$D$5:$E$16,2))-Values!$E$5)))>(Effective_Battery_Capacity/Rndtrp_eff),(Effective_Battery_Capacity/Rndtrp_eff),(IF(ISNA(MATCH(AM12,'Coincident Peak'!$D$5:$D$16,0))=TRUE,0,SUMIFS($O$7:$O$8790,$F$7:$F$8790,DAY(AM12),$E$7:$E$8790,MONTH(AM12),$G$7:$G$8790,"<"&HOUR(VLOOKUP(AM12,'Coincident Peak'!$D$5:$E$16,2))-Values!$E$5)))) -> 0 | BI12: 0 | BJ12: 0 | BK12: =IF(WholesaleEnergyCost_2>PPACostPerKWh,(IF((SUMIFS('Time Series Data'!$AG$7:$AG$8790,'Time Series Data'!$I$7:$I$8790,1,$F$7:$F$8790,DAY(AM12),$E$7:$E$8790,MONTH(AM12))-BP12)>(Effective_Battery_Capacity/Rndtrp_eff),(Effective_Battery_Capacity/Rndtrp_eff),(SUMIFS('Time Series Data'!$AG$7:$AG$8790,'Time Series Data'!$I$7:$I$8790,1,$F$7:$F$8790,DAY(AM12),$E$7:$E$8790,MONTH(AM12))))-BP12),0) -> 0 | BL12: 0 | BM12: =SUMIFS('Time Series Data'!$AG$7:$AG$8790,$F$7:$F$8790,DAY(AM12),$E$7:$E$8790,MONTH(AM12),'Time Series Data'!$I$7:$I$8790,1)-BL12-BP12 -> 1,652 | BN12: =SUMIFS('Time Series Data'!$AG$7:$AG$8790,'Time Series Data'!$I$7:$I$8790,0,$F$7:$F$8790,DAY(AM12),$E$7:$E$8790,MONTH(AM12))-BQ12 -> 826 | BO12: =IF((IF(ISNA(MATCH(AM12,'Coincident Peak'!$D$5:$D$16,0))=TRUE,0,SUMIFS($U$7:$U$8790,$F$7:$F$8790,DAY(AM12),$E$7:$E$8790,MONTH(AM12),$G$7:$G$8790,"<"&HOUR(VLOOKUP(AM12,'Coincident Peak'!$D$5:$E$16,2))-Values!$E$5)))>(Effective_Battery_Capacity/Rndtrp_eff),(Effective_Battery_Capacity/Rndtrp_eff),(IF(ISNA(MATCH(AM12,'Coincident Peak'!$D$5:$D$16,0))=TRUE,0,SUMIFS($U$7:$U$8790,$F$7:$F$8790,DAY(AM12),$E$7:$E$8790,MONTH(AM12),$G$7:$G$8790,"<"&HOUR(VLOOKUP(AM12,'Coincident Peak'!$D$5:$E$16,2))-Values!$E$5)))) -> 0 | BP12: =IF(WholesaleEnergyCost_2>PPACostPerKWh,(IF((IF(ISNA(MATCH(AM12,'Coincident Peak'!$D$5:$D$16,0))=TRUE,0,SUMIFS($U$7:$U$8790,$F$7:$F$8790,DAY(AM12),$E$7:$E$8790,MONTH(AM12),$G$7:$G$8790,"<"&HOUR(VLOOKUP(AM12,'Coincident Peak'!$D$5:$E$16,2))-Values!$E$5,$I$7:$I$8790,1)))>(Effective_Battery_Capacity/Rndtrp_eff),(Effective_Battery_Capacity/Rndtrp_eff),(IF(ISNA(MATCH(AM12,'Coincident Peak'!$D$5:$D$16,0))=TRUE,0,SUMIFS($U$7:$U$8790,$F$7:$F$8790,DAY(AM12),$E$7:$E$8790,MONTH(AM12),$G$7:$G$8790,"<"&HOUR(VLOOKUP(AM12,'Coincident Peak'!$D$5:$E$16,2))-Values!$E$5,$I$7:$I$8790,1))))),0) -> 0 | BQ12: =IF(WholesaleEnergyCost_1>PPACostPerKWh,(IF((IF(ISNA(MATCH(AM12,'Coincident Peak'!$D$5:$D$16,0))=TRUE,0,SUMIFS($U$7:$U$8790,$F$7:$F$8790,DAY(AM12),$E$7:$E$8790,MONTH(AM12),$G$7:$G$8790,"<"&HOUR(VLOOKUP(AM12,'Coincident Peak'!$D$5:$E$16,2))-Values!$E$5,$I$7:$I$8790,0)))>(Effective_Battery_Capacity/Rndtrp_eff),(Effective_Battery_Capacity/Rndtrp_eff),(IF(ISNA(MATCH(AM12,'Coincident Peak'!$D$5:$D$16,0))=TRUE,0,SUMIFS($U$7:$U$8790,$F$7:$F$8790,DAY(AM12),$E$7:$E$8790,MONTH(AM12),$G$7:$G$8790,"<"&HOUR(VLOOKUP(AM12,'Coincident Peak'!$D$5:$E$16,2))-Values!$E$5,$I$7:$I$8790,0))))),0) -> 0 | BR12: 0 | BS12: 1,652 | BT12: 0 | BV12: =IF(ISNA(MATCH(AM12,'Coincident Peak'!$D$5:$D$16,0))=TRUE,0,1) -> 0 | BW12: 0 | BX12: 0 | BY12: 0 | BZ12: 0 | CA12: 0 | CB12: 0 | CC12: 1 | CD12: =IF(ISNA(MATCH(AM12,'Coincident Peak'!$D$5:$D$16,0))=TRUE,1,0) -> 1 | CE12: =VLOOKUP(MONTH($AM12),'Value Stacking Basis'!$B$38:$D$49,3) -> 3 | CF12: =VLOOKUP(MONTH($AM12),'Value Stacking Basis'!$B$38:$F$49,5) -> 2 | CG12: 1 | CK12: 0 | CL12: 0 | CM12: 0 | CN12: 0 | CO12: 0 | CQ12: 0 | CR12: 0 | CS12: 0 | CT12: 0 | CU12: 0 | CW12: =IF($BV12=0,0,IF($CB12=0,INDEX('Time Series Data'!N$7:N$8790,MATCH(1,(MONTH($AM12)='Time Series Data'!$E$7:$E$8790)*(DAY($AM12)='Time Series Data'!$F$7:$F$8790)*(HOUR(VLOOKUP('Time Series Data'!$AM12,'Coincident Peak'!$D$5:$I$16,2))='Time Series Data'!$G$7:$G$8790),0)),IF(($AT12*Rndtrp_eff)>Effective_Battery_Capacity,BatteryPower,(($AT12*Rndtrp_eff)/Effective_Battery_Capacity)*BatteryPower))) -> 0 | CX12: 0 | CY12: 0 | CZ12: 0 | DA12: 0 | DC12: =IF($BV12=0,0,IF($CB12=0,INDEX('Time Series Data'!N$7:N$8790,MATCH(1,(MONTH($AM12)='Time Series Data'!$E$7:$E$8790)*(DAY($AM12)='Time Series Data'!$F$7:$F$8790)*(HOUR(VLOOKUP('Time Series Data'!$AM12,'Coincident Peak'!$D$5:$I$16,2))='Time Series Data'!$G$7:$G$8790),0)),IF(($AT12*Rndtrp_eff)>Effective_Battery_Capacity,BatteryPower,(($AT12*Rndtrp_eff)/Effective_Battery_Capacity)*BatteryPower))) -> 0 | DD12: 0 | DF12: 0 | DG12: 0 | DH12: 0 | DI12: 0 | DJ12: 0 | DK12: 0 | DM12: 0 | DN12: 0 | DO12: 0 | DP12: 0 | DR12: 0 | DS12: 1,437.84 | DT12: 0 | DU12: 0 | DV12: 24.00 | DX12: 0 | DY12: 24.00 | DZ12: 0 | EA12: 0 | EB12: 0 | EF12: 1,596.26 | EG12: 0 | EH12: 0 | EI12: 24.00 | EK12: 24.00 | EL12: 0 | EM12: 0 | EN12: 0 | EP12: =IF($BV12=0,0,IF($CC12=0,VLOOKUP('Time Series Data'!$AM12,'Coincident Peak'!$D$5:$I$16,3),BatteryPower)) -> 0 | EQ12: 1,596.26 | ER12: 0 | ES12: 0 | EU12: =IF($BV12=0,0,IF($CC12=0,VLOOKUP('Time Series Data'!$AM12,'Coincident Peak'!$D$5:$I$16,3),BatteryPower)) -> 0 | EV12: 24.00 | EX12: 0 | EY12: 0 | EZ12: 1,596.26 | FA12: 0 | FB12: 0 | FD12: 0 | FE12: 0 | FF12: 24 | FH12: 0 | FI12: 1,596.26 | FJ12: 0 | FK12: 0 | FL12: 24.00 | FN12: 0 | FO12: 24.00 | FP12: 0 | FQ12: 0 | FR12: 0 | FT12: 0
B13: 2019-01-01T06:00:00 | C13: 2019-01-01 | D13: 7,543 | E13: 1 | F13: 1 | G13: 6 | H13: 2 | I13: =INDEX(Values!$V$6:$AG$29,'Time Series Data'!G13+1,'Time Series Data'!E13) -> 1 | J13: 6.5 | K13: 7543 | L13: 0 | M13: 0 | N13: 0 | O13: 0 | P13: 95 | T13: 0.00 | U13: 0.00 | V13: 7,543 | W13: =IF(V13+O13>VLOOKUP(E13,'Coincident Peak'!$C$22:$I$33,7),0,1) -> 1 | X13: =IF((AND(E13=MONTH(VLOOKUP('Time Series Data'!E13,'Coincident Peak'!$C$5:$D$16,2)),F13=DAY(VLOOKUP('Time Series Data'!E13,'Coincident Peak'!$C$5:$D$16,2)),IF(AND(G13<=HOUR(VLOOKUP('Time Series Data'!E13,'Coincident Peak'!$C$5:$E$16,3))+Values!$E$5,G13>=HOUR(VLOOKUP('Time Series Data'!E13,'Coincident Peak'!$C$5:$E$16,3))-Values!$E$5),"TRUE","FALSE"))),BatteryPower,0) -> 0.00 | Y13: =IF((AND(E13=MONTH(VLOOKUP('Time Series Data'!E13,'Coincident Peak'!$C$5:$D$16,2)),F13=DAY(VLOOKUP('Time Series Data'!E13,'Coincident Peak'!$C$5:$D$16,2)))),0,N13) -> 0.00 | Z13: =IF((AND(E13=MONTH(VLOOKUP('Time Series Data'!E13,'Coincident Peak'!$C$5:$D$16,2)),F13=DAY(VLOOKUP('Time Series Data'!E13,'Coincident Peak'!$C$5:$D$16,2)),IF(AND(G13<=HOUR(VLOOKUP('Time Series Data'!E13,'Coincident Peak'!$C$5:$E$16,3))+Values!$E$5,G13>=HOUR(VLOOKUP('Time Series Data'!E13,'Coincident Peak'!$C$5:$E$16,3))-Values!$E$5),"TRUE","FALSE"))),BatteryPower,Y13) -> 0.00 | AA13: =IF((AND(E13=MONTH(VLOOKUP('Time Series Data'!E13,'Coincident Peak'!$C$5:$D$16,2)),F13=DAY(VLOOKUP('Time Series Data'!E13,'Coincident Peak'!$C$5:$D$16,2))-1)),VLOOKUP(E13,'Coincident Peak'!$C$5:$N$16,11)*Z13,Z13) -> 0.00 | AB13: =IF((AND(E13=MONTH(VLOOKUP('Time Series Data'!E13,'Coincident Peak'!$C$5:$D$16,2)),F13=DAY(VLOOKUP('Time Series Data'!E13,'Coincident Peak'!$C$5:$D$16,2))+1)),VLOOKUP(E13,'Coincident Peak'!$C$5:$N$16,12)*AA13,AA13) -> 0.00 | AC13: =IF((AND(E13=MONTH(VLOOKUP('Time Series Data'!E13,'Coincident Peak'!$C$5:$D$16,2)),F13=DAY(VLOOKUP('Time Series Data'!E13,'Coincident Peak'!$C$5:$D$16,2)))),0,O13) -> 0.00 | AD13: =IF((AND(E13=MONTH(VLOOKUP('Time Series Data'!E13,'Coincident Peak'!$C$5:$D$16,2)),F13=DAY(VLOOKUP('Time Series Data'!E13,'Coincident Peak'!$C$5:$D$16,2))-1)),VLOOKUP(E13,'Coincident Peak'!$C$5:$N$16,11)*AC13,AC13) -> 0.00 | AE13: =IF((AND(E13=MONTH(VLOOKUP('Time Series Data'!E13,'Coincident Peak'!$C$5:$D$16,2)),F13=DAY(VLOOKUP('Time Series Data'!E13,'Coincident Peak'!$C$5:$D$16,2))+1)),VLOOKUP(E13,'Coincident Peak'!$C$5:$N$16,12)*AD13,AD13) -> 0.00 | AF13: 7,543 | AG13: =IF((AND(E13=MONTH(VLOOKUP('Time Series Data'!E13,'Coincident Peak'!$C$5:$D$16,2)),F13=DAY(VLOOKUP('Time Series Data'!E13,'Coincident Peak'!$C$5:$D$16,2)))),U13,O13) -> 0.00 | AH13: 7,543 | AL13: 6 | AM13: 2019-01-07 | AN13: 1 | AO13: 0 | AP13: 629.36 | AQ13: 542.35 | AR13: 1,301.04 | AS13: 622.66 | AT13: =IF(ISNA(MATCH(AM13,'Coincident Peak'!$D$5:$D$16,0))=TRUE,0,SUMIFS($O$7:$O$8790,$F$7:$F$8790,DAY(AM13),$E$7:$E$8790,MONTH(AM13),$G$7:$G$8790,"<"&HOUR(VLOOKUP(AM13,'Coincident Peak'!$D$5:$E$16,2))-Values!$E$5)) -> 0 | AU13: 0 | AV13: 542 | AW13: 542 | AX13: 585 | AY13: =IF(ISNA(MATCH(AM13,'Coincident Peak'!$D$5:$D$16,0))=TRUE,0,SUMIFS($O$7:$O$8790,$F$7:$F$8790,DAY(AM13),$E$7:$E$8790,MONTH(AM13),$G$7:$G$8790,"<"&HOUR(VLOOKUP(AM13,'Coincident Peak'!$D$5:$E$16,2))-Values!$E$5,$I$7:$I$8790,1)) -> 0 | AZ13: 585 | BA13: 585 | BB13: 0 | BD13: 585 | BE13: 716 | BF13: 0 | BG13: =IF(IF(ISNA(MATCH(AM13,'Coincident Peak'!$D$5:$D$16,0))=TRUE,0,SUMIFS($O$7:$O$8790,$F$7:$F$8790,DAY(AM13),$E$7:$E$8790,MONTH(AM13),$G$7:$G$8790,"<"&HOUR(VLOOKUP(AM13,'Coincident Peak'!$D$5:$E$16,2))-Values!$E$5,$I$7:$I$8790,0))>(Effective_Battery_Capacity/Rndtrp_eff),(Effective_Battery_Capacity/Rndtrp_eff),IF(ISNA(MATCH(AM13,'Coincident Peak'!$D$5:$D$16,0))=TRUE,0,SUMIFS($O$7:$O$8790,$F$7:$F$8790,DAY(AM13),$E$7:$E$8790,MONTH(AM13),$G$7:$G$8790,"<"&HOUR(VLOOKUP(AM13,'Coincident Peak'!$D$5:$E$16,2))-Values!$E$5,$I$7:$I$8790,0))) -> 0 | BH13: =IF((IF(ISNA(MATCH(AM13,'Coincident Peak'!$D$5:$D$16,0))=TRUE,0,SUMIFS($O$7:$O$8790,$F$7:$F$8790,DAY(AM13),$E$7:$E$8790,MONTH(AM13),$G$7:$G$8790,"<"&HOUR(VLOOKUP(AM13,'Coincident Peak'!$D$5:$E$16,2))-Values!$E$5)))>(Effective_Battery_Capacity/Rndtrp_eff),(Effective_Battery_Capacity/Rndtrp_eff),(IF(ISNA(MATCH(AM13,'Coincident Peak'!$D$5:$D$16,0))=TRUE,0,SUMIFS($O$7:$O$8790,$F$7:$F$8790,DAY(AM13),$E$7:$E$8790,MONTH(AM13),$G$7:$G$8790,"<"&HOUR(VLOOKUP(AM13,'Coincident Peak'!$D$5:$E$16,2))-Values!$E$5)))) -> 0 | BI13: 0 | BJ13: 0 | BK13: =IF(WholesaleEnergyCost_2>PPACostPerKWh,(IF((SUMIFS('Time Series Data'!$AG$7:$AG$8790,'Time Series Data'!$I$7:$I$8790,1,$F$7:$F$8790,DAY(AM13),$E$7:$E$8790,MONTH(AM13))-BP13)>(Effective_Battery_Capacity/Rndtrp_eff),(Effective_Battery_Capacity/Rndtrp_eff),(SUMIFS('Time Series Data'!$AG$7:$AG$8790,'Time Series Data'!$I$7:$I$8790,1,$F$7:$F$8790,DAY(AM13),$E$7:$E$8790,MONTH(AM13))))-BP13),0) -> 0 | BL13: 0 | BM13: =SUMIFS('Time Series Data'!$AG$7:$AG$8790,$F$7:$F$8790,DAY(AM13),$E$7:$E$8790,MONTH(AM13),'Time Series Data'!$I$7:$I$8790,1)-BL13-BP13 -> 716 | BN13: =SUMIFS('Time Series Data'!$AG$7:$AG$8790,'Time Series Data'!$I$7:$I$8790,0,$F$7:$F$8790,DAY(AM13),$E$7:$E$8790,MONTH(AM13))-BQ13 -> 585 | BO13: =IF((IF(ISNA(MATCH(AM13,'Coincident Peak'!$D$5:$D$16,0))=TRUE,0,SUMIFS($U$7:$U$8790,$F$7:$F$8790,DAY(AM13),$E$7:$E$8790,MONTH(AM13),$G$7:$G$8790,"<"&HOUR(VLOOKUP(AM13,'Coincident Peak'!$D$5:$E$16,2))-Values!$E$5)))>(Effective_Battery_Capacity/Rndtrp_eff),(Effective_Battery_Capacity/Rndtrp_eff),(IF(ISNA(MATCH(AM13,'Coincident Peak'!$D$5:$D$16,0))=TRUE,0,SUMIFS($U$7:$U$8790,$F$7:$F$8790,DAY(AM13),$E$7:$E$8790,MONTH(AM13),$G$7:$G$8790,"<"&HOUR(VLOOKUP(AM13,'Coincident Peak'!$D$5:$E$16,2))-Values!$E$5)))) -> 0 | BP13: =IF(WholesaleEnergyCost_2>PPACostPerKWh,(IF((IF(ISNA(MATCH(AM13,'Coincident Peak'!$D$5:$D$16,0))=TRUE,0,SUMIFS($U$7:$U$8790,$F$7:$F$8790,DAY(AM13),$E$7:$E$8790,MONTH(AM13),$G$7:$G$8790,"<"&HOUR(VLOOKUP(AM13,'Coincident Peak'!$D$5:$E$16,2))-Values!$E$5,$I$7:$I$8790,1)))>(Effective_Battery_Capacity/Rndtrp_eff),(Effective_Battery_Capacity/Rndtrp_eff),(IF(ISNA(MATCH(AM13,'Coincident Peak'!$D$5:$D$16,0))=TRUE,0,SUMIFS($U$7:$U$8790,$F$7:$F$8790,DAY(AM13),$E$7:$E$8790,MONTH(AM13),$G$7:$G$8790,"<"&HOUR(VLOOKUP(AM13,'Coincident Peak'!$D$5:$E$16,2))-Values!$E$5,$I$7:$I$8790,1))))),0) -> 0 | BQ13: =IF(WholesaleEnergyCost_1>PPACostPerKWh,(IF((IF(ISNA(MATCH(AM13,'Coincident Peak'!$D$5:$D$16,0))=TRUE,0,SUMIFS($U$7:$U$8790,$F$7:$F$8790,DAY(AM13),$E$7:$E$8790,MONTH(AM13),$G$7:$G$8790,"<"&HOUR(VLOOKUP(AM13,'Coincident Peak'!$D$5:$E$16,2))-Values!$E$5,$I$7:$I$8790,0)))>(Effective_Battery_Capacity/Rndtrp_eff),(Effective_Battery_Capacity/Rndtrp_eff),(IF(ISNA(MATCH(AM13,'Coincident Peak'!$D$5:$D$16,0))=TRUE,0,SUMIFS($U$7:$U$8790,$F$7:$F$8790,DAY(AM13),$E$7:$E$8790,MONTH(AM13),$G$7:$G$8790,"<"&HOUR(VLOOKUP(AM13,'Coincident Peak'!$D$5:$E$16,2))-Values!$E$5,$I$7:$I$8790,0))))),0) -> 0 | BR13: 0 | BS13: 716 | BT13: 542 | BV13: =IF(ISNA(MATCH(AM13,'Coincident Peak'!$D$5:$D$16,0))=TRUE,0,1) -> 0 | BW13: 0 | BX13: 1 | BY13: 1 | BZ13: 1 | CA13: 1 | CB13: 0 | CC13: 0 | CD13: =IF(ISNA(MATCH(AM13,'Coincident Peak'!$D$5:$D$16,0))=TRUE,1,0) -> 1 | CE13: =VLOOKUP(MONTH($AM13),'Value Stacking Basis'!$B$38:$D$49,3) -> 3 | CF13: =VLOOKUP(MONTH($AM13),'Value Stacking Basis'!$B$38:$F$49,5) -> 2 | CG13: 1 | CK13: 0 | CL13: 0 | CM13: 0 | CN13: 0 | CO13: 0 | CQ13: 0 | CR13: 0 | CS13: 0 | CT13: 0 | CU13: 0 | CW13: =IF($BV13=0,0,IF($CB13=0,INDEX('Time Series Data'!N$7:N$8790,MATCH(1,(MONTH($AM13)='Time Series Data'!$E$7:$E$8790)*(DAY($AM13)='Time Series Data'!$F$7:$F$8790)*(HOUR(VLOOKUP('Time Series Data'!$AM13,'Coincident Peak'!$D$5:$I$16,2))='Time Series Data'!$G$7:$G$8790),0)),IF(($AT13*Rndtrp_eff)>Effective_Battery_Capacity,BatteryPower,(($AT13*Rndtrp_eff)/Effective_Battery_Capacity)*BatteryPower))) -> 0 | CX13: 0 | CY13: 0 | CZ13: 0 | DA13: 0 | DC13: =IF($BV13=0,0,IF($CB13=0,INDEX('Time Series Data'!N$7:N$8790,MATCH(1,(MONTH($AM13)='Time Series Data'!$E$7:$E$8790)*(DAY($AM13)='Time Series Data'!$F$7:$F$8790)*(HOUR(VLOOKUP('Time Series Data'!$AM13,'Coincident Peak'!$D$5:$I$16,2))='Time Series Data'!$G$7:$G$8790),0)),IF(($AT13*Rndtrp_eff)>Effective_Battery_Capacity,BatteryPower,(($AT13*Rndtrp_eff)/Effective_Battery_Capacity)*BatteryPower))) -> 0 | DD13: 0 | DF13: 0 | DG13: 542 | DH13: 0 | DI13: 0 | DJ13: 0 | DK13: 0 | DM13: 0 | DN13: 542 | DO13: 0 | DP13: 0 | DR13: 0 | DS13: 622.66 | DT13: 622.66 | DU13: 622.66 | DV13: 0 | DX13: 0 | DY13: 0 | DZ13: 622.66 | EA13: 622.66 | EB13: 622.66 | EF13: 0 | EG13: 0 | EH13: 0 | EI13: 0 | EK13: 0 | EL13: 0 | EM13: 0 | EN13: 0 | EP13: =IF($BV13=0,0,IF($CC13=0,VLOOKUP('Time Series Data'!$AM13,'Coincident Peak'!$D$5:$I$16,3),BatteryPower)) -> 0 | EQ13: 0 | ER13: 0 | ES13: 0 | EU13: =IF($BV13=0,0,IF($CC13=0,VLOOKUP('Time Series Data'!$AM13,'Coincident Peak'!$D$5:$I$16,3),BatteryPower)) -> 0 | EV13: 0 | EX13: 0 | EY13: 542.35 | EZ13: 0 | FA13: 0 | FB13: 0 | FD13: 0 | FE13: 542.35 | FF13: 0 | FH13: 0 | FI13: 1,596.26 | FJ13: 1,596.26 | FK13: 1,596.26 | FL13: 0 | FN13: 0 | FO13: 0 | FP13: 1,596.26 | FQ13: 1,596.26 | FR13: 1,596.26 | FT13: 0
B14: 2019-01-01T07:00:00 | C14: 2019-01-01 | D14: 7,565 | E14: 1 | F14: 1 | G14: 7 | H14: 2 | I14: =INDEX(Values!$V$6:$AG$29,'Time Series Data'!G14+1,'Time Series Data'!E14) -> 1 | J14: 7.5 | K14: 7565 | L14: 0 | M14: 0 | N14: 0 | O14: 0 | P14: 95 | T14: 0.00 | U14: 0.00 | V14: 7,565 | W14: =IF(V14+O14>VLOOKUP(E14,'Coincident Peak'!$C$22:$I$33,7),0,1) -> 1 | X14: =IF((AND(E14=MONTH(VLOOKUP('Time Series Data'!E14,'Coincident Peak'!$C$5:$D$16,2)),F14=DAY(VLOOKUP('Time Series Data'!E14,'Coincident Peak'!$C$5:$D$16,2)),IF(AND(G14<=HOUR(VLOOKUP('Time Series Data'!E14,'Coincident Peak'!$C$5:$E$16,3))+Values!$E$5,G14>=HOUR(VLOOKUP('Time Series Data'!E14,'Coincident Peak'!$C$5:$E$16,3))-Values!$E$5),"TRUE","FALSE"))),BatteryPower,0) -> 0.00 | Y14: =IF((AND(E14=MONTH(VLOOKUP('Time Series Data'!E14,'Coincident Peak'!$C$5:$D$16,2)),F14=DAY(VLOOKUP('Time Series Data'!E14,'Coincident Peak'!$C$5:$D$16,2)))),0,N14) -> 0.00 | Z14: =IF((AND(E14=MONTH(VLOOKUP('Time Series Data'!E14,'Coincident Peak'!$C$5:$D$16,2)),F14=DAY(VLOOKUP('Time Series Data'!E14,'Coincident Peak'!$C$5:$D$16,2)),IF(AND(G14<=HOUR(VLOOKUP('Time Series Data'!E14,'Coincident Peak'!$C$5:$E$16,3))+Values!$E$5,G14>=HOUR(VLOOKUP('Time Series Data'!E14,'Coincident Peak'!$C$5:$E$16,3))-Values!$E$5),"TRUE","FALSE"))),BatteryPower,Y14) -> 0.00 | AA14: =IF((AND(E14=MONTH(VLOOKUP('Time Series Data'!E14,'Coincident Peak'!$C$5:$D$16,2)),F14=DAY(VLOOKUP('Time Series Data'!E14,'Coincident Peak'!$C$5:$D$16,2))-1)),VLOOKUP(E14,'Coincident Peak'!$C$5:$N$16,11)*Z14,Z14) -> 0.00 | AB14: =IF((AND(E14=MONTH(VLOOKUP('Time Series Data'!E14,'Coincident Peak'!$C$5:$D$16,2)),F14=DAY(VLOOKUP('Time Series Data'!E14,'Coincident Peak'!$C$5:$D$16,2))+1)),VLOOKUP(E14,'Coincident Peak'!$C$5:$N$16,12)*AA14,AA14) -> 0.00 | AC14: =IF((AND(E14=MONTH(VLOOKUP('Time Series Data'!E14,'Coincident Peak'!$C$5:$D$16,2)),F14=DAY(VLOOKUP('Time Series Data'!E14,'Coincident Peak'!$C$5:$D$16,2)))),0,O14) -> 0.00 | AD14: =IF((AND(E14=MONTH(VLOOKUP('Time Series Data'!E14,'Coincident Peak'!$C$5:$D$16,2)),F14=DAY(VLOOKUP('Time Series Data'!E14,'Coincident Peak'!$C$5:$D$16,2))-1)),VLOOKUP(E14,'Coincident Peak'!$C$5:$N$16,11)*AC14,AC14) -> 0.00 | AE14: =IF((AND(E14=MONTH(VLOOKUP('Time Series Data'!E14,'Coincident Peak'!$C$5:$D$16,2)),F14=DAY(VLOOKUP('Time Series Data'!E14,'Coincident Peak'!$C$5:$D$16,2))+1)),VLOOKUP(E14,'Coincident Peak'!$C$5:$N$16,12)*AD14,AD14) -> 0.00 | AF14: 7,565 | AG14: =IF((AND(E14=MONTH(VLOOKUP('Time Series Data'!E14,'Coincident Peak'!$C$5:$D$16,2)),F14=DAY(VLOOKUP('Time Series Data'!E14,'Coincident Peak'!$C$5:$D$16,2)))),U14,O14) -> 0.00 | AH14: 7,565 | AL14: 7 | AM14: 2019-01-08 | AN14: 1 | AO14: 0 | AP14: 0 | AQ14: 0 | AR14: 2,347.47 | AS14: 1,358.75 | AT14: =IF(ISNA(MATCH(AM14,'Coincident Peak'!$D$5:$D$16,0))=TRUE,0,SUMIFS($O$7:$O$8790,$F$7:$F$8790,DAY(AM14),$E$7:$E$8790,MONTH(AM14),$G$7:$G$8790,"<"&HOUR(VLOOKUP(AM14,'Coincident Peak'!$D$5:$E$16,2))-Values!$E$5)) -> 0 | AU14: 0 | AV14: 0 | AW14: 0 | AX14: 786 | AY14: =IF(ISNA(MATCH(AM14,'Coincident Peak'!$D$5:$D$16,0))=TRUE,0,SUMIFS($O$7:$O$8790,$F$7:$F$8790,DAY(AM14),$E$7:$E$8790,MONTH(AM14),$G$7:$G$8790,"<"&HOUR(VLOOKUP(AM14,'Coincident Peak'!$D$5:$E$16,2))-Values!$E$5,$I$7:$I$8790,1)) -> 0 | AZ14: 786 | BA14: 786 | BB14: 0 | BD14: 786 | BE14: 1,562 | BF14: 0 | BG14: =IF(IF(ISNA(MATCH(AM14,'Coincident Peak'!$D$5:$D$16,0))=TRUE,0,SUMIFS($O$7:$O$8790,$F$7:$F$8790,DAY(AM14),$E$7:$E$8790,MONTH(AM14),$G$7:$G$8790,"<"&HOUR(VLOOKUP(AM14,'Coincident Peak'!$D$5:$E$16,2))-Values!$E$5,$I$7:$I$8790,0))>(Effective_Battery_Capacity/Rndtrp_eff),(Effective_Battery_Capacity/Rndtrp_eff),IF(ISNA(MATCH(AM14,'Coincident Peak'!$D$5:$D$16,0))=TRUE,0,SUMIFS($O$7:$O$8790,$F$7:$F$8790,DAY(AM14),$E$7:$E$8790,MONTH(AM14),$G$7:$G$8790,"<"&HOUR(VLOOKUP(AM14,'Coincident Peak'!$D$5:$E$16,2))-Values!$E$5,$I$7:$I$8790,0))) -> 0 | BH14: =IF((IF(ISNA(MATCH(AM14,'Coincident Peak'!$D$5:$D$16,0))=TRUE,0,SUMIFS($O$7:$O$8790,$F$7:$F$8790,DAY(AM14),$E$7:$E$8790,MONTH(AM14),$G$7:$G$8790,"<"&HOUR(VLOOKUP(AM14,'Coincident Peak'!$D$5:$E$16,2))-Values!$E$5)))>(Effective_Battery_Capacity/Rndtrp_eff),(Effective_Battery_Capacity/Rndtrp_eff),(IF(ISNA(MATCH(AM14,'Coincident Peak'!$D$5:$D$16,0))=TRUE,0,SUMIFS($O$7:$O$8790,$F$7:$F$8790,DAY(AM14),$E$7:$E$8790,MONTH(AM14),$G$7:$G$8790,"<"&HOUR(VLOOKUP(AM14,'Coincident Peak'!$D$5:$E$16,2))-Values!$E$5)))) -> 0 | BI14: 0 | BJ14: 0 | BK14: =IF(WholesaleEnergyCost_2>PPACostPerKWh,(IF((SUMIFS('Time Series Data'!$AG$7:$AG$8790,'Time Series Data'!$I$7:$I$8790,1,$F$7:$F$8790,DAY(AM14),$E$7:$E$8790,MONTH(AM14))-BP14)>(Effective_Battery_Capacity/Rndtrp_eff),(Effective_Battery_Capacity/Rndtrp_eff),(SUMIFS('Time Series Data'!$AG$7:$AG$8790,'Time Series Data'!$I$7:$I$8790,1,$F$7:$F$8790,DAY(AM14),$E$7:$E$8790,MONTH(AM14))))-BP14),0) -> 0 | BL14: 0 | BM14: =SUMIFS('Time Series Data'!$AG$7:$AG$8790,$F$7:$F$8790,DAY(AM14),$E$7:$E$8790,MONTH(AM14),'Time Series Data'!$I$7:$I$8790,1)-BL14-BP14 -> 1,562 | BN14: =SUMIFS('Time Series Data'!$AG$7:$AG$8790,'Time Series Data'!$I$7:$I$8790,0,$F$7:$F$8790,DAY(AM14),$E$7:$E$8790,MONTH(AM14))-BQ14 -> 786 | BO14: =IF((IF(ISNA(MATCH(AM14,'Coincident Peak'!$D$5:$D$16,0))=TRUE,0,SUMIFS($U$7:$U$8790,$F$7:$F$8790,DAY(AM14),$E$7:$E$8790,MONTH(AM14),$G$7:$G$8790,"<"&HOUR(VLOOKUP(AM14,'Coincident Peak'!$D$5:$E$16,2))-Values!$E$5)))>(Effective_Battery_Capacity/Rndtrp_eff),(Effective_Battery_Capacity/Rndtrp_eff),(IF(ISNA(MATCH(AM14,'Coincident Peak'!$D$5:$D$16,0))=TRUE,0,SUMIFS($U$7:$U$8790,$F$7:$F$8790,DAY(AM14),$E$7:$E$8790,MONTH(AM14),$G$7:$G$8790,"<"&HOUR(VLOOKUP(AM14,'Coincident Peak'!$D$5:$E$16,2))-Values!$E$5)))) -> 0 | BP14: =IF(WholesaleEnergyCost_2>PPACostPerKWh,(IF((IF(ISNA(MATCH(AM14,'Coincident Peak'!$D$5:$D$16,0))=TRUE,0,SUMIFS($U$7:$U$8790,$F$7:$F$8790,DAY(AM14),$E$7:$E$8790,MONTH(AM14),$G$7:$G$8790,"<"&HOUR(VLOOKUP(AM14,'Coincident Peak'!$D$5:$E$16,2))-Values!$E$5,$I$7:$I$8790,1)))>(Effective_Battery_Capacity/Rndtrp_eff),(Effective_Battery_Capacity/Rndtrp_eff),(IF(ISNA(MATCH(AM14,'Coincident Peak'!$D$5:$D$16,0))=TRUE,0,SUMIFS($U$7:$U$8790,$F$7:$F$8790,DAY(AM14),$E$7:$E$8790,MONTH(AM14),$G$7:$G$8790,"<"&HOUR(VLOOKUP(AM14,'Coincident Peak'!$D$5:$E$16,2))-Values!$E$5,$I$7:$I$8790,1))))),0) -> 0 | BQ14: =IF(WholesaleEnergyCost_1>PPACostPerKWh,(IF((IF(ISNA(MATCH(AM14,'Coincident Peak'!$D$5:$D$16,0))=TRUE,0,SUMIFS($U$7:$U$8790,$F$7:$F$8790,DAY(AM14),$E$7:$E$8790,MONTH(AM14),$G$7:$G$8790,"<"&HOUR(VLOOKUP(AM14,'Coincident Peak'!$D$5:$E$16,2))-Values!$E$5,$I$7:$I$8790,0)))>(Effective_Battery_Capacity/Rndtrp_eff),(Effective_Battery_Capacity/Rndtrp_eff),(IF(ISNA(MATCH(AM14,'Coincident Peak'!$D$5:$D$16,0))=TRUE,0,SUMIFS($U$7:$U$8790,$F$7:$F$8790,DAY(AM14),$E$7:$E$8790,MONTH(AM14),$G$7:$G$8790,"<"&HOUR(VLOOKUP(AM14,'Coincident Peak'!$D$5:$E$16,2))-Values!$E$5,$I$7:$I$8790,0))))),0) -> 0 | BR14: 0 | BS14: 1,562 | BT14: 0 | BV14: =IF(ISNA(MATCH(AM14,'Coincident Peak'!$D$5:$D$16,0))=TRUE,0,1) -> 0 | BW14: 0 | BX14: 0 | BY14: 0 | BZ14: 0 | CA14: 0 | CB14: 0 | CC14: 1 | CD14: =IF(ISNA(MATCH(AM14,'Coincident Peak'!$D$5:$D$16,0))=TRUE,1,0) -> 1 | CE14: =VLOOKUP(MONTH($AM14),'Value Stacking Basis'!$B$38:$D$49,3) -> 3 | CF14: =VLOOKUP(MONTH($AM14),'Value Stacking Basis'!$B$38:$F$49,5) -> 2 | CG14: 1 | CK14: 0 | CL14: 0 | CM14: 0 | CN14: 0 | CO14: 0 | CQ14: 0 | CR14: 0 | CS14: 0 | CT14: 0 | CU14: 0 | CW14: =IF($BV14=0,0,IF($CB14=0,INDEX('Time Series Data'!N$7:N$8790,MATCH(1,(MONTH($AM14)='Time Series Data'!$E$7:$E$8790)*(DAY($AM14)='Time Series Data'!$F$7:$F$8790)*(HOUR(VLOOKUP('Time Series Data'!$AM14,'Coincident Peak'!$D$5:$I$16,2))='Time Series Data'!$G$7:$G$8790),0)),IF(($AT14*Rndtrp_eff)>Effective_Battery_Capacity,BatteryPower,(($AT14*Rndtrp_eff)/Effective_Battery_Capacity)*BatteryPower))) -> 0 | CX14: 0 | CY14: 0 | CZ14: 0 | DA14: 0 | DC14: =IF($BV14=0,0,IF($CB14=0,INDEX('Time Series Data'!N$7:N$8790,MATCH(1,(MONTH($AM14)='Time Series Data'!$E$7:$E$8790)*(DAY($AM14)='Time Series Data'!$F$7:$F$8790)*(HOUR(VLOOKUP('Time Series Data'!$AM14,'Coincident Peak'!$D$5:$I$16,2))='Time Series Data'!$G$7:$G$8790),0)),IF(($AT14*Rndtrp_eff)>Effective_Battery_Capacity,BatteryPower,(($AT14*Rndtrp_eff)/Effective_Battery_Capacity)*BatteryPower))) -> 0 | DD14: 0 | DF14: 0 | DG14: 0 | DH14: 0 | DI14: 0 | DJ14: 0 | DK14: 0 | DM14: 0 | DN14: 0 | DO14: 0 | DP14: 0 | DR14: 0 | DS14: 1,358.75 | DT14: 1,358.75 | DU14: 1,358.75 | DV14: 0 | DX14: 0 | DY14: 0 | DZ14: 1,358.75 | EA14: 1,358.75 | EB14: 1,358.75 | EF14: 1,596.26 | EG14: 1,596.26 | EH14: 1,596.26 | EI14: 0 | EK14: 0 | EL14: 1,596.26 | EM14: 1,596.26 | EN14: 1,596.26 | EP14: =IF($BV14=0,0,IF($CC14=0,VLOOKUP('Time Series Data'!$AM14,'Coincident Peak'!$D$5:$I$16,3),BatteryPower)) -> 0 | EQ14: 1,596.26 | ER14: 1,596.26 | ES14: 1,596.26 | EU14: =IF($BV14=0,0,IF($CC14=0,VLOOKUP('Time Series Data'!$AM14,'Coincident Peak'!$D$5:$I$16,3),BatteryPower)) -> 0 | EV14: 0 | EX14: 0 | EY14: 0 | EZ14: 1,596.26 | FA14: 1,596.26 | FB14: 1,596.26 | FD14: 0 | FE14: 0 | FF14: 0 | FH14: 0 | FI14: 1,596.26 | FJ14: 1,596.26 | FK14: 1,596.26 | FL14: 0 | FN14: 0 | FO14: 0 | FP14: 1,596.26 | FQ14: 1,596.26 | FR14: 1,596.26 | FT14: 0
B15: 2019-01-01T08:00:00 | C15: 2019-01-01 | D15: 8,207 | E15: 1 | F15: 1 | G15: 8 | H15: 2 | I15: =INDEX(Values!$V$6:$AG$29,'Time Series Data'!G15+1,'Time Series Data'!E15) -> 1 | J15: 8.5 | K15: 8207 | L15: 0 | M15: 0 | N15: 0 | O15: 119.409 | P15: 95 | T15: 0.00 | U15: 119.41 | V15: 8,088 | W15: =IF(V15+O15>VLOOKUP(E15,'Coincident Peak'!$C$22:$I$33,7),0,1) -> 1 | X15: =IF((AND(E15=MONTH(VLOOKUP('Time Series Data'!E15,'Coincident Peak'!$C$5:$D$16,2)),F15=DAY(VLOOKUP('Time Series Data'!E15,'Coincident Peak'!$C$5:$D$16,2)),IF(AND(G15<=HOUR(VLOOKUP('Time Series Data'!E15,'Coincident Peak'!$C$5:$E$16,3))+Values!$E$5,G15>=HOUR(VLOOKUP('Time Series Data'!E15,'Coincident Peak'!$C$5:$E$16,3))-Values!$E$5),"TRUE","FALSE"))),BatteryPower,0) -> 0.00 | Y15: =IF((AND(E15=MONTH(VLOOKUP('Time Series Data'!E15,'Coincident Peak'!$C$5:$D$16,2)),F15=DAY(VLOOKUP('Time Series Data'!E15,'Coincident Peak'!$C$5:$D$16,2)))),0,N15) -> 0.00 | Z15: =IF((AND(E15=MONTH(VLOOKUP('Time Series Data'!E15,'Coincident Peak'!$C$5:$D$16,2)),F15=DAY(VLOOKUP('Time Series Data'!E15,'Coincident Peak'!$C$5:$D$16,2)),IF(AND(G15<=HOUR(VLOOKUP('Time Series Data'!E15,'Coincident Peak'!$C$5:$E$16,3))+Values!$E$5,G15>=HOUR(VLOOKUP('Time Series Data'!E15,'Coincident Peak'!$C$5:$E$16,3))-Values!$E$5),"TRUE","FALSE"))),BatteryPower,Y15) -> 0.00 | AA15: =IF((AND(E15=MONTH(VLOOKUP('Time Series Data'!E15,'Coincident Peak'!$C$5:$D$16,2)),F15=DAY(VLOOKUP('Time Series Data'!E15,'Coincident Peak'!$C$5:$D$16,2))-1)),VLOOKUP(E15,'Coincident Peak'!$C$5:$N$16,11)*Z15,Z15) -> 0.00 | AB15: =IF((AND(E15=MONTH(VLOOKUP('Time Series Data'!E15,'Coincident Peak'!$C$5:$D$16,2)),F15=DAY(VLOOKUP('Time Series Data'!E15,'Coincident Peak'!$C$5:$D$16,2))+1)),VLOOKUP(E15,'Coincident Peak'!$C$5:$N$16,12)*AA15,AA15) -> 0.00 | AC15: =IF((AND(E15=MONTH(VLOOKUP('Time Series Data'!E15,'Coincident Peak'!$C$5:$D$16,2)),F15=DAY(VLOOKUP('Time Series Data'!E15,'Coincident Peak'!$C$5:$D$16,2)))),0,O15) -> 119.41 | AD15: =IF((AND(E15=MONTH(VLOOKUP('Time Series Data'!E15,'Coincident Peak'!$C$5:$D$16,2)),F15=DAY(VLOOKUP('Time Series Data'!E15,'Coincident Peak'!$C$5:$D$16,2))-1)),VLOOKUP(E15,'Coincident Peak'!$C$5:$N$16,11)*AC15,AC15) -> 119.41 | AE15: =IF((AND(E15=MONTH(VLOOKUP('Time Series Data'!E15,'Coincident Peak'!$C$5:$D$16,2)),F15=DAY(VLOOKUP('Time Series Data'!E15,'Coincident Peak'!$C$5:$D$16,2))+1)),VLOOKUP(E15,'Coincident Peak'!$C$5:$N$16,12)*AD15,AD15) -> 119.41 | AF15: 8,088 | AG15: =IF((AND(E15=MONTH(VLOOKUP('Time Series Data'!E15,'Coincident Peak'!$C$5:$D$16,2)),F15=DAY(VLOOKUP('Time Series Data'!E15,'Coincident Peak'!$C$5:$D$16,2)))),U15,O15) -> 119.41 | AH15: 8,088 | AL15: 8 | AM15: 2019-01-09 | AN15: 1 | AO15: 0 | AP15: 487.54 | AQ15: 429.30 | AR15: 2,937.15 | AS15: 1,754.23 | AT15: =IF(ISNA(MATCH(AM15,'Coincident Peak'!$D$5:$D$16,0))=TRUE,0,SUMIFS($O$7:$O$8790,$F$7:$F$8790,DAY(AM15),$E$7:$E$8790,MONTH(AM15),$G$7:$G$8790,"<"&HOUR(VLOOKUP(AM15,'Coincident Peak'!$D$5:$E$16,2))-Values!$E$5)) -> 0 | AU15: 0 | AV15: 429 | AW15: 429 | AX15: 921 | AY15: =IF(ISNA(MATCH(AM15,'Coincident Peak'!$D$5:$D$16,0))=TRUE,0,SUMIFS($O$7:$O$8790,$F$7:$F$8790,DAY(AM15),$E$7:$E$8790,MONTH(AM15),$G$7:$G$8790,"<"&HOUR(VLOOKUP(AM15,'Coincident Peak'!$D$5:$E$16,2))-Values!$E$5,$I$7:$I$8790,1)) -> 0 | AZ15: 921 | BA15: 921 | BB15: 0 | BD15: 921 | BE15: 1,835 | BF15: 0 | BG15: =IF(IF(ISNA(MATCH(AM15,'Coincident Peak'!$D$5:$D$16,0))=TRUE,0,SUMIFS($O$7:$O$8790,$F$7:$F$8790,DAY(AM15),$E$7:$E$8790,MONTH(AM15),$G$7:$G$8790,"<"&HOUR(VLOOKUP(AM15,'Coincident Peak'!$D$5:$E$16,2))-Values!$E$5,$I$7:$I$8790,0))>(Effective_Battery_Capacity/Rndtrp_eff),(Effective_Battery_Capacity/Rndtrp_eff),IF(ISNA(MATCH(AM15,'Coincident Peak'!$D$5:$D$16,0))=TRUE,0,SUMIFS($O$7:$O$8790,$F$7:$F$8790,DAY(AM15),$E$7:$E$8790,MONTH(AM15),$G$7:$G$8790,"<"&HOUR(VLOOKUP(AM15,'Coincident Peak'!$D$5:$E$16,2))-Values!$E$5,$I$7:$I$8790,0))) -> 0 | BH15: =IF((IF(ISNA(MATCH(AM15,'Coincident Peak'!$D$5:$D$16,0))=TRUE,0,SUMIFS($O$7:$O$8790,$F$7:$F$8790,DAY(AM15),$E$7:$E$8790,MONTH(AM15),$G$7:$G$8790,"<"&HOUR(VLOOKUP(AM15,'Coincident Peak'!$D$5:$E$16,2))-Values!$E$5)))>(Effective_Battery_Capacity/Rndtrp_eff),(Effective_Battery_Capacity/Rndtrp_eff),(IF(ISNA(MATCH(AM15,'Coincident Peak'!$D$5:$D$16,0))=TRUE,0,SUMIFS($O$7:$O$8790,$F$7:$F$8790,DAY(AM15),$E$7:$E$8790,MONTH(AM15),$G$7:$G$8790,"<"&HOUR(VLOOKUP(AM15,'Coincident Peak'!$D$5:$E$16,2))-Values!$E$5)))) -> 0 | BI15: 0 | BJ15: 0 | BK15: =IF(WholesaleEnergyCost_2>PPACostPerKWh,(IF((SUMIFS('Time Series Data'!$AG$7:$AG$8790,'Time Series Data'!$I$7:$I$8790,1,$F$7:$F$8790,DAY(AM15),$E$7:$E$8790,MONTH(AM15))-BP15)>(Effective_Battery_Capacity/Rndtrp_eff),(Effective_Battery_Capacity/Rndtrp_eff),(SUMIFS('Time Series Data'!$AG$7:$AG$8790,'Time Series Data'!$I$7:$I$8790,1,$F$7:$F$8790,DAY(AM15),$E$7:$E$8790,MONTH(AM15))))-BP15),0) -> 0 | BL15: 0 | BM15: =SUMIFS('Time Series Data'!$AG$7:$AG$8790,$F$7:$F$8790,DAY(AM15),$E$7:$E$8790,MONTH(AM15),'Time Series Data'!$I$7:$I$8790,1)-BL15-BP15 -> 2,016 | BN15: =SUMIFS('Time Series Data'!$AG$7:$AG$8790,'Time Series Data'!$I$7:$I$8790,0,$F$7:$F$8790,DAY(AM15),$E$7:$E$8790,MONTH(AM15))-BQ15 -> 921 | BO15: =IF((IF(ISNA(MATCH(AM15,'Coincident Peak'!$D$5:$D$16,0))=TRUE,0,SUMIFS($U$7:$U$8790,$F$7:$F$8790,DAY(AM15),$E$7:$E$8790,MONTH(AM15),$G$7:$G$8790,"<"&HOUR(VLOOKUP(AM15,'Coincident Peak'!$D$5:$E$16,2))-Values!$E$5)))>(Effective_Battery_Capacity/Rndtrp_eff),(Effective_Battery_Capacity/Rndtrp_eff),(IF(ISNA(MATCH(AM15,'Coincident Peak'!$D$5:$D$16,0))=TRUE,0,SUMIFS($U$7:$U$8790,$F$7:$F$8790,DAY(AM15),$E$7:$E$8790,MONTH(AM15),$G$7:$G$8790,"<"&HOUR(VLOOKUP(AM15,'Coincident Peak'!$D$5:$E$16,2))-Values!$E$5)))) -> 0 | BP15: =IF(WholesaleEnergyCost_2>PPACostPerKWh,(IF((IF(ISNA(MATCH(AM15,'Coincident Peak'!$D$5:$D$16,0))=TRUE,0,SUMIFS($U$7:$U$8790,$F$7:$F$8790,DAY(AM15),$E$7:$E$8790,MONTH(AM15),$G$7:$G$8790,"<"&HOUR(VLOOKUP(AM15,'Coincident Peak'!$D$5:$E$16,2))-Values!$E$5,$I$7:$I$8790,1)))>(Effective_Battery_Capacity/Rndtrp_eff),(Effective_Battery_Capacity/Rndtrp_eff),(IF(ISNA(MATCH(AM15,'Coincident Peak'!$D$5:$D$16,0))=TRUE,0,SUMIFS($U$7:$U$8790,$F$7:$F$8790,DAY(AM15),$E$7:$E$8790,MONTH(AM15),$G$7:$G$8790,"<"&HOUR(VLOOKUP(AM15,'Coincident Peak'!$D$5:$E$16,2))-Values!$E$5,$I$7:$I$8790,1))))),0) -> 0 | BQ15: =IF(WholesaleEnergyCost_1>PPACostPerKWh,(IF((IF(ISNA(MATCH(AM15,'Coincident Peak'!$D$5:$D$16,0))=TRUE,0,SUMIFS($U$7:$U$8790,$F$7:$F$8790,DAY(AM15),$E$7:$E$8790,MONTH(AM15),$G$7:$G$8790,"<"&HOUR(VLOOKUP(AM15,'Coincident Peak'!$D$5:$E$16,2))-Values!$E$5,$I$7:$I$8790,0)))>(Effective_Battery_Capacity/Rndtrp_eff),(Effective_Battery_Capacity/Rndtrp_eff),(IF(ISNA(MATCH(AM15,'Coincident Peak'!$D$5:$D$16,0))=TRUE,0,SUMIFS($U$7:$U$8790,$F$7:$F$8790,DAY(AM15),$E$7:$E$8790,MONTH(AM15),$G$7:$G$8790,"<"&HOUR(VLOOKUP(AM15,'Coincident Peak'!$D$5:$E$16,2))-Values!$E$5,$I$7:$I$8790,0))))),0) -> 0 | BR15: 0 | BS15: 1,835 | BT15: 429 | BV15: =IF(ISNA(MATCH(AM15,'Coincident Peak'!$D$5:$D$16,0))=TRUE,0,1) -> 0 | BW15: 0 | BX15: 1 | BY15: 1 | BZ15: 1 | CA15: 1 | CB15: 0 | CC15: 0 | CD15: =IF(ISNA(MATCH(AM15,'Coincident Peak'!$D$5:$D$16,0))=TRUE,1,0) -> 1 | CE15: =VLOOKUP(MONTH($AM15),'Value Stacking Basis'!$B$38:$D$49,3) -> 3 | CF15: =VLOOKUP(MONTH($AM15),'Value Stacking Basis'!$B$38:$F$49,5) -> 2 | CG15: 1 | CK15: 0 | CL15: 0 | CM15: 0 | CN15: 0 | CO15: 0 | CQ15: 0 | CR15: 0 | CS15: 0 | CT15: 0 | CU15: 0 | CW15: =IF($BV15=0,0,IF($CB15=0,INDEX('Time Series Data'!N$7:N$8790,MATCH(1,(MONTH($AM15)='Time Series Data'!$E$7:$E$8790)*(DAY($AM15)='Time Series Data'!$F$7:$F$8790)*(HOUR(VLOOKUP('Time Series Data'!$AM15,'Coincident Peak'!$D$5:$I$16,2))='Time Series Data'!$G$7:$G$8790),0)),IF(($AT15*Rndtrp_eff)>Effective_Battery_Capacity,BatteryPower,(($AT15*Rndtrp_eff)/Effective_Battery_Capacity)*BatteryPower))) -> 0 | CX15: 0 | CY15: 0 | CZ15: 0 | DA15: 0 | DC15: =IF($BV15=0,0,IF($CB15=0,INDEX('Time Series Data'!N$7:N$8790,MATCH(1,(MONTH($AM15)='Time Series Data'!$E$7:$E$8790)*(DAY($AM15)='Time Series Data'!$F$7:$F$8790)*(HOUR(VLOOKUP('Time Series Data'!$AM15,'Coincident Peak'!$D$5:$I$16,2))='Time Series Data'!$G$7:$G$8790),0)),IF(($AT15*Rndtrp_eff)>Effective_Battery_Capacity,BatteryPower,(($AT15*Rndtrp_eff)/Effective_Battery_Capacity)*BatteryPower))) -> 0 | DD15: 0 | DF15: 0 | DG15: 429 | DH15: 0 | DI15: 0 | DJ15: 0 | DK15: 0 | DM15: 0 | DN15: 429 | DO15: 0 | DP15: 0 | DR15: 0 | DS15: 1,596.26 | DT15: 1,596.26 | DU15: 1,596.26 | DV15: 0 | DX15: 0 | DY15: 0 | DZ15: 1,596.26 | EA15: 1,596.26 | EB15: 1,596.26 | EF15: 0 | EG15: 0 | EH15: 0 | EI15: 0 | EK15: 0 | EL15: 0 | EM15: 0 | EN15: 0 | EP15: =IF($BV15=0,0,IF($CC15=0,VLOOKUP('Time Series Data'!$AM15,'Coincident Peak'!$D$5:$I$16,3),BatteryPower)) -> 0 | EQ15: 0 | ER15: 0 | ES15: 0 | EU15: =IF($BV15=0,0,IF($CC15=0,VLOOKUP('Time Series Data'!$AM15,'Coincident Peak'!$D$5:$I$16,3),BatteryPower)) -> 0 | EV15: 0 | EX15: 0 | EY15: 429.30 | EZ15: 0 | FA15: 0 | FB15: 0 | FD15: 0 | FE15: 429.30 | FF15: 0 | FH15: 0 | FI15: 1,596.26 | FJ15: 1,596.26 | FK15: 1,596.26 | FL15: 0 | FN15: 0 | FO15: 0 | FP15: 1,596.26 | FQ15: 1,596.26 | FR15: 1,596.26 | FT15: 0
B16: 2019-01-01T09:00:00 | C16: 2019-01-01 | D16: 9,013 | E16: 1 | F16: 1 | G16: 9 | H16: 2 | I16: =INDEX(Values!$V$6:$AG$29,'Time Series Data'!G16+1,'Time Series Data'!E16) -> 1 | J16: 9.5 | K16: 9013 | L16: 0 | M16: 0 | N16: 0 | O16: 38.8035 | P16: 95 | T16: 0.00 | U16: 38.80 | V16: 8,974 | W16: =IF(V16+O16>VLOOKUP(E16,'Coincident Peak'!$C$22:$I$33,7),0,1) -> 1 | X16: =IF((AND(E16=MONTH(VLOOKUP('Time Series Data'!E16,'Coincident Peak'!$C$5:$D$16,2)),F16=DAY(VLOOKUP('Time Series Data'!E16,'Coincident Peak'!$C$5:$D$16,2)),IF(AND(G16<=HOUR(VLOOKUP('Time Series Data'!E16,'Coincident Peak'!$C$5:$E$16,3))+Values!$E$5,G16>=HOUR(VLOOKUP('Time Series Data'!E16,'Coincident Peak'!$C$5:$E$16,3))-Values!$E$5),"TRUE","FALSE"))),BatteryPower,0) -> 0.00 | Y16: =IF((AND(E16=MONTH(VLOOKUP('Time Series Data'!E16,'Coincident Peak'!$C$5:$D$16,2)),F16=DAY(VLOOKUP('Time Series Data'!E16,'Coincident Peak'!$C$5:$D$16,2)))),0,N16) -> 0.00 | Z16: =IF((AND(E16=MONTH(VLOOKUP('Time Series Data'!E16,'Coincident Peak'!$C$5:$D$16,2)),F16=DAY(VLOOKUP('Time Series Data'!E16,'Coincident Peak'!$C$5:$D$16,2)),IF(AND(G16<=HOUR(VLOOKUP('Time Series Data'!E16,'Coincident Peak'!$C$5:$E$16,3))+Values!$E$5,G16>=HOUR(VLOOKUP('Time Series Data'!E16,'Coincident Peak'!$C$5:$E$16,3))-Values!$E$5),"TRUE","FALSE"))),BatteryPower,Y16) -> 0.00 | AA16: =IF((AND(E16=MONTH(VLOOKUP('Time Series Data'!E16,'Coincident Peak'!$C$5:$D$16,2)),F16=DAY(VLOOKUP('Time Series Data'!E16,'Coincident Peak'!$C$5:$D$16,2))-1)),VLOOKUP(E16,'Coincident Peak'!$C$5:$N$16,11)*Z16,Z16) -> 0.00 | AB16: =IF((AND(E16=MONTH(VLOOKUP('Time Series Data'!E16,'Coincident Peak'!$C$5:$D$16,2)),F16=DAY(VLOOKUP('Time Series Data'!E16,'Coincident Peak'!$C$5:$D$16,2))+1)),VLOOKUP(E16,'Coincident Peak'!$C$5:$N$16,12)*AA16,AA16) -> 0.00 | AC16: =IF((AND(E16=MONTH(VLOOKUP('Time Series Data'!E16,'Coincident Peak'!$C$5:$D$16,2)),F16=DAY(VLOOKUP('Time Series Data'!E16,'Coincident Peak'!$C$5:$D$16,2)))),0,O16) -> 38.80 | AD16: =IF((AND(E16=MONTH(VLOOKUP('Time Series Data'!E16,'Coincident Peak'!$C$5:$D$16,2)),F16=DAY(VLOOKUP('Time Series Data'!E16,'Coincident Peak'!$C$5:$D$16,2))-1)),VLOOKUP(E16,'Coincident Peak'!$C$5:$N$16,11)*AC16,AC16) -> 38.80 | AE16: =IF((AND(E16=MONTH(VLOOKUP('Time Series Data'!E16,'Coincident Peak'!$C$5:$D$16,2)),F16=DAY(VLOOKUP('Time Series Data'!E16,'Coincident Peak'!$C$5:$D$16,2))+1)),VLOOKUP(E16,'Coincident Peak'!$C$5:$N$16,12)*AD16,AD16) -> 38.80 | AF16: 8,974 | AG16: =IF((AND(E16=MONTH(VLOOKUP('Time Series Data'!E16,'Coincident Peak'!$C$5:$D$16,2)),F16=DAY(VLOOKUP('Time Series Data'!E16,'Coincident Peak'!$C$5:$D$16,2)))),U16,O16) -> 38.80 | AH16: 8,974 | AL16: 9 | AM16: 2019-01-10 | AN16: 1 | AO16: 0 | AP16: 360.03 | AQ16: 316.15 | AR16: 2,881.27 | AS16: 1,787.52 | AT16: =IF(ISNA(MATCH(AM16,'Coincident Peak'!$D$5:$D$16,0))=TRUE,0,SUMIFS($O$7:$O$8790,$F$7:$F$8790,DAY(AM16),$E$7:$E$8790,MONTH(AM16),$G$7:$G$8790,"<"&HOUR(VLOOKUP(AM16,'Coincident Peak'!$D$5:$E$16,2))-Values!$E$5)) -> 0 | AU16: 0 | AV16: 316 | AW16: 316 | AX16: 827 | AY16: =IF(ISNA(MATCH(AM16,'Coincident Peak'!$D$5:$D$16,0))=TRUE,0,SUMIFS($O$7:$O$8790,$F$7:$F$8790,DAY(AM16),$E$7:$E$8790,MONTH(AM16),$G$7:$G$8790,"<"&HOUR(VLOOKUP(AM16,'Coincident Peak'!$D$5:$E$16,2))-Values!$E$5,$I$7:$I$8790,1)) -> 0 | AZ16: 827 | BA16: 827 | BB16: 0 | BD16: 827 | BE16: 1,835 | BF16: 0 | BG16: =IF(IF(ISNA(MATCH(AM16,'Coincident Peak'!$D$5:$D$16,0))=TRUE,0,SUMIFS($O$7:$O$8790,$F$7:$F$8790,DAY(AM16),$E$7:$E$8790,MONTH(AM16),$G$7:$G$8790,"<"&HOUR(VLOOKUP(AM16,'Coincident Peak'!$D$5:$E$16,2))-Values!$E$5,$I$7:$I$8790,0))>(Effective_Battery_Capacity/Rndtrp_eff),(Effective_Battery_Capacity/Rndtrp_eff),IF(ISNA(MATCH(AM16,'Coincident Peak'!$D$5:$D$16,0))=TRUE,0,SUMIFS($O$7:$O$8790,$F$7:$F$8790,DAY(AM16),$E$7:$E$8790,MONTH(AM16),$G$7:$G$8790,"<"&HOUR(VLOOKUP(AM16,'Coincident Peak'!$D$5:$E$16,2))-Values!$E$5,$I$7:$I$8790,0))) -> 0 | BH16: =IF((IF(ISNA(MATCH(AM16,'Coincident Peak'!$D$5:$D$16,0))=TRUE,0,SUMIFS($O$7:$O$8790,$F$7:$F$8790,DAY(AM16),$E$7:$E$8790,MONTH(AM16),$G$7:$G$8790,"<"&HOUR(VLOOKUP(AM16,'Coincident Peak'!$D$5:$E$16,2))-Values!$E$5)))>(Effective_Battery_Capacity/Rndtrp_eff),(Effective_Battery_Capacity/Rndtrp_eff),(IF(ISNA(MATCH(AM16,'Coincident Peak'!$D$5:$D$16,0))=TRUE,0,SUMIFS($O$7:$O$8790,$F$7:$F$8790,DAY(AM16),$E$7:$E$8790,MONTH(AM16),$G$7:$G$8790,"<"&HOUR(VLOOKUP(AM16,'Coincident Peak'!$D$5:$E$16,2))-Values!$E$5)))) -> 0 | BI16: 0 | BJ16: 0 | BK16: =IF(WholesaleEnergyCost_2>PPACostPerKWh,(IF((SUMIFS('Time Series Data'!$AG$7:$AG$8790,'Time Series Data'!$I$7:$I$8790,1,$F$7:$F$8790,DAY(AM16),$E$7:$E$8790,MONTH(AM16))-BP16)>(Effective_Battery_Capacity/Rndtrp_eff),(Effective_Battery_Capacity/Rndtrp_eff),(SUMIFS('Time Series Data'!$AG$7:$AG$8790,'Time Series Data'!$I$7:$I$8790,1,$F$7:$F$8790,DAY(AM16),$E$7:$E$8790,MONTH(AM16))))-BP16),0) -> 0 | BL16: 0 | BM16: =SUMIFS('Time Series Data'!$AG$7:$AG$8790,$F$7:$F$8790,DAY(AM16),$E$7:$E$8790,MONTH(AM16),'Time Series Data'!$I$7:$I$8790,1)-BL16-BP16 -> 2,054 | BN16: =SUMIFS('Time Series Data'!$AG$7:$AG$8790,'Time Series Data'!$I$7:$I$8790,0,$F$7:$F$8790,DAY(AM16),$E$7:$E$8790,MONTH(AM16))-BQ16 -> 827 | BO16: =IF((IF(ISNA(MATCH(AM16,'Coincident Peak'!$D$5:$D$16,0))=TRUE,0,SUMIFS($U$7:$U$8790,$F$7:$F$8790,DAY(AM16),$E$7:$E$8790,MONTH(AM16),$G$7:$G$8790,"<"&HOUR(VLOOKUP(AM16,'Coincident Peak'!$D$5:$E$16,2))-Values!$E$5)))>(Effective_Battery_Capacity/Rndtrp_eff),(Effective_Battery_Capacity/Rndtrp_eff),(IF(ISNA(MATCH(AM16,'Coincident Peak'!$D$5:$D$16,0))=TRUE,0,SUMIFS($U$7:$U$8790,$F$7:$F$8790,DAY(AM16),$E$7:$E$8790,MONTH(AM16),$G$7:$G$8790,"<"&HOUR(VLOOKUP(AM16,'Coincident Peak'!$D$5:$E$16,2))-Values!$E$5)))) -> 0 | BP16: =IF(WholesaleEnergyCost_2>PPACostPerKWh,(IF((IF(ISNA(MATCH(AM16,'Coincident Peak'!$D$5:$D$16,0))=TRUE,0,SUMIFS($U$7:$U$8790,$F$7:$F$8790,DAY(AM16),$E$7:$E$8790,MONTH(AM16),$G$7:$G$8790,"<"&HOUR(VLOOKUP(AM16,'Coincident Peak'!$D$5:$E$16,2))-Values!$E$5,$I$7:$I$8790,1)))>(Effective_Battery_Capacity/Rndtrp_eff),(Effective_Battery_Capacity/Rndtrp_eff),(IF(ISNA(MATCH(AM16,'Coincident Peak'!$D$5:$D$16,0))=TRUE,0,SUMIFS($U$7:$U$8790,$F$7:$F$8790,DAY(AM16),$E$7:$E$8790,MONTH(AM16),$G$7:$G$8790,"<"&HOUR(VLOOKUP(AM16,'Coincident Peak'!$D$5:$E$16,2))-Values!$E$5,$I$7:$I$8790,1))))),0) -> 0 | BQ16: =IF(WholesaleEnergyCost_1>PPACostPerKWh,(IF((IF(ISNA(MATCH(AM16,'Coincident Peak'!$D$5:$D$16,0))=TRUE,0,SUMIFS($U$7:$U$8790,$F$7:$F$8790,DAY(AM16),$E$7:$E$8790,MONTH(AM16),$G$7:$G$8790,"<"&HOUR(VLOOKUP(AM16,'Coincident Peak'!$D$5:$E$16,2))-Values!$E$5,$I$7:$I$8790,0)))>(Effective_Battery_Capacity/Rndtrp_eff),(Effective_Battery_Capacity/Rndtrp_eff),(IF(ISNA(MATCH(AM16,'Coincident Peak'!$D$5:$D$16,0))=TRUE,0,SUMIFS($U$7:$U$8790,$F$7:$F$8790,DAY(AM16),$E$7:$E$8790,MONTH(AM16),$G$7:$G$8790,"<"&HOUR(VLOOKUP(AM16,'Coincident Peak'!$D$5:$E$16,2))-Values!$E$5,$I$7:$I$8790,0))))),0) -> 0 | BR16: 0 | BS16: 1,835 | BT16: 316 | BV16: =IF(ISNA(MATCH(AM16,'Coincident Peak'!$D$5:$D$16,0))=TRUE,0,1) -> 0 | BW16: 0 | BX16: 1 | BY16: 1 | BZ16: 1 | CA16: 1 | CB16: 0 | CC16: 0 | CD16: =IF(ISNA(MATCH(AM16,'Coincident Peak'!$D$5:$D$16,0))=TRUE,1,0) -> 1 | CE16: =VLOOKUP(MONTH($AM16),'Value Stacking Basis'!$B$38:$D$49,3) -> 3 | CF16: =VLOOKUP(MONTH($AM16),'Value Stacking Basis'!$B$38:$F$49,5) -> 2 | CG16: 1 | CK16: 0 | CL16: 0 | CM16: 0 | CN16: 0 | CO16: 0 | CQ16: 0 | CR16: 0 | CS16: 0 | CT16: 0 | CU16: 0 | CW16: =IF($BV16=0,0,IF($CB16=0,INDEX('Time Series Data'!N$7:N$8790,MATCH(1,(MONTH($AM16)='Time Series Data'!$E$7:$E$8790)*(DAY($AM16)='Time Series Data'!$F$7:$F$8790)*(HOUR(VLOOKUP('Time Series Data'!$AM16,'Coincident Peak'!$D$5:$I$16,2))='Time Series Data'!$G$7:$G$8790),0)),IF(($AT16*Rndtrp_eff)>Effective_Battery_Capacity,BatteryPower,(($AT16*Rndtrp_eff)/Effective_Battery_Capacity)*BatteryPower))) -> 0 | CX16: 0 | CY16: 0 | CZ16: 0 | DA16: 0 | DC16: =IF($BV16=0,0,IF($CB16=0,INDEX('Time Series Data'!N$7:N$8790,MATCH(1,(MONTH($AM16)='Time Series Data'!$E$7:$E$8790)*(DAY($AM16)='Time Series Data'!$F$7:$F$8790)*(HOUR(VLOOKUP('Time Series Data'!$AM16,'Coincident Peak'!$D$5:$I$16,2))='Time Series Data'!$G$7:$G$8790),0)),IF(($AT16*Rndtrp_eff)>Effective_Battery_Capacity,BatteryPower,(($AT16*Rndtrp_eff)/Effective_Battery_Capacity)*BatteryPower))) -> 0 | DD16: 0 | DF16: 0 | DG16: 316 | DH16: 0 | DI16: 0 | DJ16: 0 | DK16: 0 | DM16: 0 | DN16: 316 | DO16: 0 | DP16: 0 | DR16: 0 | DS16: 1,596.26 | DT16: 1,596.26 | DU16: 1,596.26 | DV16: 0 | DX16: 0 | DY16: 0 | DZ16: 1,596.26 | EA16: 1,596.26 | EB16: 1,596.26 | EF16: 0 | EG16: 0 | EH16: 0 | EI16: 0 | EK16: 0 | EL16: 0 | EM16: 0 | EN16: 0 | EP16: =IF($BV16=0,0,IF($CC16=0,VLOOKUP('Time Series Data'!$AM16,'Coincident Peak'!$D$5:$I$16,3),BatteryPower)) -> 0 | EQ16: 0 | ER16: 0 | ES16: 0 | EU16: =IF($BV16=0,0,IF($CC16=0,VLOOKUP('Time Series Data'!$AM16,'Coincident Peak'!$D$5:$I$16,3),BatteryPower)) -> 0 | EV16: 0 | EX16: 0 | EY16: 316.15 | EZ16: 0 | FA16: 0 | FB16: 0 | FD16: 0 | FE16: 316.15 | FF16: 0 | FH16: 0 | FI16: 1,596.26 | FJ16: 1,596.26 | FK16: 1,596.26 | FL16: 0 | FN16: 0 | FO16: 0 | FP16: 1,596.26 | FQ16: 1,596.26 | FR16: 1,596.26 | FT16: 0
B17: 2019-01-01T10:00:00 | C17: 2019-01-01 | D17: 9,888 | E17: 1 | F17: 1 | G17: 10 | H17: 2 | I17: =INDEX(Values!$V$6:$AG$29,'Time Series Data'!G17+1,'Time Series Data'!E17) -> 1 | J17: 10.5 | K17: 9888 | L17: 0 | M17: 0 | N17: 0 | O17: 121.145 | P17: 95 | T17: 0.00 | U17: 121.15 | V17: 9,767 | W17: =IF(V17+O17>VLOOKUP(E17,'Coincident Peak'!$C$22:$I$33,7),0,1) -> 1 | X17: =IF((AND(E17=MONTH(VLOOKUP('Time Series Data'!E17,'Coincident Peak'!$C$5:$D$16,2)),F17=DAY(VLOOKUP('Time Series Data'!E17,'Coincident Peak'!$C$5:$D$16,2)),IF(AND(G17<=HOUR(VLOOKUP('Time Series Data'!E17,'Coincident Peak'!$C$5:$E$16,3))+Values!$E$5,G17>=HOUR(VLOOKUP('Time Series Data'!E17,'Coincident Peak'!$C$5:$E$16,3))-Values!$E$5),"TRUE","FALSE"))),BatteryPower,0) -> 0.00 | Y17: =IF((AND(E17=MONTH(VLOOKUP('Time Series Data'!E17,'Coincident Peak'!$C$5:$D$16,2)),F17=DAY(VLOOKUP('Time Series Data'!E17,'Coincident Peak'!$C$5:$D$16,2)))),0,N17) -> 0.00 | Z17: =IF((AND(E17=MONTH(VLOOKUP('Time Series Data'!E17,'Coincident Peak'!$C$5:$D$16,2)),F17=DAY(VLOOKUP('Time Series Data'!E17,'Coincident Peak'!$C$5:$D$16,2)),IF(AND(G17<=HOUR(VLOOKUP('Time Series Data'!E17,'Coincident Peak'!$C$5:$E$16,3))+Values!$E$5,G17>=HOUR(VLOOKUP('Time Series Data'!E17,'Coincident Peak'!$C$5:$E$16,3))-Values!$E$5),"TRUE","FALSE"))),BatteryPower,Y17) -> 0.00 | AA17: =IF((AND(E17=MONTH(VLOOKUP('Time Series Data'!E17,'Coincident Peak'!$C$5:$D$16,2)),F17=DAY(VLOOKUP('Time Series Data'!E17,'Coincident Peak'!$C$5:$D$16,2))-1)),VLOOKUP(E17,'Coincident Peak'!$C$5:$N$16,11)*Z17,Z17) -> 0.00 | AB17: =IF((AND(E17=MONTH(VLOOKUP('Time Series Data'!E17,'Coincident Peak'!$C$5:$D$16,2)),F17=DAY(VLOOKUP('Time Series Data'!E17,'Coincident Peak'!$C$5:$D$16,2))+1)),VLOOKUP(E17,'Coincident Peak'!$C$5:$N$16,12)*AA17,AA17) -> 0.00 | AC17: =IF((AND(E17=MONTH(VLOOKUP('Time Series Data'!E17,'Coincident Peak'!$C$5:$D$16,2)),F17=DAY(VLOOKUP('Time Series Data'!E17,'Coincident Peak'!$C$5:$D$16,2)))),0,O17) -> 121.15 | AD17: =IF((AND(E17=MONTH(VLOOKUP('Time Series Data'!E17,'Coincident Peak'!$C$5:$D$16,2)),F17=DAY(VLOOKUP('Time Series Data'!E17,'Coincident Peak'!$C$5:$D$16,2))-1)),VLOOKUP(E17,'Coincident Peak'!$C$5:$N$16,11)*AC17,AC17) -> 121.15 | AE17: =IF((AND(E17=MONTH(VLOOKUP('Time Series Data'!E17,'Coincident Peak'!$C$5:$D$16,2)),F17=DAY(VLOOKUP('Time Series Data'!E17,'Coincident Peak'!$C$5:$D$16,2))+1)),VLOOKUP(E17,'Coincident Peak'!$C$5:$N$16,12)*AD17,AD17) -> 121.15 | AF17: 9,767 | AG17: =IF((AND(E17=MONTH(VLOOKUP('Time Series Data'!E17,'Coincident Peak'!$C$5:$D$16,2)),F17=DAY(VLOOKUP('Time Series Data'!E17,'Coincident Peak'!$C$5:$D$16,2)))),U17,O17) -> 121.15 | AH17: 9,767 | AL17: 10 | AM17: 2019-01-11 | AN17: 1 | AO17: 83.06 | AP17: 548.46 | AQ17: 539.68 | AR17: 2,905.67 | AS17: 1,739.42 | AT17: =IF(ISNA(MATCH(AM17,'Coincident Peak'!$D$5:$D$16,0))=TRUE,0,SUMIFS($O$7:$O$8790,$F$7:$F$8790,DAY(AM17),$E$7:$E$8790,MONTH(AM17),$G$7:$G$8790,"<"&HOUR(VLOOKUP(AM17,'Coincident Peak'!$D$5:$E$16,2))-Values!$E$5)) -> 0 | AU17: 0 | AV17: 540 | AW17: 540 | AX17: 907 | AY17: =IF(ISNA(MATCH(AM17,'Coincident Peak'!$D$5:$D$16,0))=TRUE,0,SUMIFS($O$7:$O$8790,$F$7:$F$8790,DAY(AM17),$E$7:$E$8790,MONTH(AM17),$G$7:$G$8790,"<"&HOUR(VLOOKUP(AM17,'Coincident Peak'!$D$5:$E$16,2))-Values!$E$5,$I$7:$I$8790,1)) -> 0 | AZ17: 907 | BA17: 907 | BB17: 0 | BD17: 907 | BE17: 1,835 | BF17: 0 | BG17: =IF(IF(ISNA(MATCH(AM17,'Coincident Peak'!$D$5:$D$16,0))=TRUE,0,SUMIFS($O$7:$O$8790,$F$7:$F$8790,DAY(AM17),$E$7:$E$8790,MONTH(AM17),$G$7:$G$8790,"<"&HOUR(VLOOKUP(AM17,'Coincident Peak'!$D$5:$E$16,2))-Values!$E$5,$I$7:$I$8790,0))>(Effective_Battery_Capacity/Rndtrp_eff),(Effective_Battery_Capacity/Rndtrp_eff),IF(ISNA(MATCH(AM17,'Coincident Peak'!$D$5:$D$16,0))=TRUE,0,SUMIFS($O$7:$O$8790,$F$7:$F$8790,DAY(AM17),$E$7:$E$8790,MONTH(AM17),$G$7:$G$8790,"<"&HOUR(VLOOKUP(AM17,'Coincident Peak'!$D$5:$E$16,2))-Values!$E$5,$I$7:$I$8790,0))) -> 0 | BH17: =IF((IF(ISNA(MATCH(AM17,'Coincident Peak'!$D$5:$D$16,0))=TRUE,0,SUMIFS($O$7:$O$8790,$F$7:$F$8790,DAY(AM17),$E$7:$E$8790,MONTH(AM17),$G$7:$G$8790,"<"&HOUR(VLOOKUP(AM17,'Coincident Peak'!$D$5:$E$16,2))-Values!$E$5)))>(Effective_Battery_Capacity/Rndtrp_eff),(Effective_Battery_Capacity/Rndtrp_eff),(IF(ISNA(MATCH(AM17,'Coincident Peak'!$D$5:$D$16,0))=TRUE,0,SUMIFS($O$7:$O$8790,$F$7:$F$8790,DAY(AM17),$E$7:$E$8790,MONTH(AM17),$G$7:$G$8790,"<"&HOUR(VLOOKUP(AM17,'Coincident Peak'!$D$5:$E$16,2))-Values!$E$5)))) -> 0 | BI17: 83 | BJ17: 0 | BK17: =IF(WholesaleEnergyCost_2>PPACostPerKWh,(IF((SUMIFS('Time Series Data'!$AG$7:$AG$8790,'Time Series Data'!$I$7:$I$8790,1,$F$7:$F$8790,DAY(AM17),$E$7:$E$8790,MONTH(AM17))-BP17)>(Effective_Battery_Capacity/Rndtrp_eff),(Effective_Battery_Capacity/Rndtrp_eff),(SUMIFS('Time Series Data'!$AG$7:$AG$8790,'Time Series Data'!$I$7:$I$8790,1,$F$7:$F$8790,DAY(AM17),$E$7:$E$8790,MONTH(AM17))))-BP17),0) -> 0 | BL17: 0 | BM17: =SUMIFS('Time Series Data'!$AG$7:$AG$8790,$F$7:$F$8790,DAY(AM17),$E$7:$E$8790,MONTH(AM17),'Time Series Data'!$I$7:$I$8790,1)-BL17-BP17 -> 1,916 | BN17: =SUMIFS('Time Series Data'!$AG$7:$AG$8790,'Time Series Data'!$I$7:$I$8790,0,$F$7:$F$8790,DAY(AM17),$E$7:$E$8790,MONTH(AM17))-BQ17 -> 907 | BO17: =IF((IF(ISNA(MATCH(AM17,'Coincident Peak'!$D$5:$D$16,0))=TRUE,0,SUMIFS($U$7:$U$8790,$F$7:$F$8790,DAY(AM17),$E$7:$E$8790,MONTH(AM17),$G$7:$G$8790,"<"&HOUR(VLOOKUP(AM17,'Coincident Peak'!$D$5:$E$16,2))-Values!$E$5)))>(Effective_Battery_Capacity/Rndtrp_eff),(Effective_Battery_Capacity/Rndtrp_eff),(IF(ISNA(MATCH(AM17,'Coincident Peak'!$D$5:$D$16,0))=TRUE,0,SUMIFS($U$7:$U$8790,$F$7:$F$8790,DAY(AM17),$E$7:$E$8790,MONTH(AM17),$G$7:$G$8790,"<"&HOUR(VLOOKUP(AM17,'Coincident Peak'!$D$5:$E$16,2))-Values!$E$5)))) -> 0 | BP17: =IF(WholesaleEnergyCost_2>PPACostPerKWh,(IF((IF(ISNA(MATCH(AM17,'Coincident Peak'!$D$5:$D$16,0))=TRUE,0,SUMIFS($U$7:$U$8790,$F$7:$F$8790,DAY(AM17),$E$7:$E$8790,MONTH(AM17),$G$7:$G$8790,"<"&HOUR(VLOOKUP(AM17,'Coincident Peak'!$D$5:$E$16,2))-Values!$E$5,$I$7:$I$8790,1)))>(Effective_Battery_Capacity/Rndtrp_eff),(Effective_Battery_Capacity/Rndtrp_eff),(IF(ISNA(MATCH(AM17,'Coincident Peak'!$D$5:$D$16,0))=TRUE,0,SUMIFS($U$7:$U$8790,$F$7:$F$8790,DAY(AM17),$E$7:$E$8790,MONTH(AM17),$G$7:$G$8790,"<"&HOUR(VLOOKUP(AM17,'Coincident Peak'!$D$5:$E$16,2))-Values!$E$5,$I$7:$I$8790,1))))),0) -> 0 | BQ17: =IF(WholesaleEnergyCost_1>PPACostPerKWh,(IF((IF(ISNA(MATCH(AM17,'Coincident Peak'!$D$5:$D$16,0))=TRUE,0,SUMIFS($U$7:$U$8790,$F$7:$F$8790,DAY(AM17),$E$7:$E$8790,MONTH(AM17),$G$7:$G$8790,"<"&HOUR(VLOOKUP(AM17,'Coincident Peak'!$D$5:$E$16,2))-Values!$E$5,$I$7:$I$8790,0)))>(Effective_Battery_Capacity/Rndtrp_eff),(Effective_Battery_Capacity/Rndtrp_eff),(IF(ISNA(MATCH(AM17,'Coincident Peak'!$D$5:$D$16,0))=TRUE,0,SUMIFS($U$7:$U$8790,$F$7:$F$8790,DAY(AM17),$E$7:$E$8790,MONTH(AM17),$G$7:$G$8790,"<"&HOUR(VLOOKUP(AM17,'Coincident Peak'!$D$5:$E$16,2))-Values!$E$5,$I$7:$I$8790,0))))),0) -> 0 | BR17: 83 | BS17: 1,835 | BT17: 540 | BV17: =IF(ISNA(MATCH(AM17,'Coincident Peak'!$D$5:$D$16,0))=TRUE,0,1) -> 0 | BW17: 1 | BX17: 1 | BY17: 2 | BZ17: 1 | CA17: 1 | CB17: 0 | CC17: 0 | CD17: =IF(ISNA(MATCH(AM17,'Coincident Peak'!$D$5:$D$16,0))=TRUE,1,0) -> 1 | CE17: =VLOOKUP(MONTH($AM17),'Value Stacking Basis'!$B$38:$D$49,3) -> 3 | CF17: =VLOOKUP(MONTH($AM17),'Value Stacking Basis'!$B$38:$F$49,5) -> 2 | CG17: 1 | CK17: 0 | CL17: 0 | CM17: 0 | CN17: 0 | CO17: 0 | CQ17: 0 | CR17: 0 | CS17: 0 | CT17: 0 | CU17: 0 | CW17: =IF($BV17=0,0,IF($CB17=0,INDEX('Time Series Data'!N$7:N$8790,MATCH(1,(MONTH($AM17)='Time Series Data'!$E$7:$E$8790)*(DAY($AM17)='Time Series Data'!$F$7:$F$8790)*(HOUR(VLOOKUP('Time Series Data'!$AM17,'Coincident Peak'!$D$5:$I$16,2))='Time Series Data'!$G$7:$G$8790),0)),IF(($AT17*Rndtrp_eff)>Effective_Battery_Capacity,BatteryPower,(($AT17*Rndtrp_eff)/Effective_Battery_Capacity)*BatteryPower))) -> 0 | CX17: 0 | CY17: 0 | CZ17: 0 | DA17: 0 | DC17: =IF($BV17=0,0,IF($CB17=0,INDEX('Time Series Data'!N$7:N$8790,MATCH(1,(MONTH($AM17)='Time Series Data'!$E$7:$E$8790)*(DAY($AM17)='Time Series Data'!$F$7:$F$8790)*(HOUR(VLOOKUP('Time Series Data'!$AM17,'Coincident Peak'!$D$5:$I$16,2))='Time Series Data'!$G$7:$G$8790),0)),IF(($AT17*Rndtrp_eff)>Effective_Battery_Capacity,BatteryPower,(($AT17*Rndtrp_eff)/Effective_Battery_Capacity)*BatteryPower))) -> 0 | DD17: 0 | DF17: 0 | DG17: 540 | DH17: 0 | DI17: 0 | DJ17: 0 | DK17: 0 | DM17: 0 | DN17: 540 | DO17: 0 | DP17: 0 | DR17: 0 | DS17: 1,596.26 | DT17: 1,596.26 | DU17: 1,596.26 | DV17: 0 | DX17: 0 | DY17: 0 | DZ17: 1,596.26 | EA17: 1,596.26 | EB17: 1,596.26 | EF17: 0 | EG17: 0 | EH17: 0 | EI17: 0 | EK17: 0 | EL17: 0 | EM17: 0 | EN17: 0 | EP17: =IF($BV17=0,0,IF($CC17=0,VLOOKUP('Time Series Data'!$AM17,'Coincident Peak'!$D$5:$I$16,3),BatteryPower)) -> 0 | EQ17: 0 | ER17: 0 | ES17: 0 | EU17: =IF($BV17=0,0,IF($CC17=0,VLOOKUP('Time Series Data'!$AM17,'Coincident Peak'!$D$5:$I$16,3),BatteryPower)) -> 0 | EV17: 0 | EX17: 0 | EY17: 539.68 | EZ17: 0 | FA17: 0 | FB17: 0 | FD17: 0 | FE17: 539.68 | FF17: 0 | FH17: 0 | FI17: 1,596.26 | FJ17: 1,596.26 | FK17: 1,596.26 | FL17: 0 | FN17: 0 | FO17: 0 | FP17: 1,596.26 | FQ17: 1,596.26 | FR17: 1,596.26 | FT17: 0
B18: 2019-01-01T11:00:00 | C18: 2019-01-01 | D18: 10,472 | E18: 1 | F18: 1 | G18: 11 | H18: 2 | I18: =INDEX(Values!$V$6:$AG$29,'Time Series Data'!G18+1,'Time Series Data'!E18) -> 1 | J18: 11.5 | K18: 10472 | L18: 0 | M18: 0 | N18: 0 | O18: 97.3044 | P18: 95 | T18: 0.00 | U18: 97.30 | V18: 10,375 | W18: =IF(V18+O18>VLOOKUP(E18,'Coincident Peak'!$C$22:$I$33,7),0,1) -> 1 | X18: =IF((AND(E18=MONTH(VLOOKUP('Time Series Data'!E18,'Coincident Peak'!$C$5:$D$16,2)),F18=DAY(VLOOKUP('Time Series Data'!E18,'Coincident Peak'!$C$5:$D$16,2)),IF(AND(G18<=HOUR(VLOOKUP('Time Series Data'!E18,'Coincident Peak'!$C$5:$E$16,3))+Values!$E$5,G18>=HOUR(VLOOKUP('Time Series Data'!E18,'Coincident Peak'!$C$5:$E$16,3))-Values!$E$5),"TRUE","FALSE"))),BatteryPower,0) -> 0.00 | Y18: =IF((AND(E18=MONTH(VLOOKUP('Time Series Data'!E18,'Coincident Peak'!$C$5:$D$16,2)),F18=DAY(VLOOKUP('Time Series Data'!E18,'Coincident Peak'!$C$5:$D$16,2)))),0,N18) -> 0.00 | Z18: =IF((AND(E18=MONTH(VLOOKUP('Time Series Data'!E18,'Coincident Peak'!$C$5:$D$16,2)),F18=DAY(VLOOKUP('Time Series Data'!E18,'Coincident Peak'!$C$5:$D$16,2)),IF(AND(G18<=HOUR(VLOOKUP('Time Series Data'!E18,'Coincident Peak'!$C$5:$E$16,3))+Values!$E$5,G18>=HOUR(VLOOKUP('Time Series Data'!E18,'Coincident Peak'!$C$5:$E$16,3))-Values!$E$5),"TRUE","FALSE"))),BatteryPower,Y18) -> 0.00 | AA18: =IF((AND(E18=MONTH(VLOOKUP('Time Series Data'!E18,'Coincident Peak'!$C$5:$D$16,2)),F18=DAY(VLOOKUP('Time Series Data'!E18,'Coincident Peak'!$C$5:$D$16,2))-1)),VLOOKUP(E18,'Coincident Peak'!$C$5:$N$16,11)*Z18,Z18) -> 0.00 | AB18: =IF((AND(E18=MONTH(VLOOKUP('Time Series Data'!E18,'Coincident Peak'!$C$5:$D$16,2)),F18=DAY(VLOOKUP('Time Series Data'!E18,'Coincident Peak'!$C$5:$D$16,2))+1)),VLOOKUP(E18,'Coincident Peak'!$C$5:$N$16,12)*AA18,AA18) -> 0.00 | AC18: =IF((AND(E18=MONTH(VLOOKUP('Time Series Data'!E18,'Coincident Peak'!$C$5:$D$16,2)),F18=DAY(VLOOKUP('Time Series Data'!E18,'Coincident Peak'!$C$5:$D$16,2)))),0,O18) -> 97.30 | AD18: =IF((AND(E18=MONTH(VLOOKUP('Time Series Data'!E18,'Coincident Peak'!$C$5:$D$16,2)),F18=DAY(VLOOKUP('Time Series Data'!E18,'Coincident Peak'!$C$5:$D$16,2))-1)),VLOOKUP(E18,'Coincident Peak'!$C$5:$N$16,11)*AC18,AC18) -> 97.30 | AE18: =IF((AND(E18=MONTH(VLOOKUP('Time Series Data'!E18,'Coincident Peak'!$C$5:$D$16,2)),F18=DAY(VLOOKUP('Time Series Data'!E18,'Coincident Peak'!$C$5:$D$16,2))+1)),VLOOKUP(E18,'Coincident Peak'!$C$5:$N$16,12)*AD18,AD18) -> 97.30 | AF18: 10,375 | AG18: =IF((AND(E18=MONTH(VLOOKUP('Time Series Data'!E18,'Coincident Peak'!$C$5:$D$16,2)),F18=DAY(VLOOKUP('Time Series Data'!E18,'Coincident Peak'!$C$5:$D$16,2)))),U18,O18) -> 97.30 | AH18: 10,375 | AL18: 11 | AM18: 2019-01-12 | AN18: 0 | AO18: 0 | AP18: 0 | AQ18: 0 | AR18: 268.46 | AS18: 178.58 | AT18: =IF(ISNA(MATCH(AM18,'Coincident Peak'!$D$5:$D$16,0))=TRUE,0,SUMIFS($O$7:$O$8790,$F$7:$F$8790,DAY(AM18),$E$7:$E$8790,MONTH(AM18),$G$7:$G$8790,"<"&HOUR(VLOOKUP(AM18,'Coincident Peak'!$D$5:$E$16,2))-Values!$E$5)) -> 0 | AU18: 0 | AV18: 0 | AW18: 0 | AX18: 0 | AY18: =IF(ISNA(MATCH(AM18,'Coincident Peak'!$D$5:$D$16,0))=TRUE,0,SUMIFS($O$7:$O$8790,$F$7:$F$8790,DAY(AM18),$E$7:$E$8790,MONTH(AM18),$G$7:$G$8790,"<"&HOUR(VLOOKUP(AM18,'Coincident Peak'!$D$5:$E$16,2))-Values!$E$5,$I$7:$I$8790,1)) -> 0 | AZ18: 0 | BA18: 0 | BB18: 0 | BD18: 0 | BE18: 0 | BF18: 0 | BG18: =IF(IF(ISNA(MATCH(AM18,'Coincident Peak'!$D$5:$D$16,0))=TRUE,0,SUMIFS($O$7:$O$8790,$F$7:$F$8790,DAY(AM18),$E$7:$E$8790,MONTH(AM18),$G$7:$G$8790,"<"&HOUR(VLOOKUP(AM18,'Coincident Peak'!$D$5:$E$16,2))-Values!$E$5,$I$7:$I$8790,0))>(Effective_Battery_Capacity/Rndtrp_eff),(Effective_Battery_Capacity/Rndtrp_eff),IF(ISNA(MATCH(AM18,'Coincident Peak'!$D$5:$D$16,0))=TRUE,0,SUMIFS($O$7:$O$8790,$F$7:$F$8790,DAY(AM18),$E$7:$E$8790,MONTH(AM18),$G$7:$G$8790,"<"&HOUR(VLOOKUP(AM18,'Coincident Peak'!$D$5:$E$16,2))-Values!$E$5,$I$7:$I$8790,0))) -> 0 | BH18: =IF((IF(ISNA(MATCH(AM18,'Coincident Peak'!$D$5:$D$16,0))=TRUE,0,SUMIFS($O$7:$O$8790,$F$7:$F$8790,DAY(AM18),$E$7:$E$8790,MONTH(AM18),$G$7:$G$8790,"<"&HOUR(VLOOKUP(AM18,'Coincident Peak'!$D$5:$E$16,2))-Values!$E$5)))>(Effective_Battery_Capacity/Rndtrp_eff),(Effective_Battery_Capacity/Rndtrp_eff),(IF(ISNA(MATCH(AM18,'Coincident Peak'!$D$5:$D$16,0))=TRUE,0,SUMIFS($O$7:$O$8790,$F$7:$F$8790,DAY(AM18),$E$7:$E$8790,MONTH(AM18),$G$7:$G$8790,"<"&HOUR(VLOOKUP(AM18,'Coincident Peak'!$D$5:$E$16,2))-Values!$E$5)))) -> 0 | BI18: 0 | BJ18: 0 | BK18: =IF(WholesaleEnergyCost_2>PPACostPerKWh,(IF((SUMIFS('Time Series Data'!$AG$7:$AG$8790,'Time Series Data'!$I$7:$I$8790,1,$F$7:$F$8790,DAY(AM18),$E$7:$E$8790,MONTH(AM18))-BP18)>(Effective_Battery_Capacity/Rndtrp_eff),(Effective_Battery_Capacity/Rndtrp_eff),(SUMIFS('Time Series Data'!$AG$7:$AG$8790,'Time Series Data'!$I$7:$I$8790,1,$F$7:$F$8790,DAY(AM18),$E$7:$E$8790,MONTH(AM18))))-BP18),0) -> 0 | BL18: 0 | BM18: =SUMIFS('Time Series Data'!$AG$7:$AG$8790,$F$7:$F$8790,DAY(AM18),$E$7:$E$8790,MONTH(AM18),'Time Series Data'!$I$7:$I$8790,1)-BL18-BP18 -> 205 | BN18: =SUMIFS('Time Series Data'!$AG$7:$AG$8790,'Time Series Data'!$I$7:$I$8790,0,$F$7:$F$8790,DAY(AM18),$E$7:$E$8790,MONTH(AM18))-BQ18 -> 63 | BO18: =IF((IF(ISNA(MATCH(AM18,'Coincident Peak'!$D$5:$D$16,0))=TRUE,0,SUMIFS($U$7:$U$8790,$F$7:$F$8790,DAY(AM18),$E$7:$E$8790,MONTH(AM18),$G$7:$G$8790,"<"&HOUR(VLOOKUP(AM18,'Coincident Peak'!$D$5:$E$16,2))-Values!$E$5)))>(Effective_Battery_Capacity/Rndtrp_eff),(Effective_Battery_Capacity/Rndtrp_eff),(IF(ISNA(MATCH(AM18,'Coincident Peak'!$D$5:$D$16,0))=TRUE,0,SUMIFS($U$7:$U$8790,$F$7:$F$8790,DAY(AM18),$E$7:$E$8790,MONTH(AM18),$G$7:$G$8790,"<"&HOUR(VLOOKUP(AM18,'Coincident Peak'!$D$5:$E$16,2))-Values!$E$5)))) -> 0 | BP18: =IF(WholesaleEnergyCost_2>PPACostPerKWh,(IF((IF(ISNA(MATCH(AM18,'Coincident Peak'!$D$5:$D$16,0))=TRUE,0,SUMIFS($U$7:$U$8790,$F$7:$F$8790,DAY(AM18),$E$7:$E$8790,MONTH(AM18),$G$7:$G$8790,"<"&HOUR(VLOOKUP(AM18,'Coincident Peak'!$D$5:$E$16,2))-Values!$E$5,$I$7:$I$8790,1)))>(Effective_Battery_Capacity/Rndtrp_eff),(Effective_Battery_Capacity/Rndtrp_eff),(IF(ISNA(MATCH(AM18,'Coincident Peak'!$D$5:$D$16,0))=TRUE,0,SUMIFS($U$7:$U$8790,$F$7:$F$8790,DAY(AM18),$E$7:$E$8790,MONTH(AM18),$G$7:$G$8790,"<"&HOUR(VLOOKUP(AM18,'Coincident Peak'!$D$5:$E$16,2))-Values!$E$5,$I$7:$I$8790,1))))),0) -> 0 | BQ18: =IF(WholesaleEnergyCost_1>PPACostPerKWh,(IF((IF(ISNA(MATCH(AM18,'Coincident Peak'!$D$5:$D$16,0))=TRUE,0,SUMIFS($U$7:$U$8790,$F$7:$F$8790,DAY(AM18),$E$7:$E$8790,MONTH(AM18),$G$7:$G$8790,"<"&HOUR(VLOOKUP(AM18,'Coincident Peak'!$D$5:$E$16,2))-Values!$E$5,$I$7:$I$8790,0)))>(Effective_Battery_Capacity/Rndtrp_eff),(Effective_Battery_Capacity/Rndtrp_eff),(IF(ISNA(MATCH(AM18,'Coincident Peak'!$D$5:$D$16,0))=TRUE,0,SUMIFS($U$7:$U$8790,$F$7:$F$8790,DAY(AM18),$E$7:$E$8790,MONTH(AM18),$G$7:$G$8790,"<"&HOUR(VLOOKUP(AM18,'Coincident Peak'!$D$5:$E$16,2))-Values!$E$5,$I$7:$I$8790,0))))),0) -> 0 | BR18: 0 | BS18: 205 | BT18: 0 | BV18: =IF(ISNA(MATCH(AM18,'Coincident Peak'!$D$5:$D$16,0))=TRUE,0,1) -> 0 | BW18: 0 | BX18: 0 | BY18: 0 | BZ18: 0 | CA18: 0 | CB18: 1 | CC18: 1 | CD18: =IF(ISNA(MATCH(AM18,'Coincident Peak'!$D$5:$D$16,0))=TRUE,1,0) -> 1 | CE18: =VLOOKUP(MONTH($AM18),'Value Stacking Basis'!$B$38:$D$49,3) -> 3 | CF18: =VLOOKUP(MONTH($AM18),'Value Stacking Basis'!$B$38:$F$49,5) -> 2 | CG18: 1 | CK18: 178.58 | CL18: 178.58 | CM18: 0 | CN18: 0 | CO18: 24.00 | CQ18: 24.00 | CR18: 0 | CS18: 0 | CT18: 0 | CU18: 0 | CW18: =IF($BV18=0,0,IF($CB18=0,INDEX('Time Series Data'!N$7:N$8790,MATCH(1,(MONTH($AM18)='Time Series Data'!$E$7:$E$8790)*(DAY($AM18)='Time Series Data'!$F$7:$F$8790)*(HOUR(VLOOKUP('Time Series Data'!$AM18,'Coincident Peak'!$D$5:$I$16,2))='Time Series Data'!$G$7:$G$8790),0)),IF(($AT18*Rndtrp_eff)>Effective_Battery_Capacity,BatteryPower,(($AT18*Rndtrp_eff)/Effective_Battery_Capacity)*BatteryPower))) -> 0 | CX18: 178.58 | CY18: 178.58 | CZ18: 0 | DA18: 0 | DC18: =IF($BV18=0,0,IF($CB18=0,INDEX('Time Series Data'!N$7:N$8790,MATCH(1,(MONTH($AM18)='Time Series Data'!$E$7:$E$8790)*(DAY($AM18)='Time Series Data'!$F$7:$F$8790)*(HOUR(VLOOKUP('Time Series Data'!$AM18,'Coincident Peak'!$D$5:$I$16,2))='Time Series Data'!$G$7:$G$8790),0)),IF(($AT18*Rndtrp_eff)>Effective_Battery_Capacity,BatteryPower,(($AT18*Rndtrp_eff)/Effective_Battery_Capacity)*BatteryPower))) -> 0 | DD18: 24.00 | DF18: 0 | DG18: 0 | DH18: 179 | DI18: 178.58 | DJ18: 0 | DK18: 0 | DM18: 0 | DN18: 0 | DO18: 179 | DP18: 24 | DR18: 0 | DS18: 178.58 | DT18: 0 | DU18: 0 | DV18: 24.00 | DX18: 0 | DY18: 24.00 | DZ18: 0 | EA18: 0 | EB18: 0 | EF18: 1,596.26 | EG18: 0 | EH18: 0 | EI18: 24.00 | EK18: 24.00 | EL18: 0 | EM18: 0 | EN18: 0 | EP18: =IF($BV18=0,0,IF($CC18=0,VLOOKUP('Time Series Data'!$AM18,'Coincident Peak'!$D$5:$I$16,3),BatteryPower)) -> 0 | EQ18: 1,596.26 | ER18: 0 | ES18: 0 | EU18: =IF($BV18=0,0,IF($CC18=0,VLOOKUP('Time Series Data'!$AM18,'Coincident Peak'!$D$5:$I$16,3),BatteryPower)) -> 0 | EV18: 24.00 | EX18: 0 | EY18: 0 | EZ18: 1,596.26 | FA18: 0 | FB18: 0 | FD18: 0 | FE18: 0 | FF18: 24 | FH18: 0 | FI18: 1,596.26 | FJ18: 0 | FK18: 0 | FL18: 24.00 | FN18: 0 | FO18: 24.00 | FP18: 0 | FQ18: 0 | FR18: 0 | FT18: 0
B19: 2019-01-01T12:00:00 | C19: 2019-01-01 | D19: 11,136 | E19: 1 | F19: 1 | G19: 12 | H19: 2 | I19: =INDEX(Values!$V$6:$AG$29,'Time Series Data'!G19+1,'Time Series Data'!E19) -> 1 | J19: 12.5 | K19: 11136 | L19: 0 | M19: 0 | N19: 0 | O19: 135.216 | P19: 95 | T19: 0.00 | U19: 135.22 | V19: 11,001 | W19: =IF(V19+O19>VLOOKUP(E19,'Coincident Peak'!$C$22:$I$33,7),0,1) -> 1 | X19: =IF((AND(E19=MONTH(VLOOKUP('Time Series Data'!E19,'Coincident Peak'!$C$5:$D$16,2)),F19=DAY(VLOOKUP('Time Series Data'!E19,'Coincident Peak'!$C$5:$D$16,2)),IF(AND(G19<=HOUR(VLOOKUP('Time Series Data'!E19,'Coincident Peak'!$C$5:$E$16,3))+Values!$E$5,G19>=HOUR(VLOOKUP('Time Series Data'!E19,'Coincident Peak'!$C$5:$E$16,3))-Values!$E$5),"TRUE","FALSE"))),BatteryPower,0) -> 0.00 | Y19: =IF((AND(E19=MONTH(VLOOKUP('Time Series Data'!E19,'Coincident Peak'!$C$5:$D$16,2)),F19=DAY(VLOOKUP('Time Series Data'!E19,'Coincident Peak'!$C$5:$D$16,2)))),0,N19) -> 0.00 | Z19: =IF((AND(E19=MONTH(VLOOKUP('Time Series Data'!E19,'Coincident Peak'!$C$5:$D$16,2)),F19=DAY(VLOOKUP('Time Series Data'!E19,'Coincident Peak'!$C$5:$D$16,2)),IF(AND(G19<=HOUR(VLOOKUP('Time Series Data'!E19,'Coincident Peak'!$C$5:$E$16,3))+Values!$E$5,G19>=HOUR(VLOOKUP('Time Series Data'!E19,'Coincident Peak'!$C$5:$E$16,3))-Values!$E$5),"TRUE","FALSE"))),BatteryPower,Y19) -> 0.00 | AA19: =IF((AND(E19=MONTH(VLOOKUP('Time Series Data'!E19,'Coincident Peak'!$C$5:$D$16,2)),F19=DAY(VLOOKUP('Time Series Data'!E19,'Coincident Peak'!$C$5:$D$16,2))-1)),VLOOKUP(E19,'Coincident Peak'!$C$5:$N$16,11)*Z19,Z19) -> 0.00 | AB19: =IF((AND(E19=MONTH(VLOOKUP('Time Series Data'!E19,'Coincident Peak'!$C$5:$D$16,2)),F19=DAY(VLOOKUP('Time Series Data'!E19,'Coincident Peak'!$C$5:$D$16,2))+1)),VLOOKUP(E19,'Coincident Peak'!$C$5:$N$16,12)*AA19,AA19) -> 0.00 | AC19: =IF((AND(E19=MONTH(VLOOKUP('Time Series Data'!E19,'Coincident Peak'!$C$5:$D$16,2)),F19=DAY(VLOOKUP('Time Series Data'!E19,'Coincident Peak'!$C$5:$D$16,2)))),0,O19) -> 135.22 | AD19: =IF((AND(E19=MONTH(VLOOKUP('Time Series Data'!E19,'Coincident Peak'!$C$5:$D$16,2)),F19=DAY(VLOOKUP('Time Series Data'!E19,'Coincident Peak'!$C$5:$D$16,2))-1)),VLOOKUP(E19,'Coincident Peak'!$C$5:$N$16,11)*AC19,AC19) -> 135.22 | AE19: =IF((AND(E19=MONTH(VLOOKUP('Time Series Data'!E19,'Coincident Peak'!$C$5:$D$16,2)),F19=DAY(VLOOKUP('Time Series Data'!E19,'Coincident Peak'!$C$5:$D$16,2))+1)),VLOOKUP(E19,'Coincident Peak'!$C$5:$N$16,12)*AD19,AD19) -> 135.22 | AF19: 11,001 | AG19: =IF((AND(E19=MONTH(VLOOKUP('Time Series Data'!E19,'Coincident Peak'!$C$5:$D$16,2)),F19=DAY(VLOOKUP('Time Series Data'!E19,'Coincident Peak'!$C$5:$D$16,2)))),U19,O19) -> 135.22 | AH19: 11,001 | AL19: 12 | AM19: 2019-01-13 | AN19: 0 | AO19: 0 | AP19: 0 | AQ19: 0 | AR19: 550.63 | AS19: 249.68 | AT19: =IF(ISNA(MATCH(AM19,'Coincident Peak'!$D$5:$D$16,0))=TRUE,0,SUMIFS($O$7:$O$8790,$F$7:$F$8790,DAY(AM19),$E$7:$E$8790,MONTH(AM19),$G$7:$G$8790,"<"&HOUR(VLOOKUP(AM19,'Coincident Peak'!$D$5:$E$16,2))-Values!$E$5)) -> 0 | AU19: 0 | AV19: 0 | AW19: 0 | AX19: 0 | AY19: =IF(ISNA(MATCH(AM19,'Coincident Peak'!$D$5:$D$16,0))=TRUE,0,SUMIFS($O$7:$O$8790,$F$7:$F$8790,DAY(AM19),$E$7:$E$8790,MONTH(AM19),$G$7:$G$8790,"<"&HOUR(VLOOKUP(AM19,'Coincident Peak'!$D$5:$E$16,2))-Values!$E$5,$I$7:$I$8790,1)) -> 0 | AZ19: 0 | BA19: 0 | BB19: 0 | BD19: 0 | BE19: 0 | BF19: 0 | BG19: =IF(IF(ISNA(MATCH(AM19,'Coincident Peak'!$D$5:$D$16,0))=TRUE,0,SUMIFS($O$7:$O$8790,$F$7:$F$8790,DAY(AM19),$E$7:$E$8790,MONTH(AM19),$G$7:$G$8790,"<"&HOUR(VLOOKUP(AM19,'Coincident Peak'!$D$5:$E$16,2))-Values!$E$5,$I$7:$I$8790,0))>(Effective_Battery_Capacity/Rndtrp_eff),(Effective_Battery_Capacity/Rndtrp_eff),IF(ISNA(MATCH(AM19,'Coincident Peak'!$D$5:$D$16,0))=TRUE,0,SUMIFS($O$7:$O$8790,$F$7:$F$8790,DAY(AM19),$E$7:$E$8790,MONTH(AM19),$G$7:$G$8790,"<"&HOUR(VLOOKUP(AM19,'Coincident Peak'!$D$5:$E$16,2))-Values!$E$5,$I$7:$I$8790,0))) -> 0 | BH19: =IF((IF(ISNA(MATCH(AM19,'Coincident Peak'!$D$5:$D$16,0))=TRUE,0,SUMIFS($O$7:$O$8790,$F$7:$F$8790,DAY(AM19),$E$7:$E$8790,MONTH(AM19),$G$7:$G$8790,"<"&HOUR(VLOOKUP(AM19,'Coincident Peak'!$D$5:$E$16,2))-Values!$E$5)))>(Effective_Battery_Capacity/Rndtrp_eff),(Effective_Battery_Capacity/Rndtrp_eff),(IF(ISNA(MATCH(AM19,'Coincident Peak'!$D$5:$D$16,0))=TRUE,0,SUMIFS($O$7:$O$8790,$F$7:$F$8790,DAY(AM19),$E$7:$E$8790,MONTH(AM19),$G$7:$G$8790,"<"&HOUR(VLOOKUP(AM19,'Coincident Peak'!$D$5:$E$16,2))-Values!$E$5)))) -> 0 | BI19: 0 | BJ19: 0 | BK19: =IF(WholesaleEnergyCost_2>PPACostPerKWh,(IF((SUMIFS('Time Series Data'!$AG$7:$AG$8790,'Time Series Data'!$I$7:$I$8790,1,$F$7:$F$8790,DAY(AM19),$E$7:$E$8790,MONTH(AM19))-BP19)>(Effective_Battery_Capacity/Rndtrp_eff),(Effective_Battery_Capacity/Rndtrp_eff),(SUMIFS('Time Series Data'!$AG$7:$AG$8790,'Time Series Data'!$I$7:$I$8790,1,$F$7:$F$8790,DAY(AM19),$E$7:$E$8790,MONTH(AM19))))-BP19),0) -> 0 | BL19: 0 | BM19: =SUMIFS('Time Series Data'!$AG$7:$AG$8790,$F$7:$F$8790,DAY(AM19),$E$7:$E$8790,MONTH(AM19),'Time Series Data'!$I$7:$I$8790,1)-BL19-BP19 -> 287 | BN19: =SUMIFS('Time Series Data'!$AG$7:$AG$8790,'Time Series Data'!$I$7:$I$8790,0,$F$7:$F$8790,DAY(AM19),$E$7:$E$8790,MONTH(AM19))-BQ19 -> 264 | BO19: =IF((IF(ISNA(MATCH(AM19,'Coincident Peak'!$D$5:$D$16,0))=TRUE,0,SUMIFS($U$7:$U$8790,$F$7:$F$8790,DAY(AM19),$E$7:$E$8790,MONTH(AM19),$G$7:$G$8790,"<"&HOUR(VLOOKUP(AM19,'Coincident Peak'!$D$5:$E$16,2))-Values!$E$5)))>(Effective_Battery_Capacity/Rndtrp_eff),(Effective_Battery_Capacity/Rndtrp_eff),(IF(ISNA(MATCH(AM19,'Coincident Peak'!$D$5:$D$16,0))=TRUE,0,SUMIFS($U$7:$U$8790,$F$7:$F$8790,DAY(AM19),$E$7:$E$8790,MONTH(AM19),$G$7:$G$8790,"<"&HOUR(VLOOKUP(AM19,'Coincident Peak'!$D$5:$E$16,2))-Values!$E$5)))) -> 0 | BP19: =IF(WholesaleEnergyCost_2>PPACostPerKWh,(IF((IF(ISNA(MATCH(AM19,'Coincident Peak'!$D$5:$D$16,0))=TRUE,0,SUMIFS($U$7:$U$8790,$F$7:$F$8790,DAY(AM19),$E$7:$E$8790,MONTH(AM19),$G$7:$G$8790,"<"&HOUR(VLOOKUP(AM19,'Coincident Peak'!$D$5:$E$16,2))-Values!$E$5,$I$7:$I$8790,1)))>(Effective_Battery_Capacity/Rndtrp_eff),(Effective_Battery_Capacity/Rndtrp_eff),(IF(ISNA(MATCH(AM19,'Coincident Peak'!$D$5:$D$16,0))=TRUE,0,SUMIFS($U$7:$U$8790,$F$7:$F$8790,DAY(AM19),$E$7:$E$8790,MONTH(AM19),$G$7:$G$8790,"<"&HOUR(VLOOKUP(AM19,'Coincident Peak'!$D$5:$E$16,2))-Values!$E$5,$I$7:$I$8790,1))))),0) -> 0 | BQ19: =IF(WholesaleEnergyCost_1>PPACostPerKWh,(IF((IF(ISNA(MATCH(AM19,'Coincident Peak'!$D$5:$D$16,0))=TRUE,0,SUMIFS($U$7:$U$8790,$F$7:$F$8790,DAY(AM19),$E$7:$E$8790,MONTH(AM19),$G$7:$G$8790,"<"&HOUR(VLOOKUP(AM19,'Coincident Peak'!$D$5:$E$16,2))-Values!$E$5,$I$7:$I$8790,0)))>(Effective_Battery_Capacity/Rndtrp_eff),(Effective_Battery_Capacity/Rndtrp_eff),(IF(ISNA(MATCH(AM19,'Coincident Peak'!$D$5:$D$16,0))=TRUE,0,SUMIFS($U$7:$U$8790,$F$7:$F$8790,DAY(AM19),$E$7:$E$8790,MONTH(AM19),$G$7:$G$8790,"<"&HOUR(VLOOKUP(AM19,'Coincident Peak'!$D$5:$E$16,2))-Values!$E$5,$I$7:$I$8790,0))))),0) -> 0 | BR19: 0 | BS19: 287 | BT19: 0 | BV19: =IF(ISNA(MATCH(AM19,'Coincident Peak'!$D$5:$D$16,0))=TRUE,0,1) -> 0 | BW19: 0 | BX19: 0 | BY19: 0 | BZ19: 0 | CA19: 0 | CB19: 1 | CC19: 1 | CD19: =IF(ISNA(MATCH(AM19,'Coincident Peak'!$D$5:$D$16,0))=TRUE,1,0) -> 1 | CE19: =VLOOKUP(MONTH($AM19),'Value Stacking Basis'!$B$38:$D$49,3) -> 3 | CF19: =VLOOKUP(MONTH($AM19),'Value Stacking Basis'!$B$38:$F$49,5) -> 2 | CG19: 1 | CK19: 249.68 | CL19: 249.68 | CM19: 0 | CN19: 0 | CO19: 24.00 | CQ19: 24.00 | CR19: 0 | CS19: 0 | CT19: 0 | CU19: 0 | CW19: =IF($BV19=0,0,IF($CB19=0,INDEX('Time Series Data'!N$7:N$8790,MATCH(1,(MONTH($AM19)='Time Series Data'!$E$7:$E$8790)*(DAY($AM19)='Time Series Data'!$F$7:$F$8790)*(HOUR(VLOOKUP('Time Series Data'!$AM19,'Coincident Peak'!$D$5:$I$16,2))='Time Series Data'!$G$7:$G$8790),0)),IF(($AT19*Rndtrp_eff)>Effective_Battery_Capacity,BatteryPower,(($AT19*Rndtrp_eff)/Effective_Battery_Capacity)*BatteryPower))) -> 0 | CX19: 249.68 | CY19: 249.68 | CZ19: 0 | DA19: 0 | DC19: =IF($BV19=0,0,IF($CB19=0,INDEX('Time Series Data'!N$7:N$8790,MATCH(1,(MONTH($AM19)='Time Series Data'!$E$7:$E$8790)*(DAY($AM19)='Time Series Data'!$F$7:$F$8790)*(HOUR(VLOOKUP('Time Series Data'!$AM19,'Coincident Peak'!$D$5:$I$16,2))='Time Series Data'!$G$7:$G$8790),0)),IF(($AT19*Rndtrp_eff)>Effective_Battery_Capacity,BatteryPower,(($AT19*Rndtrp_eff)/Effective_Battery_Capacity)*BatteryPower))) -> 0 | DD19: 24.00 | DF19: 0 | DG19: 0 | DH19: 250 | DI19: 249.68 | DJ19: 0 | DK19: 0 | DM19: 0 | DN19: 0 | DO19: 250 | DP19: 24 | DR19: 0 | DS19: 249.68 | DT19: 0 | DU19: 0 | DV19: 24.00 | DX19: 0 | DY19: 24.00 | DZ19: 0 | EA19: 0 | EB19: 0 | EF19: 1,596.26 | EG19: 0 | EH19: 0 | EI19: 24.00 | EK19: 24.00 | EL19: 0 | EM19: 0 | EN19: 0 | EP19: =IF($BV19=0,0,IF($CC19=0,VLOOKUP('Time Series Data'!$AM19,'Coincident Peak'!$D$5:$I$16,3),BatteryPower)) -> 0 | EQ19: 1,596.26 | ER19: 0 | ES19: 0 | EU19: =IF($BV19=0,0,IF($CC19=0,VLOOKUP('Time Series Data'!$AM19,'Coincident Peak'!$D$5:$I$16,3),BatteryPower)) -> 0 | EV19: 24.00 | EX19: 0 | EY19: 0 | EZ19: 1,596.26 | FA19: 0 | FB19: 0 | FD19: 0 | FE19: 0 | FF19: 24 | FH19: 0 | FI19: 1,596.26 | FJ19: 0 | FK19: 0 | FL19: 24.00 | FN19: 0 | FO19: 24.00 | FP19: 0 | FQ19: 0 | FR19: 0 | FT19: 0
B20: 2019-01-01T13:00:00 | C20: 2019-01-01 | D20: 10,958 | E20: 1 | F20: 1 | G20: 13 | H20: 2 | I20: =INDEX(Values!$V$6:$AG$29,'Time Series Data'!G20+1,'Time Series Data'!E20) -> 1 | J20: 13.5 | K20: 10958 | L20: 0 | M20: 0 | N20: 0 | O20: 116.972 | P20: 95 | T20: 0.00 | U20: 116.97 | V20: 10,841 | W20: =IF(V20+O20>VLOOKUP(E20,'Coincident Peak'!$C$22:$I$33,7),0,1) -> 1 | X20: =IF((AND(E20=MONTH(VLOOKUP('Time Series Data'!E20,'Coincident Peak'!$C$5:$D$16,2)),F20=DAY(VLOOKUP('Time Series Data'!E20,'Coincident Peak'!$C$5:$D$16,2)),IF(AND(G20<=HOUR(VLOOKUP('Time Series Data'!E20,'Coincident Peak'!$C$5:$E$16,3))+Values!$E$5,G20>=HOUR(VLOOKUP('Time Series Data'!E20,'Coincident Peak'!$C$5:$E$16,3))-Values!$E$5),"TRUE","FALSE"))),BatteryPower,0) -> 0.00 | Y20: =IF((AND(E20=MONTH(VLOOKUP('Time Series Data'!E20,'Coincident Peak'!$C$5:$D$16,2)),F20=DAY(VLOOKUP('Time Series Data'!E20,'Coincident Peak'!$C$5:$D$16,2)))),0,N20) -> 0.00 | Z20: =IF((AND(E20=MONTH(VLOOKUP('Time Series Data'!E20,'Coincident Peak'!$C$5:$D$16,2)),F20=DAY(VLOOKUP('Time Series Data'!E20,'Coincident Peak'!$C$5:$D$16,2)),IF(AND(G20<=HOUR(VLOOKUP('Time Series Data'!E20,'Coincident Peak'!$C$5:$E$16,3))+Values!$E$5,G20>=HOUR(VLOOKUP('Time Series Data'!E20,'Coincident Peak'!$C$5:$E$16,3))-Values!$E$5),"TRUE","FALSE"))),BatteryPower,Y20) -> 0.00 | AA20: =IF((AND(E20=MONTH(VLOOKUP('Time Series Data'!E20,'Coincident Peak'!$C$5:$D$16,2)),F20=DAY(VLOOKUP('Time Series Data'!E20,'Coincident Peak'!$C$5:$D$16,2))-1)),VLOOKUP(E20,'Coincident Peak'!$C$5:$N$16,11)*Z20,Z20) -> 0.00 | AB20: =IF((AND(E20=MONTH(VLOOKUP('Time Series Data'!E20,'Coincident Peak'!$C$5:$D$16,2)),F20=DAY(VLOOKUP('Time Series Data'!E20,'Coincident Peak'!$C$5:$D$16,2))+1)),VLOOKUP(E20,'Coincident Peak'!$C$5:$N$16,12)*AA20,AA20) -> 0.00 | AC20: =IF((AND(E20=MONTH(VLOOKUP('Time Series Data'!E20,'Coincident Peak'!$C$5:$D$16,2)),F20=DAY(VLOOKUP('Time Series Data'!E20,'Coincident Peak'!$C$5:$D$16,2)))),0,O20) -> 116.97 | AD20: =IF((AND(E20=MONTH(VLOOKUP('Time Series Data'!E20,'Coincident Peak'!$C$5:$D$16,2)),F20=DAY(VLOOKUP('Time Series Data'!E20,'Coincident Peak'!$C$5:$D$16,2))-1)),VLOOKUP(E20,'Coincident Peak'!$C$5:$N$16,11)*AC20,AC20) -> 116.97 | AE20: =IF((AND(E20=MONTH(VLOOKUP('Time Series Data'!E20,'Coincident Peak'!$C$5:$D$16,2)),F20=DAY(VLOOKUP('Time Series Data'!E20,'Coincident Peak'!$C$5:$D$16,2))+1)),VLOOKUP(E20,'Coincident Peak'!$C$5:$N$16,12)*AD20,AD20) -> 116.97 | AF20: 10,841 | AG20: =IF((AND(E20=MONTH(VLOOKUP('Time Series Data'!E20,'Coincident Peak'!$C$5:$D$16,2)),F20=DAY(VLOOKUP('Time Series Data'!E20,'Coincident Peak'!$C$5:$D$16,2)))),U20,O20) -> 116.97 | AH20: 10,841 | AL20: 13 | AM20: 2019-01-14 | AN20: 1 | AO20: 0 | AP20: 0 | AQ20: 0 | AR20: 975.93 | AS20: 554.44 | AT20: =IF(ISNA(MATCH(AM20,'Coincident Peak'!$D$5:$D$16,0))=TRUE,0,SUMIFS($O$7:$O$8790,$F$7:$F$8790,DAY(AM20),$E$7:$E$8790,MONTH(AM20),$G$7:$G$8790,"<"&HOUR(VLOOKUP(AM20,'Coincident Peak'!$D$5:$E$16,2))-Values!$E$5)) -> 0 | AU20: 0 | AV20: 0 | AW20: 0 | AX20: 339 | AY20: =IF(ISNA(MATCH(AM20,'Coincident Peak'!$D$5:$D$16,0))=TRUE,0,SUMIFS($O$7:$O$8790,$F$7:$F$8790,DAY(AM20),$E$7:$E$8790,MONTH(AM20),$G$7:$G$8790,"<"&HOUR(VLOOKUP(AM20,'Coincident Peak'!$D$5:$E$16,2))-Values!$E$5,$I$7:$I$8790,1)) -> 0 | AZ20: 339 | BA20: 339 | BB20: 0 | BD20: 339 | BE20: 637 | BF20: 0 | BG20: =IF(IF(ISNA(MATCH(AM20,'Coincident Peak'!$D$5:$D$16,0))=TRUE,0,SUMIFS($O$7:$O$8790,$F$7:$F$8790,DAY(AM20),$E$7:$E$8790,MONTH(AM20),$G$7:$G$8790,"<"&HOUR(VLOOKUP(AM20,'Coincident Peak'!$D$5:$E$16,2))-Values!$E$5,$I$7:$I$8790,0))>(Effective_Battery_Capacity/Rndtrp_eff),(Effective_Battery_Capacity/Rndtrp_eff),IF(ISNA(MATCH(AM20,'Coincident Peak'!$D$5:$D$16,0))=TRUE,0,SUMIFS($O$7:$O$8790,$F$7:$F$8790,DAY(AM20),$E$7:$E$8790,MONTH(AM20),$G$7:$G$8790,"<"&HOUR(VLOOKUP(AM20,'Coincident Peak'!$D$5:$E$16,2))-Values!$E$5,$I$7:$I$8790,0))) -> 0 | BH20: =IF((IF(ISNA(MATCH(AM20,'Coincident Peak'!$D$5:$D$16,0))=TRUE,0,SUMIFS($O$7:$O$8790,$F$7:$F$8790,DAY(AM20),$E$7:$E$8790,MONTH(AM20),$G$7:$G$8790,"<"&HOUR(VLOOKUP(AM20,'Coincident Peak'!$D$5:$E$16,2))-Values!$E$5)))>(Effective_Battery_Capacity/Rndtrp_eff),(Effective_Battery_Capacity/Rndtrp_eff),(IF(ISNA(MATCH(AM20,'Coincident Peak'!$D$5:$D$16,0))=TRUE,0,SUMIFS($O$7:$O$8790,$F$7:$F$8790,DAY(AM20),$E$7:$E$8790,MONTH(AM20),$G$7:$G$8790,"<"&HOUR(VLOOKUP(AM20,'Coincident Peak'!$D$5:$E$16,2))-Values!$E$5)))) -> 0 | BI20: 0 | BJ20: 0 | BK20: =IF(WholesaleEnergyCost_2>PPACostPerKWh,(IF((SUMIFS('Time Series Data'!$AG$7:$AG$8790,'Time Series Data'!$I$7:$I$8790,1,$F$7:$F$8790,DAY(AM20),$E$7:$E$8790,MONTH(AM20))-BP20)>(Effective_Battery_Capacity/Rndtrp_eff),(Effective_Battery_Capacity/Rndtrp_eff),(SUMIFS('Time Series Data'!$AG$7:$AG$8790,'Time Series Data'!$I$7:$I$8790,1,$F$7:$F$8790,DAY(AM20),$E$7:$E$8790,MONTH(AM20))))-BP20),0) -> 0 | BL20: 0 | BM20: =SUMIFS('Time Series Data'!$AG$7:$AG$8790,$F$7:$F$8790,DAY(AM20),$E$7:$E$8790,MONTH(AM20),'Time Series Data'!$I$7:$I$8790,1)-BL20-BP20 -> 637 | BN20: =SUMIFS('Time Series Data'!$AG$7:$AG$8790,'Time Series Data'!$I$7:$I$8790,0,$F$7:$F$8790,DAY(AM20),$E$7:$E$8790,MONTH(AM20))-BQ20 -> 339 | BO20: =IF((IF(ISNA(MATCH(AM20,'Coincident Peak'!$D$5:$D$16,0))=TRUE,0,SUMIFS($U$7:$U$8790,$F$7:$F$8790,DAY(AM20),$E$7:$E$8790,MONTH(AM20),$G$7:$G$8790,"<"&HOUR(VLOOKUP(AM20,'Coincident Peak'!$D$5:$E$16,2))-Values!$E$5)))>(Effective_Battery_Capacity/Rndtrp_eff),(Effective_Battery_Capacity/Rndtrp_eff),(IF(ISNA(MATCH(AM20,'Coincident Peak'!$D$5:$D$16,0))=TRUE,0,SUMIFS($U$7:$U$8790,$F$7:$F$8790,DAY(AM20),$E$7:$E$8790,MONTH(AM20),$G$7:$G$8790,"<"&HOUR(VLOOKUP(AM20,'Coincident Peak'!$D$5:$E$16,2))-Values!$E$5)))) -> 0 | BP20: =IF(WholesaleEnergyCost_2>PPACostPerKWh,(IF((IF(ISNA(MATCH(AM20,'Coincident Peak'!$D$5:$D$16,0))=TRUE,0,SUMIFS($U$7:$U$8790,$F$7:$F$8790,DAY(AM20),$E$7:$E$8790,MONTH(AM20),$G$7:$G$8790,"<"&HOUR(VLOOKUP(AM20,'Coincident Peak'!$D$5:$E$16,2))-Values!$E$5,$I$7:$I$8790,1)))>(Effective_Battery_Capacity/Rndtrp_eff),(Effective_Battery_Capacity/Rndtrp_eff),(IF(ISNA(MATCH(AM20,'Coincident Peak'!$D$5:$D$16,0))=TRUE,0,SUMIFS($U$7:$U$8790,$F$7:$F$8790,DAY(AM20),$E$7:$E$8790,MONTH(AM20),$G$7:$G$8790,"<"&HOUR(VLOOKUP(AM20,'Coincident Peak'!$D$5:$E$16,2))-Values!$E$5,$I$7:$I$8790,1))))),0) -> 0 | BQ20: =IF(WholesaleEnergyCost_1>PPACostPerKWh,(IF((IF(ISNA(MATCH(AM20,'Coincident Peak'!$D$5:$D$16,0))=TRUE,0,SUMIFS($U$7:$U$8790,$F$7:$F$8790,DAY(AM20),$E$7:$E$8790,MONTH(AM20),$G$7:$G$8790,"<"&HOUR(VLOOKUP(AM20,'Coincident Peak'!$D$5:$E$16,2))-Values!$E$5,$I$7:$I$8790,0)))>(Effective_Battery_Capacity/Rndtrp_eff),(Effective_Battery_Capacity/Rndtrp_eff),(IF(ISNA(MATCH(AM20,'Coincident Peak'!$D$5:$D$16,0))=TRUE,0,SUMIFS($U$7:$U$8790,$F$7:$F$8790,DAY(AM20),$E$7:$E$8790,MONTH(AM20),$G$7:$G$8790,"<"&HOUR(VLOOKUP(AM20,'Coincident Peak'!$D$5:$E$16,2))-Values!$E$5,$I$7:$I$8790,0))))),0) -> 0 | BR20: 0 | BS20: 637 | BT20: 0 | BV20: =IF(ISNA(MATCH(AM20,'Coincident Peak'!$D$5:$D$16,0))=TRUE,0,1) -> 0 | BW20: 0 | BX20: 0 | BY20: 0 | BZ20: 0 | CA20: 0 | CB20: 1 | CC20: 1 | CD20: =IF(ISNA(MATCH(AM20,'Coincident Peak'!$D$5:$D$16,0))=TRUE,1,0) -> 1 | CE20: =VLOOKUP(MONTH($AM20),'Value Stacking Basis'!$B$38:$D$49,3) -> 3 | CF20: =VLOOKUP(MONTH($AM20),'Value Stacking Basis'!$B$38:$F$49,5) -> 2 | CG20: 1 | CK20: 554.44 | CL20: 554.44 | CM20: 554.44 | CN20: 554.44 | CO20: 0 | CQ20: 0 | CR20: 554.44 | CS20: 554.44 | CT20: 554.44 | CU20: 554.44 | CW20: =IF($BV20=0,0,IF($CB20=0,INDEX('Time Series Data'!N$7:N$8790,MATCH(1,(MONTH($AM20)='Time Series Data'!$E$7:$E$8790)*(DAY($AM20)='Time Series Data'!$F$7:$F$8790)*(HOUR(VLOOKUP('Time Series Data'!$AM20,'Coincident Peak'!$D$5:$I$16,2))='Time Series Data'!$G$7:$G$8790),0)),IF(($AT20*Rndtrp_eff)>Effective_Battery_Capacity,BatteryPower,(($AT20*Rndtrp_eff)/Effective_Battery_Capacity)*BatteryPower))) -> 0 | CX20: 554.44 | CY20: 554.44 | CZ20: 554.44 | DA20: 554.44 | DC20: =IF($BV20=0,0,IF($CB20=0,INDEX('Time Series Data'!N$7:N$8790,MATCH(1,(MONTH($AM20)='Time Series Data'!$E$7:$E$8790)*(DAY($AM20)='Time Series Data'!$F$7:$F$8790)*(HOUR(VLOOKUP('Time Series Data'!$AM20,'Coincident Peak'!$D$5:$I$16,2))='Time Series Data'!$G$7:$G$8790),0)),IF(($AT20*Rndtrp_eff)>Effective_Battery_Capacity,BatteryPower,(($AT20*Rndtrp_eff)/Effective_Battery_Capacity)*BatteryPower))) -> 0 | DD20: 0 | DF20: 0 | DG20: 0 | DH20: 554 | DI20: 554.44 | DJ20: 554.44 | DK20: 554.44 | DM20: 0 | DN20: 0 | DO20: 554 | DP20: 0 | DR20: 0 | DS20: 554.44 | DT20: 554.44 | DU20: 554.44 | DV20: 0 | DX20: 0 | DY20: 0 | DZ20: 554.44 | EA20: 554.44 | EB20: 554.44 | EF20: 1,596.26 | EG20: 1,596.26 | EH20: 1,596.26 | EI20: 0 | EK20: 0 | EL20: 1,596.26 | EM20: 1,596.26 | EN20: 1,596.26 | EP20: =IF($BV20=0,0,IF($CC20=0,VLOOKUP('Time Series Data'!$AM20,'Coincident Peak'!$D$5:$I$16,3),BatteryPower)) -> 0 | EQ20: 1,596.26 | ER20: 1,596.26 | ES20: 1,596.26 | EU20: =IF($BV20=0,0,IF($CC20=0,VLOOKUP('Time Series Data'!$AM20,'Coincident Peak'!$D$5:$I$16,3),BatteryPower)) -> 0 | EV20: 0 | EX20: 0 | EY20: 0 | EZ20: 1,596.26 | FA20: 1,596.26 | FB20: 1,596.26 | FD20: 0 | FE20: 0 | FF20: 0 | FH20: 0 | FI20: 1,596.26 | FJ20: 1,596.26 | FK20: 1,596.26 | FL20: 0 | FN20: 0 | FO20: 0 | FP20: 1,596.26 | FQ20: 1,596.26 | FR20: 1,596.26 | FT20: 0
B21: 2019-01-01T14:00:00 | C21: 2019-01-01 | D21: 10,465 | E21: 1 | F21: 1 | G21: 14 | H21: 2 | I21: =INDEX(Values!$V$6:$AG$29,'Time Series Data'!G21+1,'Time Series Data'!E21) -> 0 | J21: 14.5 | K21: 10465 | L21: 0 | M21: 0 | N21: 0 | O21: 46.4418 | P21: 95 | T21: 0.00 | U21: 46.44 | V21: 10,419 | W21: =IF(V21+O21>VLOOKUP(E21,'Coincident Peak'!$C$22:$I$33,7),0,1) -> 1 | X21: =IF((AND(E21=MONTH(VLOOKUP('Time Series Data'!E21,'Coincident Peak'!$C$5:$D$16,2)),F21=DAY(VLOOKUP('Time Series Data'!E21,'Coincident Peak'!$C$5:$D$16,2)),IF(AND(G21<=HOUR(VLOOKUP('Time Series Data'!E21,'Coincident Peak'!$C$5:$E$16,3))+Values!$E$5,G21>=HOUR(VLOOKUP('Time Series Data'!E21,'Coincident Peak'!$C$5:$E$16,3))-Values!$E$5),"TRUE","FALSE"))),BatteryPower,0) -> 0.00 | Y21: =IF((AND(E21=MONTH(VLOOKUP('Time Series Data'!E21,'Coincident Peak'!$C$5:$D$16,2)),F21=DAY(VLOOKUP('Time Series Data'!E21,'Coincident Peak'!$C$5:$D$16,2)))),0,N21) -> 0.00 | Z21: =IF((AND(E21=MONTH(VLOOKUP('Time Series Data'!E21,'Coincident Peak'!$C$5:$D$16,2)),F21=DAY(VLOOKUP('Time Series Data'!E21,'Coincident Peak'!$C$5:$D$16,2)),IF(AND(G21<=HOUR(VLOOKUP('Time Series Data'!E21,'Coincident Peak'!$C$5:$E$16,3))+Values!$E$5,G21>=HOUR(VLOOKUP('Time Series Data'!E21,'Coincident Peak'!$C$5:$E$16,3))-Values!$E$5),"TRUE","FALSE"))),BatteryPower,Y21) -> 0.00 | AA21: =IF((AND(E21=MONTH(VLOOKUP('Time Series Data'!E21,'Coincident Peak'!$C$5:$D$16,2)),F21=DAY(VLOOKUP('Time Series Data'!E21,'Coincident Peak'!$C$5:$D$16,2))-1)),VLOOKUP(E21,'Coincident Peak'!$C$5:$N$16,11)*Z21,Z21) -> 0.00 | AB21: =IF((AND(E21=MONTH(VLOOKUP('Time Series Data'!E21,'Coincident Peak'!$C$5:$D$16,2)),F21=DAY(VLOOKUP('Time Series Data'!E21,'Coincident Peak'!$C$5:$D$16,2))+1)),VLOOKUP(E21,'Coincident Peak'!$C$5:$N$16,12)*AA21,AA21) -> 0.00 | AC21: =IF((AND(E21=MONTH(VLOOKUP('Time Series Data'!E21,'Coincident Peak'!$C$5:$D$16,2)),F21=DAY(VLOOKUP('Time Series Data'!E21,'Coincident Peak'!$C$5:$D$16,2)))),0,O21) -> 46.44 | AD21: =IF((AND(E21=MONTH(VLOOKUP('Time Series Data'!E21,'Coincident Peak'!$C$5:$D$16,2)),F21=DAY(VLOOKUP('Time Series Data'!E21,'Coincident Peak'!$C$5:$D$16,2))-1)),VLOOKUP(E21,'Coincident Peak'!$C$5:$N$16,11)*AC21,AC21) -> 46.44 | AE21: =IF((AND(E21=MONTH(VLOOKUP('Time Series Data'!E21,'Coincident Peak'!$C$5:$D$16,2)),F21=DAY(VLOOKUP('Time Series Data'!E21,'Coincident Peak'!$C$5:$D$16,2))+1)),VLOOKUP(E21,'Coincident Peak'!$C$5:$N$16,12)*AD21,AD21) -> 46.44 | AF21: 10,419 | AG21: =IF((AND(E21=MONTH(VLOOKUP('Time Series Data'!E21,'Coincident Peak'!$C$5:$D$16,2)),F21=DAY(VLOOKUP('Time Series Data'!E21,'Coincident Peak'!$C$5:$D$16,2)))),U21,O21) -> 46.44 | AH21: 10,419 | AL21: 14 | AM21: 2019-01-15 | AN21: 1 | AO21: 0 | AP21: 0 | AQ21: 0 | AR21: 1,624.06 | AS21: 704.94 | AT21: =IF(ISNA(MATCH(AM21,'Coincident Peak'!$D$5:$D$16,0))=TRUE,0,SUMIFS($O$7:$O$8790,$F$7:$F$8790,DAY(AM21),$E$7:$E$8790,MONTH(AM21),$G$7:$G$8790,"<"&HOUR(VLOOKUP(AM21,'Coincident Peak'!$D$5:$E$16,2))-Values!$E$5)) -> 0 | AU21: 0 | AV21: 0 | AW21: 0 | AX21: 814 | AY21: =IF(ISNA(MATCH(AM21,'Coincident Peak'!$D$5:$D$16,0))=TRUE,0,SUMIFS($O$7:$O$8790,$F$7:$F$8790,DAY(AM21),$E$7:$E$8790,MONTH(AM21),$G$7:$G$8790,"<"&HOUR(VLOOKUP(AM21,'Coincident Peak'!$D$5:$E$16,2))-Values!$E$5,$I$7:$I$8790,1)) -> 0 | AZ21: 814 | BA21: 814 | BB21: 0 | BD21: 814 | BE21: 810 | BF21: 0 | BG21: =IF(IF(ISNA(MATCH(AM21,'Coincident Peak'!$D$5:$D$16,0))=TRUE,0,SUMIFS($O$7:$O$8790,$F$7:$F$8790,DAY(AM21),$E$7:$E$8790,MONTH(AM21),$G$7:$G$8790,"<"&HOUR(VLOOKUP(AM21,'Coincident Peak'!$D$5:$E$16,2))-Values!$E$5,$I$7:$I$8790,0))>(Effective_Battery_Capacity/Rndtrp_eff),(Effective_Battery_Capacity/Rndtrp_eff),IF(ISNA(MATCH(AM21,'Coincident Peak'!$D$5:$D$16,0))=TRUE,0,SUMIFS($O$7:$O$8790,$F$7:$F$8790,DAY(AM21),$E$7:$E$8790,MONTH(AM21),$G$7:$G$8790,"<"&HOUR(VLOOKUP(AM21,'Coincident Peak'!$D$5:$E$16,2))-Values!$E$5,$I$7:$I$8790,0))) -> 0 | BH21: =IF((IF(ISNA(MATCH(AM21,'Coincident Peak'!$D$5:$D$16,0))=TRUE,0,SUMIFS($O$7:$O$8790,$F$7:$F$8790,DAY(AM21),$E$7:$E$8790,MONTH(AM21),$G$7:$G$8790,"<"&HOUR(VLOOKUP(AM21,'Coincident Peak'!$D$5:$E$16,2))-Values!$E$5)))>(Effective_Battery_Capacity/Rndtrp_eff),(Effective_Battery_Capacity/Rndtrp_eff),(IF(ISNA(MATCH(AM21,'Coincident Peak'!$D$5:$D$16,0))=TRUE,0,SUMIFS($O$7:$O$8790,$F$7:$F$8790,DAY(AM21),$E$7:$E$8790,MONTH(AM21),$G$7:$G$8790,"<"&HOUR(VLOOKUP(AM21,'Coincident Peak'!$D$5:$E$16,2))-Values!$E$5)))) -> 0 | BI21: 0 | BJ21: 0 | BK21: =IF(WholesaleEnergyCost_2>PPACostPerKWh,(IF((SUMIFS('Time Series Data'!$AG$7:$AG$8790,'Time Series Data'!$I$7:$I$8790,1,$F$7:$F$8790,DAY(AM21),$E$7:$E$8790,MONTH(AM21))-BP21)>(Effective_Battery_Capacity/Rndtrp_eff),(Effective_Battery_Capacity/Rndtrp_eff),(SUMIFS('Time Series Data'!$AG$7:$AG$8790,'Time Series Data'!$I$7:$I$8790,1,$F$7:$F$8790,DAY(AM21),$E$7:$E$8790,MONTH(AM21))))-BP21),0) -> 0 | BL21: 0 | BM21: =SUMIFS('Time Series Data'!$AG$7:$AG$8790,$F$7:$F$8790,DAY(AM21),$E$7:$E$8790,MONTH(AM21),'Time Series Data'!$I$7:$I$8790,1)-BL21-BP21 -> 810 | BN21: =SUMIFS('Time Series Data'!$AG$7:$AG$8790,'Time Series Data'!$I$7:$I$8790,0,$F$7:$F$8790,DAY(AM21),$E$7:$E$8790,MONTH(AM21))-BQ21 -> 814 | BO21: =IF((IF(ISNA(MATCH(AM21,'Coincident Peak'!$D$5:$D$16,0))=TRUE,0,SUMIFS($U$7:$U$8790,$F$7:$F$8790,DAY(AM21),$E$7:$E$8790,MONTH(AM21),$G$7:$G$8790,"<"&HOUR(VLOOKUP(AM21,'Coincident Peak'!$D$5:$E$16,2))-Values!$E$5)))>(Effective_Battery_Capacity/Rndtrp_eff),(Effective_Battery_Capacity/Rndtrp_eff),(IF(ISNA(MATCH(AM21,'Coincident Peak'!$D$5:$D$16,0))=TRUE,0,SUMIFS($U$7:$U$8790,$F$7:$F$8790,DAY(AM21),$E$7:$E$8790,MONTH(AM21),$G$7:$G$8790,"<"&HOUR(VLOOKUP(AM21,'Coincident Peak'!$D$5:$E$16,2))-Values!$E$5)))) -> 0 | BP21: =IF(WholesaleEnergyCost_2>PPACostPerKWh,(IF((IF(ISNA(MATCH(AM21,'Coincident Peak'!$D$5:$D$16,0))=TRUE,0,SUMIFS($U$7:$U$8790,$F$7:$F$8790,DAY(AM21),$E$7:$E$8790,MONTH(AM21),$G$7:$G$8790,"<"&HOUR(VLOOKUP(AM21,'Coincident Peak'!$D$5:$E$16,2))-Values!$E$5,$I$7:$I$8790,1)))>(Effective_Battery_Capacity/Rndtrp_eff),(Effective_Battery_Capacity/Rndtrp_eff),(IF(ISNA(MATCH(AM21,'Coincident Peak'!$D$5:$D$16,0))=TRUE,0,SUMIFS($U$7:$U$8790,$F$7:$F$8790,DAY(AM21),$E$7:$E$8790,MONTH(AM21),$G$7:$G$8790,"<"&HOUR(VLOOKUP(AM21,'Coincident Peak'!$D$5:$E$16,2))-Values!$E$5,$I$7:$I$8790,1))))),0) -> 0 | BQ21: =IF(WholesaleEnergyCost_1>PPACostPerKWh,(IF((IF(ISNA(MATCH(AM21,'Coincident Peak'!$D$5:$D$16,0))=TRUE,0,SUMIFS($U$7:$U$8790,$F$7:$F$8790,DAY(AM21),$E$7:$E$8790,MONTH(AM21),$G$7:$G$8790,"<"&HOUR(VLOOKUP(AM21,'Coincident Peak'!$D$5:$E$16,2))-Values!$E$5,$I$7:$I$8790,0)))>(Effective_Battery_Capacity/Rndtrp_eff),(Effective_Battery_Capacity/Rndtrp_eff),(IF(ISNA(MATCH(AM21,'Coincident Peak'!$D$5:$D$16,0))=TRUE,0,SUMIFS($U$7:$U$8790,$F$7:$F$8790,DAY(AM21),$E$7:$E$8790,MONTH(AM21),$G$7:$G$8790,"<"&HOUR(VLOOKUP(AM21,'Coincident Peak'!$D$5:$E$16,2))-Values!$E$5,$I$7:$I$8790,0))))),0) -> 0 | BR21: 0 | BS21: 810 | BT21: 0 | BV21: =IF(ISNA(MATCH(AM21,'Coincident Peak'!$D$5:$D$16,0))=TRUE,0,1) -> 0 | BW21: 0 | BX21: 0 | BY21: 0 | BZ21: 0 | CA21: 0 | CB21: 0 | CC21: 1 | CD21: =IF(ISNA(MATCH(AM21,'Coincident Peak'!$D$5:$D$16,0))=TRUE,1,0) -> 1 | CE21: =VLOOKUP(MONTH($AM21),'Value Stacking Basis'!$B$38:$D$49,3) -> 3 | CF21: =VLOOKUP(MONTH($AM21),'Value Stacking Basis'!$B$38:$F$49,5) -> 2 | CG21: 1 | CK21: 0 | CL21: 0 | CM21: 0 | CN21: 0 | CO21: 0 | CQ21: 0 | CR21: 0 | CS21: 0 | CT21: 0 | CU21: 0 | CW21: =IF($BV21=0,0,IF($CB21=0,INDEX('Time Series Data'!N$7:N$8790,MATCH(1,(MONTH($AM21)='Time Series Data'!$E$7:$E$8790)*(DAY($AM21)='Time Series Data'!$F$7:$F$8790)*(HOUR(VLOOKUP('Time Series Data'!$AM21,'Coincident Peak'!$D$5:$I$16,2))='Time Series Data'!$G$7:$G$8790),0)),IF(($AT21*Rndtrp_eff)>Effective_Battery_Capacity,BatteryPower,(($AT21*Rndtrp_eff)/Effective_Battery_Capacity)*BatteryPower))) -> 0 | CX21: 0 | CY21: 0 | CZ21: 0 | DA21: 0 | DC21: =IF($BV21=0,0,IF($CB21=0,INDEX('Time Series Data'!N$7:N$8790,MATCH(1,(MONTH($AM21)='Time Series Data'!$E$7:$E$8790)*(DAY($AM21)='Time Series Data'!$F$7:$F$8790)*(HOUR(VLOOKUP('Time Series Data'!$AM21,'Coincident Peak'!$D$5:$I$16,2))='Time Series Data'!$G$7:$G$8790),0)),IF(($AT21*Rndtrp_eff)>Effective_Battery_Capacity,BatteryPower,(($AT21*Rndtrp_eff)/Effective_Battery_Capacity)*BatteryPower))) -> 0 | DD21: 0 | DF21: 0 | DG21: 0 | DH21: 0 | DI21: 0 | DJ21: 0 | DK21: 0 | DM21: 0 | DN21: 0 | DO21: 0 | DP21: 0 | DR21: 0 | DS21: 704.94 | DT21: 704.94 | DU21: 704.94 | DV21: 0 | DX21: 0 | DY21: 0 | DZ21: 704.94 | EA21: 704.94 | EB21: 704.94 | EF21: 1,596.26 | EG21: 1,596.26 | EH21: 1,596.26 | EI21: 0 | EK21: 0 | EL21: 1,596.26 | EM21: 1,596.26 | EN21: 1,596.26 | EP21: =IF($BV21=0,0,IF($CC21=0,VLOOKUP('Time Series Data'!$AM21,'Coincident Peak'!$D$5:$I$16,3),BatteryPower)) -> 0 | EQ21: 1,596.26 | ER21: 1,596.26 | ES21: 1,596.26 | EU21: =IF($BV21=0,0,IF($CC21=0,VLOOKUP('Time Series Data'!$AM21,'Coincident Peak'!$D$5:$I$16,3),BatteryPower)) -> 0 | EV21: 0 | EX21: 0 | EY21: 0 | EZ21: 1,596.26 | FA21: 1,596.26 | FB21: 1,596.26 | FD21: 0 | FE21: 0 | FF21: 0 | FH21: 0 | FI21: 1,596.26 | FJ21: 1,596.26 | FK21: 1,596.26 | FL21: 0 | FN21: 0 | FO21: 0 | FP21: 1,596.26 | FQ21: 1,596.26 | FR21: 1,596.26 | FT21: 0
B22: 2019-01-01T15:00:00 | C22: 2019-01-01 | D22: 10,491 | E22: 1 | F22: 1 | G22: 15 | H22: 2 | I22: =INDEX(Values!$V$6:$AG$29,'Time Series Data'!G22+1,'Time Series Data'!E22) -> 0 | J22: 15.5 | K22: 10491 | L22: 0 | M22: 0 | N22: 0 | O22: 25.6651 | P22: 95 | T22: 0.00 | U22: 25.67 | V22: 10,465 | W22: =IF(V22+O22>VLOOKUP(E22,'Coincident Peak'!$C$22:$I$33,7),0,1) -> 1 | X22: =IF((AND(E22=MONTH(VLOOKUP('Time Series Data'!E22,'Coincident Peak'!$C$5:$D$16,2)),F22=DAY(VLOOKUP('Time Series Data'!E22,'Coincident Peak'!$C$5:$D$16,2)),IF(AND(G22<=HOUR(VLOOKUP('Time Series Data'!E22,'Coincident Peak'!$C$5:$E$16,3))+Values!$E$5,G22>=HOUR(VLOOKUP('Time Series Data'!E22,'Coincident Peak'!$C$5:$E$16,3))-Values!$E$5),"TRUE","FALSE"))),BatteryPower,0) -> 0.00 | Y22: =IF((AND(E22=MONTH(VLOOKUP('Time Series Data'!E22,'Coincident Peak'!$C$5:$D$16,2)),F22=DAY(VLOOKUP('Time Series Data'!E22,'Coincident Peak'!$C$5:$D$16,2)))),0,N22) -> 0.00 | Z22: =IF((AND(E22=MONTH(VLOOKUP('Time Series Data'!E22,'Coincident Peak'!$C$5:$D$16,2)),F22=DAY(VLOOKUP('Time Series Data'!E22,'Coincident Peak'!$C$5:$D$16,2)),IF(AND(G22<=HOUR(VLOOKUP('Time Series Data'!E22,'Coincident Peak'!$C$5:$E$16,3))+Values!$E$5,G22>=HOUR(VLOOKUP('Time Series Data'!E22,'Coincident Peak'!$C$5:$E$16,3))-Values!$E$5),"TRUE","FALSE"))),BatteryPower,Y22) -> 0.00 | AA22: =IF((AND(E22=MONTH(VLOOKUP('Time Series Data'!E22,'Coincident Peak'!$C$5:$D$16,2)),F22=DAY(VLOOKUP('Time Series Data'!E22,'Coincident Peak'!$C$5:$D$16,2))-1)),VLOOKUP(E22,'Coincident Peak'!$C$5:$N$16,11)*Z22,Z22) -> 0.00 | AB22: =IF((AND(E22=MONTH(VLOOKUP('Time Series Data'!E22,'Coincident Peak'!$C$5:$D$16,2)),F22=DAY(VLOOKUP('Time Series Data'!E22,'Coincident Peak'!$C$5:$D$16,2))+1)),VLOOKUP(E22,'Coincident Peak'!$C$5:$N$16,12)*AA22,AA22) -> 0.00 | AC22: =IF((AND(E22=MONTH(VLOOKUP('Time Series Data'!E22,'Coincident Peak'!$C$5:$D$16,2)),F22=DAY(VLOOKUP('Time Series Data'!E22,'Coincident Peak'!$C$5:$D$16,2)))),0,O22) -> 25.67 | AD22: =IF((AND(E22=MONTH(VLOOKUP('Time Series Data'!E22,'Coincident Peak'!$C$5:$D$16,2)),F22=DAY(VLOOKUP('Time Series Data'!E22,'Coincident Peak'!$C$5:$D$16,2))-1)),VLOOKUP(E22,'Coincident Peak'!$C$5:$N$16,11)*AC22,AC22) -> 25.67 | AE22: =IF((AND(E22=MONTH(VLOOKUP('Time Series Data'!E22,'Coincident Peak'!$C$5:$D$16,2)),F22=DAY(VLOOKUP('Time Series Data'!E22,'Coincident Peak'!$C$5:$D$16,2))+1)),VLOOKUP(E22,'Coincident Peak'!$C$5:$N$16,12)*AD22,AD22) -> 25.67 | AF22: 10,465 | AG22: =IF((AND(E22=MONTH(VLOOKUP('Time Series Data'!E22,'Coincident Peak'!$C$5:$D$16,2)),F22=DAY(VLOOKUP('Time Series Data'!E22,'Coincident Peak'!$C$5:$D$16,2)))),U22,O22) -> 25.67 | AH22: 10,465 | AL22: 15 | AM22: 2019-01-16 | AN22: 1 | AO22: 325.23 | AP22: 304.87 | AQ22: 539.68 | AR22: 2,920.33 | AS22: 1,794.38 | AT22: =IF(ISNA(MATCH(AM22,'Coincident Peak'!$D$5:$D$16,0))=TRUE,0,SUMIFS($O$7:$O$8790,$F$7:$F$8790,DAY(AM22),$E$7:$E$8790,MONTH(AM22),$G$7:$G$8790,"<"&HOUR(VLOOKUP(AM22,'Coincident Peak'!$D$5:$E$16,2))-Values!$E$5)) -> 0 | AU22: 0 | AV22: 540 | AW22: 540 | AX22: 858 | AY22: =IF(ISNA(MATCH(AM22,'Coincident Peak'!$D$5:$D$16,0))=TRUE,0,SUMIFS($O$7:$O$8790,$F$7:$F$8790,DAY(AM22),$E$7:$E$8790,MONTH(AM22),$G$7:$G$8790,"<"&HOUR(VLOOKUP(AM22,'Coincident Peak'!$D$5:$E$16,2))-Values!$E$5,$I$7:$I$8790,1)) -> 0 | AZ22: 858 | BA22: 858 | BB22: 0 | BD22: 858 | BE22: 1,737 | BF22: 0 | BG22: =IF(IF(ISNA(MATCH(AM22,'Coincident Peak'!$D$5:$D$16,0))=TRUE,0,SUMIFS($O$7:$O$8790,$F$7:$F$8790,DAY(AM22),$E$7:$E$8790,MONTH(AM22),$G$7:$G$8790,"<"&HOUR(VLOOKUP(AM22,'Coincident Peak'!$D$5:$E$16,2))-Values!$E$5,$I$7:$I$8790,0))>(Effective_Battery_Capacity/Rndtrp_eff),(Effective_Battery_Capacity/Rndtrp_eff),IF(ISNA(MATCH(AM22,'Coincident Peak'!$D$5:$D$16,0))=TRUE,0,SUMIFS($O$7:$O$8790,$F$7:$F$8790,DAY(AM22),$E$7:$E$8790,MONTH(AM22),$G$7:$G$8790,"<"&HOUR(VLOOKUP(AM22,'Coincident Peak'!$D$5:$E$16,2))-Values!$E$5,$I$7:$I$8790,0))) -> 0 | BH22: =IF((IF(ISNA(MATCH(AM22,'Coincident Peak'!$D$5:$D$16,0))=TRUE,0,SUMIFS($O$7:$O$8790,$F$7:$F$8790,DAY(AM22),$E$7:$E$8790,MONTH(AM22),$G$7:$G$8790,"<"&HOUR(VLOOKUP(AM22,'Coincident Peak'!$D$5:$E$16,2))-Values!$E$5)))>(Effective_Battery_Capacity/Rndtrp_eff),(Effective_Battery_Capacity/Rndtrp_eff),(IF(ISNA(MATCH(AM22,'Coincident Peak'!$D$5:$D$16,0))=TRUE,0,SUMIFS($O$7:$O$8790,$F$7:$F$8790,DAY(AM22),$E$7:$E$8790,MONTH(AM22),$G$7:$G$8790,"<"&HOUR(VLOOKUP(AM22,'Coincident Peak'!$D$5:$E$16,2))-Values!$E$5)))) -> 0 | BI22: 325 | BJ22: 0 | BK22: =IF(WholesaleEnergyCost_2>PPACostPerKWh,(IF((SUMIFS('Time Series Data'!$AG$7:$AG$8790,'Time Series Data'!$I$7:$I$8790,1,$F$7:$F$8790,DAY(AM22),$E$7:$E$8790,MONTH(AM22))-BP22)>(Effective_Battery_Capacity/Rndtrp_eff),(Effective_Battery_Capacity/Rndtrp_eff),(SUMIFS('Time Series Data'!$AG$7:$AG$8790,'Time Series Data'!$I$7:$I$8790,1,$F$7:$F$8790,DAY(AM22),$E$7:$E$8790,MONTH(AM22))))-BP22),0) -> 0 | BL22: 0 | BM22: =SUMIFS('Time Series Data'!$AG$7:$AG$8790,$F$7:$F$8790,DAY(AM22),$E$7:$E$8790,MONTH(AM22),'Time Series Data'!$I$7:$I$8790,1)-BL22-BP22 -> 1,737 | BN22: =SUMIFS('Time Series Data'!$AG$7:$AG$8790,'Time Series Data'!$I$7:$I$8790,0,$F$7:$F$8790,DAY(AM22),$E$7:$E$8790,MONTH(AM22))-BQ22 -> 858 | BO22: =IF((IF(ISNA(MATCH(AM22,'Coincident Peak'!$D$5:$D$16,0))=TRUE,0,SUMIFS($U$7:$U$8790,$F$7:$F$8790,DAY(AM22),$E$7:$E$8790,MONTH(AM22),$G$7:$G$8790,"<"&HOUR(VLOOKUP(AM22,'Coincident Peak'!$D$5:$E$16,2))-Values!$E$5)))>(Effective_Battery_Capacity/Rndtrp_eff),(Effective_Battery_Capacity/Rndtrp_eff),(IF(ISNA(MATCH(AM22,'Coincident Peak'!$D$5:$D$16,0))=TRUE,0,SUMIFS($U$7:$U$8790,$F$7:$F$8790,DAY(AM22),$E$7:$E$8790,MONTH(AM22),$G$7:$G$8790,"<"&HOUR(VLOOKUP(AM22,'Coincident Peak'!$D$5:$E$16,2))-Values!$E$5)))) -> 0 | BP22: =IF(WholesaleEnergyCost_2>PPACostPerKWh,(IF((IF(ISNA(MATCH(AM22,'Coincident Peak'!$D$5:$D$16,0))=TRUE,0,SUMIFS($U$7:$U$8790,$F$7:$F$8790,DAY(AM22),$E$7:$E$8790,MONTH(AM22),$G$7:$G$8790,"<"&HOUR(VLOOKUP(AM22,'Coincident Peak'!$D$5:$E$16,2))-Values!$E$5,$I$7:$I$8790,1)))>(Effective_Battery_Capacity/Rndtrp_eff),(Effective_Battery_Capacity/Rndtrp_eff),(IF(ISNA(MATCH(AM22,'Coincident Peak'!$D$5:$D$16,0))=TRUE,0,SUMIFS($U$7:$U$8790,$F$7:$F$8790,DAY(AM22),$E$7:$E$8790,MONTH(AM22),$G$7:$G$8790,"<"&HOUR(VLOOKUP(AM22,'Coincident Peak'!$D$5:$E$16,2))-Values!$E$5,$I$7:$I$8790,1))))),0) -> 0 | BQ22: =IF(WholesaleEnergyCost_1>PPACostPerKWh,(IF((IF(ISNA(MATCH(AM22,'Coincident Peak'!$D$5:$D$16,0))=TRUE,0,SUMIFS($U$7:$U$8790,$F$7:$F$8790,DAY(AM22),$E$7:$E$8790,MONTH(AM22),$G$7:$G$8790,"<"&HOUR(VLOOKUP(AM22,'Coincident Peak'!$D$5:$E$16,2))-Values!$E$5,$I$7:$I$8790,0)))>(Effective_Battery_Capacity/Rndtrp_eff),(Effective_Battery_Capacity/Rndtrp_eff),(IF(ISNA(MATCH(AM22,'Coincident Peak'!$D$5:$D$16,0))=TRUE,0,SUMIFS($U$7:$U$8790,$F$7:$F$8790,DAY(AM22),$E$7:$E$8790,MONTH(AM22),$G$7:$G$8790,"<"&HOUR(VLOOKUP(AM22,'Coincident Peak'!$D$5:$E$16,2))-Values!$E$5,$I$7:$I$8790,0))))),0) -> 0 | BR22: 325 | BS22: 1,835 | BT22: 540 | BV22: =IF(ISNA(MATCH(AM22,'Coincident Peak'!$D$5:$D$16,0))=TRUE,0,1) -> 0 | BW22: 1 | BX22: 1 | BY22: 2 | BZ22: 1 | CA22: 1 | CB22: 0 | CC22: 0 | CD22: =IF(ISNA(MATCH(AM22,'Coincident Peak'!$D$5:$D$16,0))=TRUE,1,0) -> 1 | CE22: =VLOOKUP(MONTH($AM22),'Value Stacking Basis'!$B$38:$D$49,3) -> 3 | CF22: =VLOOKUP(MONTH($AM22),'Value Stacking Basis'!$B$38:$F$49,5) -> 2 | CG22: 1 | CK22: 0 | CL22: 0 | CM22: 0 | CN22: 0 | CO22: 0 | CQ22: 0 | CR22: 0 | CS22: 0 | CT22: 0 | CU22: 0 | CW22: =IF($BV22=0,0,IF($CB22=0,INDEX('Time Series Data'!N$7:N$8790,MATCH(1,(MONTH($AM22)='Time Series Data'!$E$7:$E$8790)*(DAY($AM22)='Time Series Data'!$F$7:$F$8790)*(HOUR(VLOOKUP('Time Series Data'!$AM22,'Coincident Peak'!$D$5:$I$16,2))='Time Series Data'!$G$7:$G$8790),0)),IF(($AT22*Rndtrp_eff)>Effective_Battery_Capacity,BatteryPower,(($AT22*Rndtrp_eff)/Effective_Battery_Capacity)*BatteryPower))) -> 0 | CX22: 0 | CY22: 0 | CZ22: 0 | DA22: 0 | DC22: =IF($BV22=0,0,IF($CB22=0,INDEX('Time Series Data'!N$7:N$8790,MATCH(1,(MONTH($AM22)='Time Series Data'!$E$7:$E$8790)*(DAY($AM22)='Time Series Data'!$F$7:$F$8790)*(HOUR(VLOOKUP('Time Series Data'!$AM22,'Coincident Peak'!$D$5:$I$16,2))='Time Series Data'!$G$7:$G$8790),0)),IF(($AT22*Rndtrp_eff)>Effective_Battery_Capacity,BatteryPower,(($AT22*Rndtrp_eff)/Effective_Battery_Capacity)*BatteryPower))) -> 0 | DD22: 0 | DF22: 0 | DG22: 540 | DH22: 0 | DI22: 0 | DJ22: 0 | DK22: 0 | DM22: 0 | DN22: 540 | DO22: 0 | DP22: 0 | DR22: 0 | DS22: 1,596.26 | DT22: 1,596.26 | DU22: 1,596.26 | DV22: 0 | DX22: 0 | DY22: 0 | DZ22: 1,596.26 | EA22: 1,596.26 | EB22: 1,596.26 | EF22: 0 | EG22: 0 | EH22: 0 | EI22: 0 | EK22: 0 | EL22: 0 | EM22: 0 | EN22: 0 | EP22: =IF($BV22=0,0,IF($CC22=0,VLOOKUP('Time Series Data'!$AM22,'Coincident Peak'!$D$5:$I$16,3),BatteryPower)) -> 0 | EQ22: 0 | ER22: 0 | ES22: 0 | EU22: =IF($BV22=0,0,IF($CC22=0,VLOOKUP('Time Series Data'!$AM22,'Coincident Peak'!$D$5:$I$16,3),BatteryPower)) -> 0 | EV22: 0 | EX22: 0 | EY22: 539.68 | EZ22: 0 | FA22: 0 | FB22: 0 | FD22: 0 | FE22: 539.68 | FF22: 0 | FH22: 0 | FI22: 1,596.26 | FJ22: 1,596.26 | FK22: 1,596.26 | FL22: 0 | FN22: 0 | FO22: 0 | FP22: 1,596.26 | FQ22: 1,596.26 | FR22: 1,596.26 | FT22: 0
B23: 2019-01-01T16:00:00 | C23: 2019-01-01 | D23: 10,582 | E23: 1 | F23: 1 | G23: 16 | H23: 2 | I23: =INDEX(Values!$V$6:$AG$29,'Time Series Data'!G23+1,'Time Series Data'!E23) -> 0 | J23: 16.5 | K23: 10582 | L23: 0 | M23: 0 | N23: 0 | O23: 2.72901 | P23: 95 | T23: 0.00 | U23: 2.73 | V23: 10,579 | W23: =IF(V23+O23>VLOOKUP(E23,'Coincident Peak'!$C$22:$I$33,7),0,1) -> 1 | X23: =IF((AND(E23=MONTH(VLOOKUP('Time Series Data'!E23,'Coincident Peak'!$C$5:$D$16,2)),F23=DAY(VLOOKUP('Time Series Data'!E23,'Coincident Peak'!$C$5:$D$16,2)),IF(AND(G23<=HOUR(VLOOKUP('Time Series Data'!E23,'Coincident Peak'!$C$5:$E$16,3))+Values!$E$5,G23>=HOUR(VLOOKUP('Time Series Data'!E23,'Coincident Peak'!$C$5:$E$16,3))-Values!$E$5),"TRUE","FALSE"))),BatteryPower,0) -> 0.00 | Y23: =IF((AND(E23=MONTH(VLOOKUP('Time Series Data'!E23,'Coincident Peak'!$C$5:$D$16,2)),F23=DAY(VLOOKUP('Time Series Data'!E23,'Coincident Peak'!$C$5:$D$16,2)))),0,N23) -> 0.00 | Z23: =IF((AND(E23=MONTH(VLOOKUP('Time Series Data'!E23,'Coincident Peak'!$C$5:$D$16,2)),F23=DAY(VLOOKUP('Time Series Data'!E23,'Coincident Peak'!$C$5:$D$16,2)),IF(AND(G23<=HOUR(VLOOKUP('Time Series Data'!E23,'Coincident Peak'!$C$5:$E$16,3))+Values!$E$5,G23>=HOUR(VLOOKUP('Time Series Data'!E23,'Coincident Peak'!$C$5:$E$16,3))-Values!$E$5),"TRUE","FALSE"))),BatteryPower,Y23) -> 0.00 | AA23: =IF((AND(E23=MONTH(VLOOKUP('Time Series Data'!E23,'Coincident Peak'!$C$5:$D$16,2)),F23=DAY(VLOOKUP('Time Series Data'!E23,'Coincident Peak'!$C$5:$D$16,2))-1)),VLOOKUP(E23,'Coincident Peak'!$C$5:$N$16,11)*Z23,Z23) -> 0.00 | AB23: =IF((AND(E23=MONTH(VLOOKUP('Time Series Data'!E23,'Coincident Peak'!$C$5:$D$16,2)),F23=DAY(VLOOKUP('Time Series Data'!E23,'Coincident Peak'!$C$5:$D$16,2))+1)),VLOOKUP(E23,'Coincident Peak'!$C$5:$N$16,12)*AA23,AA23) -> 0.00 | AC23: =IF((AND(E23=MONTH(VLOOKUP('Time Series Data'!E23,'Coincident Peak'!$C$5:$D$16,2)),F23=DAY(VLOOKUP('Time Series Data'!E23,'Coincident Peak'!$C$5:$D$16,2)))),0,O23) -> 2.73 | AD23: =IF((AND(E23=MONTH(VLOOKUP('Time Series Data'!E23,'Coincident Peak'!$C$5:$D$16,2)),F23=DAY(VLOOKUP('Time Series Data'!E23,'Coincident Peak'!$C$5:$D$16,2))-1)),VLOOKUP(E23,'Coincident Peak'!$C$5:$N$16,11)*AC23,AC23) -> 2.73 | AE23: =IF((AND(E23=MONTH(VLOOKUP('Time Series Data'!E23,'Coincident Peak'!$C$5:$D$16,2)),F23=DAY(VLOOKUP('Time Series Data'!E23,'Coincident Peak'!$C$5:$D$16,2))+1)),VLOOKUP(E23,'Coincident Peak'!$C$5:$N$16,12)*AD23,AD23) -> 2.73 | AF23: 10,579 | AG23: =IF((AND(E23=MONTH(VLOOKUP('Time Series Data'!E23,'Coincident Peak'!$C$5:$D$16,2)),F23=DAY(VLOOKUP('Time Series Data'!E23,'Coincident Peak'!$C$5:$D$16,2)))),U23,O23) -> 2.73 | AH23: 10,579 | AL23: 16 | AM23: 2019-01-17 | AN23: 1 | AO23: 0 | AP23: 0 | AQ23: 0 | AR23: 1,694.63 | AS23: 953.79 | AT23: =IF(ISNA(MATCH(AM23,'Coincident Peak'!$D$5:$D$16,0))=TRUE,0,SUMIFS($O$7:$O$8790,$F$7:$F$8790,DAY(AM23),$E$7:$E$8790,MONTH(AM23),$G$7:$G$8790,"<"&HOUR(VLOOKUP(AM23,'Coincident Peak'!$D$5:$E$16,2))-Values!$E$5)) -> 0 | AU23: 0 | AV23: 0 | AW23: 0 | AX23: 598 | AY23: =IF(ISNA(MATCH(AM23,'Coincident Peak'!$D$5:$D$16,0))=TRUE,0,SUMIFS($O$7:$O$8790,$F$7:$F$8790,DAY(AM23),$E$7:$E$8790,MONTH(AM23),$G$7:$G$8790,"<"&HOUR(VLOOKUP(AM23,'Coincident Peak'!$D$5:$E$16,2))-Values!$E$5,$I$7:$I$8790,1)) -> 0 | AZ23: 598 | BA23: 598 | BB23: 0 | BD23: 598 | BE23: 1,096 | BF23: 0 | BG23: =IF(IF(ISNA(MATCH(AM23,'Coincident Peak'!$D$5:$D$16,0))=TRUE,0,SUMIFS($O$7:$O$8790,$F$7:$F$8790,DAY(AM23),$E$7:$E$8790,MONTH(AM23),$G$7:$G$8790,"<"&HOUR(VLOOKUP(AM23,'Coincident Peak'!$D$5:$E$16,2))-Values!$E$5,$I$7:$I$8790,0))>(Effective_Battery_Capacity/Rndtrp_eff),(Effective_Battery_Capacity/Rndtrp_eff),IF(ISNA(MATCH(AM23,'Coincident Peak'!$D$5:$D$16,0))=TRUE,0,SUMIFS($O$7:$O$8790,$F$7:$F$8790,DAY(AM23),$E$7:$E$8790,MONTH(AM23),$G$7:$G$8790,"<"&HOUR(VLOOKUP(AM23,'Coincident Peak'!$D$5:$E$16,2))-Values!$E$5,$I$7:$I$8790,0))) -> 0 | BH23: =IF((IF(ISNA(MATCH(AM23,'Coincident Peak'!$D$5:$D$16,0))=TRUE,0,SUMIFS($O$7:$O$8790,$F$7:$F$8790,DAY(AM23),$E$7:$E$8790,MONTH(AM23),$G$7:$G$8790,"<"&HOUR(VLOOKUP(AM23,'Coincident Peak'!$D$5:$E$16,2))-Values!$E$5)))>(Effective_Battery_Capacity/Rndtrp_eff),(Effective_Battery_Capacity/Rndtrp_eff),(IF(ISNA(MATCH(AM23,'Coincident Peak'!$D$5:$D$16,0))=TRUE,0,SUMIFS($O$7:$O$8790,$F$7:$F$8790,DAY(AM23),$E$7:$E$8790,MONTH(AM23),$G$7:$G$8790,"<"&HOUR(VLOOKUP(AM23,'Coincident Peak'!$D$5:$E$16,2))-Values!$E$5)))) -> 0 | BI23: 0 | BJ23: 0 | BK23: =IF(WholesaleEnergyCost_2>PPACostPerKWh,(IF((SUMIFS('Time Series Data'!$AG$7:$AG$8790,'Time Series Data'!$I$7:$I$8790,1,$F$7:$F$8790,DAY(AM23),$E$7:$E$8790,MONTH(AM23))-BP23)>(Effective_Battery_Capacity/Rndtrp_eff),(Effective_Battery_Capacity/Rndtrp_eff),(SUMIFS('Time Series Data'!$AG$7:$AG$8790,'Time Series Data'!$I$7:$I$8790,1,$F$7:$F$8790,DAY(AM23),$E$7:$E$8790,MONTH(AM23))))-BP23),0) -> 0 | BL23: 0 | BM23: =SUMIFS('Time Series Data'!$AG$7:$AG$8790,$F$7:$F$8790,DAY(AM23),$E$7:$E$8790,MONTH(AM23),'Time Series Data'!$I$7:$I$8790,1)-BL23-BP23 -> 1,096 | BN23: =SUMIFS('Time Series Data'!$AG$7:$AG$8790,'Time Series Data'!$I$7:$I$8790,0,$F$7:$F$8790,DAY(AM23),$E$7:$E$8790,MONTH(AM23))-BQ23 -> 598 | BO23: =IF((IF(ISNA(MATCH(AM23,'Coincident Peak'!$D$5:$D$16,0))=TRUE,0,SUMIFS($U$7:$U$8790,$F$7:$F$8790,DAY(AM23),$E$7:$E$8790,MONTH(AM23),$G$7:$G$8790,"<"&HOUR(VLOOKUP(AM23,'Coincident Peak'!$D$5:$E$16,2))-Values!$E$5)))>(Effective_Battery_Capacity/Rndtrp_eff),(Effective_Battery_Capacity/Rndtrp_eff),(IF(ISNA(MATCH(AM23,'Coincident Peak'!$D$5:$D$16,0))=TRUE,0,SUMIFS($U$7:$U$8790,$F$7:$F$8790,DAY(AM23),$E$7:$E$8790,MONTH(AM23),$G$7:$G$8790,"<"&HOUR(VLOOKUP(AM23,'Coincident Peak'!$D$5:$E$16,2))-Values!$E$5)))) -> 0 | BP23: =IF(WholesaleEnergyCost_2>PPACostPerKWh,(IF((IF(ISNA(MATCH(AM23,'Coincident Peak'!$D$5:$D$16,0))=TRUE,0,SUMIFS($U$7:$U$8790,$F$7:$F$8790,DAY(AM23),$E$7:$E$8790,MONTH(AM23),$G$7:$G$8790,"<"&HOUR(VLOOKUP(AM23,'Coincident Peak'!$D$5:$E$16,2))-Values!$E$5,$I$7:$I$8790,1)))>(Effective_Battery_Capacity/Rndtrp_eff),(Effective_Battery_Capacity/Rndtrp_eff),(IF(ISNA(MATCH(AM23,'Coincident Peak'!$D$5:$D$16,0))=TRUE,0,SUMIFS($U$7:$U$8790,$F$7:$F$8790,DAY(AM23),$E$7:$E$8790,MONTH(AM23),$G$7:$G$8790,"<"&HOUR(VLOOKUP(AM23,'Coincident Peak'!$D$5:$E$16,2))-Values!$E$5,$I$7:$I$8790,1))))),0) -> 0 | BQ23: =IF(WholesaleEnergyCost_1>PPACostPerKWh,(IF((IF(ISNA(MATCH(AM23,'Coincident Peak'!$D$5:$D$16,0))=TRUE,0,SUMIFS($U$7:$U$8790,$F$7:$F$8790,DAY(AM23),$E$7:$E$8790,MONTH(AM23),$G$7:$G$8790,"<"&HOUR(VLOOKUP(AM23,'Coincident Peak'!$D$5:$E$16,2))-Values!$E$5,$I$7:$I$8790,0)))>(Effective_Battery_Capacity/Rndtrp_eff),(Effective_Battery_Capacity/Rndtrp_eff),(IF(ISNA(MATCH(AM23,'Coincident Peak'!$D$5:$D$16,0))=TRUE,0,SUMIFS($U$7:$U$8790,$F$7:$F$8790,DAY(AM23),$E$7:$E$8790,MONTH(AM23),$G$7:$G$8790,"<"&HOUR(VLOOKUP(AM23,'Coincident Peak'!$D$5:$E$16,2))-Values!$E$5,$I$7:$I$8790,0))))),0) -> 0 | BR23: 0 | BS23: 1,096 | BT23: 0 | BV23: =IF(ISNA(MATCH(AM23,'Coincident Peak'!$D$5:$D$16,0))=TRUE,0,1) -> 0 | BW23: 0 | BX23: 0 | BY23: 0 | BZ23: 0 | CA23: 0 | CB23: 1 | CC23: 1 | CD23: =IF(ISNA(MATCH(AM23,'Coincident Peak'!$D$5:$D$16,0))=TRUE,1,0) -> 1 | CE23: =VLOOKUP(MONTH($AM23),'Value Stacking Basis'!$B$38:$D$49,3) -> 3 | CF23: =VLOOKUP(MONTH($AM23),'Value Stacking Basis'!$B$38:$F$49,5) -> 2 | CG23: 1 | CK23: 953.79 | CL23: 953.79 | CM23: 953.79 | CN23: 953.79 | CO23: 0 | CQ23: 0 | CR23: 953.79 | CS23: 953.79 | CT23: 953.79 | CU23: 953.79 | CW23: =IF($BV23=0,0,IF($CB23=0,INDEX('Time Series Data'!N$7:N$8790,MATCH(1,(MONTH($AM23)='Time Series Data'!$E$7:$E$8790)*(DAY($AM23)='Time Series Data'!$F$7:$F$8790)*(HOUR(VLOOKUP('Time Series Data'!$AM23,'Coincident Peak'!$D$5:$I$16,2))='Time Series Data'!$G$7:$G$8790),0)),IF(($AT23*Rndtrp_eff)>Effective_Battery_Capacity,BatteryPower,(($AT23*Rndtrp_eff)/Effective_Battery_Capacity)*BatteryPower))) -> 0 | CX23: 953.79 | CY23: 953.79 | CZ23: 953.79 | DA23: 953.79 | DC23: =IF($BV23=0,0,IF($CB23=0,INDEX('Time Series Data'!N$7:N$8790,MATCH(1,(MONTH($AM23)='Time Series Data'!$E$7:$E$8790)*(DAY($AM23)='Time Series Data'!$F$7:$F$8790)*(HOUR(VLOOKUP('Time Series Data'!$AM23,'Coincident Peak'!$D$5:$I$16,2))='Time Series Data'!$G$7:$G$8790),0)),IF(($AT23*Rndtrp_eff)>Effective_Battery_Capacity,BatteryPower,(($AT23*Rndtrp_eff)/Effective_Battery_Capacity)*BatteryPower))) -> 0 | DD23: 0 | DF23: 0 | DG23: 0 | DH23: 954 | DI23: 953.79 | DJ23: 953.79 | DK23: 953.79 | DM23: 0 | DN23: 0 | DO23: 954 | DP23: 0 | DR23: 0 | DS23: 953.79 | DT23: 953.79 | DU23: 953.79 | DV23: 0 | DX23: 0 | DY23: 0 | DZ23: 953.79 | EA23: 953.79 | EB23: 953.79 | EF23: 1,596.26 | EG23: 1,596.26 | EH23: 1,596.26 | EI23: 0 | EK23: 0 | EL23: 1,596.26 | EM23: 1,596.26 | EN23: 1,596.26 | EP23: =IF($BV23=0,0,IF($CC23=0,VLOOKUP('Time Series Data'!$AM23,'Coincident Peak'!$D$5:$I$16,3),BatteryPower)) -> 0 | EQ23: 1,596.26 | ER23: 1,596.26 | ES23: 1,596.26 | EU23: =IF($BV23=0,0,IF($CC23=0,VLOOKUP('Time Series Data'!$AM23,'Coincident Peak'!$D$5:$I$16,3),BatteryPower)) -> 0 | EV23: 0 | EX23: 0 | EY23: 0 | EZ23: 1,596.26 | FA23: 1,596.26 | FB23: 1,596.26 | FD23: 0 | FE23: 0 | FF23: 0 | FH23: 0 | FI23: 1,596.26 | FJ23: 1,596.26 | FK23: 1,596.26 | FL23: 0 | FN23: 0 | FO23: 0 | FP23: 1,596.26 | FQ23: 1,596.26 | FR23: 1,596.26 | FT23: 0
B24: 2019-01-01T17:00:00 | C24: 2019-01-01 | D24: 11,813 | E24: 1 | F24: 1 | G24: 17 | H24: 2 | I24: =INDEX(Values!$V$6:$AG$29,'Time Series Data'!G24+1,'Time Series Data'!E24) -> 0 | J24: 17.5 | K24: 11813 | L24: 0 | M24: 0 | N24: 0 | O24: 0 | P24: 95 | T24: 0.00 | U24: 0.00 | V24: 11,813 | W24: =IF(V24+O24>VLOOKUP(E24,'Coincident Peak'!$C$22:$I$33,7),0,1) -> 1 | X24: =IF((AND(E24=MONTH(VLOOKUP('Time Series Data'!E24,'Coincident Peak'!$C$5:$D$16,2)),F24=DAY(VLOOKUP('Time Series Data'!E24,'Coincident Peak'!$C$5:$D$16,2)),IF(AND(G24<=HOUR(VLOOKUP('Time Series Data'!E24,'Coincident Peak'!$C$5:$E$16,3))+Values!$E$5,G24>=HOUR(VLOOKUP('Time Series Data'!E24,'Coincident Peak'!$C$5:$E$16,3))-Values!$E$5),"TRUE","FALSE"))),BatteryPower,0) -> 0.00 | Y24: =IF((AND(E24=MONTH(VLOOKUP('Time Series Data'!E24,'Coincident Peak'!$C$5:$D$16,2)),F24=DAY(VLOOKUP('Time Series Data'!E24,'Coincident Peak'!$C$5:$D$16,2)))),0,N24) -> 0.00 | Z24: =IF((AND(E24=MONTH(VLOOKUP('Time Series Data'!E24,'Coincident Peak'!$C$5:$D$16,2)),F24=DAY(VLOOKUP('Time Series Data'!E24,'Coincident Peak'!$C$5:$D$16,2)),IF(AND(G24<=HOUR(VLOOKUP('Time Series Data'!E24,'Coincident Peak'!$C$5:$E$16,3))+Values!$E$5,G24>=HOUR(VLOOKUP('Time Series Data'!E24,'Coincident Peak'!$C$5:$E$16,3))-Values!$E$5),"TRUE","FALSE"))),BatteryPower,Y24) -> 0.00 | AA24: =IF((AND(E24=MONTH(VLOOKUP('Time Series Data'!E24,'Coincident Peak'!$C$5:$D$16,2)),F24=DAY(VLOOKUP('Time Series Data'!E24,'Coincident Peak'!$C$5:$D$16,2))-1)),VLOOKUP(E24,'Coincident Peak'!$C$5:$N$16,11)*Z24,Z24) -> 0.00 | AB24: =IF((AND(E24=MONTH(VLOOKUP('Time Series Data'!E24,'Coincident Peak'!$C$5:$D$16,2)),F24=DAY(VLOOKUP('Time Series Data'!E24,'Coincident Peak'!$C$5:$D$16,2))+1)),VLOOKUP(E24,'Coincident Peak'!$C$5:$N$16,12)*AA24,AA24) -> 0.00 | AC24: =IF((AND(E24=MONTH(VLOOKUP('Time Series Data'!E24,'Coincident Peak'!$C$5:$D$16,2)),F24=DAY(VLOOKUP('Time Series Data'!E24,'Coincident Peak'!$C$5:$D$16,2)))),0,O24) -> 0.00 | AD24: =IF((AND(E24=MONTH(VLOOKUP('Time Series Data'!E24,'Coincident Peak'!$C$5:$D$16,2)),F24=DAY(VLOOKUP('Time Series Data'!E24,'Coincident Peak'!$C$5:$D$16,2))-1)),VLOOKUP(E24,'Coincident Peak'!$C$5:$N$16,11)*AC24,AC24) -> 0.00 | AE24: =IF((AND(E24=MONTH(VLOOKUP('Time Series Data'!E24,'Coincident Peak'!$C$5:$D$16,2)),F24=DAY(VLOOKUP('Time Series Data'!E24,'Coincident Peak'!$C$5:$D$16,2))+1)),VLOOKUP(E24,'Coincident Peak'!$C$5:$N$16,12)*AD24,AD24) -> 0.00 | AF24: 11,813 | AG24: =IF((AND(E24=MONTH(VLOOKUP('Time Series Data'!E24,'Coincident Peak'!$C$5:$D$16,2)),F24=DAY(VLOOKUP('Time Series Data'!E24,'Coincident Peak'!$C$5:$D$16,2)))),U24,O24) -> 0.00 | AH24: 11,813 | AL24: 17 | AM24: 2019-01-18 | AN24: 1 | AO24: 0 | AP24: 0 | AQ24: 0 | AR24: 2,756.02 | AS24: 1,651.87 | AT24: =IF(ISNA(MATCH(AM24,'Coincident Peak'!$D$5:$D$16,0))=TRUE,0,SUMIFS($O$7:$O$8790,$F$7:$F$8790,DAY(AM24),$E$7:$E$8790,MONTH(AM24),$G$7:$G$8790,"<"&HOUR(VLOOKUP(AM24,'Coincident Peak'!$D$5:$E$16,2))-Values!$E$5)) -> 0 | AU24: 0 | AV24: 0 | AW24: 0 | AX24: 858 | AY24: =IF(ISNA(MATCH(AM24,'Coincident Peak'!$D$5:$D$16,0))=TRUE,0,SUMIFS($O$7:$O$8790,$F$7:$F$8790,DAY(AM24),$E$7:$E$8790,MONTH(AM24),$G$7:$G$8790,"<"&HOUR(VLOOKUP(AM24,'Coincident Peak'!$D$5:$E$16,2))-Values!$E$5,$I$7:$I$8790,1)) -> 0 | AZ24: 858 | BA24: 858 | BB24: 0 | BD24: 858 | BE24: 1,835 | BF24: 0 | BG24: =IF(IF(ISNA(MATCH(AM24,'Coincident Peak'!$D$5:$D$16,0))=TRUE,0,SUMIFS($O$7:$O$8790,$F$7:$F$8790,DAY(AM24),$E$7:$E$8790,MONTH(AM24),$G$7:$G$8790,"<"&HOUR(VLOOKUP(AM24,'Coincident Peak'!$D$5:$E$16,2))-Values!$E$5,$I$7:$I$8790,0))>(Effective_Battery_Capacity/Rndtrp_eff),(Effective_Battery_Capacity/Rndtrp_eff),IF(ISNA(MATCH(AM24,'Coincident Peak'!$D$5:$D$16,0))=TRUE,0,SUMIFS($O$7:$O$8790,$F$7:$F$8790,DAY(AM24),$E$7:$E$8790,MONTH(AM24),$G$7:$G$8790,"<"&HOUR(VLOOKUP(AM24,'Coincident Peak'!$D$5:$E$16,2))-Values!$E$5,$I$7:$I$8790,0))) -> 0 | BH24: =IF((IF(ISNA(MATCH(AM24,'Coincident Peak'!$D$5:$D$16,0))=TRUE,0,SUMIFS($O$7:$O$8790,$F$7:$F$8790,DAY(AM24),$E$7:$E$8790,MONTH(AM24),$G$7:$G$8790,"<"&HOUR(VLOOKUP(AM24,'Coincident Peak'!$D$5:$E$16,2))-Values!$E$5)))>(Effective_Battery_Capacity/Rndtrp_eff),(Effective_Battery_Capacity/Rndtrp_eff),(IF(ISNA(MATCH(AM24,'Coincident Peak'!$D$5:$D$16,0))=TRUE,0,SUMIFS($O$7:$O$8790,$F$7:$F$8790,DAY(AM24),$E$7:$E$8790,MONTH(AM24),$G$7:$G$8790,"<"&HOUR(VLOOKUP(AM24,'Coincident Peak'!$D$5:$E$16,2))-Values!$E$5)))) -> 0 | BI24: 0 | BJ24: 0 | BK24: =IF(WholesaleEnergyCost_2>PPACostPerKWh,(IF((SUMIFS('Time Series Data'!$AG$7:$AG$8790,'Time Series Data'!$I$7:$I$8790,1,$F$7:$F$8790,DAY(AM24),$E$7:$E$8790,MONTH(AM24))-BP24)>(Effective_Battery_Capacity/Rndtrp_eff),(Effective_Battery_Capacity/Rndtrp_eff),(SUMIFS('Time Series Data'!$AG$7:$AG$8790,'Time Series Data'!$I$7:$I$8790,1,$F$7:$F$8790,DAY(AM24),$E$7:$E$8790,MONTH(AM24))))-BP24),0) -> 0 | BL24: 0 | BM24: =SUMIFS('Time Series Data'!$AG$7:$AG$8790,$F$7:$F$8790,DAY(AM24),$E$7:$E$8790,MONTH(AM24),'Time Series Data'!$I$7:$I$8790,1)-BL24-BP24 -> 1,898 | BN24: =SUMIFS('Time Series Data'!$AG$7:$AG$8790,'Time Series Data'!$I$7:$I$8790,0,$F$7:$F$8790,DAY(AM24),$E$7:$E$8790,MONTH(AM24))-BQ24 -> 858 | BO24: =IF((IF(ISNA(MATCH(AM24,'Coincident Peak'!$D$5:$D$16,0))=TRUE,0,SUMIFS($U$7:$U$8790,$F$7:$F$8790,DAY(AM24),$E$7:$E$8790,MONTH(AM24),$G$7:$G$8790,"<"&HOUR(VLOOKUP(AM24,'Coincident Peak'!$D$5:$E$16,2))-Values!$E$5)))>(Effective_Battery_Capacity/Rndtrp_eff),(Effective_Battery_Capacity/Rndtrp_eff),(IF(ISNA(MATCH(AM24,'Coincident Peak'!$D$5:$D$16,0))=TRUE,0,SUMIFS($U$7:$U$8790,$F$7:$F$8790,DAY(AM24),$E$7:$E$8790,MONTH(AM24),$G$7:$G$8790,"<"&HOUR(VLOOKUP(AM24,'Coincident Peak'!$D$5:$E$16,2))-Values!$E$5)))) -> 0 | BP24: =IF(WholesaleEnergyCost_2>PPACostPerKWh,(IF((IF(ISNA(MATCH(AM24,'Coincident Peak'!$D$5:$D$16,0))=TRUE,0,SUMIFS($U$7:$U$8790,$F$7:$F$8790,DAY(AM24),$E$7:$E$8790,MONTH(AM24),$G$7:$G$8790,"<"&HOUR(VLOOKUP(AM24,'Coincident Peak'!$D$5:$E$16,2))-Values!$E$5,$I$7:$I$8790,1)))>(Effective_Battery_Capacity/Rndtrp_eff),(Effective_Battery_Capacity/Rndtrp_eff),(IF(ISNA(MATCH(AM24,'Coincident Peak'!$D$5:$D$16,0))=TRUE,0,SUMIFS($U$7:$U$8790,$F$7:$F$8790,DAY(AM24),$E$7:$E$8790,MONTH(AM24),$G$7:$G$8790,"<"&HOUR(VLOOKUP(AM24,'Coincident Peak'!$D$5:$E$16,2))-Values!$E$5,$I$7:$I$8790,1))))),0) -> 0 | BQ24: =IF(WholesaleEnergyCost_1>PPACostPerKWh,(IF((IF(ISNA(MATCH(AM24,'Coincident Peak'!$D$5:$D$16,0))=TRUE,0,SUMIFS($U$7:$U$8790,$F$7:$F$8790,DAY(AM24),$E$7:$E$8790,MONTH(AM24),$G$7:$G$8790,"<"&HOUR(VLOOKUP(AM24,'Coincident Peak'!$D$5:$E$16,2))-Values!$E$5,$I$7:$I$8790,0)))>(Effective_Battery_Capacity/Rndtrp_eff),(Effective_Battery_Capacity/Rndtrp_eff),(IF(ISNA(MATCH(AM24,'Coincident Peak'!$D$5:$D$16,0))=TRUE,0,SUMIFS($U$7:$U$8790,$F$7:$F$8790,DAY(AM24),$E$7:$E$8790,MONTH(AM24),$G$7:$G$8790,"<"&HOUR(VLOOKUP(AM24,'Coincident Peak'!$D$5:$E$16,2))-Values!$E$5,$I$7:$I$8790,0))))),0) -> 0 | BR24: 0 | BS24: 1,835 | BT24: 0 | BV24: =IF(ISNA(MATCH(AM24,'Coincident Peak'!$D$5:$D$16,0))=TRUE,0,1) -> 0 | BW24: 0 | BX24: 0 | BY24: 0 | BZ24: 0 | CA24: 0 | CB24: 1 | CC24: 1 | CD24: =IF(ISNA(MATCH(AM24,'Coincident Peak'!$D$5:$D$16,0))=TRUE,1,0) -> 1 | CE24: =VLOOKUP(MONTH($AM24),'Value Stacking Basis'!$B$38:$D$49,3) -> 3 | CF24: =VLOOKUP(MONTH($AM24),'Value Stacking Basis'!$B$38:$F$49,5) -> 2 | CG24: 1 | CK24: 1,651.87 | CL24: 1,596.26 | CM24: 1,596.26 | CN24: 1,596.26 | CO24: 0 | CQ24: 0 | CR24: 1,651.87 | CS24: 1,596.26 | CT24: 1,596.26 | CU24: 1,596.26 | CW24: =IF($BV24=0,0,IF($CB24=0,INDEX('Time Series Data'!N$7:N$8790,MATCH(1,(MONTH($AM24)='Time Series Data'!$E$7:$E$8790)*(DAY($AM24)='Time Series Data'!$F$7:$F$8790)*(HOUR(VLOOKUP('Time Series Data'!$AM24,'Coincident Peak'!$D$5:$I$16,2))='Time Series Data'!$G$7:$G$8790),0)),IF(($AT24*Rndtrp_eff)>Effective_Battery_Capacity,BatteryPower,(($AT24*Rndtrp_eff)/Effective_Battery_Capacity)*BatteryPower))) -> 0 | CX24: 1,651.87 | CY24: 1,596.26 | CZ24: 1,596.26 | DA24: 1,596.26 | DC24: =IF($BV24=0,0,IF($CB24=0,INDEX('Time Series Data'!N$7:N$8790,MATCH(1,(MONTH($AM24)='Time Series Data'!$E$7:$E$8790)*(DAY($AM24)='Time Series Data'!$F$7:$F$8790)*(HOUR(VLOOKUP('Time Series Data'!$AM24,'Coincident Peak'!$D$5:$I$16,2))='Time Series Data'!$G$7:$G$8790),0)),IF(($AT24*Rndtrp_eff)>Effective_Battery_Capacity,BatteryPower,(($AT24*Rndtrp_eff)/Effective_Battery_Capacity)*BatteryPower))) -> 0 | DD24: 0 | DF24: 0 | DG24: 0 | DH24: 1,652 | DI24: 1,596.26 | DJ24: 1,596.26 | DK24: 1,596.26 | DM24: 0 | DN24: 0 | DO24: 1,652 | DP24: 0 | DR24: 0 | DS24: 1,596.26 | DT24: 1,596.26 | DU24: 1,596.26 | DV24: 0 | DX24: 0 | DY24: 0 | DZ24: 1,596.26 | EA24: 1,596.26 | EB24: 1,596.26 | EF24: 1,596.26 | EG24: 1,596.26 | EH24: 1,596.26 | EI24: 0 | EK24: 0 | EL24: 1,596.26 | EM24: 1,596.26 | EN24: 1,596.26 | EP24: =IF($BV24=0,0,IF($CC24=0,VLOOKUP('Time Series Data'!$AM24,'Coincident Peak'!$D$5:$I$16,3),BatteryPower)) -> 0 | EQ24: 1,596.26 | ER24: 1,596.26 | ES24: 1,596.26 | EU24: =IF($BV24=0,0,IF($CC24=0,VLOOKUP('Time Series Data'!$AM24,'Coincident Peak'!$D$5:$I$16,3),BatteryPower)) -> 0 | EV24: 0 | EX24: 0 | EY24: 0 | EZ24: 1,596.26 | FA24: 1,596.26 | FB24: 1,596.26 | FD24: 0 | FE24: 0 | FF24: 0 | FH24: 0 | FI24: 1,596.26 | FJ24: 1,596.26 | FK24: 1,596.26 | FL24: 0 | FN24: 0 | FO24: 0 | FP24: 1,596.26 | FQ24: 1,596.26 | FR24: 1,596.26 | FT24: 0
B25: 2019-01-01T18:00:00 | C25: 2019-01-01 | D25: 12,522 | E25: 1 | F25: 1 | G25: 18 | H25: 2 | I25: =INDEX(Values!$V$6:$AG$29,'Time Series Data'!G25+1,'Time Series Data'!E25) -> 1 | J25: 18.5 | K25: 12522 | L25: 0 | M25: 0 | N25: 539.684 | O25: 0 | P25: 68.9583 | T25: 0.00 | U25: 0.00 | V25: 11,982 | W25: =IF(V25+O25>VLOOKUP(E25,'Coincident Peak'!$C$22:$I$33,7),0,1) -> 1 | X25: =IF((AND(E25=MONTH(VLOOKUP('Time Series Data'!E25,'Coincident Peak'!$C$5:$D$16,2)),F25=DAY(VLOOKUP('Time Series Data'!E25,'Coincident Peak'!$C$5:$D$16,2)),IF(AND(G25<=HOUR(VLOOKUP('Time Series Data'!E25,'Coincident Peak'!$C$5:$E$16,3))+Values!$E$5,G25>=HOUR(VLOOKUP('Time Series Data'!E25,'Coincident Peak'!$C$5:$E$16,3))-Values!$E$5),"TRUE","FALSE"))),BatteryPower,0) -> 0.00 | Y25: =IF((AND(E25=MONTH(VLOOKUP('Time Series Data'!E25,'Coincident Peak'!$C$5:$D$16,2)),F25=DAY(VLOOKUP('Time Series Data'!E25,'Coincident Peak'!$C$5:$D$16,2)))),0,N25) -> 539.68 | Z25: =IF((AND(E25=MONTH(VLOOKUP('Time Series Data'!E25,'Coincident Peak'!$C$5:$D$16,2)),F25=DAY(VLOOKUP('Time Series Data'!E25,'Coincident Peak'!$C$5:$D$16,2)),IF(AND(G25<=HOUR(VLOOKUP('Time Series Data'!E25,'Coincident Peak'!$C$5:$E$16,3))+Values!$E$5,G25>=HOUR(VLOOKUP('Time Series Data'!E25,'Coincident Peak'!$C$5:$E$16,3))-Values!$E$5),"TRUE","FALSE"))),BatteryPower,Y25) -> 539.68 | AA25: =IF((AND(E25=MONTH(VLOOKUP('Time Series Data'!E25,'Coincident Peak'!$C$5:$D$16,2)),F25=DAY(VLOOKUP('Time Series Data'!E25,'Coincident Peak'!$C$5:$D$16,2))-1)),VLOOKUP(E25,'Coincident Peak'!$C$5:$N$16,11)*Z25,Z25) -> 539.68 | AB25: =IF((AND(E25=MONTH(VLOOKUP('Time Series Data'!E25,'Coincident Peak'!$C$5:$D$16,2)),F25=DAY(VLOOKUP('Time Series Data'!E25,'Coincident Peak'!$C$5:$D$16,2))+1)),VLOOKUP(E25,'Coincident Peak'!$C$5:$N$16,12)*AA25,AA25) -> 539.68 | AC25: =IF((AND(E25=MONTH(VLOOKUP('Time Series Data'!E25,'Coincident Peak'!$C$5:$D$16,2)),F25=DAY(VLOOKUP('Time Series Data'!E25,'Coincident Peak'!$C$5:$D$16,2)))),0,O25) -> 0.00 | AD25: =IF((AND(E25=MONTH(VLOOKUP('Time Series Data'!E25,'Coincident Peak'!$C$5:$D$16,2)),F25=DAY(VLOOKUP('Time Series Data'!E25,'Coincident Peak'!$C$5:$D$16,2))-1)),VLOOKUP(E25,'Coincident Peak'!$C$5:$N$16,11)*AC25,AC25) -> 0.00 | AE25: =IF((AND(E25=MONTH(VLOOKUP('Time Series Data'!E25,'Coincident Peak'!$C$5:$D$16,2)),F25=DAY(VLOOKUP('Time Series Data'!E25,'Coincident Peak'!$C$5:$D$16,2))+1)),VLOOKUP(E25,'Coincident Peak'!$C$5:$N$16,12)*AD25,AD25) -> 0.00 | AF25: 11,982 | AG25: =IF((AND(E25=MONTH(VLOOKUP('Time Series Data'!E25,'Coincident Peak'!$C$5:$D$16,2)),F25=DAY(VLOOKUP('Time Series Data'!E25,'Coincident Peak'!$C$5:$D$16,2)))),U25,O25) -> 0.00 | AH25: 11,982 | AL25: 18 | AM25: 2019-01-19 | AN25: 0 | AO25: 0 | AP25: 0 | AQ25: 0 | AR25: 499.45 | AS25: 273.68 | AT25: =IF(ISNA(MATCH(AM25,'Coincident Peak'!$D$5:$D$16,0))=TRUE,0,SUMIFS($O$7:$O$8790,$F$7:$F$8790,DAY(AM25),$E$7:$E$8790,MONTH(AM25),$G$7:$G$8790,"<"&HOUR(VLOOKUP(AM25,'Coincident Peak'!$D$5:$E$16,2))-Values!$E$5)) -> 0 | AU25: 0 | AV25: 0 | AW25: 0 | AX25: 0 | AY25: =IF(ISNA(MATCH(AM25,'Coincident Peak'!$D$5:$D$16,0))=TRUE,0,SUMIFS($O$7:$O$8790,$F$7:$F$8790,DAY(AM25),$E$7:$E$8790,MONTH(AM25),$G$7:$G$8790,"<"&HOUR(VLOOKUP(AM25,'Coincident Peak'!$D$5:$E$16,2))-Values!$E$5,$I$7:$I$8790,1)) -> 0 | AZ25: 0 | BA25: 0 | BB25: 0 | BD25: 0 | BE25: 0 | BF25: 0 | BG25: =IF(IF(ISNA(MATCH(AM25,'Coincident Peak'!$D$5:$D$16,0))=TRUE,0,SUMIFS($O$7:$O$8790,$F$7:$F$8790,DAY(AM25),$E$7:$E$8790,MONTH(AM25),$G$7:$G$8790,"<"&HOUR(VLOOKUP(AM25,'Coincident Peak'!$D$5:$E$16,2))-Values!$E$5,$I$7:$I$8790,0))>(Effective_Battery_Capacity/Rndtrp_eff),(Effective_Battery_Capacity/Rndtrp_eff),IF(ISNA(MATCH(AM25,'Coincident Peak'!$D$5:$D$16,0))=TRUE,0,SUMIFS($O$7:$O$8790,$F$7:$F$8790,DAY(AM25),$E$7:$E$8790,MONTH(AM25),$G$7:$G$8790,"<"&HOUR(VLOOKUP(AM25,'Coincident Peak'!$D$5:$E$16,2))-Values!$E$5,$I$7:$I$8790,0))) -> 0 | BH25: =IF((IF(ISNA(MATCH(AM25,'Coincident Peak'!$D$5:$D$16,0))=TRUE,0,SUMIFS($O$7:$O$8790,$F$7:$F$8790,DAY(AM25),$E$7:$E$8790,MONTH(AM25),$G$7:$G$8790,"<"&HOUR(VLOOKUP(AM25,'Coincident Peak'!$D$5:$E$16,2))-Values!$E$5)))>(Effective_Battery_Capacity/Rndtrp_eff),(Effective_Battery_Capacity/Rndtrp_eff),(IF(ISNA(MATCH(AM25,'Coincident Peak'!$D$5:$D$16,0))=TRUE,0,SUMIFS($O$7:$O$8790,$F$7:$F$8790,DAY(AM25),$E$7:$E$8790,MONTH(AM25),$G$7:$G$8790,"<"&HOUR(VLOOKUP(AM25,'Coincident Peak'!$D$5:$E$16,2))-Values!$E$5)))) -> 0 | BI25: 0 | BJ25: 0 | BK25: =IF(WholesaleEnergyCost_2>PPACostPerKWh,(IF((SUMIFS('Time Series Data'!$AG$7:$AG$8790,'Time Series Data'!$I$7:$I$8790,1,$F$7:$F$8790,DAY(AM25),$E$7:$E$8790,MONTH(AM25))-BP25)>(Effective_Battery_Capacity/Rndtrp_eff),(Effective_Battery_Capacity/Rndtrp_eff),(SUMIFS('Time Series Data'!$AG$7:$AG$8790,'Time Series Data'!$I$7:$I$8790,1,$F$7:$F$8790,DAY(AM25),$E$7:$E$8790,MONTH(AM25))))-BP25),0) -> 0 | BL25: 0 | BM25: =SUMIFS('Time Series Data'!$AG$7:$AG$8790,$F$7:$F$8790,DAY(AM25),$E$7:$E$8790,MONTH(AM25),'Time Series Data'!$I$7:$I$8790,1)-BL25-BP25 -> 315 | BN25: =SUMIFS('Time Series Data'!$AG$7:$AG$8790,'Time Series Data'!$I$7:$I$8790,0,$F$7:$F$8790,DAY(AM25),$E$7:$E$8790,MONTH(AM25))-BQ25 -> 185 | BO25: =IF((IF(ISNA(MATCH(AM25,'Coincident Peak'!$D$5:$D$16,0))=TRUE,0,SUMIFS($U$7:$U$8790,$F$7:$F$8790,DAY(AM25),$E$7:$E$8790,MONTH(AM25),$G$7:$G$8790,"<"&HOUR(VLOOKUP(AM25,'Coincident Peak'!$D$5:$E$16,2))-Values!$E$5)))>(Effective_Battery_Capacity/Rndtrp_eff),(Effective_Battery_Capacity/Rndtrp_eff),(IF(ISNA(MATCH(AM25,'Coincident Peak'!$D$5:$D$16,0))=TRUE,0,SUMIFS($U$7:$U$8790,$F$7:$F$8790,DAY(AM25),$E$7:$E$8790,MONTH(AM25),$G$7:$G$8790,"<"&HOUR(VLOOKUP(AM25,'Coincident Peak'!$D$5:$E$16,2))-Values!$E$5)))) -> 0 | BP25: =IF(WholesaleEnergyCost_2>PPACostPerKWh,(IF((IF(ISNA(MATCH(AM25,'Coincident Peak'!$D$5:$D$16,0))=TRUE,0,SUMIFS($U$7:$U$8790,$F$7:$F$8790,DAY(AM25),$E$7:$E$8790,MONTH(AM25),$G$7:$G$8790,"<"&HOUR(VLOOKUP(AM25,'Coincident Peak'!$D$5:$E$16,2))-Values!$E$5,$I$7:$I$8790,1)))>(Effective_Battery_Capacity/Rndtrp_eff),(Effective_Battery_Capacity/Rndtrp_eff),(IF(ISNA(MATCH(AM25,'Coincident Peak'!$D$5:$D$16,0))=TRUE,0,SUMIFS($U$7:$U$8790,$F$7:$F$8790,DAY(AM25),$E$7:$E$8790,MONTH(AM25),$G$7:$G$8790,"<"&HOUR(VLOOKUP(AM25,'Coincident Peak'!$D$5:$E$16,2))-Values!$E$5,$I$7:$I$8790,1))))),0) -> 0 | BQ25: =IF(WholesaleEnergyCost_1>PPACostPerKWh,(IF((IF(ISNA(MATCH(AM25,'Coincident Peak'!$D$5:$D$16,0))=TRUE,0,SUMIFS($U$7:$U$8790,$F$7:$F$8790,DAY(AM25),$E$7:$E$8790,MONTH(AM25),$G$7:$G$8790,"<"&HOUR(VLOOKUP(AM25,'Coincident Peak'!$D$5:$E$16,2))-Values!$E$5,$I$7:$I$8790,0)))>(Effective_Battery_Capacity/Rndtrp_eff),(Effective_Battery_Capacity/Rndtrp_eff),(IF(ISNA(MATCH(AM25,'Coincident Peak'!$D$5:$D$16,0))=TRUE,0,SUMIFS($U$7:$U$8790,$F$7:$F$8790,DAY(AM25),$E$7:$E$8790,MONTH(AM25),$G$7:$G$8790,"<"&HOUR(VLOOKUP(AM25,'Coincident Peak'!$D$5:$E$16,2))-Values!$E$5,$I$7:$I$8790,0))))),0) -> 0 | BR25: 0 | BS25: 315 | BT25: 0 | BV25: =IF(ISNA(MATCH(AM25,'Coincident Peak'!$D$5:$D$16,0))=TRUE,0,1) -> 0 | BW25: 0 | BX25: 0 | BY25: 0 | BZ25: 0 | CA25: 0 | CB25: 1 | CC25: 1 | CD25: =IF(ISNA(MATCH(AM25,'Coincident Peak'!$D$5:$D$16,0))=TRUE,1,0) -> 1 | CE25: =VLOOKUP(MONTH($AM25),'Value Stacking Basis'!$B$38:$D$49,3) -> 3 | CF25: =VLOOKUP(MONTH($AM25),'Value Stacking Basis'!$B$38:$F$49,5) -> 2 | CG25: 1 | CK25: 273.68 | CL25: 273.68 | CM25: 0 | CN25: 0 | CO25: 24.00 | CQ25: 24.00 | CR25: 0 | CS25: 0 | CT25: 0 | CU25: 0 | CW25: =IF($BV25=0,0,IF($CB25=0,INDEX('Time Series Data'!N$7:N$8790,MATCH(1,(MONTH($AM25)='Time Series Data'!$E$7:$E$8790)*(DAY($AM25)='Time Series Data'!$F$7:$F$8790)*(HOUR(VLOOKUP('Time Series Data'!$AM25,'Coincident Peak'!$D$5:$I$16,2))='Time Series Data'!$G$7:$G$8790),0)),IF(($AT25*Rndtrp_eff)>Effective_Battery_Capacity,BatteryPower,(($AT25*Rndtrp_eff)/Effective_Battery_Capacity)*BatteryPower))) -> 0 | CX25: 273.68 | CY25: 273.68 | CZ25: 0 | DA25: 0 | DC25: =IF($BV25=0,0,IF($CB25=0,INDEX('Time Series Data'!N$7:N$8790,MATCH(1,(MONTH($AM25)='Time Series Data'!$E$7:$E$8790)*(DAY($AM25)='Time Series Data'!$F$7:$F$8790)*(HOUR(VLOOKUP('Time Series Data'!$AM25,'Coincident Peak'!$D$5:$I$16,2))='Time Series Data'!$G$7:$G$8790),0)),IF(($AT25*Rndtrp_eff)>Effective_Battery_Capacity,BatteryPower,(($AT25*Rndtrp_eff)/Effective_Battery_Capacity)*BatteryPower))) -> 0 | DD25: 24.00 | DF25: 0 | DG25: 0 | DH25: 274 | DI25: 273.68 | DJ25: 0 | DK25: 0 | DM25: 0 | DN25: 0 | DO25: 274 | DP25: 24 | DR25: 0 | DS25: 273.68 | DT25: 0 | DU25: 0 | DV25: 24.00 | DX25: 0 | DY25: 24.00 | DZ25: 0 | EA25: 0 | EB25: 0 | EF25: 1,596.26 | EG25: 0 | EH25: 0 | EI25: 24.00 | EK25: 24.00 | EL25: 0 | EM25: 0 | EN25: 0 | EP25: =IF($BV25=0,0,IF($CC25=0,VLOOKUP('Time Series Data'!$AM25,'Coincident Peak'!$D$5:$I$16,3),BatteryPower)) -> 0 | EQ25: 1,596.26 | ER25: 0 | ES25: 0 | EU25: =IF($BV25=0,0,IF($CC25=0,VLOOKUP('Time Series Data'!$AM25,'Coincident Peak'!$D$5:$I$16,3),BatteryPower)) -> 0 | EV25: 24.00 | EX25: 0 | EY25: 0 | EZ25: 1,596.26 | FA25: 0 | FB25: 0 | FD25: 0 | FE25: 0 | FF25: 24 | FH25: 0 | FI25: 1,596.26 | FJ25: 0 | FK25: 0 | FL25: 24.00 | FN25: 0 | FO25: 24.00 | FP25: 0 | FQ25: 0 | FR25: 0 | FT25: 0
B26: 2019-01-01T19:00:00 | C26: 2019-01-01 | D26: 12,241 | E26: 1 | F26: 1 | G26: 19 | H26: 2 | I26: =INDEX(Values!$V$6:$AG$29,'Time Series Data'!G26+1,'Time Series Data'!E26) -> 1 | J26: 19.5 | K26: 12241 | L26: 0 | M26: 0 | N26: 258.938 | O26: 0 | P26: 56.187 | T26: 0.00 | U26: 0.00 | V26: 11,982 | W26: =IF(V26+O26>VLOOKUP(E26,'Coincident Peak'!$C$22:$I$33,7),0,1) -> 1 | X26: =IF((AND(E26=MONTH(VLOOKUP('Time Series Data'!E26,'Coincident Peak'!$C$5:$D$16,2)),F26=DAY(VLOOKUP('Time Series Data'!E26,'Coincident Peak'!$C$5:$D$16,2)),IF(AND(G26<=HOUR(VLOOKUP('Time Series Data'!E26,'Coincident Peak'!$C$5:$E$16,3))+Values!$E$5,G26>=HOUR(VLOOKUP('Time Series Data'!E26,'Coincident Peak'!$C$5:$E$16,3))-Values!$E$5),"TRUE","FALSE"))),BatteryPower,0) -> 0.00 | Y26: =IF((AND(E26=MONTH(VLOOKUP('Time Series Data'!E26,'Coincident Peak'!$C$5:$D$16,2)),F26=DAY(VLOOKUP('Time Series Data'!E26,'Coincident Peak'!$C$5:$D$16,2)))),0,N26) -> 258.94 | Z26: =IF((AND(E26=MONTH(VLOOKUP('Time Series Data'!E26,'Coincident Peak'!$C$5:$D$16,2)),F26=DAY(VLOOKUP('Time Series Data'!E26,'Coincident Peak'!$C$5:$D$16,2)),IF(AND(G26<=HOUR(VLOOKUP('Time Series Data'!E26,'Coincident Peak'!$C$5:$E$16,3))+Values!$E$5,G26>=HOUR(VLOOKUP('Time Series Data'!E26,'Coincident Peak'!$C$5:$E$16,3))-Values!$E$5),"TRUE","FALSE"))),BatteryPower,Y26) -> 258.94 | AA26: =IF((AND(E26=MONTH(VLOOKUP('Time Series Data'!E26,'Coincident Peak'!$C$5:$D$16,2)),F26=DAY(VLOOKUP('Time Series Data'!E26,'Coincident Peak'!$C$5:$D$16,2))-1)),VLOOKUP(E26,'Coincident Peak'!$C$5:$N$16,11)*Z26,Z26) -> 258.94 | AB26: =IF((AND(E26=MONTH(VLOOKUP('Time Series Data'!E26,'Coincident Peak'!$C$5:$D$16,2)),F26=DAY(VLOOKUP('Time Series Data'!E26,'Coincident Peak'!$C$5:$D$16,2))+1)),VLOOKUP(E26,'Coincident Peak'!$C$5:$N$16,12)*AA26,AA26) -> 258.94 | AC26: =IF((AND(E26=MONTH(VLOOKUP('Time Series Data'!E26,'Coincident Peak'!$C$5:$D$16,2)),F26=DAY(VLOOKUP('Time Series Data'!E26,'Coincident Peak'!$C$5:$D$16,2)))),0,O26) -> 0.00 | AD26: =IF((AND(E26=MONTH(VLOOKUP('Time Series Data'!E26,'Coincident Peak'!$C$5:$D$16,2)),F26=DAY(VLOOKUP('Time Series Data'!E26,'Coincident Peak'!$C$5:$D$16,2))-1)),VLOOKUP(E26,'Coincident Peak'!$C$5:$N$16,11)*AC26,AC26) -> 0.00 | AE26: =IF((AND(E26=MONTH(VLOOKUP('Time Series Data'!E26,'Coincident Peak'!$C$5:$D$16,2)),F26=DAY(VLOOKUP('Time Series Data'!E26,'Coincident Peak'!$C$5:$D$16,2))+1)),VLOOKUP(E26,'Coincident Peak'!$C$5:$N$16,12)*AD26,AD26) -> 0.00 | AF26: 11,982 | AG26: =IF((AND(E26=MONTH(VLOOKUP('Time Series Data'!E26,'Coincident Peak'!$C$5:$D$16,2)),F26=DAY(VLOOKUP('Time Series Data'!E26,'Coincident Peak'!$C$5:$D$16,2)))),U26,O26) -> 0.00 | AH26: 11,982 | AL26: 19 | AM26: 2019-01-20 | AN26: 0 | AO26: 0 | AP26: 0 | AQ26: 0 | AR26: 1,976.08 | AS26: 842.01 | AT26: =IF(ISNA(MATCH(AM26,'Coincident Peak'!$D$5:$D$16,0))=TRUE,0,SUMIFS($O$7:$O$8790,$F$7:$F$8790,DAY(AM26),$E$7:$E$8790,MONTH(AM26),$G$7:$G$8790,"<"&HOUR(VLOOKUP(AM26,'Coincident Peak'!$D$5:$E$16,2))-Values!$E$5)) -> 0 | AU26: 0 | AV26: 0 | AW26: 0 | AX26: 0 | AY26: =IF(ISNA(MATCH(AM26,'Coincident Peak'!$D$5:$D$16,0))=TRUE,0,SUMIFS($O$7:$O$8790,$F$7:$F$8790,DAY(AM26),$E$7:$E$8790,MONTH(AM26),$G$7:$G$8790,"<"&HOUR(VLOOKUP(AM26,'Coincident Peak'!$D$5:$E$16,2))-Values!$E$5,$I$7:$I$8790,1)) -> 0 | AZ26: 0 | BA26: 0 | BB26: 0 | BD26: 0 | BE26: 0 | BF26: 0 | BG26: =IF(IF(ISNA(MATCH(AM26,'Coincident Peak'!$D$5:$D$16,0))=TRUE,0,SUMIFS($O$7:$O$8790,$F$7:$F$8790,DAY(AM26),$E$7:$E$8790,MONTH(AM26),$G$7:$G$8790,"<"&HOUR(VLOOKUP(AM26,'Coincident Peak'!$D$5:$E$16,2))-Values!$E$5,$I$7:$I$8790,0))>(Effective_Battery_Capacity/Rndtrp_eff),(Effective_Battery_Capacity/Rndtrp_eff),IF(ISNA(MATCH(AM26,'Coincident Peak'!$D$5:$D$16,0))=TRUE,0,SUMIFS($O$7:$O$8790,$F$7:$F$8790,DAY(AM26),$E$7:$E$8790,MONTH(AM26),$G$7:$G$8790,"<"&HOUR(VLOOKUP(AM26,'Coincident Peak'!$D$5:$E$16,2))-Values!$E$5,$I$7:$I$8790,0))) -> 0 | BH26: =IF((IF(ISNA(MATCH(AM26,'Coincident Peak'!$D$5:$D$16,0))=TRUE,0,SUMIFS($O$7:$O$8790,$F$7:$F$8790,DAY(AM26),$E$7:$E$8790,MONTH(AM26),$G$7:$G$8790,"<"&HOUR(VLOOKUP(AM26,'Coincident Peak'!$D$5:$E$16,2))-Values!$E$5)))>(Effective_Battery_Capacity/Rndtrp_eff),(Effective_Battery_Capacity/Rndtrp_eff),(IF(ISNA(MATCH(AM26,'Coincident Peak'!$D$5:$D$16,0))=TRUE,0,SUMIFS($O$7:$O$8790,$F$7:$F$8790,DAY(AM26),$E$7:$E$8790,MONTH(AM26),$G$7:$G$8790,"<"&HOUR(VLOOKUP(AM26,'Coincident Peak'!$D$5:$E$16,2))-Values!$E$5)))) -> 0 | BI26: 0 | BJ26: 0 | BK26: =IF(WholesaleEnergyCost_2>PPACostPerKWh,(IF((SUMIFS('Time Series Data'!$AG$7:$AG$8790,'Time Series Data'!$I$7:$I$8790,1,$F$7:$F$8790,DAY(AM26),$E$7:$E$8790,MONTH(AM26))-BP26)>(Effective_Battery_Capacity/Rndtrp_eff),(Effective_Battery_Capacity/Rndtrp_eff),(SUMIFS('Time Series Data'!$AG$7:$AG$8790,'Time Series Data'!$I$7:$I$8790,1,$F$7:$F$8790,DAY(AM26),$E$7:$E$8790,MONTH(AM26))))-BP26),0) -> 0 | BL26: 0 | BM26: =SUMIFS('Time Series Data'!$AG$7:$AG$8790,$F$7:$F$8790,DAY(AM26),$E$7:$E$8790,MONTH(AM26),'Time Series Data'!$I$7:$I$8790,1)-BL26-BP26 -> 968 | BN26: =SUMIFS('Time Series Data'!$AG$7:$AG$8790,'Time Series Data'!$I$7:$I$8790,0,$F$7:$F$8790,DAY(AM26),$E$7:$E$8790,MONTH(AM26))-BQ26 -> 1,008 | BO26: =IF((IF(ISNA(MATCH(AM26,'Coincident Peak'!$D$5:$D$16,0))=TRUE,0,SUMIFS($U$7:$U$8790,$F$7:$F$8790,DAY(AM26),$E$7:$E$8790,MONTH(AM26),$G$7:$G$8790,"<"&HOUR(VLOOKUP(AM26,'Coincident Peak'!$D$5:$E$16,2))-Values!$E$5)))>(Effective_Battery_Capacity/Rndtrp_eff),(Effective_Battery_Capacity/Rndtrp_eff),(IF(ISNA(MATCH(AM26,'Coincident Peak'!$D$5:$D$16,0))=TRUE,0,SUMIFS($U$7:$U$8790,$F$7:$F$8790,DAY(AM26),$E$7:$E$8790,MONTH(AM26),$G$7:$G$8790,"<"&HOUR(VLOOKUP(AM26,'Coincident Peak'!$D$5:$E$16,2))-Values!$E$5)))) -> 0 | BP26: =IF(WholesaleEnergyCost_2>PPACostPerKWh,(IF((IF(ISNA(MATCH(AM26,'Coincident Peak'!$D$5:$D$16,0))=TRUE,0,SUMIFS($U$7:$U$8790,$F$7:$F$8790,DAY(AM26),$E$7:$E$8790,MONTH(AM26),$G$7:$G$8790,"<"&HOUR(VLOOKUP(AM26,'Coincident Peak'!$D$5:$E$16,2))-Values!$E$5,$I$7:$I$8790,1)))>(Effective_Battery_Capacity/Rndtrp_eff),(Effective_Battery_Capacity/Rndtrp_eff),(IF(ISNA(MATCH(AM26,'Coincident Peak'!$D$5:$D$16,0))=TRUE,0,SUMIFS($U$7:$U$8790,$F$7:$F$8790,DAY(AM26),$E$7:$E$8790,MONTH(AM26),$G$7:$G$8790,"<"&HOUR(VLOOKUP(AM26,'Coincident Peak'!$D$5:$E$16,2))-Values!$E$5,$I$7:$I$8790,1))))),0) -> 0 | BQ26: =IF(WholesaleEnergyCost_1>PPACostPerKWh,(IF((IF(ISNA(MATCH(AM26,'Coincident Peak'!$D$5:$D$16,0))=TRUE,0,SUMIFS($U$7:$U$8790,$F$7:$F$8790,DAY(AM26),$E$7:$E$8790,MONTH(AM26),$G$7:$G$8790,"<"&HOUR(VLOOKUP(AM26,'Coincident Peak'!$D$5:$E$16,2))-Values!$E$5,$I$7:$I$8790,0)))>(Effective_Battery_Capacity/Rndtrp_eff),(Effective_Battery_Capacity/Rndtrp_eff),(IF(ISNA(MATCH(AM26,'Coincident Peak'!$D$5:$D$16,0))=TRUE,0,SUMIFS($U$7:$U$8790,$F$7:$F$8790,DAY(AM26),$E$7:$E$8790,MONTH(AM26),$G$7:$G$8790,"<"&HOUR(VLOOKUP(AM26,'Coincident Peak'!$D$5:$E$16,2))-Values!$E$5,$I$7:$I$8790,0))))),0) -> 0 | BR26: 0 | BS26: 968 | BT26: 0 | BV26: =IF(ISNA(MATCH(AM26,'Coincident Peak'!$D$5:$D$16,0))=TRUE,0,1) -> 0 | BW26: 0 | BX26: 0 | BY26: 0 | BZ26: 0 | CA26: 0 | CB26: 0 | CC26: 1 | CD26: =IF(ISNA(MATCH(AM26,'Coincident Peak'!$D$5:$D$16,0))=TRUE,1,0) -> 1 | CE26: =VLOOKUP(MONTH($AM26),'Value Stacking Basis'!$B$38:$D$49,3) -> 3 | CF26: =VLOOKUP(MONTH($AM26),'Value Stacking Basis'!$B$38:$F$49,5) -> 2 | CG26: 1 | CK26: 0 | CL26: 0 | CM26: 0 | CN26: 0 | CO26: 0 | CQ26: 0 | CR26: 0 | CS26: 0 | CT26: 0 | CU26: 0 | CW26: =IF($BV26=0,0,IF($CB26=0,INDEX('Time Series Data'!N$7:N$8790,MATCH(1,(MONTH($AM26)='Time Series Data'!$E$7:$E$8790)*(DAY($AM26)='Time Series Data'!$F$7:$F$8790)*(HOUR(VLOOKUP('Time Series Data'!$AM26,'Coincident Peak'!$D$5:$I$16,2))='Time Series Data'!$G$7:$G$8790),0)),IF(($AT26*Rndtrp_eff)>Effective_Battery_Capacity,BatteryPower,(($AT26*Rndtrp_eff)/Effective_Battery_Capacity)*BatteryPower))) -> 0 | CX26: 0 | CY26: 0 | CZ26: 0 | DA26: 0 | DC26: =IF($BV26=0,0,IF($CB26=0,INDEX('Time Series Data'!N$7:N$8790,MATCH(1,(MONTH($AM26)='Time Series Data'!$E$7:$E$8790)*(DAY($AM26)='Time Series Data'!$F$7:$F$8790)*(HOUR(VLOOKUP('Time Series Data'!$AM26,'Coincident Peak'!$D$5:$I$16,2))='Time Series Data'!$G$7:$G$8790),0)),IF(($AT26*Rndtrp_eff)>Effective_Battery_Capacity,BatteryPower,(($AT26*Rndtrp_eff)/Effective_Battery_Capacity)*BatteryPower))) -> 0 | DD26: 0 | DF26: 0 | DG26: 0 | DH26: 0 | DI26: 0 | DJ26: 0 | DK26: 0 | DM26: 0 | DN26: 0 | DO26: 0 | DP26: 0 | DR26: 0 | DS26: 842.01 | DT26: 0 | DU26: 0 | DV26: 24.00 | DX26: 0 | DY26: 24.00 | DZ26: 0 | EA26: 0 | EB26: 0 | EF26: 1,596.26 | EG26: 0 | EH26: 0 | EI26: 24.00 | EK26: 24.00 | EL26: 0 | EM26: 0 | EN26: 0 | EP26: =IF($BV26=0,0,IF($CC26=0,VLOOKUP('Time Series Data'!$AM26,'Coincident Peak'!$D$5:$I$16,3),BatteryPower)) -> 0 | EQ26: 1,596.26 | ER26: 0 | ES26: 0 | EU26: =IF($BV26=0,0,IF($CC26=0,VLOOKUP('Time Series Data'!$AM26,'Coincident Peak'!$D$5:$I$16,3),BatteryPower)) -> 0 | EV26: 24.00 | EX26: 0 | EY26: 0 | EZ26: 1,596.26 | FA26: 0 | FB26: 0 | FD26: 0 | FE26: 0 | FF26: 24 | FH26: 0 | FI26: 1,596.26 | FJ26: 0 | FK26: 0 | FL26: 24.00 | FN26: 0 | FO26: 24.00 | FP26: 0 | FQ26: 0 | FR26: 0 | FT26: 0
B27: 2019-01-01T20:00:00 | C27: 2019-01-01 | D27: 11,593 | E27: 1 | F27: 1 | G27: 20 | H27: 2 | I27: =INDEX(Values!$V$6:$AG$29,'Time Series Data'!G27+1,'Time Series Data'!E27) -> 1 | J27: 20.5 | K27: 11593 | L27: 389.062 | M27: 0 | N27: 0 | O27: 0 | P27: 73.3096 | T27: 389.06 | U27: 0.00 | V27: 11,593 | W27: =IF(V27+O27>VLOOKUP(E27,'Coincident Peak'!$C$22:$I$33,7),0,1) -> 1 | X27: =IF((AND(E27=MONTH(VLOOKUP('Time Series Data'!E27,'Coincident Peak'!$C$5:$D$16,2)),F27=DAY(VLOOKUP('Time Series Data'!E27,'Coincident Peak'!$C$5:$D$16,2)),IF(AND(G27<=HOUR(VLOOKUP('Time Series Data'!E27,'Coincident Peak'!$C$5:$E$16,3))+Values!$E$5,G27>=HOUR(VLOOKUP('Time Series Data'!E27,'Coincident Peak'!$C$5:$E$16,3))-Values!$E$5),"TRUE","FALSE"))),BatteryPower,0) -> 0.00 | Y27: =IF((AND(E27=MONTH(VLOOKUP('Time Series Data'!E27,'Coincident Peak'!$C$5:$D$16,2)),F27=DAY(VLOOKUP('Time Series Data'!E27,'Coincident Peak'!$C$5:$D$16,2)))),0,N27) -> 0.00 | Z27: =IF((AND(E27=MONTH(VLOOKUP('Time Series Data'!E27,'Coincident Peak'!$C$5:$D$16,2)),F27=DAY(VLOOKUP('Time Series Data'!E27,'Coincident Peak'!$C$5:$D$16,2)),IF(AND(G27<=HOUR(VLOOKUP('Time Series Data'!E27,'Coincident Peak'!$C$5:$E$16,3))+Values!$E$5,G27>=HOUR(VLOOKUP('Time Series Data'!E27,'Coincident Peak'!$C$5:$E$16,3))-Values!$E$5),"TRUE","FALSE"))),BatteryPower,Y27) -> 0.00 | AA27: =IF((AND(E27=MONTH(VLOOKUP('Time Series Data'!E27,'Coincident Peak'!$C$5:$D$16,2)),F27=DAY(VLOOKUP('Time Series Data'!E27,'Coincident Peak'!$C$5:$D$16,2))-1)),VLOOKUP(E27,'Coincident Peak'!$C$5:$N$16,11)*Z27,Z27) -> 0.00 | AB27: =IF((AND(E27=MONTH(VLOOKUP('Time Series Data'!E27,'Coincident Peak'!$C$5:$D$16,2)),F27=DAY(VLOOKUP('Time Series Data'!E27,'Coincident Peak'!$C$5:$D$16,2))+1)),VLOOKUP(E27,'Coincident Peak'!$C$5:$N$16,12)*AA27,AA27) -> 0.00 | AC27: =IF((AND(E27=MONTH(VLOOKUP('Time Series Data'!E27,'Coincident Peak'!$C$5:$D$16,2)),F27=DAY(VLOOKUP('Time Series Data'!E27,'Coincident Peak'!$C$5:$D$16,2)))),0,O27) -> 0.00 | AD27: =IF((AND(E27=MONTH(VLOOKUP('Time Series Data'!E27,'Coincident Peak'!$C$5:$D$16,2)),F27=DAY(VLOOKUP('Time Series Data'!E27,'Coincident Peak'!$C$5:$D$16,2))-1)),VLOOKUP(E27,'Coincident Peak'!$C$5:$N$16,11)*AC27,AC27) -> 0.00 | AE27: =IF((AND(E27=MONTH(VLOOKUP('Time Series Data'!E27,'Coincident Peak'!$C$5:$D$16,2)),F27=DAY(VLOOKUP('Time Series Data'!E27,'Coincident Peak'!$C$5:$D$16,2))+1)),VLOOKUP(E27,'Coincident Peak'!$C$5:$N$16,12)*AD27,AD27) -> 0.00 | AF27: 11,593 | AG27: =IF((AND(E27=MONTH(VLOOKUP('Time Series Data'!E27,'Coincident Peak'!$C$5:$D$16,2)),F27=DAY(VLOOKUP('Time Series Data'!E27,'Coincident Peak'!$C$5:$D$16,2)))),U27,O27) -> 0.00 | AH27: 11,593 | AL27: 20 | AM27: 2019-01-21 | AN27: 1 | AO27: 0 | AP27: 88.20 | AQ27: 79.89 | AR27: 3,447.69 | AS27: 2,026.77 | AT27: =IF(ISNA(MATCH(AM27,'Coincident Peak'!$D$5:$D$16,0))=TRUE,0,SUMIFS($O$7:$O$8790,$F$7:$F$8790,DAY(AM27),$E$7:$E$8790,MONTH(AM27),$G$7:$G$8790,"<"&HOUR(VLOOKUP(AM27,'Coincident Peak'!$D$5:$E$16,2))-Values!$E$5)) -> 0 | AU27: 0 | AV27: 80 | AW27: 80 | AX27: 1,118 | AY27: =IF(ISNA(MATCH(AM27,'Coincident Peak'!$D$5:$D$16,0))=TRUE,0,SUMIFS($O$7:$O$8790,$F$7:$F$8790,DAY(AM27),$E$7:$E$8790,MONTH(AM27),$G$7:$G$8790,"<"&HOUR(VLOOKUP(AM27,'Coincident Peak'!$D$5:$E$16,2))-Values!$E$5,$I$7:$I$8790,1)) -> 0 | AZ27: 1,118 | BA27: 1,118 | BB27: 0 | BD27: 1,118 | BE27: 1,835 | BF27: 0 | BG27: =IF(IF(ISNA(MATCH(AM27,'Coincident Peak'!$D$5:$D$16,0))=TRUE,0,SUMIFS($O$7:$O$8790,$F$7:$F$8790,DAY(AM27),$E$7:$E$8790,MONTH(AM27),$G$7:$G$8790,"<"&HOUR(VLOOKUP(AM27,'Coincident Peak'!$D$5:$E$16,2))-Values!$E$5,$I$7:$I$8790,0))>(Effective_Battery_Capacity/Rndtrp_eff),(Effective_Battery_Capacity/Rndtrp_eff),IF(ISNA(MATCH(AM27,'Coincident Peak'!$D$5:$D$16,0))=TRUE,0,SUMIFS($O$7:$O$8790,$F$7:$F$8790,DAY(AM27),$E$7:$E$8790,MONTH(AM27),$G$7:$G$8790,"<"&HOUR(VLOOKUP(AM27,'Coincident Peak'!$D$5:$E$16,2))-Values!$E$5,$I$7:$I$8790,0))) -> 0 | BH27: =IF((IF(ISNA(MATCH(AM27,'Coincident Peak'!$D$5:$D$16,0))=TRUE,0,SUMIFS($O$7:$O$8790,$F$7:$F$8790,DAY(AM27),$E$7:$E$8790,MONTH(AM27),$G$7:$G$8790,"<"&HOUR(VLOOKUP(AM27,'Coincident Peak'!$D$5:$E$16,2))-Values!$E$5)))>(Effective_Battery_Capacity/Rndtrp_eff),(Effective_Battery_Capacity/Rndtrp_eff),(IF(ISNA(MATCH(AM27,'Coincident Peak'!$D$5:$D$16,0))=TRUE,0,SUMIFS($O$7:$O$8790,$F$7:$F$8790,DAY(AM27),$E$7:$E$8790,MONTH(AM27),$G$7:$G$8790,"<"&HOUR(VLOOKUP(AM27,'Coincident Peak'!$D$5:$E$16,2))-Values!$E$5)))) -> 0 | BI27: 0 | BJ27: 0 | BK27: =IF(WholesaleEnergyCost_2>PPACostPerKWh,(IF((SUMIFS('Time Series Data'!$AG$7:$AG$8790,'Time Series Data'!$I$7:$I$8790,1,$F$7:$F$8790,DAY(AM27),$E$7:$E$8790,MONTH(AM27))-BP27)>(Effective_Battery_Capacity/Rndtrp_eff),(Effective_Battery_Capacity/Rndtrp_eff),(SUMIFS('Time Series Data'!$AG$7:$AG$8790,'Time Series Data'!$I$7:$I$8790,1,$F$7:$F$8790,DAY(AM27),$E$7:$E$8790,MONTH(AM27))))-BP27),0) -> 0 | BL27: 0 | BM27: =SUMIFS('Time Series Data'!$AG$7:$AG$8790,$F$7:$F$8790,DAY(AM27),$E$7:$E$8790,MONTH(AM27),'Time Series Data'!$I$7:$I$8790,1)-BL27-BP27 -> 2,329 | BN27: =SUMIFS('Time Series Data'!$AG$7:$AG$8790,'Time Series Data'!$I$7:$I$8790,0,$F$7:$F$8790,DAY(AM27),$E$7:$E$8790,MONTH(AM27))-BQ27 -> 1,118 | BO27: =IF((IF(ISNA(MATCH(AM27,'Coincident Peak'!$D$5:$D$16,0))=TRUE,0,SUMIFS($U$7:$U$8790,$F$7:$F$8790,DAY(AM27),$E$7:$E$8790,MONTH(AM27),$G$7:$G$8790,"<"&HOUR(VLOOKUP(AM27,'Coincident Peak'!$D$5:$E$16,2))-Values!$E$5)))>(Effective_Battery_Capacity/Rndtrp_eff),(Effective_Battery_Capacity/Rndtrp_eff),(IF(ISNA(MATCH(AM27,'Coincident Peak'!$D$5:$D$16,0))=TRUE,0,SUMIFS($U$7:$U$8790,$F$7:$F$8790,DAY(AM27),$E$7:$E$8790,MONTH(AM27),$G$7:$G$8790,"<"&HOUR(VLOOKUP(AM27,'Coincident Peak'!$D$5:$E$16,2))-Values!$E$5)))) -> 0 | BP27: =IF(WholesaleEnergyCost_2>PPACostPerKWh,(IF((IF(ISNA(MATCH(AM27,'Coincident Peak'!$D$5:$D$16,0))=TRUE,0,SUMIFS($U$7:$U$8790,$F$7:$F$8790,DAY(AM27),$E$7:$E$8790,MONTH(AM27),$G$7:$G$8790,"<"&HOUR(VLOOKUP(AM27,'Coincident Peak'!$D$5:$E$16,2))-Values!$E$5,$I$7:$I$8790,1)))>(Effective_Battery_Capacity/Rndtrp_eff),(Effective_Battery_Capacity/Rndtrp_eff),(IF(ISNA(MATCH(AM27,'Coincident Peak'!$D$5:$D$16,0))=TRUE,0,SUMIFS($U$7:$U$8790,$F$7:$F$8790,DAY(AM27),$E$7:$E$8790,MONTH(AM27),$G$7:$G$8790,"<"&HOUR(VLOOKUP(AM27,'Coincident Peak'!$D$5:$E$16,2))-Values!$E$5,$I$7:$I$8790,1))))),0) -> 0 | BQ27: =IF(WholesaleEnergyCost_1>PPACostPerKWh,(IF((IF(ISNA(MATCH(AM27,'Coincident Peak'!$D$5:$D$16,0))=TRUE,0,SUMIFS($U$7:$U$8790,$F$7:$F$8790,DAY(AM27),$E$7:$E$8790,MONTH(AM27),$G$7:$G$8790,"<"&HOUR(VLOOKUP(AM27,'Coincident Peak'!$D$5:$E$16,2))-Values!$E$5,$I$7:$I$8790,0)))>(Effective_Battery_Capacity/Rndtrp_eff),(Effective_Battery_Capacity/Rndtrp_eff),(IF(ISNA(MATCH(AM27,'Coincident Peak'!$D$5:$D$16,0))=TRUE,0,SUMIFS($U$7:$U$8790,$F$7:$F$8790,DAY(AM27),$E$7:$E$8790,MONTH(AM27),$G$7:$G$8790,"<"&HOUR(VLOOKUP(AM27,'Coincident Peak'!$D$5:$E$16,2))-Values!$E$5,$I$7:$I$8790,0))))),0) -> 0 | BR27: 0 | BS27: 1,835 | BT27: 80 | BV27: =IF(ISNA(MATCH(AM27,'Coincident Peak'!$D$5:$D$16,0))=TRUE,0,1) -> 0 | BW27: 0 | BX27: 1 | BY27: 1 | BZ27: 1 | CA27: 1 | CB27: 0 | CC27: 0 | CD27: =IF(ISNA(MATCH(AM27,'Coincident Peak'!$D$5:$D$16,0))=TRUE,1,0) -> 1 | CE27: =VLOOKUP(MONTH($AM27),'Value Stacking Basis'!$B$38:$D$49,3) -> 3 | CF27: =VLOOKUP(MONTH($AM27),'Value Stacking Basis'!$B$38:$F$49,5) -> 2 | CG27: 1 | CK27: 0 | CL27: 0 | CM27: 0 | CN27: 0 | CO27: 0 | CQ27: 0 | CR27: 0 | CS27: 0 | CT27: 0 | CU27: 0 | CW27: =IF($BV27=0,0,IF($CB27=0,INDEX('Time Series Data'!N$7:N$8790,MATCH(1,(MONTH($AM27)='Time Series Data'!$E$7:$E$8790)*(DAY($AM27)='Time Series Data'!$F$7:$F$8790)*(HOUR(VLOOKUP('Time Series Data'!$AM27,'Coincident Peak'!$D$5:$I$16,2))='Time Series Data'!$G$7:$G$8790),0)),IF(($AT27*Rndtrp_eff)>Effective_Battery_Capacity,BatteryPower,(($AT27*Rndtrp_eff)/Effective_Battery_Capacity)*BatteryPower))) -> 0 | CX27: 0 | CY27: 0 | CZ27: 0 | DA27: 0 | DC27: =IF($BV27=0,0,IF($CB27=0,INDEX('Time Series Data'!N$7:N$8790,MATCH(1,(MONTH($AM27)='Time Series Data'!$E$7:$E$8790)*(DAY($AM27)='Time Series Data'!$F$7:$F$8790)*(HOUR(VLOOKUP('Time Series Data'!$AM27,'Coincident Peak'!$D$5:$I$16,2))='Time Series Data'!$G$7:$G$8790),0)),IF(($AT27*Rndtrp_eff)>Effective_Battery_Capacity,BatteryPower,(($AT27*Rndtrp_eff)/Effective_Battery_Capacity)*BatteryPower))) -> 0 | DD27: 0 | DF27: 0 | DG27: 80 | DH27: 0 | DI27: 0 | DJ27: 0 | DK27: 0 | DM27: 0 | DN27: 80 | DO27: 0 | DP27: 0 | DR27: 0 | DS27: 1,596.26 | DT27: 1,596.26 | DU27: 1,596.26 | DV27: 0 | DX27: 0 | DY27: 0 | DZ27: 1,596.26 | EA27: 1,596.26 | EB27: 1,596.26 | EF27: 0 | EG27: 0 | EH27: 0 | EI27: 0 | EK27: 0 | EL27: 0 | EM27: 0 | EN27: 0 | EP27: =IF($BV27=0,0,IF($CC27=0,VLOOKUP('Time Series Data'!$AM27,'Coincident Peak'!$D$5:$I$16,3),BatteryPower)) -> 0 | EQ27: 0 | ER27: 0 | ES27: 0 | EU27: =IF($BV27=0,0,IF($CC27=0,VLOOKUP('Time Series Data'!$AM27,'Coincident Peak'!$D$5:$I$16,3),BatteryPower)) -> 0 | EV27: 0 | EX27: 0 | EY27: 79.89 | EZ27: 0 | FA27: 0 | FB27: 0 | FD27: 0 | FE27: 79.89 | FF27: 0 | FH27: 0 | FI27: 1,596.26 | FJ27: 1,596.26 | FK27: 1,596.26 | FL27: 0 | FN27: 0 | FO27: 0 | FP27: 1,596.26 | FQ27: 1,596.26 | FR27: 1,596.26 | FT27: 0
B28: 2019-01-01T21:00:00 | C28: 2019-01-01 | D28: 10,899 | E28: 1 | F28: 1 | G28: 21 | H28: 2 | I28: =INDEX(Values!$V$6:$AG$29,'Time Series Data'!G28+1,'Time Series Data'!E28) -> 1 | J28: 21.5 | K28: 10899 | L28: 533.23 | M28: 0 | N28: 0 | O28: 0 | P28: 95 | T28: 533.23 | U28: 0.00 | V28: 10,899 | W28: =IF(V28+O28>VLOOKUP(E28,'Coincident Peak'!$C$22:$I$33,7),0,1) -> 1 | X28: =IF((AND(E28=MONTH(VLOOKUP('Time Series Data'!E28,'Coincident Peak'!$C$5:$D$16,2)),F28=DAY(VLOOKUP('Time Series Data'!E28,'Coincident Peak'!$C$5:$D$16,2)),IF(AND(G28<=HOUR(VLOOKUP('Time Series Data'!E28,'Coincident Peak'!$C$5:$E$16,3))+Values!$E$5,G28>=HOUR(VLOOKUP('Time Series Data'!E28,'Coincident Peak'!$C$5:$E$16,3))-Values!$E$5),"TRUE","FALSE"))),BatteryPower,0) -> 0.00 | Y28: =IF((AND(E28=MONTH(VLOOKUP('Time Series Data'!E28,'Coincident Peak'!$C$5:$D$16,2)),F28=DAY(VLOOKUP('Time Series Data'!E28,'Coincident Peak'!$C$5:$D$16,2)))),0,N28) -> 0.00 | Z28: =IF((AND(E28=MONTH(VLOOKUP('Time Series Data'!E28,'Coincident Peak'!$C$5:$D$16,2)),F28=DAY(VLOOKUP('Time Series Data'!E28,'Coincident Peak'!$C$5:$D$16,2)),IF(AND(G28<=HOUR(VLOOKUP('Time Series Data'!E28,'Coincident Peak'!$C$5:$E$16,3))+Values!$E$5,G28>=HOUR(VLOOKUP('Time Series Data'!E28,'Coincident Peak'!$C$5:$E$16,3))-Values!$E$5),"TRUE","FALSE"))),BatteryPower,Y28) -> 0.00 | AA28: =IF((AND(E28=MONTH(VLOOKUP('Time Series Data'!E28,'Coincident Peak'!$C$5:$D$16,2)),F28=DAY(VLOOKUP('Time Series Data'!E28,'Coincident Peak'!$C$5:$D$16,2))-1)),VLOOKUP(E28,'Coincident Peak'!$C$5:$N$16,11)*Z28,Z28) -> 0.00 | AB28: =IF((AND(E28=MONTH(VLOOKUP('Time Series Data'!E28,'Coincident Peak'!$C$5:$D$16,2)),F28=DAY(VLOOKUP('Time Series Data'!E28,'Coincident Peak'!$C$5:$D$16,2))+1)),VLOOKUP(E28,'Coincident Peak'!$C$5:$N$16,12)*AA28,AA28) -> 0.00 | AC28: =IF((AND(E28=MONTH(VLOOKUP('Time Series Data'!E28,'Coincident Peak'!$C$5:$D$16,2)),F28=DAY(VLOOKUP('Time Series Data'!E28,'Coincident Peak'!$C$5:$D$16,2)))),0,O28) -> 0.00 | AD28: =IF((AND(E28=MONTH(VLOOKUP('Time Series Data'!E28,'Coincident Peak'!$C$5:$D$16,2)),F28=DAY(VLOOKUP('Time Series Data'!E28,'Coincident Peak'!$C$5:$D$16,2))-1)),VLOOKUP(E28,'Coincident Peak'!$C$5:$N$16,11)*AC28,AC28) -> 0.00 | AE28: =IF((AND(E28=MONTH(VLOOKUP('Time Series Data'!E28,'Coincident Peak'!$C$5:$D$16,2)),F28=DAY(VLOOKUP('Time Series Data'!E28,'Coincident Peak'!$C$5:$D$16,2))+1)),VLOOKUP(E28,'Coincident Peak'!$C$5:$N$16,12)*AD28,AD28) -> 0.00 | AF28: 10,899 | AG28: =IF((AND(E28=MONTH(VLOOKUP('Time Series Data'!E28,'Coincident Peak'!$C$5:$D$16,2)),F28=DAY(VLOOKUP('Time Series Data'!E28,'Coincident Peak'!$C$5:$D$16,2)))),U28,O28) -> 0.00 | AH28: 10,899 | AL28: 21 | AM28: 2019-01-22 | AN28: 1 | AO28: 56.94 | AP28: 577.38 | AQ28: 539.68 | AR28: 3,246.48 | AS28: 1,902.92 | AT28: =IF(ISNA(MATCH(AM28,'Coincident Peak'!$D$5:$D$16,0))=TRUE,0,SUMIFS($O$7:$O$8790,$F$7:$F$8790,DAY(AM28),$E$7:$E$8790,MONTH(AM28),$G$7:$G$8790,"<"&HOUR(VLOOKUP(AM28,'Coincident Peak'!$D$5:$E$16,2))-Values!$E$5)) -> 0 | AU28: 0 | AV28: 0 | AW28: 0 | AX28: 1,059 | AY28: =IF(ISNA(MATCH(AM28,'Coincident Peak'!$D$5:$D$16,0))=TRUE,0,SUMIFS($O$7:$O$8790,$F$7:$F$8790,DAY(AM28),$E$7:$E$8790,MONTH(AM28),$G$7:$G$8790,"<"&HOUR(VLOOKUP(AM28,'Coincident Peak'!$D$5:$E$16,2))-Values!$E$5,$I$7:$I$8790,1)) -> 0 | AZ28: 0 | BA28: 1,059 | BB28: 0 | BD28: 1,059 | BE28: 1,835 | BF28: 0 | BG28: =IF(IF(ISNA(MATCH(AM28,'Coincident Peak'!$D$5:$D$16,0))=TRUE,0,SUMIFS($O$7:$O$8790,$F$7:$F$8790,DAY(AM28),$E$7:$E$8790,MONTH(AM28),$G$7:$G$8790,"<"&HOUR(VLOOKUP(AM28,'Coincident Peak'!$D$5:$E$16,2))-Values!$E$5,$I$7:$I$8790,0))>(Effective_Battery_Capacity/Rndtrp_eff),(Effective_Battery_Capacity/Rndtrp_eff),IF(ISNA(MATCH(AM28,'Coincident Peak'!$D$5:$D$16,0))=TRUE,0,SUMIFS($O$7:$O$8790,$F$7:$F$8790,DAY(AM28),$E$7:$E$8790,MONTH(AM28),$G$7:$G$8790,"<"&HOUR(VLOOKUP(AM28,'Coincident Peak'!$D$5:$E$16,2))-Values!$E$5,$I$7:$I$8790,0))) -> 0 | BH28: =IF((IF(ISNA(MATCH(AM28,'Coincident Peak'!$D$5:$D$16,0))=TRUE,0,SUMIFS($O$7:$O$8790,$F$7:$F$8790,DAY(AM28),$E$7:$E$8790,MONTH(AM28),$G$7:$G$8790,"<"&HOUR(VLOOKUP(AM28,'Coincident Peak'!$D$5:$E$16,2))-Values!$E$5)))>(Effective_Battery_Capacity/Rndtrp_eff),(Effective_Battery_Capacity/Rndtrp_eff),(IF(ISNA(MATCH(AM28,'Coincident Peak'!$D$5:$D$16,0))=TRUE,0,SUMIFS($O$7:$O$8790,$F$7:$F$8790,DAY(AM28),$E$7:$E$8790,MONTH(AM28),$G$7:$G$8790,"<"&HOUR(VLOOKUP(AM28,'Coincident Peak'!$D$5:$E$16,2))-Values!$E$5)))) -> 0 | BI28: 0 | BJ28: 0 | BK28: =IF(WholesaleEnergyCost_2>PPACostPerKWh,(IF((SUMIFS('Time Series Data'!$AG$7:$AG$8790,'Time Series Data'!$I$7:$I$8790,1,$F$7:$F$8790,DAY(AM28),$E$7:$E$8790,MONTH(AM28))-BP28)>(Effective_Battery_Capacity/Rndtrp_eff),(Effective_Battery_Capacity/Rndtrp_eff),(SUMIFS('Time Series Data'!$AG$7:$AG$8790,'Time Series Data'!$I$7:$I$8790,1,$F$7:$F$8790,DAY(AM28),$E$7:$E$8790,MONTH(AM28))))-BP28),0) -> 0 | BL28: 0 | BM28: =SUMIFS('Time Series Data'!$AG$7:$AG$8790,$F$7:$F$8790,DAY(AM28),$E$7:$E$8790,MONTH(AM28),'Time Series Data'!$I$7:$I$8790,1)-BL28-BP28 -> 2,187 | BN28: =SUMIFS('Time Series Data'!$AG$7:$AG$8790,'Time Series Data'!$I$7:$I$8790,0,$F$7:$F$8790,DAY(AM28),$E$7:$E$8790,MONTH(AM28))-BQ28 -> 1,059 | BO28: =IF((IF(ISNA(MATCH(AM28,'Coincident Peak'!$D$5:$D$16,0))=TRUE,0,SUMIFS($U$7:$U$8790,$F$7:$F$8790,DAY(AM28),$E$7:$E$8790,MONTH(AM28),$G$7:$G$8790,"<"&HOUR(VLOOKUP(AM28,'Coincident Peak'!$D$5:$E$16,2))-Values!$E$5)))>(Effective_Battery_Capacity/Rndtrp_eff),(Effective_Battery_Capacity/Rndtrp_eff),(IF(ISNA(MATCH(AM28,'Coincident Peak'!$D$5:$D$16,0))=TRUE,0,SUMIFS($U$7:$U$8790,$F$7:$F$8790,DAY(AM28),$E$7:$E$8790,MONTH(AM28),$G$7:$G$8790,"<"&HOUR(VLOOKUP(AM28,'Coincident Peak'!$D$5:$E$16,2))-Values!$E$5)))) -> 0 | BP28: =IF(WholesaleEnergyCost_2>PPACostPerKWh,(IF((IF(ISNA(MATCH(AM28,'Coincident Peak'!$D$5:$D$16,0))=TRUE,0,SUMIFS($U$7:$U$8790,$F$7:$F$8790,DAY(AM28),$E$7:$E$8790,MONTH(AM28),$G$7:$G$8790,"<"&HOUR(VLOOKUP(AM28,'Coincident Peak'!$D$5:$E$16,2))-Values!$E$5,$I$7:$I$8790,1)))>(Effective_Battery_Capacity/Rndtrp_eff),(Effective_Battery_Capacity/Rndtrp_eff),(IF(ISNA(MATCH(AM28,'Coincident Peak'!$D$5:$D$16,0))=TRUE,0,SUMIFS($U$7:$U$8790,$F$7:$F$8790,DAY(AM28),$E$7:$E$8790,MONTH(AM28),$G$7:$G$8790,"<"&HOUR(VLOOKUP(AM28,'Coincident Peak'!$D$5:$E$16,2))-Values!$E$5,$I$7:$I$8790,1))))),0) -> 0 | BQ28: =IF(WholesaleEnergyCost_1>PPACostPerKWh,(IF((IF(ISNA(MATCH(AM28,'Coincident Peak'!$D$5:$D$16,0))=TRUE,0,SUMIFS($U$7:$U$8790,$F$7:$F$8790,DAY(AM28),$E$7:$E$8790,MONTH(AM28),$G$7:$G$8790,"<"&HOUR(VLOOKUP(AM28,'Coincident Peak'!$D$5:$E$16,2))-Values!$E$5,$I$7:$I$8790,0)))>(Effective_Battery_Capacity/Rndtrp_eff),(Effective_Battery_Capacity/Rndtrp_eff),(IF(ISNA(MATCH(AM28,'Coincident Peak'!$D$5:$D$16,0))=TRUE,0,SUMIFS($U$7:$U$8790,$F$7:$F$8790,DAY(AM28),$E$7:$E$8790,MONTH(AM28),$G$7:$G$8790,"<"&HOUR(VLOOKUP(AM28,'Coincident Peak'!$D$5:$E$16,2))-Values!$E$5,$I$7:$I$8790,0))))),0) -> 0 | BR28: 0 | BS28: 0 | BT28: 0 | BV28: =IF(ISNA(MATCH(AM28,'Coincident Peak'!$D$5:$D$16,0))=TRUE,0,1) -> 1 | BW28: 1 | BX28: 1 | BY28: 2 | BZ28: 1 | CA28: 1 | CB28: 0 | CC28: 0 | CD28: =IF(ISNA(MATCH(AM28,'Coincident Peak'!$D$5:$D$16,0))=TRUE,1,0) -> 0 | CE28: =VLOOKUP(MONTH($AM28),'Value Stacking Basis'!$B$38:$D$49,3) -> 3 | CF28: =VLOOKUP(MONTH($AM28),'Value Stacking Basis'!$B$38:$F$49,5) -> 2 | CG28: 1 | CK28: 0 | CL28: 0 | CM28: 0 | CN28: 0 | CO28: 0 | CQ28: 0 | CR28: 0 | CS28: 0 | CT28: 0 | CU28: 0 | CW28: =IF($BV28=0,0,IF($CB28=0,INDEX('Time Series Data'!N$7:N$8790,MATCH(1,(MONTH($AM28)='Time Series Data'!$E$7:$E$8790)*(DAY($AM28)='Time Series Data'!$F$7:$F$8790)*(HOUR(VLOOKUP('Time Series Data'!$AM28,'Coincident Peak'!$D$5:$I$16,2))='Time Series Data'!$G$7:$G$8790),0)),IF(($AT28*Rndtrp_eff)>Effective_Battery_Capacity,BatteryPower,(($AT28*Rndtrp_eff)/Effective_Battery_Capacity)*BatteryPower))) -> 0 | CX28: 0 | CY28: 0 | CZ28: 0 | DA28: 0 | DC28: =IF($BV28=0,0,IF($CB28=0,INDEX('Time Series Data'!N$7:N$8790,MATCH(1,(MONTH($AM28)='Time Series Data'!$E$7:$E$8790)*(DAY($AM28)='Time Series Data'!$F$7:$F$8790)*(HOUR(VLOOKUP('Time Series Data'!$AM28,'Coincident Peak'!$D$5:$I$16,2))='Time Series Data'!$G$7:$G$8790),0)),IF(($AT28*Rndtrp_eff)>Effective_Battery_Capacity,BatteryPower,(($AT28*Rndtrp_eff)/Effective_Battery_Capacity)*BatteryPower))) -> 0 | DD28: 0 | DF28: 520 | DG28: 0 | DH28: 0 | DI28: 0 | DJ28: 0 | DK28: 0 | DM28: 520 | DN28: 0 | DO28: 0 | DP28: 0 | DR28: 520 | DS28: 0 | DT28: 0 | DU28: 0 | DV28: 0 | DX28: 520 | DY28: 0 | DZ28: 0 | EA28: 0 | EB28: 0 | EF28: 0 | EG28: 0 | EH28: 0 | EI28: 0 | EK28: 0 | EL28: 0 | EM28: 0 | EN28: 0 | EP28: =IF($BV28=0,0,IF($CC28=0,VLOOKUP('Time Series Data'!$AM28,'Coincident Peak'!$D$5:$I$16,3),BatteryPower)) -> 0 | EQ28: 0 | ER28: 0 | ES28: 0 | EU28: =IF($BV28=0,0,IF($CC28=0,VLOOKUP('Time Series Data'!$AM28,'Coincident Peak'!$D$5:$I$16,3),BatteryPower)) -> 0 | EV28: 0 | EX28: 519.62 | EY28: 0 | EZ28: 0 | FA28: 0 | FB28: 0 | FD28: 519.62 | FE28: 0 | FF28: 0 | FH28: 519.62 | FI28: 0 | FJ28: 0 | FK28: 0 | FL28: 0 | FN28: 519.62 | FO28: 0 | FP28: 0 | FQ28: 0 | FR28: 0 | FT28: 519.62
